Workbook

Sheet RAK-12 (Revised RAK-4, 8)
I1: CONFIDENTIAL
A2: Direct Testimony of Ronald A. Klote (REVISED per transaction Pricing as of 2-14-2024)
A3: Evergy Missouri West
A4: Before the Missouri Public Service Commission
A5: Case. No. EF-2022-0155
A7: Updated Securitization Benefits Analysis
A9: 1 | C9: Securitization | E9: FAC/PISA 20 years | G9: ="Amortization: "&G15&" Years" -> Amortization: 15 Years
A10: =A9+1 -> 2 | B10: Storm Uri costs (incl. carrying) | C10: ='RAK-11 (Revised RAK-3, 7)'!D12 -> 322951647.7 | D10: A | E10: =(+'MO West FAC Approach'!AN22-'MO West FAC Approach'!X31)*1000000 -> 329611792 | F10: B, D | G10: =+'MO West AAO Amort Approach-15'!AN21*1000000 -> 379712977.9 | H10: B
A11: =A10+1 -> 3 | B11: Upfront financing costs | C11: ='RAK-11 (Revised RAK-3, 7)'!D14 -> 8175352 | E11: =+'MO West FAC Approach'!AN26*1000000 -> 2463737 | G11: =+'MO West AAO Amort Approach-15'!AN25*1000000 -> 2463737
A12: 4 | B12: Total | C12: =C10+C11 -> 331126999.7 | E12: =SUM(E10:E11) -> 332075529 | G12: =G10+G11 -> 382176714.9
A13: 5
A14: 6 | B14: Est. Interest Rate/Carrying cost | C14: =+'Single-Tranche Amort (2.14.24)'!H15 -> 0.05101 | E14: 0.08896610189 | G14: 0.08896610189
A15: 7 | B15: Term (years) | C15: =+ROUND('Single-Tranche Amort (2.14.24)'!D18,0) -> 15 | E15: 20 | G15: 15
A16: 8 | B16: Monthly payment | C16: =+'RAK-11 (Revised RAK-3, 7)'!D19 -> 2686716.572
A17: 9
A18: =A17+1 -> 10 | B18: Ongoing costs (monthly) | C18: ='RAK-11 (Revised RAK-3, 7)'!D22 -> 45000
A19: =A18+1 -> 11
A20: 12 | B20: Monthly revenue requirement | C20: =C16+C18 -> 2731716.572 | E20: =+'MO West FAC Approach'!JT32*1000000/E15/12 -> 2526204.082 | F20: C | G20: =+'MO West AAO Amort Approach-15'!HL31*1000000/G15/12 -> 3927655.749 | H20: C
A21: 13
A22: 14 | B22: Total payments/Collected | C22: =+C20*C15*12 -> 491708983 | E22: =+E20*E15*12 -> 606288979.7 | G22: =+G20*G15*12 -> 706978034.7
A23: 15 | B23: Securitization benefit | E23: =+C22-E22 -> -114579996.7 | G23: =$C22-G22 -> -215269051.8
A24: 16
A25: 17 | B25: Discount Rate | C25: 0.0506 | E25: 0.0506 | G25: 0.0506
A26: 18 | B26: NPV payments discounted | C26: =+'MO West Securitization Approach'!D34*1000000 -> 340219634.1 | E26: =-'MO West FAC Approach'!D35*1000000 -> 429057103 | G26: =+'MO West AAO Amort Approach-15'!D31*1000000 -> 514485128.8
A27: 19 | B27: NPV securitization benefit | E27: =+C26-E26 -> -88837468.91 | G27: =$C26-G26 -> -174265494.7
A30: A | B30: Assumes securitization settlement on 2/23/2024
A31: B | B31: Assumes deferral in rate base 1/1/2024 then every four years thereafter
A32: C | B32: Average over recovery period
A33: D | B33: Includes $78.4 million collected over 12 months in the MO West FAC

Sheet RAK-11 (Revised RAK-3, 7)
F1: CONFIDENTIAL
A2: Direct Testimony of Ronald A. Klote (REVISED per transaction Pricing as of 2-14-2024)
A3: Evergy Missouri West
A4: Before the Missouri Public Service Commission
A5: Case. No. EF-2022-0155
A6: Updated Revenue Requirement
A8: 1 | C8: Storm Uri Costs | D8: =+'RAK-10 (Revised RAK-2, 6)'!U26 -> 280667565.6 | F8: Per Order
A9: =+A8+1 -> 2 | C9: Carrying costs as of January 31, 2023, @ 5.06% | D9: =+'Carrying costs- Staff'!AC19 -> 27143679.94 | F9: Per Order
A10: =+A9+1 -> 3 | C10: Additional carrying costs Feb 1, 2023 to Feb 23, 2024 | D10: 15140402.15 | F10: Finance Summary
A11: =+A10+1 -> 4
A12: =+A11+1 -> 5 | C12: Total Storm Recovery costs | D12: =SUM(D8:D10) -> 322951647.7
A13: 6
A14: 7 | C14: Upfront Financing Costs (and rounding to $1,000s) | D14: 8175352 | F14: Finance Summary
A15: 8 | C15: Total Cost to be Financed with Securitized Utility Tariff Bonds | D15: =D12+D14 -> 331126999.7
A16: 9
A17: 10 | C17: Interest rate | D17: =+'Single-Tranche Amort (2.14.24)'!H15 -> 0.05101
A18: 11 | C18: Term (years) | D18: =+ROUND('Single-Tranche Amort (2.14.24)'!D18,0) -> 15
A19: 12 | C19: Monthly bond payment | D19: ='Finance Summary'!E7 -> 2686716.572 | F19: Finance Summary
A20: 13
A21: 14 | C21: Ongoing costs (annual) | D21: 540000
A22: 15 | C22: Ongoing costs (monthly) | D22: =D21/12 -> 45000
A23: 16
A24: 17 | C24: Monthly Revenue Requirement | D24: =D19+D22 -> 2731716.572

Sheet Finance Summary
B3: Deal Summary Cash Flow 2/14/2024 @ Pricing
B5: Total Debt Service ($) | E5: =SUM('Single-Tranche Amort (2.14.24)'!T25:T54) -> 475548833.2
B6: Time Outstanding (months) | E6: =DATEDIF('Single-Tranche Amort (2.14.24)'!$B$3,'Single-Tranche Amort (2.14.24)'!$B$5,"m") -> 177 | F6: =DATEDIF('Single-Tranche Amort (2.14.24)'!$B$3,'Single-Tranche Amort (2.14.24)'!$B$5,"m")+_xlfn.DAYS(EOMONTH('Single-Tranche Amort (2.14.24)'!$B$3,0),'Single-Tranche Amort (2.14.24)'!$B$3)/_xlfn.DAYS(EOMONTH('Single-Tranche Amort (2.14.24)'!$B$3,0),EOMONTH('Single-Tranche Amort (2.14.24)'!$B$3,-1)) -> 177.2068966
B7: Monthly Debt Service ($/mo) | E7: =+E5/E6 -> 2686716.572

Sheet Single-Tranche Amort (2.14.24)
A2: Collection Start Date | B2: 2024-03-01
A3: Settle Date | B3: 2024-02-23
A4: First Pay Date | B4: 2024-12-01
A5: Expected Maturity Date | B5: 2038-12-01
A7: Yearly Admin Fee | B7: 374436.5
A8: Servicing Fee | B8: 0.0005 | G8: =+D13*D21 -> 331105410.5
A9: - Servicing Fee | B9: 165563.5 | G9: -1324508
A10: Total On-going Fee | B10: 540000
A12: Tranche | D12: A-1 | E12: Total
A13: Balance | D13: 331127000 | E13: 331127000 | G13: B-mark Yield | H13: 0.04251 | J13: Interpolated Treasury Curve @ 8.55 WAL (see chart to right)
A14: Coupon | D14: 0.05104 | E14: 0.05104 | G14: Spread | H14: 0.0085
A15: Avg Life | D15: 8.55 | E15: 8.55 | G15: Yield | H15: =SUM(H13:H14) -> 0.05101
A16: Window | D16: 12/24-12/38 | E16: 12/24-12/38
A17: Expected Final Maturity | D17: 2038-12-01
A18: Years to Expected Final Maturity | D18: 14.77
A19: Legal Final Maturity | D19: 2040-12-01 | G19: =+Y56 -> 331105404.1 | H19: PV Bond CFs
A20: Years to Legal Final Maturity | D20: 16.77 | G20: =+D13 -> 331127000 | H20: Bond Principal Issued
A21: Price | D21: 0.9999348 | E21: 0.9999348 | G21: =+ROUND(G19/G20,7) -> 0.9999348 | H21: Price Check | J21: =+D21-G21 -> 0 | K21: Variance
D23: Balance | G23: Interest | J23: Principal | M23: Bond Cash Flows | P23: Fees | T23: Total Securitization CF
A24: Period | B24: Date | D24: A-1 | E24: Total | G24: A-1 | H24: Total | J24: A-1 | K24: Total | M24: A-1 | N24: Total | P24: Admin | Q24: Servicing | R24: Total | T24: Bond CF | U24: Fees | V24: Total Collections | X24: Year | Y24: PV Bond CF | Z24: PV Collections | AB24: Year | AC24: Bond CF | AD24: Fees | AE24: Total CF | AF24: PV Collections
A25: 0 | B25: 2024-02-23 | D25: 331127000 | E25: 331127000
A26: 1 | B26: 2024-12-01 | D26: 319606053.4 | E26: 319606053.4 | G26: 13051113.16 | H26: 13051113.16 | J26: 11520946.6 | K26: 11520946.6 | M26: 24572059.76 | N26: 24572059.76 | P26: 289148.1861 | Q26: 127851.8139 | R26: 417000 | T26: 24572059.76 | U26: 417000 | V26: 24989059.76 | X26: =YEARFRAC($B$25,B26) -> 0.7722222222 | Y26: =+T26/(1+$H$15/2)^(X26*2) -> 23634627.72 | Z26: =+V26/(1+$H$15/2)^(X26*2) -> 24035719.04 | AB26: 1 | AC26: =SUM(IF($X$26:$X$54<=$AB26,T$26:T$54,0)) -> 24572059.76 | AD26: =SUM(IF($X$26:$X$54<=$AB26,U$26:U$54,0)) -> 417000 | AE26: =SUM(IF($X$26:$X$54<=$AB26,V$26:V$54,0)) -> 24989059.76 | AF26: =SUM(IF($X$26:$X$54<=$AB26,Z$26:Z$54,0)) -> 24035719.04
A27: 2 | B27: 2025-06-01 | D27: 311603141.1 | E27: 311603141.1 | G27: 8156346.483 | H27: 8156346.483 | J27: 8002912.34 | K27: 8002912.34 | M27: 16159258.82 | N27: 16159258.82 | P27: 187218.25 | Q27: 82781.75 | R27: 270000 | T27: 16159258.82 | U27: 270000 | V27: 16429258.82 | X27: 1.272222222 | Y27: =+T27/(1+$H$15/2)^(X27*2) -> 15156218.51 | Z27: =+V27/(1+$H$15/2)^(X27*2) -> 15409459.03 | AB27: 2 | AC27: =SUM(IF($X$26:$X$54<=$AB27,T$26:T$54,0))-SUM(AC$26:AC26) -> 32315396.51 | AD27: =SUM(IF($X$26:$X$54<=$AB27,U$26:U$54,0))-SUM(AD$26:AD26) -> 540000 | AE27: =SUM(IF($X$26:$X$54<=$AB27,V$26:V$54,0))-SUM(AE$26:AE26) -> 32855396.51 | AF27: =SUM(IF($X$26:$X$54<=$AB27,Z$26:Z$54,0))-SUM(AF$26:AF26) -> 30432819.84
A28: 3 | B28: 2025-12-01 | D28: 303399115.5 | E28: 303399115.5 | G28: 7952112.16 | H28: 7952112.16 | J28: 8204025.53 | K28: 8204025.53 | M28: 16156137.69 | N28: 16156137.69 | P28: 187218.25 | Q28: 82781.75 | R28: 270000 | T28: 16156137.69 | U28: 270000 | V28: 16426137.69 | X28: 1.772222222 | Y28: 14776418.56 | Z28: 15023360.81 | AB28: 3 | AC28: =SUM(IF($X$26:$X$54<=$AB28,T$26:T$54,0))-SUM(AC$26:AC27) -> 32302596.25 | AD28: =SUM(IF($X$26:$X$54<=$AB28,U$26:U$54,0))-SUM(AD$26:AD27) -> 540000 | AE28: =SUM(IF($X$26:$X$54<=$AB28,V$26:V$54,0))-SUM(AE$26:AE27) -> 32842596.25 | AF28: =SUM(IF($X$26:$X$54<=$AB28,Z$26:Z$54,0))-SUM(AF$26:AF27) -> 28926602.37
A29: 4 | B29: 2026-06-01 | D29: 294988922.9 | E29: 294988922.9 | G29: 7742745.428 | H29: 7742745.428 | J29: 8410192.68 | K29: 8410192.68 | M29: 16152938.11 | N29: 16152938.11 | P29: 187218.25 | Q29: 82781.75 | R29: 270000 | T29: 16152938.11 | U29: 270000 | V29: 16422938.11 | X29: 2.272222222 | Y29: 14406065.52 | Z29: 14646866.15 | AB29: 4 | AC29: =SUM(IF($X$26:$X$54<=$AB29,T$26:T$54,0))-SUM(AC$26:AC28) -> 32289144.57 | AD29: =SUM(IF($X$26:$X$54<=$AB29,U$26:U$54,0))-SUM(AD$26:AD28) -> 540000 | AE29: =SUM(IF($X$26:$X$54<=$AB29,V$26:V$54,0))-SUM(AE$26:AE28) -> 32829144.57 | AF29: =SUM(IF($X$26:$X$54<=$AB29,Z$26:Z$54,0))-SUM(AF$26:AF28) -> 27494382.77
A30: 5 | B30: 2026-12-01 | D30: 286367382 | E30: 286367382 | G30: 7528117.311 | H30: 7528117.311 | J30: 8621540.83 | K30: 8621540.83 | M30: 16149658.14 | N30: 16149658.14 | P30: 187218.25 | Q30: 82781.75 | R30: 270000 | T30: 16149658.14 | U30: 270000 | V30: 16419658.14 | X30: 2.772222222 | Y30: 14044924.47 | Z30: 14279736.22 | AB30: 5 | AC30: =SUM(IF($X$26:$X$54<=$AB30,T$26:T$54,0))-SUM(AC$26:AC29) -> 32275008.33 | AD30: =SUM(IF($X$26:$X$54<=$AB30,U$26:U$54,0))-SUM(AD$26:AD29) -> 540000 | AE30: =SUM(IF($X$26:$X$54<=$AB30,V$26:V$54,0))-SUM(AE$26:AE29) -> 32815008.33 | AF30: =SUM(IF($X$26:$X$54<=$AB30,Z$26:Z$54,0))-SUM(AF$26:AF29) -> 26132526.05
A31: 6 | B31: 2027-06-01 | D31: 277529181.9 | E31: 277529181.9 | G31: 7308095.589 | H31: 7308095.589 | J31: 8838200.15 | K31: 8838200.15 | M31: 16146295.74 | N31: 16146295.74 | P31: 187218.25 | Q31: 82781.75 | R31: 270000 | T31: 16146295.74 | U31: 270000 | V31: 16416295.74 | X31: 3.272222222 | Y31: 13692766.27 | Z31: 13921738.1 | AB31: 6 | AC31: =SUM(IF($X$26:$X$54<=$AB31,T$26:T$54,0))-SUM(AC$26:AC30) -> 32260152.66 | AD31: =SUM(IF($X$26:$X$54<=$AB31,U$26:U$54,0))-SUM(AD$26:AD30) -> 540000 | AE31: =SUM(IF($X$26:$X$54<=$AB31,V$26:V$54,0))-SUM(AE$26:AE30) -> 32800152.66 | AF31: =SUM(IF($X$26:$X$54<=$AB31,Z$26:Z$54,0))-SUM(AF$26:AF30) -> 24837575.77
A32: 7 | B32: 2027-12-01 | D32: 268468877.8 | E32: 268468877.8 | G32: 7082544.721 | H32: 7082544.721 | J32: 9060304.11 | K32: 9060304.11 | M32: 16142848.83 | N32: 16142848.83 | P32: 187218.25 | Q32: 82781.75 | R32: 270000 | T32: 16142848.83 | U32: 270000 | V32: 16412848.83 | X32: 3.772222222 | Y32: 13349367.52 | Z32: 13572644.67 | AB32: 7 | AC32: =SUM(IF($X$26:$X$54<=$AB32,T$26:T$54,0))-SUM(AC$26:AC31) -> 32244540.97 | AD32: =SUM(IF($X$26:$X$54<=$AB32,U$26:U$54,0))-SUM(AD$26:AD31) -> 540000 | AE32: =SUM(IF($X$26:$X$54<=$AB32,V$26:V$54,0))-SUM(AE$26:AE31) -> 32784540.97 | AF32: =SUM(IF($X$26:$X$54<=$AB32,Z$26:Z$54,0))-SUM(AF$26:AF31) -> 23606245.29
A33: 8 | B33: 2028-06-01 | D33: 259180888.2 | E33: 259180888.2 | G33: 6851325.76 | H33: 6851325.76 | J33: 9287989.56 | K33: 9287989.56 | M33: 16139315.32 | N33: 16139315.32 | P33: 187218.25 | Q33: 82781.75 | R33: 270000 | T33: 16139315.32 | U33: 270000 | V33: 16409315.32 | X33: 4.272222222 | Y33: 13014510.39 | Z33: 13232234.49 | AB33: 8 | AC33: =SUM(IF($X$26:$X$54<=$AB33,T$26:T$54,0))-SUM(AC$26:AC32) -> 32228134.76 | AD33: =SUM(IF($X$26:$X$54<=$AB33,U$26:U$54,0))-SUM(AD$26:AD32) -> 540000 | AE33: =SUM(IF($X$26:$X$54<=$AB33,V$26:V$54,0))-SUM(AE$26:AE32) -> 32768134.76 | AF33: =SUM(IF($X$26:$X$54<=$AB33,Z$26:Z$54,0))-SUM(AF$26:AF32) -> 22435409.41
A34: 9 | B34: 2028-12-01 | D34: 249659491.5 | E34: 249659491.5 | G34: 6614296.267 | H34: 6614296.267 | J34: 9521396.74 | K34: 9521396.74 | M34: 16135693.01 | N34: 16135693.01 | P34: 187218.25 | Q34: 82781.75 | R34: 270000 | T34: 16135693.01 | U34: 270000 | V34: 16405693.01 | X34: 4.772222222 | Y34: 12687982.42 | Z34: 12900291.57 | AB34: 9 | AC34: =SUM(IF($X$26:$X$54<=$AB34,T$26:T$54,0))-SUM(AC$26:AC33) -> 32210893.64 | AD34: =SUM(IF($X$26:$X$54<=$AB34,U$26:U$54,0))-SUM(AD$26:AD33) -> 540000 | AE34: =SUM(IF($X$26:$X$54<=$AB34,V$26:V$54,0))-SUM(AE$26:AE33) -> 32750893.64 | AF34: =SUM(IF($X$26:$X$54<=$AB34,Z$26:Z$54,0))-SUM(AF$26:AF33) -> 21322096.5
A35: 10 | B35: 2029-06-01 | D35: 239898822 | E35: 239898822 | G35: 6371310.222 | H35: 6371310.222 | J35: 9760669.44 | K35: 9760669.44 | M35: 16131979.66 | N35: 16131979.66 | P35: 187218.25 | Q35: 82781.75 | R35: 270000 | T35: 16131979.66 | U35: 270000 | V35: 16401979.66 | X35: 5.272222222 | Y35: 12369576.46 | Z35: 12576605.33 | AB35: 10 | AC35: =SUM(IF($X$26:$X$54<=$AB35,T$26:T$54,0))-SUM(AC$26:AC34) -> 32192775.07 | AD35: =SUM(IF($X$26:$X$54<=$AB35,U$26:U$54,0))-SUM(AD$26:AD34) -> 540000 | AE35: =SUM(IF($X$26:$X$54<=$AB35,V$26:V$54,0))-SUM(AE$26:AE34) -> 32732775.07 | AF35: =SUM(IF($X$26:$X$54<=$AB35,Z$26:Z$54,0))-SUM(AF$26:AF34) -> 20263480.82
A36: 11 | B36: 2029-12-01 | D36: 229892867 | E36: 229892867 | G36: 6122217.938 | H36: 6122217.938 | J36: 10005955.06 | K36: 10005955.06 | M36: 16128173 | N36: 16128173 | P36: 187218.25 | Q36: 82781.75 | R36: 270000 | T36: 16128173 | U36: 270000 | V36: 16398173 | X36: 5.772222222 | Y36: 12059090.5 | Z36: 12260970.43 | AB36: 11 | AC36: =SUM(IF($X$26:$X$54<=$AB36,T$26:T$54,0))-SUM(AC$26:AC35) -> 32173734.43 | AD36: =SUM(IF($X$26:$X$54<=$AB36,U$26:U$54,0))-SUM(AD$26:AD35) -> 540000 | AE36: =SUM(IF($X$26:$X$54<=$AB36,V$26:V$54,0))-SUM(AE$26:AE35) -> 32713734.43 | AF36: =SUM(IF($X$26:$X$54<=$AB36,Z$26:Z$54,0))-SUM(AF$26:AF35) -> 19256875.51
A37: 12 | B37: 2030-06-01 | D37: 219635462.2 | E37: 219635462.2 | G37: 5866865.965 | H37: 5866865.965 | J37: 10257404.71 | K37: 10257404.71 | M37: 16124270.67 | N37: 16124270.67 | P37: 187218.25 | Q37: 82781.75 | R37: 270000 | T37: 16124270.67 | U37: 270000 | V37: 16394270.67 | X37: 6.272222222 | Y37: 11756327.59 | Z37: 11953186.63 | AB37: 12 | AC37: =SUM(IF($X$26:$X$54<=$AB37,T$26:T$54,0))-SUM(AC$26:AC36) -> 32153724.79 | AD37: =SUM(IF($X$26:$X$54<=$AB37,U$26:U$54,0))-SUM(AD$26:AD36) -> 540000 | AE37: =SUM(IF($X$26:$X$54<=$AB37,V$26:V$54,0))-SUM(AE$26:AE36) -> 32693724.79 | AF37: =SUM(IF($X$26:$X$54<=$AB37,Z$26:Z$54,0))-SUM(AF$26:AF36) -> 18299725.67
A38: 13 | B38: 2030-12-01 | D38: 209120288.9 | E38: 209120288.9 | G38: 5605096.997 | H38: 5605096.997 | J38: 10515173.3 | K38: 10515173.3 | M38: 16120270.3 | N38: 16120270.3 | P38: 187218.25 | Q38: 82781.75 | R38: 270000 | T38: 16120270.3 | U38: 270000 | V38: 16390270.3 | X38: 6.772222222 | Y38: 11461095.64 | Z38: 11653058.66 | AB38: 13 | AC38: =SUM(IF($X$26:$X$54<=$AB38,T$26:T$54,0))-SUM(AC$26:AC37) -> 32132696.82 | AD38: =SUM(IF($X$26:$X$54<=$AB38,U$26:U$54,0))-SUM(AD$26:AD37) -> 540000 | AE38: =SUM(IF($X$26:$X$54<=$AB38,V$26:V$54,0))-SUM(AE$26:AE37) -> 32672696.82 | AF38: =SUM(IF($X$26:$X$54<=$AB38,Z$26:Z$54,0))-SUM(AF$26:AF37) -> 17389601.88
A39: 14 | B39: 2031-06-01 | D39: 198340869.4 | E39: 198340869.4 | G39: 5336749.774 | H39: 5336749.774 | J39: 10779419.59 | K39: 10779419.59 | M39: 16116169.36 | N39: 16116169.36 | P39: 187218.25 | Q39: 82781.75 | R39: 270000 | T39: 16116169.36 | U39: 270000 | V39: 16386169.36 | X39: 7.272222222 | Y39: 11173207.33 | Z39: 11360396.1 | AB39: 14 | AC39: =SUM(IF($X$26:$X$54<=$AB39,T$26:T$54,0))-SUM(AC$26:AC38) -> 32110598.7 | AD39: =SUM(IF($X$26:$X$54<=$AB39,U$26:U$54,0))-SUM(AD$26:AD38) -> 540000 | AE39: =SUM(IF($X$26:$X$54<=$AB39,V$26:V$54,0))-SUM(AE$26:AE38) -> 32650598.7 | AF39: =SUM(IF($X$26:$X$54<=$AB39,Z$26:Z$54,0))-SUM(AF$26:AF38) -> 16524194.11
A40: 15 | B40: 2031-12-01 | D40: 187290562.9 | E40: 187290562.9 | G40: 5061658.986 | H40: 5061658.986 | J40: 11050306.41 | K40: 11050306.41 | M40: 16111965.4 | N40: 16111965.4 | P40: 187218.25 | Q40: 82781.75 | R40: 270000 | T40: 16111965.4 | U40: 270000 | V40: 16381965.4 | X40: 7.772222222 | Y40: 10892480.05 | Z40: 11075013.31 | AB40: 15 | AC40: =SUM(IF($X$26:$X$54<=$AB40,T$26:T$54,0))-SUM(AC$26:AC39) -> 32087375.98 | AD40: =SUM(IF($X$26:$X$54<=$AB40,U$26:U$54,0))-SUM(AD$26:AD39) -> 540000 | AE40: =SUM(IF($X$26:$X$54<=$AB40,V$26:V$54,0))-SUM(AE$26:AE39) -> 32627375.98 | AF40: =SUM(IF($X$26:$X$54<=$AB40,Z$26:Z$54,0))-SUM(AF$26:AF39) -> 15701305.76
A41: 16 | B41: 2032-06-01 | D41: 175962562.3 | E41: 175962562.3 | G41: 4779655.166 | H41: 4779655.166 | J41: 11328000.62 | K41: 11328000.62 | M41: 16107655.79 | N41: 16107655.79 | P41: 187218.25 | Q41: 82781.75 | R41: 270000 | T41: 16107655.79 | U41: 270000 | V41: 16377655.79 | X41: 8.272222222 | Y41: 10618735.69 | Z41: 10796729.22
A42: 17 | B42: 2032-12-01 | D42: 164349889.1 | E42: 164349889.1 | G42: 4490564.591 | H42: 4490564.591 | J42: 11612673.26 | K42: 11612673.26 | M42: 16103237.85 | N42: 16103237.85 | P42: 187218.25 | Q42: 82781.75 | R42: 270000 | T42: 16103237.85 | U42: 270000 | V42: 16373237.85 | X42: 8.772222222 | Y42: 10351800.55 | Z42: 10525367.27 | AC42: =SUM(AC26:AC40) -> 475548833.2 | AD42: =SUM(AD26:AD40) -> 7977000 | AE42: =SUM(AE26:AE40) -> 483525833.2 | AF42: =SUM(AF26:AF40) -> 336658560.8
A43: 18 | B43: 2033-06-01 | D43: 152445389.3 | E43: 152445389.3 | G43: 4194209.169 | H43: 4194209.169 | J43: 11904499.75 | K43: 11904499.75 | M43: 16098708.92 | N43: 16098708.92 | P43: 187218.25 | Q43: 82781.75 | R43: 270000 | T43: 16098708.92 | U43: 270000 | V43: 16368708.92 | X43: 9.272222222 | Y43: 10091505.33 | Z43: 10260755.33
A44: 19 | B44: 2033-12-01 | D44: 140241729.5 | E44: 140241729.5 | G44: 3890406.335 | H44: 3890406.335 | J44: 12203659.82 | K44: 12203659.82 | M44: 16094066.16 | N44: 16094066.16 | P44: 187218.25 | Q44: 82781.75 | R44: 270000 | T44: 16094066.16 | U44: 270000 | V44: 16364066.16 | X44: 9.772222222 | Y44: 9837684.856 | Z44: 10002725.49
A45: 20 | B45: 2034-06-01 | D45: 127731391.7 | E45: 127731391.7 | G45: 3578968.937 | H45: 3578968.937 | J45: 12510337.8 | K45: 12510337.8 | M45: 16089306.74 | N45: 16089306.74 | P45: 187218.25 | Q45: 82781.75 | R45: 270000 | T45: 16089306.74 | U45: 270000 | V45: 16359306.74 | X45: 10.27222222 | Y45: 9590178.113 | Z45: 9751114.077
A46: 21 | B46: 2034-12-01 | D46: 114906669.1 | E46: 114906669.1 | G46: 3259705.116 | H46: 3259705.116 | J46: 12824722.58 | K46: 12824722.58 | M46: 16084427.7 | N46: 16084427.7 | P46: 187218.25 | Q46: 82781.75 | R46: 270000 | T46: 16084427.7 | U46: 270000 | V46: 16354427.7 | X46: 10.77222222 | Y46: 9348828.057 | Z46: 9505761.435
A47: 22 | B47: 2035-06-01 | D47: 101759661.2 | E47: 101759661.2 | G47: 2932418.196 | H47: 2932418.196 | J47: 13147007.87 | K47: 13147007.87 | M47: 16079426.07 | N47: 16079426.07 | P47: 187218.25 | Q47: 82781.75 | R47: 270000 | T47: 16079426.07 | U47: 270000 | V47: 16349426.07 | X47: 11.27222222 | Y47: 9113481.588 | Z47: 9266511.927
A48: 23 | B48: 2035-12-01 | D48: 88282269.08 | E48: 88282269.08 | G48: 2596906.555 | H48: 2596906.555 | J48: 13477392.17 | K48: 13477392.17 | M48: 16074298.73 | N48: 16074298.73 | P48: 187218.25 | Q48: 82781.75 | R48: 270000 | T48: 16074298.73 | U48: 270000 | V48: 16344298.73 | X48: 11.77222222 | Y48: 8883989.37 | Z48: 9033213.742
A49: 24 | B49: 2036-06-01 | D49: 74466190.04 | E49: 74466190.04 | G49: 2252963.507 | H49: 2252963.507 | J49: 13816079.04 | K49: 13816079.04 | M49: 16069042.55 | N49: 16069042.55 | P49: 187218.25 | Q49: 82781.75 | R49: 270000 | T49: 16069042.55 | U49: 270000 | V49: 16339042.55 | X49: 12.27222222 | Y49: 8660205.821 | Z49: 8805718.882
A50: 25 | B50: 2036-12-01 | D50: 60302912.94 | E50: 60302912.94 | G50: 1900377.17 | H50: 1900377.17 | J50: 14163277.1 | K50: 14163277.1 | M50: 16063654.27 | N50: 16063654.27 | P50: 187218.25 | Q50: 82781.75 | R50: 270000 | T50: 16063654.27 | U50: 270000 | V50: 16333654.27 | X50: 12.77222222 | Y50: 8441988.949 | Z50: 8583883.003
A51: 26 | B51: 2037-06-01 | D51: 45783712.68 | E51: 45783712.68 | G51: 1538930.338 | H51: 1538930.338 | J51: 14519200.26 | K51: 14519200.26 | M51: 16058130.6 | N51: 16058130.6 | P51: 187218.25 | Q51: 82781.75 | R51: 270000 | T51: 16058130.6 | U51: 270000 | V51: 16328130.6 | X51: 13.27222222 | Y51: 8229200.32 | Z51: 8367565.373
A52: 27 | B52: 2037-12-01 | D52: 30899644.93 | E52: 30899644.93 | G52: 1168400.348 | H52: 1168400.348 | J52: 14884067.75 | K52: 14884067.75 | M52: 16052468.1 | N52: 16052468.1 | P52: 187218.25 | Q52: 82781.75 | R52: 270000 | T52: 16052468.1 | U52: 270000 | V52: 16322468.1 | X52: 13.77222222 | Y52: 8021704.914 | Z52: 8156628.734
A53: 28 | B53: 2038-06-01 | D53: 15641540.54 | E53: 15641540.54 | G53: 788558.9386 | H53: 788558.9386 | J53: 15258104.39 | K53: 15258104.39 | M53: 16046663.33 | N53: 16046663.33 | P53: 187218.25 | Q53: 82781.75 | R53: 270000 | T53: 16046663.33 | U53: 270000 | V53: 16316663.33 | X53: 14.27222222 | Y53: 7819371.107 | Z53: 7950939.281
A54: 29 | B54: 2038-12-01 | D54: 0 | E54: 0 | G54: 399172.1146 | H54: 399172.1146 | J54: 15641540.54 | K54: 15641540.54 | M54: 16040712.65 | N54: 16040712.65 | P54: 187218.25 | Q54: 82781.75 | R54: 270000 | T54: 16040712.65 | U54: 270000 | V54: 16310712.65 | X54: 14.77222222 | Y54: 7622070.498 | Z54: 7750366.483
Y56: =SUM(Y26:Y54) -> 331105404.1 | Z56: =SUM(Z26:Z54) -> 336658560.8

Sheet MO West Securitization Approach
B2: Analysis of February 2021 Winter Weather Event
B3: Evergy Missouri West
B4: In millions | D4: 2021-01-01 | E4: 2021-02-01 | F4: 2021-03-01 | G4: 2021-04-01 | H4: 2021-05-01 | I4: 2021-06-01 | J4: 2021-07-01 | K4: 2021-08-01 | L4: 2021-09-01 | M4: 2021-10-01 | N4: 2021-11-01 | O4: 2021-12-01 | P4: 2022-01-01 | Q4: 2022-02-01 | R4: 2022-03-01 | S4: 2022-04-01 | T4: 2022-05-01 | U4: 2022-06-01 | V4: 2022-07-01 | W4: 2022-08-01 | X4: 2022-09-01 | Y4: 2022-10-01 | Z4: 2022-11-01 | AA4: 2022-12-01 | AB4: 2023-01-01 | AC4: 2023-02-01 | AD4: 2023-03-01 | AE4: 2023-04-01 | AF4: 2023-05-01 | AG4: 2023-06-01 | AH4: 2023-07-01 | AI4: 2023-08-01 | AJ4: 2023-09-01 | AK4: 2023-10-01 | AL4: 2023-11-01 | AM4: 2023-12-01 | AN4: 2024-01-01 | AO4: 2024-02-01 | AP4: 2024-03-01 | AQ4: 2024-04-01 | AR4: 2024-05-01 | AS4: 2024-06-01 | AT4: 2024-07-01 | AU4: 2024-08-01 | AV4: 2024-09-01 | AW4: 2024-10-01 | AX4: 2024-11-01 | AY4: 2024-12-02 | AZ4: 2025-01-01 | BA4: 2025-02-01 | BB4: 2025-03-01 | BC4: 2025-04-01 | BD4: 2025-05-01 | BE4: 2025-06-01 | BF4: 2025-07-01 | BG4: 2025-08-01 | BH4: 2025-09-01 | BI4: 2025-10-01 | BJ4: 2025-11-01 | BK4: 2025-12-01 | BL4: 2026-01-01 | BM4: 2026-02-01 | BN4: 2026-03-01 | BO4: 2026-04-01 | BP4: 2026-05-01 | BQ4: 2026-06-01 | BR4: 2026-07-01 | BS4: 2026-08-01 | BT4: 2026-09-01 | BU4: 2026-10-01 | BV4: 2026-11-01 | BW4: 2026-12-01 | BX4: 2027-01-01 | BY4: 2027-02-01 | BZ4: 2027-03-01 | CA4: 2027-04-01 | CB4: 2027-05-01 | CC4: 2027-06-01 | CD4: 2027-07-01 | CE4: 2027-08-01 | CF4: 2027-09-01 | CG4: 2027-10-01 | CH4: 2027-11-01 | CI4: 2027-12-01 | CJ4: 2028-01-01 | CK4: 2028-02-01 | CL4: 2028-03-01 | CM4: 2028-04-01 | CN4: 2028-05-11 | CO4: 2028-06-01 | CP4: 2028-07-01 | CQ4: 2028-08-01 | CR4: 2028-09-01 | CS4: 2028-10-01 | CT4: 2028-11-01 | CU4: 2028-12-01 | CV4: 2029-01-01 | CW4: 2029-02-01 | CX4: 2029-03-01 | CY4: 2029-04-01 | CZ4: 2029-05-01 | DA4: 2029-06-01 | DB4: 2029-07-01 | DC4: 2029-08-01 | DD4: 2029-09-01 | DE4: 2029-10-01 | DF4: 2029-11-01 | DG4: 2029-12-01 | DH4: 2030-01-01 | DI4: 2030-02-01 | DJ4: 2030-03-01 | DK4: 2030-04-01 | DL4: 2030-05-01 | DM4: 2030-06-01 | DN4: 2030-07-01 | DO4: 2030-08-01 | DP4: 2030-09-01 | DQ4: 2030-10-01 | DR4: 2030-11-01 | DS4: 2030-12-01 | DT4: 2031-01-01 | DU4: 2031-02-01 | DV4: 2031-03-01 | DW4: 2031-04-01 | DX4: 2031-05-01 | DY4: 2031-06-01 | DZ4: 2031-07-01 | EA4: 2031-08-01 | EB4: 2031-09-01 | EC4: 2031-10-01 | ED4: 2031-11-01 | EE4: 2031-12-01 | EF4: 2032-01-01 | EG4: 2032-02-01 | EH4: 2032-03-01 | EI4: 2032-04-01 | EJ4: 2032-05-01 | EK4: 2032-06-01 | EL4: 2032-07-01 | EM4: 2032-08-01 | EN4: 2032-09-01 | EO4: 2032-10-01 | EP4: 2032-11-01 | EQ4: 2032-12-01 | ER4: 2033-01-01 | ES4: 2033-02-01 | ET4: 2033-03-01 | EU4: 2033-04-01 | EV4: 2033-05-01 | EW4: 2033-06-01 | EX4: 2033-07-01 | EY4: 2033-08-01 | EZ4: 2033-09-01 | FA4: 2033-10-01 | FB4: 2033-11-01 | FC4: 2033-12-01 | FD4: 2034-01-01 | FE4: 2034-02-01 | FF4: 2034-03-01 | FG4: 2034-04-01 | FH4: 2034-05-01 | FI4: 2034-06-01 | FJ4: 2034-07-01 | FK4: 2034-08-01 | FL4: 2034-09-01 | FM4: 2034-10-01 | FN4: 2034-11-01 | FO4: 2034-12-01 | FP4: 2035-01-01 | FQ4: 2035-02-01 | FR4: 2035-03-01 | FS4: 2035-04-01 | FT4: 2035-05-01 | FU4: 2035-06-01 | FV4: 2035-07-01 | FW4: 2035-08-01 | FX4: 2035-09-01 | FY4: 2035-10-01 | FZ4: 2035-11-01 | GA4: 2035-12-01 | GB4: 2036-01-01 | GC4: 2036-02-01 | GD4: 2036-03-01 | GE4: 2036-04-01 | GF4: 2036-05-01 | GG4: 2036-06-01 | GH4: 2036-07-01 | GI4: 2036-08-01 | GJ4: 2036-09-01 | GK4: 2036-10-01 | GL4: 2036-11-01 | GM4: 2036-12-01 | GN4: 2037-01-01 | GO4: 2037-02-01 | GP4: 2037-03-01 | GQ4: 2037-04-01 | GR4: 2037-05-01 | GS4: 2037-06-01 | GT4: 2037-07-01 | GU4: 2037-08-01 | GV4: 2037-09-01 | GW4: 2037-10-01 | GX4: 2037-11-01 | GY4: 2037-12-01 | GZ4: 2038-01-31 | HA4: 2038-02-01 | HB4: 2038-03-01 | HC4: 2038-04-01 | HD4: 2038-05-01 | HE4: 2038-06-01 | HF4: 2038-07-01 | HG4: 2038-08-01 | HH4: 2038-09-01 | HI4: 2038-10-01 | HJ4: 2038-11-01 | HK4: 2038-12-01 | HL4: 2039-01-01 | HM4: 2039-02-13 | HN4: Total
A5: =ROW() -> 5 | B5: Scenario 4 - Outlook
A7: =ROW() -> 7 | B7: Recovery Begins | D7: 2024-03-01 | E7: =+D7 -> 2024-03-01 | F7: =E7 -> 2024-03-01 | G7: 2024-03-01 | H7: 2024-03-01 | I7: 2024-03-01 | J7: 2024-03-01 | K7: 2024-03-01 | L7: 2024-03-01 | M7: 2024-03-01 | N7: 2024-03-01 | O7: 2024-03-01 | P7: 2024-03-01 | Q7: 2024-03-01 | R7: 2024-03-01 | S7: 2024-03-01 | T7: 2024-03-01 | U7: 2024-03-01 | V7: =U7 -> 2024-03-01 | W7: 2024-03-01 | X7: 2024-03-01 | Y7: 2024-03-01 | Z7: 2024-03-01 | AA7: 2024-03-01 | AB7: 2024-03-01 | AC7: 2024-03-01 | AD7: 2024-03-01 | AE7: 2024-03-01 | AF7: 2024-03-01 | AG7: 2024-03-01 | AH7: 2024-03-01 | AI7: 2024-03-01 | AJ7: 2024-03-01 | AK7: 2024-03-01 | AL7: =AK7 -> 2024-03-01 | AM7: 2024-03-01 | AN7: 2024-03-01 | AO7: 2024-03-01 | AP7: 2024-03-01 | AQ7: 2024-03-01 | AR7: 2024-03-01 | AS7: 2024-03-01 | AT7: 2024-03-01 | AU7: 2024-03-01 | AV7: 2024-03-01 | AW7: 2024-03-01 | AX7: 2024-03-01 | AY7: 2024-03-01 | AZ7: 2024-03-01 | BA7: =AZ7 -> 2024-03-01 | BB7: 2024-03-01 | BC7: 2024-03-01 | BD7: 2024-03-01 | BE7: 2024-03-01 | BF7: 2024-03-01 | BG7: 2024-03-01 | BH7: 2024-03-01 | BI7: 2024-03-01 | BJ7: 2024-03-01 | BK7: 2024-03-01 | BL7: 2024-03-01 | BM7: 2024-03-01 | BN7: 2024-03-01 | BO7: 2024-03-01 | BP7: 2024-03-01 | BQ7: 2024-03-01 | BR7: 2024-03-01 | BS7: 2024-03-01 | BT7: 2024-03-01 | BU7: 2024-03-01 | BV7: 2024-03-01 | BW7: 2024-03-01 | BX7: 2024-03-01 | BY7: 2024-03-01 | BZ7: 2024-03-01 | CA7: 2024-03-01 | CB7: 2024-03-01 | CC7: 2024-03-01 | CD7: 2024-03-01 | CE7: 2024-03-01 | CF7: 2024-03-01 | CG7: =CF7 -> 2024-03-01 | CH7: 2024-03-01 | CI7: 2024-03-01 | CJ7: 2024-03-01 | CK7: 2024-03-01 | CL7: 2024-03-01 | CM7: 2024-03-01 | CN7: 2024-03-01 | CO7: 2024-03-01 | CP7: 2024-03-01 | CQ7: 2024-03-01 | CR7: 2024-03-01 | CS7: 2024-03-01 | CT7: 2024-03-01 | CU7: 2024-03-01 | CV7: 2024-03-01 | CW7: 2024-03-01 | CX7: 2024-03-01 | CY7: 2024-03-01 | CZ7: 2024-03-01 | DA7: 2024-03-01 | DB7: 2024-03-01 | DC7: 2024-03-01 | DD7: 2024-03-01 | DE7: 2024-03-01 | DF7: 2024-03-01 | DG7: 2024-03-01 | DH7: 2024-03-01 | DI7: 2024-03-01 | DJ7: 2024-03-01 | DK7: 2024-03-01 | DL7: 2024-03-01 | DM7: =DL7 -> 2024-03-01 | DN7: 2024-03-01 | DO7: 2024-03-01 | DP7: 2024-03-01 | DQ7: 2024-03-01 | DR7: 2024-03-01 | DS7: 2024-03-01 | DT7: 2024-03-01 | DU7: 2024-03-01 | DV7: 2024-03-01 | DW7: 2024-03-01 | DX7: 2024-03-01 | DY7: 2024-03-01 | DZ7: 2024-03-01 | EA7: 2024-03-01 | EB7: 2024-03-01 | EC7: 2024-03-01 | ED7: 2024-03-01 | EE7: 2024-03-01 | EF7: 2024-03-01 | EG7: 2024-03-01 | EH7: 2024-03-01 | EI7: 2024-03-01 | EJ7: 2024-03-01 | EK7: 2024-03-01 | EL7: 2024-03-01 | EM7: 2024-03-01 | EN7: 2024-03-01 | EO7: 2024-03-01 | EP7: 2024-03-01 | EQ7: 2024-03-01 | ER7: 2024-03-01 | ES7: =ER7 -> 2024-03-01 | ET7: 2024-03-01 | EU7: 2024-03-01 | EV7: 2024-03-01 | EW7: 2024-03-01 | EX7: 2024-03-01 | EY7: 2024-03-01 | EZ7: 2024-03-01 | FA7: 2024-03-01 | FB7: 2024-03-01 | FC7: 2024-03-01 | FD7: 2024-03-01 | FE7: 2024-03-01 | FF7: 2024-03-01 | FG7: 2024-03-01 | FH7: 2024-03-01 | FI7: 2024-03-01 | FJ7: 2024-03-01 | FK7: 2024-03-01 | FL7: 2024-03-01 | FM7: 2024-03-01 | FN7: 2024-03-01 | FO7: 2024-03-01 | FP7: 2024-03-01 | FQ7: 2024-03-01 | FR7: 2024-03-01 | FS7: 2024-03-01 | FT7: 2024-03-01 | FU7: 2024-03-01 | FV7: 2024-03-01 | FW7: 2024-03-01 | FX7: 2024-03-01 | FY7: =FX7 -> 2024-03-01 | FZ7: 2024-03-01 | GA7: 2024-03-01 | GB7: 2024-03-01 | GC7: 2024-03-01 | GD7: 2024-03-01 | GE7: 2024-03-01 | GF7: 2024-03-01 | GG7: 2024-03-01 | GH7: 2024-03-01 | GI7: 2024-03-01 | GJ7: 2024-03-01 | GK7: 2024-03-01 | GL7: 2024-03-01 | GM7: 2024-03-01 | GN7: 2024-03-01 | GO7: 2024-03-01 | GP7: =GO7 -> 2024-03-01 | GQ7: =GP7 -> 2024-03-01 | GR7: =GQ7 -> 2024-03-01 | GS7: =GR7 -> 2024-03-01 | GT7: =GS7 -> 2024-03-01 | GU7: =GT7 -> 2024-03-01 | GV7: =GU7 -> 2024-03-01 | GW7: =GV7 -> 2024-03-01 | GX7: =GW7 -> 2024-03-01 | GY7: =GX7 -> 2024-03-01 | GZ7: 2024-03-01 | HA7: =GZ7 -> 2024-03-01 | HB7: =HA7 -> 2024-03-01 | HC7: =HB7 -> 2024-03-01 | HD7: =HC7 -> 2024-03-01 | HE7: =HD7 -> 2024-03-01 | HF7: =HE7 -> 2024-03-01 | HG7: =HF7 -> 2024-03-01 | HH7: =HG7 -> 2024-03-01 | HI7: =HH7 -> 2024-03-01 | HJ7: =HI7 -> 2024-03-01 | HK7: =HJ7 -> 2024-03-01 | HL7: =HK7 -> 2024-03-01 | HM7: =HL7 -> 2024-03-01
A8: =ROW() -> 8 | B8: Recovery Period (Years) | D8: 15 | E8: =IF(E7<=E4,$D8,0) -> 0 | F8: =IF(F7<=F4,$D8,0) -> 0 | G8: 0 | H8: 0 | I8: 0 | J8: 0 | K8: 0 | L8: 0 | M8: 0 | N8: 0 | O8: 0 | P8: 0 | Q8: 0 | R8: 0 | S8: 0 | T8: 0 | U8: 0 | V8: 0 | W8: 0 | X8: 0 | Y8: 0 | Z8: 0 | AA8: 0 | AB8: 0 | AC8: 0 | AD8: 0 | AE8: 0 | AF8: 0 | AG8: 0 | AH8: 0 | AI8: 0 | AJ8: 0 | AK8: 0 | AL8: 0 | AM8: 0 | AN8: 0 | AO8: 0 | AP8: 15 | AQ8: 15 | AR8: 15 | AS8: 15 | AT8: 15 | AU8: 15 | AV8: 15 | AW8: 15 | AX8: 15 | AY8: 15 | AZ8: =IF(AZ7<=AZ4,$D8,0) -> 15 | BA8: =IF(BA7<=BA4,$D8,0) -> 15 | BB8: =IF(BB7<=BB4,$D8,0) -> 15 | BC8: 15 | BD8: 15 | BE8: 15 | BF8: 15 | BG8: 15 | BH8: 15 | BI8: 15 | BJ8: 15 | BK8: 15 | BL8: 15 | BM8: 15 | BN8: 15 | BO8: 15 | BP8: 15 | BQ8: 15 | BR8: 15 | BS8: 15 | BT8: 15 | BU8: 15 | BV8: 15 | BW8: 15 | BX8: 15 | BY8: 15 | BZ8: 15 | CA8: 15 | CB8: 15 | CC8: 15 | CD8: 15 | CE8: 15 | CF8: 15 | CG8: 15 | CH8: 15 | CI8: 15 | CJ8: 15 | CK8: 15 | CL8: 15 | CM8: 15 | CN8: 15 | CO8: 15 | CP8: 15 | CQ8: 15 | CR8: 15 | CS8: 15 | CT8: 15 | CU8: 15 | CV8: 15 | CW8: 15 | CX8: 15 | CY8: 15 | CZ8: 15 | DA8: 15 | DB8: 15 | DC8: 15 | DD8: 15 | DE8: 15 | DF8: 15 | DG8: 15 | DH8: 15 | DI8: 15 | DJ8: 15 | DK8: 15 | DL8: 15 | DM8: 15 | DN8: =IF(DN7<=DN4,$D8,0) -> 15 | DO8: 15 | DP8: 15 | DQ8: 15 | DR8: 15 | DS8: 15 | DT8: 15 | DU8: 15 | DV8: 15 | DW8: 15 | DX8: 15 | DY8: 15 | DZ8: 15 | EA8: 15 | EB8: 15 | EC8: 15 | ED8: 15 | EE8: 15 | EF8: 15 | EG8: 15 | EH8: 15 | EI8: 15 | EJ8: 15 | EK8: 15 | EL8: 15 | EM8: 15 | EN8: 15 | EO8: 15 | EP8: 15 | EQ8: 15 | ER8: 15 | ES8: 15 | ET8: 15 | EU8: 15 | EV8: 15 | EW8: 15 | EX8: 15 | EY8: 15 | EZ8: 15 | FA8: 15 | FB8: 15 | FC8: 15 | FD8: 15 | FE8: 15 | FF8: 15 | FG8: 15 | FH8: 15 | FI8: 15 | FJ8: 15 | FK8: 15 | FL8: 15 | FM8: 15 | FN8: 15 | FO8: 15 | FP8: 15 | FQ8: 15 | FR8: 15 | FS8: 15 | FT8: 15 | FU8: 15 | FV8: 15 | FW8: 15 | FX8: 15 | FY8: 15 | FZ8: =IF(FZ7<=FZ4,$D8,0) -> 15 | GA8: 15 | GB8: 15 | GC8: 15 | GD8: 15 | GE8: 15 | GF8: 15 | GG8: 15 | GH8: 15 | GI8: 15 | GJ8: 15 | GK8: 15 | GL8: 15 | GM8: 15 | GN8: 15 | GO8: 15 | GP8: 15 | GQ8: 15 | GR8: 15 | GS8: 15 | GT8: 15 | GU8: 15 | GV8: 15 | GW8: 15 | GX8: 15 | GY8: 15 | GZ8: 15 | HA8: 16 | HB8: 17 | HC8: 18 | HD8: 19 | HE8: 20 | HF8: 21 | HG8: 22 | HH8: 23 | HI8: 24 | HJ8: 25 | HK8: 26 | HL8: 27 | HM8: 28
A9: =ROW() -> 9 | B9: Recovery Ends | D9: 2039-02-28 | E9: =D9 -> 2039-02-28 | F9: =E9 -> 2039-02-28 | G9: 2039-02-28 | H9: 2039-02-28 | I9: 2039-02-28 | J9: 2039-02-28 | K9: 2039-02-28 | L9: 2039-02-28 | M9: 2039-02-28 | N9: 2039-02-28 | O9: 2039-02-28 | P9: 2039-02-28 | Q9: 2039-02-28 | R9: 2039-02-28 | S9: 2039-02-28 | T9: 2039-02-28 | U9: 2039-02-28 | V9: =U9 -> 2039-02-28 | W9: 2039-02-28 | X9: 2039-02-28 | Y9: 2039-02-28 | Z9: 2039-02-28 | AA9: 2039-02-28 | AB9: 2039-02-28 | AC9: 2039-02-28 | AD9: 2039-02-28 | AE9: 2039-02-28 | AF9: 2039-02-28 | AG9: 2039-02-28 | AH9: 2039-02-28 | AI9: 2039-02-28 | AJ9: 2039-02-28 | AK9: 2039-02-28 | AL9: =AK9 -> 2039-02-28 | AM9: 2039-02-28 | AN9: 2039-02-28 | AO9: 2039-02-28 | AP9: 2039-02-28 | AQ9: 2039-02-28 | AR9: 2039-02-28 | AS9: 2039-02-28 | AT9: 2039-02-28 | AU9: 2039-02-28 | AV9: 2039-02-28 | AW9: 2039-02-28 | AX9: 2039-02-28 | AY9: 2039-02-28 | AZ9: 2039-02-28 | BA9: =AZ9 -> 2039-02-28 | BB9: 2039-02-28 | BC9: 2039-02-28 | BD9: 2039-02-28 | BE9: 2039-02-28 | BF9: 2039-02-28 | BG9: 2039-02-28 | BH9: 2039-02-28 | BI9: 2039-02-28 | BJ9: 2039-02-28 | BK9: 2039-02-28 | BL9: 2039-02-28 | BM9: 2039-02-28 | BN9: 2039-02-28 | BO9: 2039-02-28 | BP9: 2039-02-28 | BQ9: 2039-02-28 | BR9: 2039-02-28 | BS9: 2039-02-28 | BT9: 2039-02-28 | BU9: 2039-02-28 | BV9: 2039-02-28 | BW9: 2039-02-28 | BX9: 2039-02-28 | BY9: 2039-02-28 | BZ9: 2039-02-28 | CA9: 2039-02-28 | CB9: 2039-02-28 | CC9: 2039-02-28 | CD9: 2039-02-28 | CE9: 2039-02-28 | CF9: 2039-02-28 | CG9: =CF9 -> 2039-02-28 | CH9: 2039-02-28 | CI9: 2039-02-28 | CJ9: 2039-02-28 | CK9: 2039-02-28 | CL9: 2039-02-28 | CM9: 2039-02-28 | CN9: 2039-02-28 | CO9: 2039-02-28 | CP9: 2039-02-28 | CQ9: 2039-02-28 | CR9: 2039-02-28 | CS9: 2039-02-28 | CT9: 2039-02-28 | CU9: 2039-02-28 | CV9: 2039-02-28 | CW9: 2039-02-28 | CX9: 2039-02-28 | CY9: 2039-02-28 | CZ9: 2039-02-28 | DA9: 2039-02-28 | DB9: 2039-02-28 | DC9: 2039-02-28 | DD9: 2039-02-28 | DE9: 2039-02-28 | DF9: 2039-02-28 | DG9: 2039-02-28 | DH9: 2039-02-28 | DI9: 2039-02-28 | DJ9: 2039-02-28 | DK9: 2039-02-28 | DL9: 2039-02-28 | DM9: =DL9 -> 2039-02-28 | DN9: 2039-02-28 | DO9: 2039-02-28 | DP9: 2039-02-28 | DQ9: 2039-02-28 | DR9: 2039-02-28 | DS9: 2039-02-28 | DT9: 2039-02-28 | DU9: 2039-02-28 | DV9: 2039-02-28 | DW9: 2039-02-28 | DX9: 2039-02-28 | DY9: 2039-02-28 | DZ9: 2039-02-28 | EA9: 2039-02-28 | EB9: 2039-02-28 | EC9: 2039-02-28 | ED9: 2039-02-28 | EE9: 2039-02-28 | EF9: 2039-02-28 | EG9: 2039-02-28 | EH9: 2039-02-28 | EI9: 2039-02-28 | EJ9: 2039-02-28 | EK9: 2039-02-28 | EL9: 2039-02-28 | EM9: 2039-02-28 | EN9: 2039-02-28 | EO9: 2039-02-28 | EP9: 2039-02-28 | EQ9: 2039-02-28 | ER9: 2039-02-28 | ES9: =ER9 -> 2039-02-28 | ET9: 2039-02-28 | EU9: 2039-02-28 | EV9: 2039-02-28 | EW9: 2039-02-28 | EX9: 2039-02-28 | EY9: 2039-02-28 | EZ9: 2039-02-28 | FA9: 2039-02-28 | FB9: 2039-02-28 | FC9: 2039-02-28 | FD9: 2039-02-28 | FE9: 2039-02-28 | FF9: 2039-02-28 | FG9: 2039-02-28 | FH9: 2039-02-28 | FI9: 2039-02-28 | FJ9: 2039-02-28 | FK9: 2039-02-28 | FL9: 2039-02-28 | FM9: 2039-02-28 | FN9: 2039-02-28 | FO9: 2039-02-28 | FP9: 2039-02-28 | FQ9: 2039-02-28 | FR9: 2039-02-28 | FS9: 2039-02-28 | FT9: 2039-02-28 | FU9: 2039-02-28 | FV9: 2039-02-28 | FW9: 2039-02-28 | FX9: 2039-02-28 | FY9: =FX9 -> 2039-02-28 | FZ9: 2039-02-28 | GA9: 2039-02-28 | GB9: 2039-02-28 | GC9: 2039-02-28 | GD9: 2039-02-28 | GE9: 2039-02-28 | GF9: 2039-02-28 | GG9: 2039-02-28 | GH9: 2039-02-28 | GI9: 2039-02-28 | GJ9: 2039-02-28 | GK9: 2039-02-28 | GL9: 2039-02-28 | GM9: 2039-02-28 | GN9: 2039-02-28 | GO9: 2039-02-28 | GP9: =GO9 -> 2039-02-28 | GQ9: =GP9 -> 2039-02-28 | GR9: =GQ9 -> 2039-02-28 | GS9: =GR9 -> 2039-02-28 | GT9: =GS9 -> 2039-02-28 | GU9: =GT9 -> 2039-02-28 | GV9: =GU9 -> 2039-02-28 | GW9: =GV9 -> 2039-02-28 | GX9: =GW9 -> 2039-02-28 | GY9: =GX9 -> 2039-02-28 | GZ9: 2039-02-28 | HA9: =GZ9 -> 2039-02-28 | HB9: =HA9 -> 2039-02-28 | HC9: =HB9 -> 2039-02-28 | HD9: =HC9 -> 2039-02-28 | HE9: =HD9 -> 2039-02-28 | HF9: =HE9 -> 2039-02-28 | HG9: =HF9 -> 2039-02-28 | HH9: =HG9 -> 2039-02-28 | HI9: =HH9 -> 2039-02-28 | HJ9: =HI9 -> 2039-02-28 | HK9: =HJ9 -> 2039-02-28 | HL9: =HK9 -> 2039-02-28 | HM9: =HL9 -> 2039-02-28
A10: =ROW() -> 10
A11: =ROW() -> 11 | B11: Debt Ratio | D11: 1 | E11: 1 | F11: 1 | G11: 1 | H11: 1 | I11: 1 | J11: 1 | K11: 1 | L11: 1 | M11: 1 | N11: 1 | O11: 1 | P11: 1 | Q11: 1 | R11: 1 | S11: 1 | T11: 1 | U11: 1 | V11: 1 | W11: 1 | X11: 1 | Y11: 1 | Z11: 1 | AA11: 1 | AB11: 1 | AC11: 1 | AD11: 1 | AE11: 1 | AF11: 1 | AG11: 1 | AH11: 1 | AI11: 1 | AJ11: 1 | AK11: 1 | AL11: 1 | AM11: 1 | AN11: 1 | AO11: 1 | AP11: 1 | AQ11: 1 | AR11: 1 | AS11: 1 | AT11: 1 | AU11: 1 | AV11: 1 | AW11: 1 | AX11: 1 | AY11: 1 | AZ11: 1 | BA11: 1 | BB11: 1 | BC11: 1 | BD11: 1 | BE11: 1 | BF11: 1 | BG11: 1 | BH11: 1 | BI11: 1 | BJ11: 1 | BK11: 1 | BL11: 1 | BM11: 1 | BN11: 1 | BO11: 1 | BP11: 1 | BQ11: 1 | BR11: 1 | BS11: 1 | BT11: 1 | BU11: 1 | BV11: 1 | BW11: 1 | BX11: 1 | BY11: 1 | BZ11: 1 | CA11: 1 | CB11: 1 | CC11: 1 | CD11: 1 | CE11: 1 | CF11: 1 | CG11: 1 | CH11: 1 | CI11: 1 | CJ11: 1 | CK11: 1 | CL11: 1 | CM11: 1 | CN11: 1 | CO11: 1 | CP11: 1 | CQ11: 1 | CR11: 1 | CS11: 1 | CT11: 1 | CU11: 1 | CV11: 1 | CW11: 1 | CX11: 1 | CY11: 1 | CZ11: 1 | DA11: 1 | DB11: 1 | DC11: 1 | DD11: 1 | DE11: 1 | DF11: 1 | DG11: 1 | DH11: 1 | DI11: 1 | DJ11: 1 | DK11: 1 | DL11: 1 | DM11: 1 | DN11: 1 | DO11: 1 | DP11: 1 | DQ11: 1 | DR11: 1 | DS11: 1 | DT11: 1 | DU11: 1 | DV11: 1 | DW11: 1 | DX11: 1 | DY11: 1 | DZ11: 1 | EA11: 1 | EB11: 1 | EC11: 1 | ED11: 1 | EE11: 1 | EF11: 1 | EG11: 1 | EH11: 1 | EI11: 1 | EJ11: 1 | EK11: 1 | EL11: 1 | EM11: 1 | EN11: 1 | EO11: 1 | EP11: 1 | EQ11: 1 | ER11: 1 | ES11: 1 | ET11: 1 | EU11: 1 | EV11: 1 | EW11: 1 | EX11: 1 | EY11: 1 | EZ11: 1 | FA11: 1 | FB11: 1 | FC11: 1 | FD11: 1 | FE11: 1 | FF11: 1 | FG11: 1 | FH11: 1 | FI11: 1 | FJ11: 1 | FK11: 1 | FL11: 1 | FM11: 1 | FN11: 1 | FO11: 1 | FP11: 1 | FQ11: 1 | FR11: 1 | FS11: 1 | FT11: 1 | FU11: 1 | FV11: 1 | FW11: 1 | FX11: 1 | FY11: 1 | FZ11: 1 | GA11: 1 | GB11: 1 | GC11: 1 | GD11: 1 | GE11: 1 | GF11: 1 | GG11: 1 | GH11: 1 | GI11: 1 | GJ11: 1 | GK11: 1 | GL11: 1 | GM11: 1 | GN11: 1 | GO11: 1 | GP11: 1 | GQ11: 1 | GR11: 1 | GS11: 1 | GT11: 1 | GU11: 1 | GV11: 1 | GW11: 1 | GX11: 1 | GY11: 1 | GZ11: 1 | HA11: 1 | HB11: 1 | HC11: 1 | HD11: 1 | HE11: 1 | HF11: 1 | HG11: 1 | HH11: 1 | HI11: 1 | HJ11: 1 | HK11: 1 | HL11: 1 | HM11: 1
A12: =ROW() -> 12 | B12: Debt Rate | D12: 0.0506 | E12: 0.0506 | F12: 0.0506 | G12: 0.0506 | H12: 0.0506 | I12: 0.0506 | J12: 0.0506 | K12: 0.0506 | L12: 0.0506 | M12: 0.0506 | N12: 0.0506 | O12: 0.0506 | P12: 0.0506 | Q12: 0.0506 | R12: 0.0506 | S12: 0.0506 | T12: 0.0506 | U12: 0.0506 | V12: 0.0506 | W12: 0.0506 | X12: 0.0506 | Y12: 0.0506 | Z12: 0.0506 | AA12: 0.0506 | AB12: 0.0506 | AC12: 0.0506 | AD12: 0.0506 | AE12: 0.0506 | AF12: 0.0506 | AG12: 0.0506 | AH12: 0.0506 | AI12: 0.0506 | AJ12: 0.0506 | AK12: 0.0506 | AL12: 0.0506 | AM12: 0.0506 | AN12: 0.0506 | AO12: 0.0506 | AP12: 0.0506 | AQ12: 0.0506 | AR12: 0.0506 | AS12: 0.0506 | AT12: 0.0506 | AU12: 0.0506 | AV12: 0.0506 | AW12: 0.0506 | AX12: 0.0506 | AY12: 0.0506 | AZ12: 0.0506 | BA12: 0.0506 | BB12: 0.0506 | BC12: 0.0506 | BD12: 0.0506 | BE12: 0.0506 | BF12: 0.0506 | BG12: 0.0506 | BH12: 0.0506 | BI12: 0.0506 | BJ12: 0.0506 | BK12: 0.0506 | BL12: 0.0506 | BM12: 0.0506 | BN12: 0.0506 | BO12: 0.0506 | BP12: 0.0506 | BQ12: 0.0506 | BR12: 0.0506 | BS12: 0.0506 | BT12: 0.0506 | BU12: 0.0506 | BV12: 0.0506 | BW12: 0.0506 | BX12: 0.0506 | BY12: 0.0506 | BZ12: 0.0506 | CA12: 0.0506 | CB12: 0.0506 | CC12: 0.0506 | CD12: 0.0506 | CE12: 0.0506 | CF12: 0.0506 | CG12: 0.0506 | CH12: 0.0506 | CI12: 0.0506 | CJ12: 0.0506 | CK12: 0.0506 | CL12: 0.0506 | CM12: 0.0506 | CN12: 0.0506 | CO12: 0.0506 | CP12: 0.0506 | CQ12: 0.0506 | CR12: 0.0506 | CS12: 0.0506 | CT12: 0.0506 | CU12: 0.0506 | CV12: 0.0506 | CW12: 0.0506 | CX12: 0.0506 | CY12: 0.0506 | CZ12: 0.0506 | DA12: 0.0506 | DB12: 0.0506 | DC12: 0.0506 | DD12: 0.0506 | DE12: 0.0506 | DF12: 0.0506 | DG12: 0.0506 | DH12: 0.0506 | DI12: 0.0506 | DJ12: 0.0506 | DK12: 0.0506 | DL12: 0.0506 | DM12: 0.0506 | DN12: 0.0506 | DO12: 0.0506 | DP12: 0.0506 | DQ12: 0.0506 | DR12: 0.0506 | DS12: 0.0506 | DT12: 0.0506 | DU12: 0.0506 | DV12: 0.0506 | DW12: 0.0506 | DX12: 0.0506 | DY12: 0.0506 | DZ12: 0.0506 | EA12: 0.0506 | EB12: 0.0506 | EC12: 0.0506 | ED12: 0.0506 | EE12: 0.0506 | EF12: 0.0506 | EG12: 0.0506 | EH12: 0.0506 | EI12: 0.0506 | EJ12: 0.0506 | EK12: 0.0506 | EL12: 0.0506 | EM12: 0.0506 | EN12: 0.0506 | EO12: 0.0506 | EP12: 0.0506 | EQ12: 0.0506 | ER12: 0.0506 | ES12: 0.0506 | ET12: 0.0506 | EU12: 0.0506 | EV12: 0.0506 | EW12: 0.0506 | EX12: 0.0506 | EY12: 0.0506 | EZ12: 0.0506 | FA12: 0.0506 | FB12: 0.0506 | FC12: 0.0506 | FD12: 0.0506 | FE12: 0.0506 | FF12: 0.0506 | FG12: 0.0506 | FH12: 0.0506 | FI12: 0.0506 | FJ12: 0.0506 | FK12: 0.0506 | FL12: 0.0506 | FM12: 0.0506 | FN12: 0.0506 | FO12: 0.0506 | FP12: 0.0506 | FQ12: 0.0506 | FR12: 0.0506 | FS12: 0.0506 | FT12: 0.0506 | FU12: 0.0506 | FV12: 0.0506 | FW12: 0.0506 | FX12: 0.0506 | FY12: 0.0506 | FZ12: 0.0506 | GA12: 0.0506 | GB12: 0.0506 | GC12: 0.0506 | GD12: 0.0506 | GE12: 0.0506 | GF12: 0.0506 | GG12: 0.0506 | GH12: 0.0506 | GI12: 0.0506 | GJ12: 0.0506 | GK12: 0.0506 | GL12: 0.0506 | GM12: 0.0506 | GN12: 0.0506 | GO12: 0.0506 | GP12: 0.0506 | GQ12: 0.0506 | GR12: 0.0506 | GS12: 0.0506 | GT12: 0.0506 | GU12: 0.0506 | GV12: 0.0506 | GW12: 0.0506 | GX12: 0.0506 | GY12: 0.0506 | GZ12: 0.0506 | HA12: 0.0506 | HB12: 0.0506 | HC12: 0.0506 | HD12: 0.0506 | HE12: 0.0506 | HF12: 0.0506 | HG12: 0.0506 | HH12: 0.0506 | HI12: 0.0506 | HJ12: 0.0506 | HK12: 0.0506 | HL12: 0.0506 | HM12: 0.0506
A13: =ROW() -> 13 | B13: Weighted Debt Rate | D13: =D11*D12 -> 0.0506 | E13: =E11*E12 -> 0.0506 | F13: 0.0506 | G13: 0.0506 | H13: 0.0506 | I13: 0.0506 | J13: 0.0506 | K13: 0.0506 | L13: 0.0506 | M13: 0.0506 | N13: 0.0506 | O13: 0.0506 | P13: 0.0506 | Q13: 0.0506 | R13: =R11*R12 -> 0.0506 | S13: 0.0506 | T13: 0.0506 | U13: 0.0506 | V13: 0.0506 | W13: 0.0506 | X13: =X11*X12 -> 0.0506 | Y13: 0.0506 | Z13: 0.0506 | AA13: 0.0506 | AB13: =AB11*AB12 -> 0.0506 | AC13: 0.0506 | AD13: 0.0506 | AE13: 0.0506 | AF13: 0.0506 | AG13: 0.0506 | AH13: 0.0506 | AI13: 0.0506 | AJ13: 0.0506 | AK13: 0.0506 | AL13: 0.0506 | AM13: 0.0506 | AN13: 0.0506 | AO13: 0.0506 | AP13: 0.0506 | AQ13: 0.0506 | AR13: 0.0506 | AS13: 0.0506 | AT13: 0.0506 | AU13: 0.0506 | AV13: 0.0506 | AW13: 0.0506 | AX13: 0.0506 | AY13: 0.0506 | AZ13: 0.0506 | BA13: 0.0506 | BB13: 0.0506 | BC13: 0.0506 | BD13: 0.0506 | BE13: 0.0506 | BF13: 0.0506 | BG13: 0.0506 | BH13: 0.0506 | BI13: 0.0506 | BJ13: 0.0506 | BK13: 0.0506 | BL13: 0.0506 | BM13: 0.0506 | BN13: 0.0506 | BO13: 0.0506 | BP13: 0.0506 | BQ13: 0.0506 | BR13: 0.0506 | BS13: 0.0506 | BT13: 0.0506 | BU13: 0.0506 | BV13: 0.0506 | BW13: 0.0506 | BX13: 0.0506 | BY13: 0.0506 | BZ13: 0.0506 | CA13: 0.0506 | CB13: 0.0506 | CC13: 0.0506 | CD13: 0.0506 | CE13: 0.0506 | CF13: 0.0506 | CG13: 0.0506 | CH13: 0.0506 | CI13: 0.0506 | CJ13: 0.0506 | CK13: 0.0506 | CL13: 0.0506 | CM13: 0.0506 | CN13: =CN11*CN12 -> 0.0506 | CO13: 0.0506 | CP13: 0.0506 | CQ13: 0.0506 | CR13: 0.0506 | CS13: 0.0506 | CT13: 0.0506 | CU13: 0.0506 | CV13: 0.0506 | CW13: 0.0506 | CX13: 0.0506 | CY13: 0.0506 | CZ13: 0.0506 | DA13: 0.0506 | DB13: 0.0506 | DC13: 0.0506 | DD13: 0.0506 | DE13: 0.0506 | DF13: 0.0506 | DG13: 0.0506 | DH13: 0.0506 | DI13: 0.0506 | DJ13: 0.0506 | DK13: 0.0506 | DL13: 0.0506 | DM13: 0.0506 | DN13: 0.0506 | DO13: 0.0506 | DP13: 0.0506 | DQ13: 0.0506 | DR13: 0.0506 | DS13: 0.0506 | DT13: 0.0506 | DU13: 0.0506 | DV13: 0.0506 | DW13: 0.0506 | DX13: 0.0506 | DY13: 0.0506 | DZ13: 0.0506 | EA13: 0.0506 | EB13: 0.0506 | EC13: 0.0506 | ED13: 0.0506 | EE13: 0.0506 | EF13: 0.0506 | EG13: 0.0506 | EH13: 0.0506 | EI13: 0.0506 | EJ13: 0.0506 | EK13: 0.0506 | EL13: 0.0506 | EM13: 0.0506 | EN13: 0.0506 | EO13: 0.0506 | EP13: 0.0506 | EQ13: 0.0506 | ER13: 0.0506 | ES13: 0.0506 | ET13: 0.0506 | EU13: 0.0506 | EV13: 0.0506 | EW13: 0.0506 | EX13: 0.0506 | EY13: 0.0506 | EZ13: =EZ11*EZ12 -> 0.0506 | FA13: 0.0506 | FB13: 0.0506 | FC13: 0.0506 | FD13: 0.0506 | FE13: 0.0506 | FF13: 0.0506 | FG13: 0.0506 | FH13: 0.0506 | FI13: 0.0506 | FJ13: 0.0506 | FK13: 0.0506 | FL13: 0.0506 | FM13: 0.0506 | FN13: 0.0506 | FO13: 0.0506 | FP13: 0.0506 | FQ13: 0.0506 | FR13: 0.0506 | FS13: 0.0506 | FT13: 0.0506 | FU13: 0.0506 | FV13: 0.0506 | FW13: 0.0506 | FX13: 0.0506 | FY13: 0.0506 | FZ13: 0.0506 | GA13: 0.0506 | GB13: 0.0506 | GC13: 0.0506 | GD13: 0.0506 | GE13: 0.0506 | GF13: 0.0506 | GG13: 0.0506 | GH13: 0.0506 | GI13: 0.0506 | GJ13: 0.0506 | GK13: 0.0506 | GL13: 0.0506 | GM13: 0.0506 | GN13: 0.0506 | GO13: 0.0506 | GP13: 0.0506 | GQ13: 0.0506 | GR13: 0.0506 | GS13: 0.0506 | GT13: 0.0506 | GU13: 0.0506 | GV13: 0.0506 | GW13: 0.0506 | GX13: 0.0506 | GY13: 0.0506 | GZ13: =GZ11*GZ12 -> 0.0506 | HA13: 0.0506 | HB13: 0.0506 | HC13: 0.0506 | HD13: 0.0506 | HE13: 0.0506 | HF13: 0.0506 | HG13: 0.0506 | HH13: 0.0506 | HI13: 0.0506 | HJ13: 0.0506 | HK13: 0.0506 | HL13: =HL11*HL12 -> 0.0506 | HM13: 0.0506
A14: =ROW() -> 14
A15: =ROW() -> 15 | B15: Equity Ratio | D15: =1-D11 -> 0 | E15: =IF(E4<E7,$D15,0) -> 0 | F15: =IF(F4<F7,$D15,0) -> 0 | G15: 0 | H15: 0 | I15: 0 | J15: 0 | K15: 0 | L15: 0 | M15: 0 | N15: 0 | O15: 0 | P15: 0 | Q15: 0 | R15: =IF(R4<R7,$D15,0) -> 0 | S15: 0 | T15: 0 | U15: 0 | V15: 0 | W15: 0 | X15: =IF(X4<X7,$D15,0) -> 0 | Y15: 0 | Z15: 0 | AA15: 0 | AB15: =IF(AB4<AB7,$D15,0) -> 0 | AC15: 0 | AD15: 0 | AE15: 0 | AF15: 0 | AG15: 0 | AH15: 0 | AI15: 0 | AJ15: 0 | AK15: 0 | AL15: 0 | AM15: 0 | AN15: 0 | AO15: 0 | AP15: 0 | AQ15: 0 | AR15: 0 | AS15: 0 | AT15: 0 | AU15: 0 | AV15: 0 | AW15: 0 | AX15: 0 | AY15: 0 | AZ15: =IF(AZ4<AZ7,$D15,0) -> 0 | BA15: =IF(BA4<BA7,$D15,0) -> 0 | BB15: =IF(BB4<BB7,$D15,0) -> 0 | BC15: 0 | BD15: 0 | BE15: 0 | BF15: 0 | BG15: 0 | BH15: 0 | BI15: 0 | BJ15: 0 | BK15: 0 | BL15: 0 | BM15: 0 | BN15: 0 | BO15: 0 | BP15: 0 | BQ15: 0 | BR15: 0 | BS15: 0 | BT15: 0 | BU15: 0 | BV15: 0 | BW15: 0 | BX15: 0 | BY15: 0 | BZ15: 0 | CA15: 0 | CB15: 0 | CC15: 0 | CD15: 0 | CE15: 0 | CF15: 0 | CG15: 0 | CH15: 0 | CI15: 0 | CJ15: 0 | CK15: 0 | CL15: 0 | CM15: 0 | CN15: 0 | CO15: 0 | CP15: 0 | CQ15: 0 | CR15: 0 | CS15: 0 | CT15: 0 | CU15: 0 | CV15: 0 | CW15: 0 | CX15: 0 | CY15: 0 | CZ15: 0 | DA15: 0 | DB15: 0 | DC15: 0 | DD15: 0 | DE15: 0 | DF15: 0 | DG15: 0 | DH15: 0 | DI15: 0 | DJ15: 0 | DK15: 0 | DL15: 0 | DM15: 0 | DN15: =IF(DN4<DN7,$D15,0) -> 0 | DO15: 0 | DP15: 0 | DQ15: 0 | DR15: 0 | DS15: 0 | DT15: 0 | DU15: 0 | DV15: 0 | DW15: 0 | DX15: 0 | DY15: 0 | DZ15: 0 | EA15: 0 | EB15: 0 | EC15: 0 | ED15: 0 | EE15: 0 | EF15: 0 | EG15: 0 | EH15: 0 | EI15: 0 | EJ15: 0 | EK15: 0 | EL15: 0 | EM15: 0 | EN15: 0 | EO15: 0 | EP15: 0 | EQ15: 0 | ER15: 0 | ES15: 0 | ET15: 0 | EU15: 0 | EV15: 0 | EW15: 0 | EX15: 0 | EY15: 0 | EZ15: 0 | FA15: 0 | FB15: 0 | FC15: 0 | FD15: 0 | FE15: 0 | FF15: 0 | FG15: 0 | FH15: 0 | FI15: 0 | FJ15: 0 | FK15: 0 | FL15: 0 | FM15: 0 | FN15: 0 | FO15: 0 | FP15: 0 | FQ15: 0 | FR15: 0 | FS15: 0 | FT15: 0 | FU15: 0 | FV15: 0 | FW15: 0 | FX15: 0 | FY15: 0 | FZ15: =IF(FZ4<FZ7,$D15,0) -> 0 | GA15: 0 | GB15: 0 | GC15: 0 | GD15: 0 | GE15: 0 | GF15: 0 | GG15: 0 | GH15: 0 | GI15: 0 | GJ15: 0 | GK15: 0 | GL15: 0 | GM15: 0 | GN15: 0 | GO15: 0 | GP15: 0 | GQ15: 0 | GR15: 0 | GS15: 0 | GT15: 0 | GU15: 0 | GV15: 0 | GW15: 0 | GX15: 0 | GY15: 0 | GZ15: 0 | HA15: 0 | HB15: 0 | HC15: 0 | HD15: 0 | HE15: 0 | HF15: 0 | HG15: 0 | HH15: 0 | HI15: 0 | HJ15: 0 | HK15: 0 | HL15: 0 | HM15: 0
A16: =ROW() -> 16 | B16: Equity Rate | D16: 0.095 | E16: =IF(E4<E7,$D16,0) -> 0.095 | F16: =IF(F4<F7,$D16,0) -> 0.095 | G16: 0.095 | H16: 0.095 | I16: 0.095 | J16: 0.095 | K16: 0.095 | L16: 0.095 | M16: 0.095 | N16: 0.095 | O16: 0.095 | P16: 0.095 | Q16: 0.095 | R16: =IF(R4<R7,$D16,0) -> 0.095 | S16: 0.095 | T16: 0.095 | U16: 0.095 | V16: 0.095 | W16: 0.095 | X16: =IF(X4<X7,$D16,0) -> 0.095 | Y16: 0.095 | Z16: 0.095 | AA16: 0.095 | AB16: =IF(AB4<AB7,$D16,0) -> 0.095 | AC16: 0.095 | AD16: 0.095 | AE16: 0.095 | AF16: 0.095 | AG16: 0.095 | AH16: 0.095 | AI16: 0.095 | AJ16: 0.095 | AK16: 0.095 | AL16: 0.095 | AM16: 0.095 | AN16: 0.095 | AO16: 0.095 | AP16: 0 | AQ16: 0 | AR16: 0 | AS16: 0 | AT16: 0 | AU16: 0 | AV16: 0 | AW16: 0 | AX16: 0 | AY16: 0 | AZ16: =IF(AZ4<AZ7,$D16,0) -> 0 | BA16: =IF(BA4<BA7,$D16,0) -> 0 | BB16: =IF(BB4<BB7,$D16,0) -> 0 | BC16: 0 | BD16: 0 | BE16: 0 | BF16: 0 | BG16: 0 | BH16: 0 | BI16: 0 | BJ16: 0 | BK16: 0 | BL16: 0 | BM16: 0 | BN16: 0 | BO16: 0 | BP16: 0 | BQ16: 0 | BR16: 0 | BS16: 0 | BT16: 0 | BU16: 0 | BV16: 0 | BW16: 0 | BX16: 0 | BY16: 0 | BZ16: 0 | CA16: 0 | CB16: 0 | CC16: 0 | CD16: 0 | CE16: 0 | CF16: 0 | CG16: 0 | CH16: 0 | CI16: 0 | CJ16: 0 | CK16: 0 | CL16: 0 | CM16: 0 | CN16: 0 | CO16: 0 | CP16: 0 | CQ16: 0 | CR16: 0 | CS16: 0 | CT16: 0 | CU16: 0 | CV16: 0 | CW16: 0 | CX16: 0 | CY16: 0 | CZ16: 0 | DA16: 0 | DB16: 0 | DC16: 0 | DD16: 0 | DE16: 0 | DF16: 0 | DG16: 0 | DH16: 0 | DI16: 0 | DJ16: 0 | DK16: 0 | DL16: 0 | DM16: 0 | DN16: =IF(DN4<DN7,$D16,0) -> 0 | DO16: 0 | DP16: 0 | DQ16: 0 | DR16: 0 | DS16: 0 | DT16: 0 | DU16: 0 | DV16: 0 | DW16: 0 | DX16: 0 | DY16: 0 | DZ16: 0 | EA16: 0 | EB16: 0 | EC16: 0 | ED16: 0 | EE16: 0 | EF16: 0 | EG16: 0 | EH16: 0 | EI16: 0 | EJ16: 0 | EK16: 0 | EL16: 0 | EM16: 0 | EN16: 0 | EO16: 0 | EP16: 0 | EQ16: 0 | ER16: 0 | ES16: 0 | ET16: 0 | EU16: 0 | EV16: 0 | EW16: 0 | EX16: 0 | EY16: 0 | EZ16: 0 | FA16: 0 | FB16: 0 | FC16: 0 | FD16: 0 | FE16: 0 | FF16: 0 | FG16: 0 | FH16: 0 | FI16: 0 | FJ16: 0 | FK16: 0 | FL16: 0 | FM16: 0 | FN16: 0 | FO16: 0 | FP16: 0 | FQ16: 0 | FR16: 0 | FS16: 0 | FT16: 0 | FU16: 0 | FV16: 0 | FW16: 0 | FX16: 0 | FY16: 0 | FZ16: =IF(FZ4<FZ7,$D16,0) -> 0 | GA16: 0 | GB16: 0 | GC16: 0 | GD16: 0 | GE16: 0 | GF16: 0 | GG16: 0 | GH16: 0 | GI16: 0 | GJ16: 0 | GK16: 0 | GL16: 0 | GM16: 0 | GN16: 0 | GO16: 0 | GP16: 0 | GQ16: 0 | GR16: 0 | GS16: 0 | GT16: 0 | GU16: 0 | GV16: 0 | GW16: 0 | GX16: 0 | GY16: 0 | GZ16: 0 | HA16: 0 | HB16: 0 | HC16: 0 | HD16: 0 | HE16: 0 | HF16: 0 | HG16: 0 | HH16: 0 | HI16: 0 | HJ16: 0 | HK16: 0 | HL16: 0 | HM16: 0
A17: =ROW() -> 17 | B17: Tax Rate | D17: 0.2384 | E17: =IF(E4<E7,$D17,0) -> 0.2384 | F17: =IF(F4<F7,$D17,0) -> 0.2384 | G17: 0.2384 | H17: 0.2384 | I17: 0.2384 | J17: 0.2384 | K17: 0.2384 | L17: 0.2384 | M17: 0.2384 | N17: 0.2384 | O17: 0.2384 | P17: 0.2384 | Q17: 0.2384 | R17: =IF(R4<R7,$D17,0) -> 0.2384 | S17: 0.2384 | T17: 0.2384 | U17: 0.2384 | V17: 0.2384 | W17: 0.2384 | X17: =IF(X4<X7,$D17,0) -> 0.2384 | Y17: 0.2384 | Z17: 0.2384 | AA17: 0.2384 | AB17: =IF(AB4<AB7,$D17,0) -> 0.2384 | AC17: 0.2384 | AD17: 0.2384 | AE17: 0.2384 | AF17: 0.2384 | AG17: 0.2384 | AH17: 0.2384 | AI17: 0.2384 | AJ17: 0.2384 | AK17: 0.2384 | AL17: 0.2384 | AM17: 0.2384 | AN17: 0.2384 | AO17: 0.2384 | AP17: 0 | AQ17: 0 | AR17: 0 | AS17: 0 | AT17: 0 | AU17: 0 | AV17: 0 | AW17: 0 | AX17: 0 | AY17: 0 | AZ17: =IF(AZ4<AZ7,$D17,0) -> 0 | BA17: =IF(BA4<BA7,$D17,0) -> 0 | BB17: =IF(BB4<BB7,$D17,0) -> 0 | BC17: 0 | BD17: 0 | BE17: 0 | BF17: 0 | BG17: 0 | BH17: 0 | BI17: 0 | BJ17: 0 | BK17: 0 | BL17: 0 | BM17: 0 | BN17: 0 | BO17: 0 | BP17: 0 | BQ17: 0 | BR17: 0 | BS17: 0 | BT17: 0 | BU17: 0 | BV17: 0 | BW17: 0 | BX17: 0 | BY17: 0 | BZ17: 0 | CA17: 0 | CB17: 0 | CC17: 0 | CD17: 0 | CE17: 0 | CF17: 0 | CG17: 0 | CH17: 0 | CI17: 0 | CJ17: 0 | CK17: 0 | CL17: 0 | CM17: 0 | CN17: 0 | CO17: 0 | CP17: 0 | CQ17: 0 | CR17: 0 | CS17: 0 | CT17: 0 | CU17: 0 | CV17: 0 | CW17: 0 | CX17: 0 | CY17: 0 | CZ17: 0 | DA17: 0 | DB17: 0 | DC17: 0 | DD17: 0 | DE17: 0 | DF17: 0 | DG17: 0 | DH17: 0 | DI17: 0 | DJ17: 0 | DK17: 0 | DL17: 0 | DM17: 0 | DN17: =IF(DN4<DN7,$D17,0) -> 0 | DO17: 0 | DP17: 0 | DQ17: 0 | DR17: 0 | DS17: 0 | DT17: 0 | DU17: 0 | DV17: 0 | DW17: 0 | DX17: 0 | DY17: 0 | DZ17: 0 | EA17: 0 | EB17: 0 | EC17: 0 | ED17: 0 | EE17: 0 | EF17: 0 | EG17: 0 | EH17: 0 | EI17: 0 | EJ17: 0 | EK17: 0 | EL17: 0 | EM17: 0 | EN17: 0 | EO17: 0 | EP17: 0 | EQ17: 0 | ER17: 0 | ES17: 0 | ET17: 0 | EU17: 0 | EV17: 0 | EW17: 0 | EX17: 0 | EY17: 0 | EZ17: 0 | FA17: 0 | FB17: 0 | FC17: 0 | FD17: 0 | FE17: 0 | FF17: 0 | FG17: 0 | FH17: 0 | FI17: 0 | FJ17: 0 | FK17: 0 | FL17: 0 | FM17: 0 | FN17: 0 | FO17: 0 | FP17: 0 | FQ17: 0 | FR17: 0 | FS17: 0 | FT17: 0 | FU17: 0 | FV17: 0 | FW17: 0 | FX17: 0 | FY17: 0 | FZ17: =IF(FZ4<FZ7,$D17,0) -> 0 | GA17: 0 | GB17: 0 | GC17: 0 | GD17: 0 | GE17: 0 | GF17: 0 | GG17: 0 | GH17: 0 | GI17: 0 | GJ17: 0 | GK17: 0 | GL17: 0 | GM17: 0 | GN17: 0 | GO17: 0 | GP17: 0 | GQ17: 0 | GR17: 0 | GS17: 0 | GT17: 0 | GU17: 0 | GV17: 0 | GW17: 0 | GX17: 0 | GY17: 0 | GZ17: 0 | HA17: 0 | HB17: 0 | HC17: 0 | HD17: 0 | HE17: 0 | HF17: 0 | HG17: 0 | HH17: 0 | HI17: 0 | HJ17: 0 | HK17: 0 | HL17: 0 | HM17: 0
A18: =ROW() -> 18 | B18: Weighted Pre-Tax Equity Rate | D18: =(D15*D16)/(1-D17) -> 0 | E18: =(E15*E16)/(1-E17) -> 0 | F18: 0 | G18: 0 | H18: 0 | I18: 0 | J18: 0 | K18: 0 | L18: 0 | M18: 0 | N18: 0 | O18: 0 | P18: 0 | Q18: 0 | R18: =(R15*R16)/(1-R17) -> 0 | S18: 0 | T18: 0 | U18: 0 | V18: 0 | W18: 0 | X18: =(X15*X16)/(1-X17) -> 0 | Y18: 0 | Z18: 0 | AA18: 0 | AB18: =(AB15*AB16)/(1-AB17) -> 0 | AC18: 0 | AD18: 0 | AE18: 0 | AF18: 0 | AG18: 0 | AH18: 0 | AI18: 0 | AJ18: 0 | AK18: 0 | AL18: 0 | AM18: 0 | AN18: 0 | AO18: 0 | AP18: 0 | AQ18: 0 | AR18: 0 | AS18: 0 | AT18: 0 | AU18: 0 | AV18: 0 | AW18: 0 | AX18: 0 | AY18: 0 | AZ18: =(AZ15*AZ16)/(1-AZ17) -> 0 | BA18: =(BA15*BA16)/(1-BA17) -> 0 | BB18: =(BB15*BB16)/(1-BB17) -> 0 | BC18: 0 | BD18: 0 | BE18: 0 | BF18: 0 | BG18: 0 | BH18: 0 | BI18: 0 | BJ18: 0 | BK18: 0 | BL18: 0 | BM18: 0 | BN18: 0 | BO18: 0 | BP18: 0 | BQ18: 0 | BR18: 0 | BS18: 0 | BT18: 0 | BU18: 0 | BV18: 0 | BW18: 0 | BX18: 0 | BY18: 0 | BZ18: 0 | CA18: 0 | CB18: 0 | CC18: 0 | CD18: 0 | CE18: 0 | CF18: 0 | CG18: 0 | CH18: 0 | CI18: 0 | CJ18: 0 | CK18: 0 | CL18: 0 | CM18: 0 | CN18: 0 | CO18: 0 | CP18: 0 | CQ18: 0 | CR18: 0 | CS18: 0 | CT18: 0 | CU18: 0 | CV18: 0 | CW18: 0 | CX18: 0 | CY18: 0 | CZ18: 0 | DA18: 0 | DB18: 0 | DC18: 0 | DD18: 0 | DE18: 0 | DF18: 0 | DG18: 0 | DH18: 0 | DI18: 0 | DJ18: 0 | DK18: 0 | DL18: 0 | DM18: 0 | DN18: =(DN15*DN16)/(1-DN17) -> 0 | DO18: 0 | DP18: 0 | DQ18: 0 | DR18: 0 | DS18: 0 | DT18: 0 | DU18: 0 | DV18: 0 | DW18: 0 | DX18: 0 | DY18: 0 | DZ18: 0 | EA18: 0 | EB18: 0 | EC18: 0 | ED18: 0 | EE18: 0 | EF18: 0 | EG18: 0 | EH18: 0 | EI18: 0 | EJ18: 0 | EK18: 0 | EL18: 0 | EM18: 0 | EN18: 0 | EO18: 0 | EP18: 0 | EQ18: 0 | ER18: 0 | ES18: 0 | ET18: 0 | EU18: 0 | EV18: 0 | EW18: 0 | EX18: 0 | EY18: 0 | EZ18: 0 | FA18: 0 | FB18: 0 | FC18: 0 | FD18: 0 | FE18: 0 | FF18: 0 | FG18: 0 | FH18: 0 | FI18: 0 | FJ18: 0 | FK18: 0 | FL18: 0 | FM18: 0 | FN18: 0 | FO18: 0 | FP18: 0 | FQ18: 0 | FR18: 0 | FS18: 0 | FT18: 0 | FU18: 0 | FV18: 0 | FW18: 0 | FX18: 0 | FY18: 0 | FZ18: =(FZ15*FZ16)/(1-FZ17) -> 0 | GA18: 0 | GB18: 0 | GC18: 0 | GD18: 0 | GE18: 0 | GF18: 0 | GG18: 0 | GH18: 0 | GI18: 0 | GJ18: 0 | GK18: 0 | GL18: 0 | GM18: 0 | GN18: 0 | GO18: 0 | GP18: =(GP15*GP16)/(1-GP17) -> 0 | GQ18: 0 | GR18: 0 | GS18: 0 | GT18: 0 | GU18: 0 | GV18: =(GV15*GV16)/(1-GV17) -> 0 | GW18: 0 | GX18: 0 | GY18: 0 | GZ18: =(GZ15*GZ16)/(1-GZ17) -> 0 | HA18: 0 | HB18: 0 | HC18: 0 | HD18: 0 | HE18: 0 | HF18: 0 | HG18: 0 | HH18: 0 | HI18: 0 | HJ18: 0 | HK18: 0 | HL18: 0 | HM18: 0
A19: =ROW() -> 19 | D19: =+D18+D13 -> 0.0506
A20: =ROW() -> 20 | B20: Asset (Liability): Basis
A21: =ROW() -> 21 | B21: Beginning balance | E21: =D27 -> 0 | F21: =E27 -> 281.3077219 | G21: 282.4939028 | H21: 283.6800837 | I21: 284.8662646 | J21: 281.664514 | K21: 282.8322702 | L21: 284.6763202 | M21: 285.8469161 | N21: 287.0175119 | O21: 288.1881078 | P21: 292.2488146 | Q21: 293.4315459 | R21: 294.7929483 | S21: 295.9764299 | T21: 297.1599114 | U21: 298.343393 | V21: 299.5268746 | W21: 300.7103561 | X21: 301.8938377 | Y21: 303.0773193 | Z21: 304.2608009 | AA21: 305.4442824 | AB21: 306.627764 | AC21: 307.8112456 | AD21: 308.9946622 | AE21: 310.1780789 | AF21: 311.3614956 | AG21: 312.5449122 | AH21: 313.7283289 | AI21: 314.9117456 | AJ21: 316.0951622 | AK21: 317.2785789 | AL21: 318.4619956 | AM21: 319.6454122 | AN21: 320.8288289 | AO21: 322.0122456 | AP21: 330.7875976 | AQ21: 328.9187411 | AR21: 327.0498846 | AS21: 325.1810281 | AT21: 323.3121716 | AU21: 321.4433151 | AV21: 319.5744587 | AW21: 317.7056022 | AX21: 315.8367457 | AY21: 313.9678892 | AZ21: =AY27 -> 312.0990327 | BA21: 310.2301762 | BB21: 308.3613198 | BC21: 306.4924633 | BD21: 304.6236068 | BE21: 302.7547503 | BF21: 300.8858938 | BG21: 299.0170373 | BH21: 297.1481809 | BI21: 295.2793244 | BJ21: 293.4104679 | BK21: 291.5416114 | BL21: 289.6727549 | BM21: 287.8038984 | BN21: 285.935042 | BO21: 284.0661855 | BP21: 282.197329 | BQ21: 280.3284725 | BR21: 278.459616 | BS21: 276.5907595 | BT21: 274.7219031 | BU21: 272.8530466 | BV21: 270.9841901 | BW21: 269.1153336 | BX21: 267.2464771 | BY21: 265.3776206 | BZ21: 263.5087642 | CA21: 261.6399077 | CB21: 259.7710512 | CC21: 257.9021947 | CD21: 256.0333382 | CE21: 254.1644817 | CF21: =CE27 -> 252.2956253 | CG21: 250.4267688 | CH21: 248.5579123 | CI21: 246.6890558 | CJ21: 244.8201993 | CK21: 242.9513428 | CL21: 241.0824864 | CM21: 239.2136299 | CN21: 237.3447734 | CO21: 235.4759169 | CP21: 233.6070604 | CQ21: 231.7382039 | CR21: 229.8693475 | CS21: 228.000491 | CT21: 226.1316345 | CU21: 224.262778 | CV21: 222.3939215 | CW21: 220.525065 | CX21: 218.6562086 | CY21: 216.7873521 | CZ21: 214.9184956 | DA21: 213.0496391 | DB21: 211.1807826 | DC21: 209.3119261 | DD21: 207.4430697 | DE21: 205.5742132 | DF21: 203.7053567 | DG21: 201.8365002 | DH21: 199.9676437 | DI21: 198.0987872 | DJ21: 196.2299308 | DK21: 194.3610743 | DL21: =DK27 -> 192.4922178 | DM21: 190.6233613 | DN21: 188.7545048 | DO21: 186.8856483 | DP21: 185.0167919 | DQ21: 183.1479354 | DR21: 181.2790789 | DS21: 179.4102224 | DT21: 177.5413659 | DU21: 175.6725094 | DV21: 173.803653 | DW21: 171.9347965 | DX21: 170.06594 | DY21: 168.1970835 | DZ21: 166.328227 | EA21: 164.4593705 | EB21: 162.5905141 | EC21: 160.7216576 | ED21: 158.8528011 | EE21: 156.9839446 | EF21: 155.1150881 | EG21: 153.2462316 | EH21: 151.3773752 | EI21: 149.5085187 | EJ21: 147.6396622 | EK21: 145.7708057 | EL21: 143.9019492 | EM21: 142.0330927 | EN21: 140.1642363 | EO21: 138.2953798 | EP21: 136.4265233 | EQ21: 134.5576668 | ER21: =EQ27 -> 132.6888103 | ES21: 130.8199538 | ET21: 128.9510974 | EU21: 127.0822409 | EV21: 125.2133844 | EW21: 123.3445279 | EX21: 121.4756714 | EY21: 119.6068149 | EZ21: 117.7379585 | FA21: 115.869102 | FB21: 114.0002455 | FC21: 112.131389 | FD21: 110.2625325 | FE21: 108.393676 | FF21: 106.5248196 | FG21: 104.6559631 | FH21: 102.7871066 | FI21: 100.9182501 | FJ21: 99.04939362 | FK21: 97.18053714 | FL21: 95.31168065 | FM21: 93.44282417 | FN21: 91.57396769 | FO21: 89.7051112 | FP21: 87.83625472 | FQ21: 85.96739824 | FR21: 84.09854175 | FS21: 82.22968527 | FT21: 80.36082879 | FU21: 78.4919723 | FV21: 76.62311582 | FW21: 74.75425934 | FX21: =FW27 -> 72.88540285 | FY21: 71.01654637 | FZ21: 69.14768989 | GA21: 67.2788334 | GB21: 65.40997692 | GC21: 63.54112044 | GD21: 61.67226395 | GE21: 59.80340747 | GF21: 57.93455098 | GG21: 56.0656945 | GH21: 54.19683802 | GI21: 52.32798153 | GJ21: 50.45912505 | GK21: 48.59026857 | GL21: 46.72141208 | GM21: 44.8525556 | GN21: 42.98369912 | GO21: 41.11484263 | GP21: =GO27 -> 39.24598615 | GQ21: =GP27 -> 37.37712967 | GR21: =GQ27 -> 35.50827318 | GS21: =GR27 -> 33.6394167 | GT21: =GS27 -> 31.77056022 | GU21: =GT27 -> 29.90170373 | GV21: =GU27 -> 28.03284725 | GW21: =GV27 -> 26.16399077 | GX21: =GW27 -> 24.29513428 | GY21: =GX27 -> 22.4262778 | GZ21: 20.55742132 | HA21: =GZ27 -> 18.68856483 | HB21: 16.81970835 | HC21: =HB27 -> 14.95085187 | HD21: =HC27 -> 13.08199538 | HE21: =HD27 -> 11.2131389 | HF21: =HE27 -> 9.344282417 | HG21: =HF27 -> 7.475425934 | HH21: =HG27 -> 5.60656945 | HI21: =HH27 -> 3.737712967 | HJ21: =HI27 -> 1.868856483 | HK21: =HJ27 -> -8.437694987e-13 | HL21: =HK27 -> -8.437694987e-13 | HM21: =HL27 -> -8.437694987e-13
A22: =ROW() -> 22 | B22: Carrying cost - interest | E22: =E21*E13/12 -> 0 | F22: =+'Carrying costs- Staff'!F19/1000000 -> 1.186180894 | G22: =+'Carrying costs- Staff'!G19/1000000 -> 1.186180894 | H22: =+'Carrying costs- Staff'!H19/1000000 -> 1.186180894 | I22: =+'Carrying costs- Staff'!I19/1000000 -> 1.167756141 | J22: =+'Carrying costs- Staff'!J19/1000000 -> 1.167756141 | K22: =+'Carrying costs- Staff'!K19/1000000 -> 1.170595872 | L22: =+'Carrying costs- Staff'!L19/1000000 -> 1.170595872 | M22: =+'Carrying costs- Staff'!M19/1000000 -> 1.170595872 | N22: =+'Carrying costs- Staff'!N19/1000000 -> 1.170595872 | O22: =+'Carrying costs- Staff'!O19/1000000 -> 1.182731336 | P22: =+'Carrying costs- Staff'!P19/1000000 -> 1.182731336 | Q22: =+'Carrying costs- Staff'!Q19/1000000 -> 1.183481568 | R22: =+'Carrying costs- Staff'!R19/1000000 -> 1.183481568 | S22: =+'Carrying costs- Staff'!S19/1000000 -> 1.183481568 | T22: =+'Carrying costs- Staff'!T19/1000000 -> 1.183481568 | U22: =+'Carrying costs- Staff'!U19/1000000 -> 1.183481568 | V22: =+'Carrying costs- Staff'!V19/1000000 -> 1.183481568 | W22: =+'Carrying costs- Staff'!W19/1000000 -> 1.183481568 | X22: =+'Carrying costs- Staff'!X19/1000000 -> 1.183481568 | Y22: =+'Carrying costs- Staff'!Y19/1000000 -> 1.183481568 | Z22: =+'Carrying costs- Staff'!Z19/1000000 -> 1.183481568 | AA22: =+'Carrying costs- Staff'!AA19/1000000 -> 1.183481568 | AB22: =+'Carrying costs- Staff'!AB19/1000000 -> 1.183481568 | AC22: =14.201/12 -> 1.183416667 | AD22: =14.201/12 -> 1.183416667 | AE22: 1.183416667 | AF22: 1.183416667 | AG22: 1.183416667 | AH22: 1.183416667 | AI22: 1.183416667 | AJ22: 1.183416667 | AK22: 1.183416667 | AL22: 1.183416667 | AM22: 1.183416667 | AN22: 1.183416667 | AO22: 0.6 | AP22: 0 | AQ22: 0 | AR22: 0 | AS22: 0 | AT22: 0 | AU22: 0 | AV22: 0 | AW22: 0 | AX22: 0 | AY22: 0
A23: =ROW() -> 23 | B23: Carrying cost - equity | AP23: =AP21*AP18/12 -> 0 | AQ23: 0 | AR23: 0 | AS23: 0 | AT23: 0 | AU23: 0 | AV23: 0 | AW23: 0 | AX23: 0 | AY23: 0
A24: =ROW() -> 24 | B24: Normal Deferral | E24: =+'RAK-10 (Revised RAK-2, 6)'!E26/1000000 -> 281.3077219 | I24: =+'RAK-10 (Revised RAK-2, 6)'!G26/1000000 -> -4.369506653 | K24: =+'RAK-10 (Revised RAK-2, 6)'!K26/1000000 -> 0.6734541229 | O24: =+'RAK-10 (Revised RAK-2, 6)'!O26/1000000 -> 2.877975472 | Q24: =+'RAK-10 (Revised RAK-2, 6)'!S26/1000000 -> 0.1779207937
A25: =ROW() -> 25 | B25: Upfront Financing Costs | AO25: ='RAK-11 (Revised RAK-3, 7)'!D14/1000000 -> 8.175352
A26: =ROW() -> 26 | B26: Amortization | E26: =IF(E4=E7,-SUM(E21:E24)/E8/12,IF(E4<E9,D26,IF(E4=E9,-SUM(E21:E24),0))) -> 0 | F26: 0 | G26: 0 | H26: 0 | I26: 0 | J26: 0 | K26: 0 | L26: 0 | M26: 0 | N26: 0 | O26: 0 | P26: 0 | Q26: 0 | AP26: =-$AP$21/14.75/12 -> -1.868856483 | AQ26: =-$AP$21/14.75/12 -> -1.868856483 | AR26: -1.868856483 | AS26: -1.868856483 | AT26: -1.868856483 | AU26: -1.868856483 | AV26: -1.868856483 | AW26: -1.868856483 | AX26: -1.868856483 | AY26: -1.868856483 | AZ26: -1.868856483 | BA26: -1.868856483 | BB26: -1.868856483 | BC26: -1.868856483 | BD26: -1.868856483 | BE26: -1.868856483 | BF26: -1.868856483 | BG26: -1.868856483 | BH26: -1.868856483 | BI26: -1.868856483 | BJ26: -1.868856483 | BK26: -1.868856483 | BL26: -1.868856483 | BM26: -1.868856483 | BN26: -1.868856483 | BO26: -1.868856483 | BP26: -1.868856483 | BQ26: -1.868856483 | BR26: -1.868856483 | BS26: -1.868856483 | BT26: -1.868856483 | BU26: -1.868856483 | BV26: -1.868856483 | BW26: -1.868856483 | BX26: -1.868856483 | BY26: -1.868856483 | BZ26: -1.868856483 | CA26: -1.868856483 | CB26: -1.868856483 | CC26: -1.868856483 | CD26: -1.868856483 | CE26: -1.868856483 | CF26: -1.868856483 | CG26: -1.868856483 | CH26: -1.868856483 | CI26: -1.868856483 | CJ26: -1.868856483 | CK26: -1.868856483 | CL26: -1.868856483 | CM26: -1.868856483 | CN26: -1.868856483 | CO26: -1.868856483 | CP26: -1.868856483 | CQ26: -1.868856483 | CR26: -1.868856483 | CS26: -1.868856483 | CT26: -1.868856483 | CU26: -1.868856483 | CV26: -1.868856483 | CW26: -1.868856483 | CX26: -1.868856483 | CY26: -1.868856483 | CZ26: -1.868856483 | DA26: -1.868856483 | DB26: -1.868856483 | DC26: =-$AP$21/14.75/12 -> -1.868856483 | DD26: -1.868856483 | DE26: -1.868856483 | DF26: -1.868856483 | DG26: -1.868856483 | DH26: -1.868856483 | DI26: -1.868856483 | DJ26: -1.868856483 | DK26: -1.868856483 | DL26: -1.868856483 | DM26: -1.868856483 | DN26: -1.868856483 | DO26: -1.868856483 | DP26: -1.868856483 | DQ26: -1.868856483 | DR26: -1.868856483 | DS26: -1.868856483 | DT26: -1.868856483 | DU26: -1.868856483 | DV26: -1.868856483 | DW26: -1.868856483 | DX26: -1.868856483 | DY26: -1.868856483 | DZ26: -1.868856483 | EA26: -1.868856483 | EB26: -1.868856483 | EC26: -1.868856483 | ED26: -1.868856483 | EE26: -1.868856483 | EF26: -1.868856483 | EG26: -1.868856483 | EH26: -1.868856483 | EI26: -1.868856483 | EJ26: -1.868856483 | EK26: -1.868856483 | EL26: -1.868856483 | EM26: -1.868856483 | EN26: -1.868856483 | EO26: -1.868856483 | EP26: -1.868856483 | EQ26: -1.868856483 | ER26: -1.868856483 | ES26: -1.868856483 | ET26: -1.868856483 | EU26: -1.868856483 | EV26: -1.868856483 | EW26: -1.868856483 | EX26: -1.868856483 | EY26: -1.868856483 | EZ26: -1.868856483 | FA26: -1.868856483 | FB26: -1.868856483 | FC26: -1.868856483 | FD26: -1.868856483 | FE26: -1.868856483 | FF26: -1.868856483 | FG26: -1.868856483 | FH26: -1.868856483 | FI26: -1.868856483 | FJ26: -1.868856483 | FK26: -1.868856483 | FL26: -1.868856483 | FM26: -1.868856483 | FN26: -1.868856483 | FO26: =-$AP$21/14.75/12 -> -1.868856483 | FP26: -1.868856483 | FQ26: -1.868856483 | FR26: -1.868856483 | FS26: -1.868856483 | FT26: -1.868856483 | FU26: -1.868856483 | FV26: -1.868856483 | FW26: -1.868856483 | FX26: -1.868856483 | FY26: -1.868856483 | FZ26: -1.868856483 | GA26: -1.868856483 | GB26: -1.868856483 | GC26: -1.868856483 | GD26: -1.868856483 | GE26: -1.868856483 | GF26: -1.868856483 | GG26: -1.868856483 | GH26: -1.868856483 | GI26: -1.868856483 | GJ26: -1.868856483 | GK26: -1.868856483 | GL26: -1.868856483 | GM26: -1.868856483 | GN26: -1.868856483 | GO26: -1.868856483 | GP26: -1.868856483 | GQ26: -1.868856483 | GR26: -1.868856483 | GS26: -1.868856483 | GT26: -1.868856483 | GU26: -1.868856483 | GV26: -1.868856483 | GW26: -1.868856483 | GX26: -1.868856483 | GY26: -1.868856483 | GZ26: -1.868856483 | HA26: -1.868856483 | HB26: -1.868856483 | HC26: -1.868856483 | HD26: -1.868856483 | HE26: -1.868856483 | HF26: -1.868856483 | HG26: -1.868856483 | HH26: -1.868856483 | HI26: -1.868856483 | HJ26: -1.868856483 | HN26: =SUM(E26:HM26) -> -330.7875976
A27: =ROW() -> 27 | B27: Ending Balance | E27: =SUM(E21:E26) -> 281.3077219 | F27: 282.4939028 | G27: 283.6800837 | H27: 284.8662646 | I27: 281.664514 | J27: 282.8322702 | K27: 284.6763202 | L27: 285.8469161 | M27: 287.0175119 | N27: 288.1881078 | O27: 292.2488146 | P27: 293.4315459 | Q27: 294.7929483 | R27: =SUM(R21:R26) -> 295.9764299 | S27: 297.1599114 | T27: 298.343393 | U27: 299.5268746 | V27: 300.7103561 | W27: 301.8938377 | X27: 303.0773193 | Y27: 304.2608009 | Z27: 305.4442824 | AA27: 306.627764 | AB27: =SUM(AB21:AB26) -> 307.8112456 | AC27: 308.9946622 | AD27: 310.1780789 | AE27: 311.3614956 | AF27: 312.5449122 | AG27: 313.7283289 | AH27: 314.9117456 | AI27: 316.0951622 | AJ27: 317.2785789 | AK27: =SUM(AK21:AK26) -> 318.4619956 | AL27: 319.6454122 | AM27: 320.8288289 | AN27: 322.0122456 | AO27: 330.7875976 | AP27: 328.9187411 | AQ27: 327.0498846 | AR27: 325.1810281 | AS27: 323.3121716 | AT27: 321.4433151 | AU27: 319.5744587 | AV27: 317.7056022 | AW27: 315.8367457 | AX27: 313.9678892 | AY27: 312.0990327 | AZ27: 310.2301762 | BA27: 308.3613198 | BB27: 306.4924633 | BC27: 304.6236068 | BD27: 302.7547503 | BE27: 300.8858938 | BF27: 299.0170373 | BG27: 297.1481809 | BH27: 295.2793244 | BI27: 293.4104679 | BJ27: 291.5416114 | BK27: 289.6727549 | BL27: 287.8038984 | BM27: 285.935042 | BN27: 284.0661855 | BO27: 282.197329 | BP27: 280.3284725 | BQ27: =SUM(BQ21:BQ26) -> 278.459616 | BR27: 276.5907595 | BS27: 274.7219031 | BT27: 272.8530466 | BU27: 270.9841901 | BV27: 269.1153336 | BW27: 267.2464771 | BX27: 265.3776206 | BY27: 263.5087642 | BZ27: 261.6399077 | CA27: 259.7710512 | CB27: 257.9021947 | CC27: 256.0333382 | CD27: 254.1644817 | CE27: 252.2956253 | CF27: 250.4267688 | CG27: 248.5579123 | CH27: 246.6890558 | CI27: 244.8201993 | CJ27: 242.9513428 | CK27: 241.0824864 | CL27: 239.2136299 | CM27: 237.3447734 | CN27: 235.4759169 | CO27: 233.6070604 | CP27: 231.7382039 | CQ27: 229.8693475 | CR27: 228.000491 | CS27: 226.1316345 | CT27: 224.262778 | CU27: 222.3939215 | CV27: 220.525065 | CW27: =SUM(CW21:CW26) -> 218.6562086 | CX27: 216.7873521 | CY27: 214.9184956 | CZ27: 213.0496391 | DA27: 211.1807826 | DB27: 209.3119261 | DC27: 207.4430697 | DD27: 205.5742132 | DE27: 203.7053567 | DF27: 201.8365002 | DG27: 199.9676437 | DH27: 198.0987872 | DI27: 196.2299308 | DJ27: 194.3610743 | DK27: 192.4922178 | DL27: 190.6233613 | DM27: 188.7545048 | DN27: 186.8856483 | DO27: 185.0167919 | DP27: 183.1479354 | DQ27: 181.2790789 | DR27: 179.4102224 | DS27: 177.5413659 | DT27: 175.6725094 | DU27: 173.803653 | DV27: 171.9347965 | DW27: 170.06594 | DX27: 168.1970835 | DY27: 166.328227 | DZ27: 164.4593705 | EA27: 162.5905141 | EB27: 160.7216576 | EC27: =SUM(EC21:EC26) -> 158.8528011 | ED27: 156.9839446 | EE27: 155.1150881 | EF27: 153.2462316 | EG27: 151.3773752 | EH27: 149.5085187 | EI27: 147.6396622 | EJ27: 145.7708057 | EK27: 143.9019492 | EL27: 142.0330927 | EM27: 140.1642363 | EN27: 138.2953798 | EO27: 136.4265233 | EP27: 134.5576668 | EQ27: 132.6888103 | ER27: 130.8199538 | ES27: 128.9510974 | ET27: 127.0822409 | EU27: 125.2133844 | EV27: 123.3445279 | EW27: 121.4756714 | EX27: 119.6068149 | EY27: 117.7379585 | EZ27: 115.869102 | FA27: 114.0002455 | FB27: 112.131389 | FC27: 110.2625325 | FD27: 108.393676 | FE27: 106.5248196 | FF27: 104.6559631 | FG27: 102.7871066 | FH27: 100.9182501 | FI27: =SUM(FI21:FI26) -> 99.04939362 | FJ27: 97.18053714 | FK27: 95.31168065 | FL27: 93.44282417 | FM27: 91.57396769 | FN27: 89.7051112 | FO27: 87.83625472 | FP27: 85.96739824 | FQ27: 84.09854175 | FR27: 82.22968527 | FS27: 80.36082879 | FT27: 78.4919723 | FU27: 76.62311582 | FV27: 74.75425934 | FW27: 72.88540285 | FX27: 71.01654637 | FY27: 69.14768989 | FZ27: 67.2788334 | GA27: 65.40997692 | GB27: 63.54112044 | GC27: 61.67226395 | GD27: 59.80340747 | GE27: 57.93455098 | GF27: 56.0656945 | GG27: 54.19683802 | GH27: 52.32798153 | GI27: 50.45912505 | GJ27: 48.59026857 | GK27: 46.72141208 | GL27: 44.8525556 | GM27: 42.98369912 | GN27: 41.11484263 | GO27: =SUM(GO21:GO26) -> 39.24598615 | GP27: =SUM(GP21:GP26) -> 37.37712967 | GQ27: 35.50827318 | GR27: 33.6394167 | GS27: 31.77056022 | GT27: 29.90170373 | GU27: 28.03284725 | GV27: =SUM(GV21:GV26) -> 26.16399077 | GW27: 24.29513428 | GX27: 22.4262778 | GY27: 20.55742132 | GZ27: =SUM(GZ21:GZ26) -> 18.68856483 | HA27: 16.81970835 | HB27: 14.95085187 | HC27: 13.08199538 | HD27: 11.2131389 | HE27: 9.344282417 | HF27: 7.475425934 | HG27: 5.60656945 | HH27: 3.737712967 | HI27: 1.868856483 | HJ27: -8.437694987e-13 | HK27: -8.437694987e-13 | HL27: -8.437694987e-13 | HM27: -8.437694987e-13
A28: =ROW() -> 28 | B28: Payment | AP28: =+'RAK-11 (Revised RAK-3, 7)'!$D$19/1000000 -> 2.686716572 | AQ28: =+'RAK-11 (Revised RAK-3, 7)'!$D$19/1000000 -> 2.686716572 | AR28: =+'RAK-11 (Revised RAK-3, 7)'!$D$19/1000000 -> 2.686716572 | AS28: =+'RAK-11 (Revised RAK-3, 7)'!$D$19/1000000 -> 2.686716572 | AT28: =+'RAK-11 (Revised RAK-3, 7)'!$D$19/1000000 -> 2.686716572 | AU28: =+'RAK-11 (Revised RAK-3, 7)'!$D$19/1000000 -> 2.686716572 | AV28: =+'RAK-11 (Revised RAK-3, 7)'!$D$19/1000000 -> 2.686716572 | AW28: =+'RAK-11 (Revised RAK-3, 7)'!$D$19/1000000 -> 2.686716572 | AX28: =+'RAK-11 (Revised RAK-3, 7)'!$D$19/1000000 -> 2.686716572 | AY28: =+'RAK-11 (Revised RAK-3, 7)'!$D$19/1000000 -> 2.686716572 | AZ28: =+'RAK-11 (Revised RAK-3, 7)'!$D$19/1000000 -> 2.686716572 | BA28: =+'RAK-11 (Revised RAK-3, 7)'!$D$19/1000000 -> 2.686716572 | BB28: =+'RAK-11 (Revised RAK-3, 7)'!$D$19/1000000 -> 2.686716572 | BC28: =+'RAK-11 (Revised RAK-3, 7)'!$D$19/1000000 -> 2.686716572 | BD28: =+'RAK-11 (Revised RAK-3, 7)'!$D$19/1000000 -> 2.686716572 | BE28: =+'RAK-11 (Revised RAK-3, 7)'!$D$19/1000000 -> 2.686716572 | BF28: =+'RAK-11 (Revised RAK-3, 7)'!$D$19/1000000 -> 2.686716572 | BG28: =+'RAK-11 (Revised RAK-3, 7)'!$D$19/1000000 -> 2.686716572 | BH28: =+'RAK-11 (Revised RAK-3, 7)'!$D$19/1000000 -> 2.686716572 | BI28: =+'RAK-11 (Revised RAK-3, 7)'!$D$19/1000000 -> 2.686716572 | BJ28: =+'RAK-11 (Revised RAK-3, 7)'!$D$19/1000000 -> 2.686716572 | BK28: =+'RAK-11 (Revised RAK-3, 7)'!$D$19/1000000 -> 2.686716572 | BL28: =+'RAK-11 (Revised RAK-3, 7)'!$D$19/1000000 -> 2.686716572 | BM28: =+'RAK-11 (Revised RAK-3, 7)'!$D$19/1000000 -> 2.686716572 | BN28: =+'RAK-11 (Revised RAK-3, 7)'!$D$19/1000000 -> 2.686716572 | BO28: =+'RAK-11 (Revised RAK-3, 7)'!$D$19/1000000 -> 2.686716572 | BP28: =+'RAK-11 (Revised RAK-3, 7)'!$D$19/1000000 -> 2.686716572 | BQ28: =+'RAK-11 (Revised RAK-3, 7)'!$D$19/1000000 -> 2.686716572 | BR28: =+'RAK-11 (Revised RAK-3, 7)'!$D$19/1000000 -> 2.686716572 | BS28: =+'RAK-11 (Revised RAK-3, 7)'!$D$19/1000000 -> 2.686716572 | BT28: =+'RAK-11 (Revised RAK-3, 7)'!$D$19/1000000 -> 2.686716572 | BU28: =+'RAK-11 (Revised RAK-3, 7)'!$D$19/1000000 -> 2.686716572 | BV28: =+'RAK-11 (Revised RAK-3, 7)'!$D$19/1000000 -> 2.686716572 | BW28: =+'RAK-11 (Revised RAK-3, 7)'!$D$19/1000000 -> 2.686716572 | BX28: =+'RAK-11 (Revised RAK-3, 7)'!$D$19/1000000 -> 2.686716572 | BY28: =+'RAK-11 (Revised RAK-3, 7)'!$D$19/1000000 -> 2.686716572 | BZ28: =+'RAK-11 (Revised RAK-3, 7)'!$D$19/1000000 -> 2.686716572 | CA28: =+'RAK-11 (Revised RAK-3, 7)'!$D$19/1000000 -> 2.686716572 | CB28: =+'RAK-11 (Revised RAK-3, 7)'!$D$19/1000000 -> 2.686716572 | CC28: =+'RAK-11 (Revised RAK-3, 7)'!$D$19/1000000 -> 2.686716572 | CD28: =+'RAK-11 (Revised RAK-3, 7)'!$D$19/1000000 -> 2.686716572 | CE28: =+'RAK-11 (Revised RAK-3, 7)'!$D$19/1000000 -> 2.686716572 | CF28: =+'RAK-11 (Revised RAK-3, 7)'!$D$19/1000000 -> 2.686716572 | CG28: =+'RAK-11 (Revised RAK-3, 7)'!$D$19/1000000 -> 2.686716572 | CH28: =+'RAK-11 (Revised RAK-3, 7)'!$D$19/1000000 -> 2.686716572 | CI28: =+'RAK-11 (Revised RAK-3, 7)'!$D$19/1000000 -> 2.686716572 | CJ28: =+'RAK-11 (Revised RAK-3, 7)'!$D$19/1000000 -> 2.686716572 | CK28: =+'RAK-11 (Revised RAK-3, 7)'!$D$19/1000000 -> 2.686716572 | CL28: =+'RAK-11 (Revised RAK-3, 7)'!$D$19/1000000 -> 2.686716572 | CM28: =+'RAK-11 (Revised RAK-3, 7)'!$D$19/1000000 -> 2.686716572 | CN28: =+'RAK-11 (Revised RAK-3, 7)'!$D$19/1000000 -> 2.686716572 | CO28: =+'RAK-11 (Revised RAK-3, 7)'!$D$19/1000000 -> 2.686716572 | CP28: =+'RAK-11 (Revised RAK-3, 7)'!$D$19/1000000 -> 2.686716572 | CQ28: =+'RAK-11 (Revised RAK-3, 7)'!$D$19/1000000 -> 2.686716572 | CR28: =+'RAK-11 (Revised RAK-3, 7)'!$D$19/1000000 -> 2.686716572 | CS28: =+'RAK-11 (Revised RAK-3, 7)'!$D$19/1000000 -> 2.686716572 | CT28: =+'RAK-11 (Revised RAK-3, 7)'!$D$19/1000000 -> 2.686716572 | CU28: =+'RAK-11 (Revised RAK-3, 7)'!$D$19/1000000 -> 2.686716572 | CV28: =+'RAK-11 (Revised RAK-3, 7)'!$D$19/1000000 -> 2.686716572 | CW28: =+'RAK-11 (Revised RAK-3, 7)'!$D$19/1000000 -> 2.686716572 | CX28: =+'RAK-11 (Revised RAK-3, 7)'!$D$19/1000000 -> 2.686716572 | CY28: =+'RAK-11 (Revised RAK-3, 7)'!$D$19/1000000 -> 2.686716572 | CZ28: =+'RAK-11 (Revised RAK-3, 7)'!$D$19/1000000 -> 2.686716572 | DA28: =+'RAK-11 (Revised RAK-3, 7)'!$D$19/1000000 -> 2.686716572 | DB28: =+'RAK-11 (Revised RAK-3, 7)'!$D$19/1000000 -> 2.686716572 | DC28: =+'RAK-11 (Revised RAK-3, 7)'!$D$19/1000000 -> 2.686716572 | DD28: =+'RAK-11 (Revised RAK-3, 7)'!$D$19/1000000 -> 2.686716572 | DE28: =+'RAK-11 (Revised RAK-3, 7)'!$D$19/1000000 -> 2.686716572 | DF28: =+'RAK-11 (Revised RAK-3, 7)'!$D$19/1000000 -> 2.686716572 | DG28: =+'RAK-11 (Revised RAK-3, 7)'!$D$19/1000000 -> 2.686716572 | DH28: =+'RAK-11 (Revised RAK-3, 7)'!$D$19/1000000 -> 2.686716572 | DI28: =+'RAK-11 (Revised RAK-3, 7)'!$D$19/1000000 -> 2.686716572 | DJ28: =+'RAK-11 (Revised RAK-3, 7)'!$D$19/1000000 -> 2.686716572 | DK28: =+'RAK-11 (Revised RAK-3, 7)'!$D$19/1000000 -> 2.686716572 | DL28: =+'RAK-11 (Revised RAK-3, 7)'!$D$19/1000000 -> 2.686716572 | DM28: =+'RAK-11 (Revised RAK-3, 7)'!$D$19/1000000 -> 2.686716572 | DN28: =+'RAK-11 (Revised RAK-3, 7)'!$D$19/1000000 -> 2.686716572 | DO28: =+'RAK-11 (Revised RAK-3, 7)'!$D$19/1000000 -> 2.686716572 | DP28: =+'RAK-11 (Revised RAK-3, 7)'!$D$19/1000000 -> 2.686716572 | DQ28: =+'RAK-11 (Revised RAK-3, 7)'!$D$19/1000000 -> 2.686716572 | DR28: =+'RAK-11 (Revised RAK-3, 7)'!$D$19/1000000 -> 2.686716572 | DS28: =+'RAK-11 (Revised RAK-3, 7)'!$D$19/1000000 -> 2.686716572 | DT28: =+'RAK-11 (Revised RAK-3, 7)'!$D$19/1000000 -> 2.686716572 | DU28: =+'RAK-11 (Revised RAK-3, 7)'!$D$19/1000000 -> 2.686716572 | DV28: =+'RAK-11 (Revised RAK-3, 7)'!$D$19/1000000 -> 2.686716572 | DW28: =+'RAK-11 (Revised RAK-3, 7)'!$D$19/1000000 -> 2.686716572 | DX28: =+'RAK-11 (Revised RAK-3, 7)'!$D$19/1000000 -> 2.686716572 | DY28: =+'RAK-11 (Revised RAK-3, 7)'!$D$19/1000000 -> 2.686716572 | DZ28: =+'RAK-11 (Revised RAK-3, 7)'!$D$19/1000000 -> 2.686716572 | EA28: =+'RAK-11 (Revised RAK-3, 7)'!$D$19/1000000 -> 2.686716572 | EB28: =+'RAK-11 (Revised RAK-3, 7)'!$D$19/1000000 -> 2.686716572 | EC28: =+'RAK-11 (Revised RAK-3, 7)'!$D$19/1000000 -> 2.686716572 | ED28: =+'RAK-11 (Revised RAK-3, 7)'!$D$19/1000000 -> 2.686716572 | EE28: =+'RAK-11 (Revised RAK-3, 7)'!$D$19/1000000 -> 2.686716572 | EF28: =+'RAK-11 (Revised RAK-3, 7)'!$D$19/1000000 -> 2.686716572 | EG28: =+'RAK-11 (Revised RAK-3, 7)'!$D$19/1000000 -> 2.686716572 | EH28: =+'RAK-11 (Revised RAK-3, 7)'!$D$19/1000000 -> 2.686716572 | EI28: =+'RAK-11 (Revised RAK-3, 7)'!$D$19/1000000 -> 2.686716572 | EJ28: =+'RAK-11 (Revised RAK-3, 7)'!$D$19/1000000 -> 2.686716572 | EK28: =+'RAK-11 (Revised RAK-3, 7)'!$D$19/1000000 -> 2.686716572 | EL28: =+'RAK-11 (Revised RAK-3, 7)'!$D$19/1000000 -> 2.686716572 | EM28: =+'RAK-11 (Revised RAK-3, 7)'!$D$19/1000000 -> 2.686716572 | EN28: =+'RAK-11 (Revised RAK-3, 7)'!$D$19/1000000 -> 2.686716572 | EO28: =+'RAK-11 (Revised RAK-3, 7)'!$D$19/1000000 -> 2.686716572 | EP28: =+'RAK-11 (Revised RAK-3, 7)'!$D$19/1000000 -> 2.686716572 | EQ28: =+'RAK-11 (Revised RAK-3, 7)'!$D$19/1000000 -> 2.686716572 | ER28: =+'RAK-11 (Revised RAK-3, 7)'!$D$19/1000000 -> 2.686716572 | ES28: =+'RAK-11 (Revised RAK-3, 7)'!$D$19/1000000 -> 2.686716572 | ET28: =+'RAK-11 (Revised RAK-3, 7)'!$D$19/1000000 -> 2.686716572 | EU28: =+'RAK-11 (Revised RAK-3, 7)'!$D$19/1000000 -> 2.686716572 | EV28: =+'RAK-11 (Revised RAK-3, 7)'!$D$19/1000000 -> 2.686716572 | EW28: =+'RAK-11 (Revised RAK-3, 7)'!$D$19/1000000 -> 2.686716572 | EX28: =+'RAK-11 (Revised RAK-3, 7)'!$D$19/1000000 -> 2.686716572 | EY28: =+'RAK-11 (Revised RAK-3, 7)'!$D$19/1000000 -> 2.686716572 | EZ28: =+'RAK-11 (Revised RAK-3, 7)'!$D$19/1000000 -> 2.686716572 | FA28: =+'RAK-11 (Revised RAK-3, 7)'!$D$19/1000000 -> 2.686716572 | FB28: =+'RAK-11 (Revised RAK-3, 7)'!$D$19/1000000 -> 2.686716572 | FC28: =+'RAK-11 (Revised RAK-3, 7)'!$D$19/1000000 -> 2.686716572 | FD28: =+'RAK-11 (Revised RAK-3, 7)'!$D$19/1000000 -> 2.686716572 | FE28: =+'RAK-11 (Revised RAK-3, 7)'!$D$19/1000000 -> 2.686716572 | FF28: =+'RAK-11 (Revised RAK-3, 7)'!$D$19/1000000 -> 2.686716572 | FG28: =+'RAK-11 (Revised RAK-3, 7)'!$D$19/1000000 -> 2.686716572 | FH28: =+'RAK-11 (Revised RAK-3, 7)'!$D$19/1000000 -> 2.686716572 | FI28: =+'RAK-11 (Revised RAK-3, 7)'!$D$19/1000000 -> 2.686716572 | FJ28: =+'RAK-11 (Revised RAK-3, 7)'!$D$19/1000000 -> 2.686716572 | FK28: =+'RAK-11 (Revised RAK-3, 7)'!$D$19/1000000 -> 2.686716572 | FL28: =+'RAK-11 (Revised RAK-3, 7)'!$D$19/1000000 -> 2.686716572 | FM28: =+'RAK-11 (Revised RAK-3, 7)'!$D$19/1000000 -> 2.686716572 | FN28: =+'RAK-11 (Revised RAK-3, 7)'!$D$19/1000000 -> 2.686716572 | FO28: =+'RAK-11 (Revised RAK-3, 7)'!$D$19/1000000 -> 2.686716572 | FP28: =+'RAK-11 (Revised RAK-3, 7)'!$D$19/1000000 -> 2.686716572 | FQ28: =+'RAK-11 (Revised RAK-3, 7)'!$D$19/1000000 -> 2.686716572 | FR28: =+'RAK-11 (Revised RAK-3, 7)'!$D$19/1000000 -> 2.686716572 | FS28: =+'RAK-11 (Revised RAK-3, 7)'!$D$19/1000000 -> 2.686716572 | FT28: =+'RAK-11 (Revised RAK-3, 7)'!$D$19/1000000 -> 2.686716572 | FU28: =+'RAK-11 (Revised RAK-3, 7)'!$D$19/1000000 -> 2.686716572 | FV28: =+'RAK-11 (Revised RAK-3, 7)'!$D$19/1000000 -> 2.686716572 | FW28: =+'RAK-11 (Revised RAK-3, 7)'!$D$19/1000000 -> 2.686716572 | FX28: =+'RAK-11 (Revised RAK-3, 7)'!$D$19/1000000 -> 2.686716572 | FY28: =+'RAK-11 (Revised RAK-3, 7)'!$D$19/1000000 -> 2.686716572 | FZ28: =+'RAK-11 (Revised RAK-3, 7)'!$D$19/1000000 -> 2.686716572 | GA28: =+'RAK-11 (Revised RAK-3, 7)'!$D$19/1000000 -> 2.686716572 | GB28: =+'RAK-11 (Revised RAK-3, 7)'!$D$19/1000000 -> 2.686716572 | GC28: =+'RAK-11 (Revised RAK-3, 7)'!$D$19/1000000 -> 2.686716572 | GD28: =+'RAK-11 (Revised RAK-3, 7)'!$D$19/1000000 -> 2.686716572 | GE28: =+'RAK-11 (Revised RAK-3, 7)'!$D$19/1000000 -> 2.686716572 | GF28: =+'RAK-11 (Revised RAK-3, 7)'!$D$19/1000000 -> 2.686716572 | GG28: =+'RAK-11 (Revised RAK-3, 7)'!$D$19/1000000 -> 2.686716572 | GH28: =+'RAK-11 (Revised RAK-3, 7)'!$D$19/1000000 -> 2.686716572 | GI28: =+'RAK-11 (Revised RAK-3, 7)'!$D$19/1000000 -> 2.686716572 | GJ28: =+'RAK-11 (Revised RAK-3, 7)'!$D$19/1000000 -> 2.686716572 | GK28: =+'RAK-11 (Revised RAK-3, 7)'!$D$19/1000000 -> 2.686716572 | GL28: =+'RAK-11 (Revised RAK-3, 7)'!$D$19/1000000 -> 2.686716572 | GM28: =+'RAK-11 (Revised RAK-3, 7)'!$D$19/1000000 -> 2.686716572 | GN28: =+'RAK-11 (Revised RAK-3, 7)'!$D$19/1000000 -> 2.686716572 | GO28: =+'RAK-11 (Revised RAK-3, 7)'!$D$19/1000000 -> 2.686716572 | GP28: =+'RAK-11 (Revised RAK-3, 7)'!$D$19/1000000 -> 2.686716572 | GQ28: =+'RAK-11 (Revised RAK-3, 7)'!$D$19/1000000 -> 2.686716572 | GR28: =+'RAK-11 (Revised RAK-3, 7)'!$D$19/1000000 -> 2.686716572 | GS28: =+'RAK-11 (Revised RAK-3, 7)'!$D$19/1000000 -> 2.686716572 | GT28: =+'RAK-11 (Revised RAK-3, 7)'!$D$19/1000000 -> 2.686716572 | GU28: =+'RAK-11 (Revised RAK-3, 7)'!$D$19/1000000 -> 2.686716572 | GV28: =+'RAK-11 (Revised RAK-3, 7)'!$D$19/1000000 -> 2.686716572 | GW28: =+'RAK-11 (Revised RAK-3, 7)'!$D$19/1000000 -> 2.686716572 | GX28: =+'RAK-11 (Revised RAK-3, 7)'!$D$19/1000000 -> 2.686716572 | GY28: =+'RAK-11 (Revised RAK-3, 7)'!$D$19/1000000 -> 2.686716572 | GZ28: =+'RAK-11 (Revised RAK-3, 7)'!$D$19/1000000 -> 2.686716572 | HA28: =+'RAK-11 (Revised RAK-3, 7)'!$D$19/1000000 -> 2.686716572 | HB28: =+'RAK-11 (Revised RAK-3, 7)'!$D$19/1000000 -> 2.686716572 | HC28: =+'RAK-11 (Revised RAK-3, 7)'!$D$19/1000000 -> 2.686716572 | HD28: =+'RAK-11 (Revised RAK-3, 7)'!$D$19/1000000 -> 2.686716572 | HE28: =+'RAK-11 (Revised RAK-3, 7)'!$D$19/1000000 -> 2.686716572 | HF28: =+'RAK-11 (Revised RAK-3, 7)'!$D$19/1000000 -> 2.686716572 | HG28: =+'RAK-11 (Revised RAK-3, 7)'!$D$19/1000000 -> 2.686716572 | HH28: =+'RAK-11 (Revised RAK-3, 7)'!$D$19/1000000 -> 2.686716572 | HI28: =+'RAK-11 (Revised RAK-3, 7)'!$D$19/1000000 -> 2.686716572 | HJ28: =+'RAK-11 (Revised RAK-3, 7)'!$D$19/1000000 -> 2.686716572 | HN28: =SUM(E28:HM28) -> 475.5488332
B30: Net Present value | D30: =+NPV(D12/12,AP28:HM28) -> 334.6151421
B32: Payment with upfront and ongoing costs | AP32: =+'RAK-11 (Revised RAK-3, 7)'!$D$24/1000000 -> 2.731716572 | AQ32: =+'RAK-11 (Revised RAK-3, 7)'!$D$24/1000000 -> 2.731716572 | AR32: =+'RAK-11 (Revised RAK-3, 7)'!$D$24/1000000 -> 2.731716572 | AS32: =+'RAK-11 (Revised RAK-3, 7)'!$D$24/1000000 -> 2.731716572 | AT32: =+'RAK-11 (Revised RAK-3, 7)'!$D$24/1000000 -> 2.731716572 | AU32: =+'RAK-11 (Revised RAK-3, 7)'!$D$24/1000000 -> 2.731716572 | AV32: =+'RAK-11 (Revised RAK-3, 7)'!$D$24/1000000 -> 2.731716572 | AW32: =+'RAK-11 (Revised RAK-3, 7)'!$D$24/1000000 -> 2.731716572 | AX32: =+'RAK-11 (Revised RAK-3, 7)'!$D$24/1000000 -> 2.731716572 | AY32: =+'RAK-11 (Revised RAK-3, 7)'!$D$24/1000000 -> 2.731716572 | AZ32: =+'RAK-11 (Revised RAK-3, 7)'!$D$24/1000000 -> 2.731716572 | BA32: =+'RAK-11 (Revised RAK-3, 7)'!$D$24/1000000 -> 2.731716572 | BB32: =+'RAK-11 (Revised RAK-3, 7)'!$D$24/1000000 -> 2.731716572 | BC32: =+'RAK-11 (Revised RAK-3, 7)'!$D$24/1000000 -> 2.731716572 | BD32: =+'RAK-11 (Revised RAK-3, 7)'!$D$24/1000000 -> 2.731716572 | BE32: =+'RAK-11 (Revised RAK-3, 7)'!$D$24/1000000 -> 2.731716572 | BF32: =+'RAK-11 (Revised RAK-3, 7)'!$D$24/1000000 -> 2.731716572 | BG32: =+'RAK-11 (Revised RAK-3, 7)'!$D$24/1000000 -> 2.731716572 | BH32: =+'RAK-11 (Revised RAK-3, 7)'!$D$24/1000000 -> 2.731716572 | BI32: =+'RAK-11 (Revised RAK-3, 7)'!$D$24/1000000 -> 2.731716572 | BJ32: =+'RAK-11 (Revised RAK-3, 7)'!$D$24/1000000 -> 2.731716572 | BK32: =+'RAK-11 (Revised RAK-3, 7)'!$D$24/1000000 -> 2.731716572 | BL32: =+'RAK-11 (Revised RAK-3, 7)'!$D$24/1000000 -> 2.731716572 | BM32: =+'RAK-11 (Revised RAK-3, 7)'!$D$24/1000000 -> 2.731716572 | BN32: =+'RAK-11 (Revised RAK-3, 7)'!$D$24/1000000 -> 2.731716572 | BO32: =+'RAK-11 (Revised RAK-3, 7)'!$D$24/1000000 -> 2.731716572 | BP32: =+'RAK-11 (Revised RAK-3, 7)'!$D$24/1000000 -> 2.731716572 | BQ32: =+'RAK-11 (Revised RAK-3, 7)'!$D$24/1000000 -> 2.731716572 | BR32: =+'RAK-11 (Revised RAK-3, 7)'!$D$24/1000000 -> 2.731716572 | BS32: =+'RAK-11 (Revised RAK-3, 7)'!$D$24/1000000 -> 2.731716572 | BT32: =+'RAK-11 (Revised RAK-3, 7)'!$D$24/1000000 -> 2.731716572 | BU32: =+'RAK-11 (Revised RAK-3, 7)'!$D$24/1000000 -> 2.731716572 | BV32: =+'RAK-11 (Revised RAK-3, 7)'!$D$24/1000000 -> 2.731716572 | BW32: =+'RAK-11 (Revised RAK-3, 7)'!$D$24/1000000 -> 2.731716572 | BX32: =+'RAK-11 (Revised RAK-3, 7)'!$D$24/1000000 -> 2.731716572 | BY32: =+'RAK-11 (Revised RAK-3, 7)'!$D$24/1000000 -> 2.731716572 | BZ32: =+'RAK-11 (Revised RAK-3, 7)'!$D$24/1000000 -> 2.731716572 | CA32: =+'RAK-11 (Revised RAK-3, 7)'!$D$24/1000000 -> 2.731716572 | CB32: =+'RAK-11 (Revised RAK-3, 7)'!$D$24/1000000 -> 2.731716572 | CC32: =+'RAK-11 (Revised RAK-3, 7)'!$D$24/1000000 -> 2.731716572 | CD32: =+'RAK-11 (Revised RAK-3, 7)'!$D$24/1000000 -> 2.731716572 | CE32: =+'RAK-11 (Revised RAK-3, 7)'!$D$24/1000000 -> 2.731716572 | CF32: =+'RAK-11 (Revised RAK-3, 7)'!$D$24/1000000 -> 2.731716572 | CG32: =+'RAK-11 (Revised RAK-3, 7)'!$D$24/1000000 -> 2.731716572 | CH32: =+'RAK-11 (Revised RAK-3, 7)'!$D$24/1000000 -> 2.731716572 | CI32: =+'RAK-11 (Revised RAK-3, 7)'!$D$24/1000000 -> 2.731716572 | CJ32: =+'RAK-11 (Revised RAK-3, 7)'!$D$24/1000000 -> 2.731716572 | CK32: =+'RAK-11 (Revised RAK-3, 7)'!$D$24/1000000 -> 2.731716572 | CL32: =+'RAK-11 (Revised RAK-3, 7)'!$D$24/1000000 -> 2.731716572 | CM32: =+'RAK-11 (Revised RAK-3, 7)'!$D$24/1000000 -> 2.731716572 | CN32: =+'RAK-11 (Revised RAK-3, 7)'!$D$24/1000000 -> 2.731716572 | CO32: =+'RAK-11 (Revised RAK-3, 7)'!$D$24/1000000 -> 2.731716572 | CP32: =+'RAK-11 (Revised RAK-3, 7)'!$D$24/1000000 -> 2.731716572 | CQ32: =+'RAK-11 (Revised RAK-3, 7)'!$D$24/1000000 -> 2.731716572 | CR32: =+'RAK-11 (Revised RAK-3, 7)'!$D$24/1000000 -> 2.731716572 | CS32: =+'RAK-11 (Revised RAK-3, 7)'!$D$24/1000000 -> 2.731716572 | CT32: =+'RAK-11 (Revised RAK-3, 7)'!$D$24/1000000 -> 2.731716572 | CU32: =+'RAK-11 (Revised RAK-3, 7)'!$D$24/1000000 -> 2.731716572 | CV32: =+'RAK-11 (Revised RAK-3, 7)'!$D$24/1000000 -> 2.731716572 | CW32: =+'RAK-11 (Revised RAK-3, 7)'!$D$24/1000000 -> 2.731716572 | CX32: =+'RAK-11 (Revised RAK-3, 7)'!$D$24/1000000 -> 2.731716572 | CY32: =+'RAK-11 (Revised RAK-3, 7)'!$D$24/1000000 -> 2.731716572 | CZ32: =+'RAK-11 (Revised RAK-3, 7)'!$D$24/1000000 -> 2.731716572 | DA32: =+'RAK-11 (Revised RAK-3, 7)'!$D$24/1000000 -> 2.731716572 | DB32: =+'RAK-11 (Revised RAK-3, 7)'!$D$24/1000000 -> 2.731716572 | DC32: =+'RAK-11 (Revised RAK-3, 7)'!$D$24/1000000 -> 2.731716572 | DD32: =+'RAK-11 (Revised RAK-3, 7)'!$D$24/1000000 -> 2.731716572 | DE32: =+'RAK-11 (Revised RAK-3, 7)'!$D$24/1000000 -> 2.731716572 | DF32: =+'RAK-11 (Revised RAK-3, 7)'!$D$24/1000000 -> 2.731716572 | DG32: =+'RAK-11 (Revised RAK-3, 7)'!$D$24/1000000 -> 2.731716572 | DH32: =+'RAK-11 (Revised RAK-3, 7)'!$D$24/1000000 -> 2.731716572 | DI32: =+'RAK-11 (Revised RAK-3, 7)'!$D$24/1000000 -> 2.731716572 | DJ32: =+'RAK-11 (Revised RAK-3, 7)'!$D$24/1000000 -> 2.731716572 | DK32: =+'RAK-11 (Revised RAK-3, 7)'!$D$24/1000000 -> 2.731716572 | DL32: =+'RAK-11 (Revised RAK-3, 7)'!$D$24/1000000 -> 2.731716572 | DM32: =+'RAK-11 (Revised RAK-3, 7)'!$D$24/1000000 -> 2.731716572 | DN32: =+'RAK-11 (Revised RAK-3, 7)'!$D$24/1000000 -> 2.731716572 | DO32: =+'RAK-11 (Revised RAK-3, 7)'!$D$24/1000000 -> 2.731716572 | DP32: =+'RAK-11 (Revised RAK-3, 7)'!$D$24/1000000 -> 2.731716572 | DQ32: =+'RAK-11 (Revised RAK-3, 7)'!$D$24/1000000 -> 2.731716572 | DR32: =+'RAK-11 (Revised RAK-3, 7)'!$D$24/1000000 -> 2.731716572 | DS32: =+'RAK-11 (Revised RAK-3, 7)'!$D$24/1000000 -> 2.731716572 | DT32: =+'RAK-11 (Revised RAK-3, 7)'!$D$24/1000000 -> 2.731716572 | DU32: =+'RAK-11 (Revised RAK-3, 7)'!$D$24/1000000 -> 2.731716572 | DV32: =+'RAK-11 (Revised RAK-3, 7)'!$D$24/1000000 -> 2.731716572 | DW32: =+'RAK-11 (Revised RAK-3, 7)'!$D$24/1000000 -> 2.731716572 | DX32: =+'RAK-11 (Revised RAK-3, 7)'!$D$24/1000000 -> 2.731716572 | DY32: =+'RAK-11 (Revised RAK-3, 7)'!$D$24/1000000 -> 2.731716572 | DZ32: =+'RAK-11 (Revised RAK-3, 7)'!$D$24/1000000 -> 2.731716572 | EA32: =+'RAK-11 (Revised RAK-3, 7)'!$D$24/1000000 -> 2.731716572 | EB32: =+'RAK-11 (Revised RAK-3, 7)'!$D$24/1000000 -> 2.731716572 | EC32: =+'RAK-11 (Revised RAK-3, 7)'!$D$24/1000000 -> 2.731716572 | ED32: =+'RAK-11 (Revised RAK-3, 7)'!$D$24/1000000 -> 2.731716572 | EE32: =+'RAK-11 (Revised RAK-3, 7)'!$D$24/1000000 -> 2.731716572 | EF32: =+'RAK-11 (Revised RAK-3, 7)'!$D$24/1000000 -> 2.731716572 | EG32: =+'RAK-11 (Revised RAK-3, 7)'!$D$24/1000000 -> 2.731716572 | EH32: =+'RAK-11 (Revised RAK-3, 7)'!$D$24/1000000 -> 2.731716572 | EI32: =+'RAK-11 (Revised RAK-3, 7)'!$D$24/1000000 -> 2.731716572 | EJ32: =+'RAK-11 (Revised RAK-3, 7)'!$D$24/1000000 -> 2.731716572 | EK32: =+'RAK-11 (Revised RAK-3, 7)'!$D$24/1000000 -> 2.731716572 | EL32: =+'RAK-11 (Revised RAK-3, 7)'!$D$24/1000000 -> 2.731716572 | EM32: =+'RAK-11 (Revised RAK-3, 7)'!$D$24/1000000 -> 2.731716572 | EN32: =+'RAK-11 (Revised RAK-3, 7)'!$D$24/1000000 -> 2.731716572 | EO32: =+'RAK-11 (Revised RAK-3, 7)'!$D$24/1000000 -> 2.731716572 | EP32: =+'RAK-11 (Revised RAK-3, 7)'!$D$24/1000000 -> 2.731716572 | EQ32: =+'RAK-11 (Revised RAK-3, 7)'!$D$24/1000000 -> 2.731716572 | ER32: =+'RAK-11 (Revised RAK-3, 7)'!$D$24/1000000 -> 2.731716572 | ES32: =+'RAK-11 (Revised RAK-3, 7)'!$D$24/1000000 -> 2.731716572 | ET32: =+'RAK-11 (Revised RAK-3, 7)'!$D$24/1000000 -> 2.731716572 | EU32: =+'RAK-11 (Revised RAK-3, 7)'!$D$24/1000000 -> 2.731716572 | EV32: =+'RAK-11 (Revised RAK-3, 7)'!$D$24/1000000 -> 2.731716572 | EW32: =+'RAK-11 (Revised RAK-3, 7)'!$D$24/1000000 -> 2.731716572 | EX32: =+'RAK-11 (Revised RAK-3, 7)'!$D$24/1000000 -> 2.731716572 | EY32: =+'RAK-11 (Revised RAK-3, 7)'!$D$24/1000000 -> 2.731716572 | EZ32: =+'RAK-11 (Revised RAK-3, 7)'!$D$24/1000000 -> 2.731716572 | FA32: =+'RAK-11 (Revised RAK-3, 7)'!$D$24/1000000 -> 2.731716572 | FB32: =+'RAK-11 (Revised RAK-3, 7)'!$D$24/1000000 -> 2.731716572 | FC32: =+'RAK-11 (Revised RAK-3, 7)'!$D$24/1000000 -> 2.731716572 | FD32: =+'RAK-11 (Revised RAK-3, 7)'!$D$24/1000000 -> 2.731716572 | FE32: =+'RAK-11 (Revised RAK-3, 7)'!$D$24/1000000 -> 2.731716572 | FF32: =+'RAK-11 (Revised RAK-3, 7)'!$D$24/1000000 -> 2.731716572 | FG32: =+'RAK-11 (Revised RAK-3, 7)'!$D$24/1000000 -> 2.731716572 | FH32: =+'RAK-11 (Revised RAK-3, 7)'!$D$24/1000000 -> 2.731716572 | FI32: =+'RAK-11 (Revised RAK-3, 7)'!$D$24/1000000 -> 2.731716572 | FJ32: =+'RAK-11 (Revised RAK-3, 7)'!$D$24/1000000 -> 2.731716572 | FK32: =+'RAK-11 (Revised RAK-3, 7)'!$D$24/1000000 -> 2.731716572 | FL32: =+'RAK-11 (Revised RAK-3, 7)'!$D$24/1000000 -> 2.731716572 | FM32: =+'RAK-11 (Revised RAK-3, 7)'!$D$24/1000000 -> 2.731716572 | FN32: =+'RAK-11 (Revised RAK-3, 7)'!$D$24/1000000 -> 2.731716572 | FO32: =+'RAK-11 (Revised RAK-3, 7)'!$D$24/1000000 -> 2.731716572 | FP32: =+'RAK-11 (Revised RAK-3, 7)'!$D$24/1000000 -> 2.731716572 | FQ32: =+'RAK-11 (Revised RAK-3, 7)'!$D$24/1000000 -> 2.731716572 | FR32: =+'RAK-11 (Revised RAK-3, 7)'!$D$24/1000000 -> 2.731716572 | FS32: =+'RAK-11 (Revised RAK-3, 7)'!$D$24/1000000 -> 2.731716572 | FT32: =+'RAK-11 (Revised RAK-3, 7)'!$D$24/1000000 -> 2.731716572 | FU32: =+'RAK-11 (Revised RAK-3, 7)'!$D$24/1000000 -> 2.731716572 | FV32: =+'RAK-11 (Revised RAK-3, 7)'!$D$24/1000000 -> 2.731716572 | FW32: =+'RAK-11 (Revised RAK-3, 7)'!$D$24/1000000 -> 2.731716572 | FX32: =+'RAK-11 (Revised RAK-3, 7)'!$D$24/1000000 -> 2.731716572 | FY32: =+'RAK-11 (Revised RAK-3, 7)'!$D$24/1000000 -> 2.731716572 | FZ32: =+'RAK-11 (Revised RAK-3, 7)'!$D$24/1000000 -> 2.731716572 | GA32: =+'RAK-11 (Revised RAK-3, 7)'!$D$24/1000000 -> 2.731716572 | GB32: =+'RAK-11 (Revised RAK-3, 7)'!$D$24/1000000 -> 2.731716572 | GC32: =+'RAK-11 (Revised RAK-3, 7)'!$D$24/1000000 -> 2.731716572 | GD32: =+'RAK-11 (Revised RAK-3, 7)'!$D$24/1000000 -> 2.731716572 | GE32: =+'RAK-11 (Revised RAK-3, 7)'!$D$24/1000000 -> 2.731716572 | GF32: =+'RAK-11 (Revised RAK-3, 7)'!$D$24/1000000 -> 2.731716572 | GG32: =+'RAK-11 (Revised RAK-3, 7)'!$D$24/1000000 -> 2.731716572 | GH32: =+'RAK-11 (Revised RAK-3, 7)'!$D$24/1000000 -> 2.731716572 | GI32: =+'RAK-11 (Revised RAK-3, 7)'!$D$24/1000000 -> 2.731716572 | GJ32: =+'RAK-11 (Revised RAK-3, 7)'!$D$24/1000000 -> 2.731716572 | GK32: =+'RAK-11 (Revised RAK-3, 7)'!$D$24/1000000 -> 2.731716572 | GL32: =+'RAK-11 (Revised RAK-3, 7)'!$D$24/1000000 -> 2.731716572 | GM32: =+'RAK-11 (Revised RAK-3, 7)'!$D$24/1000000 -> 2.731716572 | GN32: =+'RAK-11 (Revised RAK-3, 7)'!$D$24/1000000 -> 2.731716572 | GO32: =+'RAK-11 (Revised RAK-3, 7)'!$D$24/1000000 -> 2.731716572 | GP32: =+'RAK-11 (Revised RAK-3, 7)'!$D$24/1000000 -> 2.731716572 | GQ32: =+'RAK-11 (Revised RAK-3, 7)'!$D$24/1000000 -> 2.731716572 | GR32: =+'RAK-11 (Revised RAK-3, 7)'!$D$24/1000000 -> 2.731716572 | GS32: =+'RAK-11 (Revised RAK-3, 7)'!$D$24/1000000 -> 2.731716572 | GT32: =+'RAK-11 (Revised RAK-3, 7)'!$D$24/1000000 -> 2.731716572 | GU32: =+'RAK-11 (Revised RAK-3, 7)'!$D$24/1000000 -> 2.731716572 | GV32: =+'RAK-11 (Revised RAK-3, 7)'!$D$24/1000000 -> 2.731716572 | GW32: =+'RAK-11 (Revised RAK-3, 7)'!$D$24/1000000 -> 2.731716572 | GX32: =+'RAK-11 (Revised RAK-3, 7)'!$D$24/1000000 -> 2.731716572 | GY32: =+'RAK-11 (Revised RAK-3, 7)'!$D$24/1000000 -> 2.731716572 | GZ32: =+'RAK-11 (Revised RAK-3, 7)'!$D$24/1000000 -> 2.731716572 | HA32: =+'RAK-11 (Revised RAK-3, 7)'!$D$24/1000000 -> 2.731716572 | HB32: =+'RAK-11 (Revised RAK-3, 7)'!$D$24/1000000 -> 2.731716572 | HC32: =+'RAK-11 (Revised RAK-3, 7)'!$D$24/1000000 -> 2.731716572 | HD32: =+'RAK-11 (Revised RAK-3, 7)'!$D$24/1000000 -> 2.731716572 | HE32: =+'RAK-11 (Revised RAK-3, 7)'!$D$24/1000000 -> 2.731716572 | HF32: =+'RAK-11 (Revised RAK-3, 7)'!$D$24/1000000 -> 2.731716572 | HG32: =+'RAK-11 (Revised RAK-3, 7)'!$D$24/1000000 -> 2.731716572 | HH32: =+'RAK-11 (Revised RAK-3, 7)'!$D$24/1000000 -> 2.731716572 | HI32: =+'RAK-11 (Revised RAK-3, 7)'!$D$24/1000000 -> 2.731716572 | HJ32: =+'RAK-11 (Revised RAK-3, 7)'!$D$24/1000000 -> 2.731716572 | HN32: =SUM(E32:HM32) -> 483.5138332
B34: NPV with upfront and ongoing costs | D34: =+NPV(D12/12,AP32:HM32) -> 340.2196341
B36: Jurisdictional Allocator ER-2018-0146 | D36: =+'RAK-10 (Revised RAK-2, 6)'!U20 -> 0.995956785 | E36: Avg Staff Allocator

Sheet MO West FAC Approach
B2: Analysis of February 2021 Winter Weather Event
B3: Evergy Missouri West
B4: In millions | D4: 2021-01-01 | E4: 2021-02-01 | F4: 2021-03-01 | G4: 2021-04-01 | H4: 2021-05-01 | I4: 2021-06-01 | J4: 2021-07-01 | K4: 2021-08-01 | L4: 2021-09-01 | M4: 2021-10-01 | N4: 2021-11-01 | O4: 2021-12-01 | P4: 2022-01-01 | Q4: 2022-02-01 | R4: 2022-03-01 | S4: 2022-04-01 | T4: 2022-05-01 | U4: 2022-06-01 | V4: 2022-07-01 | W4: 2022-08-01 | X4: 2022-09-01 | Y4: 2022-10-01 | Z4: 2022-11-01 | AA4: 2022-12-01 | AB4: 2023-01-01 | AC4: 2023-02-01 | AD4: 2023-03-01 | AE4: 2023-04-01 | AF4: 2023-05-01 | AG4: 2023-06-01 | AH4: 2023-07-01 | AI4: 2023-08-01 | AJ4: 2023-09-01 | AK4: 2023-10-01 | AL4: 2023-11-01 | AM4: 2023-12-01 | AN4: 2024-01-01 | AO4: 2024-02-01 | AP4: 2024-03-01 | AQ4: 2024-04-01 | AR4: 2024-05-01 | AS4: 2024-06-01 | AT4: 2024-07-01 | AU4: 2024-08-01 | AV4: 2024-09-01 | AW4: 2024-10-01 | AX4: 2024-11-01 | AY4: 2024-12-02 | AZ4: 2025-01-01 | BA4: 2025-02-01 | BB4: 2025-03-01 | BC4: 2025-04-01 | BD4: 2025-05-01 | BE4: 2025-06-01 | BF4: 2025-07-01 | BG4: 2025-08-01 | BH4: 2025-09-01 | BI4: 2025-10-01 | BJ4: 2025-11-01 | BK4: 2025-12-01 | BL4: 2026-01-01 | BM4: 2026-02-01 | BN4: 2026-03-01 | BO4: 2026-04-01 | BP4: 2026-05-01 | BQ4: 2026-06-01 | BR4: 2026-07-01 | BS4: 2026-08-01 | BT4: 2026-09-01 | BU4: 2026-10-01 | BV4: 2026-11-01 | BW4: 2026-12-01 | BX4: 2027-01-01 | BY4: 2027-02-01 | BZ4: 2027-03-01 | CA4: 2027-04-01 | CB4: 2027-05-01 | CC4: 2027-06-01 | CD4: 2027-07-01 | CE4: 2027-08-01 | CF4: 2027-09-01 | CG4: 2027-10-01 | CH4: 2027-11-01 | CI4: 2027-12-01 | CJ4: 2028-01-01 | CK4: 2028-02-01 | CL4: 2028-03-01 | CM4: 2028-04-01 | CN4: 2028-05-11 | CO4: 2028-06-01 | CP4: 2028-07-01 | CQ4: 2028-08-01 | CR4: 2028-09-01 | CS4: 2028-10-01 | CT4: 2028-11-01 | CU4: 2028-12-01 | CV4: 2029-01-01 | CW4: 2029-02-01 | CX4: 2029-03-01 | CY4: 2029-04-01 | CZ4: 2029-05-01 | DA4: 2029-06-01 | DB4: 2029-07-01 | DC4: 2029-08-01 | DD4: 2029-09-01 | DE4: 2029-10-01 | DF4: 2029-11-01 | DG4: 2029-12-01 | DH4: 2030-01-01 | DI4: 2030-02-01 | DJ4: 2030-03-01 | DK4: 2030-04-01 | DL4: 2030-05-01 | DM4: 2030-06-01 | DN4: 2030-07-01 | DO4: 2030-08-01 | DP4: 2030-09-01 | DQ4: 2030-10-01 | DR4: 2030-11-01 | DS4: 2030-12-01 | DT4: 2031-01-01 | DU4: 2031-02-01 | DV4: 2031-03-01 | DW4: 2031-04-01 | DX4: 2031-05-01 | DY4: 2031-06-01 | DZ4: 2031-07-01 | EA4: 2031-08-01 | EB4: 2031-09-01 | EC4: 2031-10-01 | ED4: 2031-11-01 | EE4: 2031-12-01 | EF4: 2032-01-01 | EG4: 2032-02-01 | EH4: 2032-03-01 | EI4: 2032-04-01 | EJ4: 2032-05-01 | EK4: 2032-06-01 | EL4: 2032-07-01 | EM4: 2032-08-01 | EN4: 2032-09-01 | EO4: 2032-10-01 | EP4: 2032-11-01 | EQ4: 2032-12-01 | ER4: 2033-01-01 | ES4: 2033-02-01 | ET4: 2033-03-01 | EU4: 2033-04-01 | EV4: 2033-05-01 | EW4: 2033-06-01 | EX4: 2033-07-01 | EY4: 2033-08-01 | EZ4: 2033-09-01 | FA4: 2033-10-01 | FB4: 2033-11-01 | FC4: 2033-12-01 | FD4: 2034-01-01 | FE4: 2034-02-01 | FF4: 2034-03-01 | FG4: 2034-04-01 | FH4: 2034-05-01 | FI4: 2034-06-01 | FJ4: 2034-07-01 | FK4: 2034-08-01 | FL4: 2034-09-01 | FM4: 2034-10-01 | FN4: 2034-11-01 | FO4: 2034-12-01 | FP4: 2035-01-01 | FQ4: 2035-02-01 | FR4: 2035-03-01 | FS4: 2035-04-01 | FT4: 2035-05-01 | FU4: 2035-06-01 | FV4: 2035-07-01 | FW4: 2035-08-01 | FX4: 2035-09-01 | FY4: 2035-10-01 | FZ4: 2035-11-01 | GA4: 2035-12-01 | GB4: 2036-01-01 | GC4: 2036-02-01 | GD4: 2036-03-01 | GE4: 2036-04-01 | GF4: 2036-05-01 | GG4: 2036-06-01 | GH4: 2036-07-01 | GI4: 2036-08-01 | GJ4: 2036-09-01 | GK4: 2036-10-01 | GL4: 2036-11-01 | GM4: 2036-12-01 | GN4: 2037-01-01 | GO4: 2037-02-12 | GP4: 2037-03-01 | GQ4: 2037-04-01 | GR4: 2037-05-01 | GS4: 2037-06-01 | GT4: 2037-07-01 | GU4: 2037-08-01 | GV4: 2037-09-01 | GW4: 2037-10-01 | GX4: 2037-11-01 | GY4: 2037-12-01 | GZ4: 2038-01-01 | HA4: 2038-02-12 | HB4: 2038-03-01 | HC4: 2038-04-01 | HD4: 2038-05-01 | HE4: 2038-06-01 | HF4: 2038-07-01 | HG4: 2038-08-01 | HH4: 2038-09-01 | HI4: 2038-10-01 | HJ4: 2038-11-01 | HK4: 2038-12-01 | HL4: 2039-01-01 | HM4: 2039-02-01 | HN4: 2039-03-01 | HO4: 2039-04-01 | HP4: 2039-05-01 | HQ4: 2039-06-01 | HR4: 2039-07-01 | HS4: 2039-08-01 | HT4: 2039-09-01 | HU4: 2039-10-01 | HV4: 2039-11-01 | HW4: 2039-12-01 | HX4: 2040-01-01 | HY4: 2040-02-01 | HZ4: 2040-03-01 | IA4: 2040-04-01 | IB4: 2040-05-01 | IC4: 2040-06-01 | ID4: 2040-07-01 | IE4: 2040-08-01 | IF4: 2040-09-01 | IG4: 2040-10-01 | IH4: 2040-11-01 | II4: 2040-12-01 | IJ4: 2041-01-01 | IK4: 2041-02-01 | IL4: 2041-03-01 | IM4: 2041-04-01 | IN4: 2041-05-01 | IO4: 2041-06-01 | IP4: 2041-07-01 | IQ4: 2041-08-01 | IR4: 2041-09-01 | IS4: 2041-10-01 | IT4: 2041-11-01 | IU4: 2041-12-01 | IV4: 2042-01-01 | IW4: 2042-02-01 | IX4: 2042-03-01 | IY4: 2042-04-01 | IZ4: 2042-05-01 | JA4: 2042-06-01 | JB4: 2042-07-01 | JC4: 2042-08-01 | JD4: 2042-09-01 | JE4: 2042-10-01 | JF4: 2042-11-01 | JG4: 2042-12-01 | JH4: 2043-01-01 | JI4: 2043-02-01 | JJ4: 2043-03-01 | JK4: 2043-04-01 | JL4: 2043-05-01 | JM4: 2043-06-01 | JN4: 2043-07-01 | JO4: 2043-08-01 | JP4: 2043-09-01 | JQ4: 2043-10-01 | JR4: 2043-11-01 | JS4: 2043-12-01 | JT4: Total
A5: =ROW() -> 5 | B5: Scenario 3 - Outlook
A7: =ROW() -> 7 | B7: Recovery Begins | D7: 2024-01-01 | E7: 2023-01-01 | F7: 2023-01-01 | G7: 2023-01-01 | H7: 2023-01-01 | I7: 2023-01-01 | J7: 2023-01-01 | K7: 2023-01-01 | L7: 2023-01-01 | M7: 2023-01-01 | N7: 2023-01-01 | O7: 2023-01-01 | P7: 2023-01-01 | Q7: 2023-01-01 | R7: 2023-01-01 | S7: 2023-01-01 | T7: 2023-01-01 | U7: 2023-01-01 | V7: 2023-01-01 | W7: 2023-01-01 | X7: 2023-01-01 | Y7: 2023-01-01 | Z7: 2023-01-01 | AA7: 2023-01-01 | AB7: 2023-01-01 | AC7: 2023-01-01 | AD7: 2023-01-01 | AE7: 2023-01-01 | AF7: 2023-01-01 | AG7: 2023-01-01 | AH7: 2023-01-01 | AI7: 2023-01-01 | AJ7: 2023-01-01 | AK7: 2023-01-01 | AL7: 2023-01-01 | AM7: 2023-01-01 | AN7: 2023-01-01 | AO7: 2023-01-01 | AP7: 2023-01-01 | AQ7: 2023-01-01 | AR7: 2023-01-01 | AS7: 2023-01-01 | AT7: 2023-01-01 | AU7: 2023-01-01 | AV7: 2023-01-01 | AW7: 2023-01-01 | AX7: 2023-01-01 | AY7: 2023-01-01 | AZ7: 2023-01-01 | BA7: 2023-01-01 | BB7: 2023-01-01 | BC7: 2023-01-01 | BD7: 2023-01-01 | BE7: 2023-01-01 | BF7: 2023-01-01 | BG7: 2023-01-01 | BH7: 2023-01-01 | BI7: 2023-01-01 | BJ7: 2023-01-01 | BK7: 2023-01-01 | BL7: 2023-01-01 | BM7: 2023-01-01 | BN7: 2023-01-01 | BO7: 2023-01-01 | BP7: 2023-01-01 | BQ7: 2023-01-01 | BR7: 2023-01-01 | BS7: 2023-01-01 | BT7: 2023-01-01 | BU7: 2023-01-01 | BV7: 2023-01-01 | BW7: 2023-01-01 | BX7: 2023-01-01 | BY7: 2023-01-01 | BZ7: 2023-01-01 | CA7: 2023-01-01 | CB7: 2023-01-01 | CC7: 2023-01-01 | CD7: 2023-01-01 | CE7: 2023-01-01 | CF7: 2023-01-01 | CG7: 2023-01-01 | CH7: 2023-01-01 | CI7: 2023-01-01 | CJ7: 2023-01-01 | CK7: 2023-01-01 | CL7: 2023-01-01 | CM7: 2023-01-01 | CN7: 2023-01-01 | CO7: 2023-01-01 | CP7: 2023-01-01 | CQ7: 2023-01-01 | CR7: 2023-01-01 | CS7: 2023-01-01 | CT7: 2023-01-01 | CU7: 2023-01-01 | CV7: 2023-01-01 | CW7: 2023-01-01 | CX7: 2023-01-01 | CY7: 2023-01-01 | CZ7: 2023-01-01 | DA7: 2023-01-01 | DB7: 2023-01-01 | DC7: 2023-01-01 | DD7: 2023-01-01 | DE7: 2023-01-01 | DF7: 2023-01-01 | DG7: 2023-01-01 | DH7: 2023-01-01 | DI7: 2023-01-01 | DJ7: 2023-01-01 | DK7: 2023-01-01 | DL7: 2023-01-01 | DM7: 2023-01-01 | DN7: 2023-01-01 | DO7: 2023-01-01 | DP7: 2023-01-01 | DQ7: 2023-01-01 | DR7: 2023-01-01 | DS7: 2023-01-01 | DT7: 2023-01-01 | DU7: 2023-01-01 | DV7: 2023-01-01 | DW7: 2023-01-01 | DX7: 2023-01-01 | DY7: 2023-01-01 | DZ7: 2023-01-01 | EA7: 2023-01-01 | EB7: 2023-01-01 | EC7: 2023-01-01 | ED7: 2023-01-01 | EE7: 2023-01-01 | EF7: 2023-01-01 | EG7: 2023-01-01 | EH7: 2023-01-01 | EI7: 2023-01-01 | EJ7: 2023-01-01 | EK7: 2023-01-01 | EL7: 2023-01-01 | EM7: 2023-01-01 | EN7: 2023-01-01 | EO7: 2023-01-01 | EP7: 2023-01-01 | EQ7: 2023-01-01 | ER7: 2023-01-01 | ES7: 2023-01-01 | ET7: 2023-01-01 | EU7: 2023-01-01 | EV7: 2023-01-01 | EW7: 2023-01-01 | EX7: 2023-01-01 | EY7: 2023-01-01 | EZ7: 2023-01-01 | FA7: 2023-01-01 | FB7: 2023-01-01 | FC7: 2023-01-01 | FD7: 2023-01-01 | FE7: 2023-01-01 | FF7: 2023-01-01 | FG7: 2023-01-01 | FH7: 2023-01-01 | FI7: 2023-01-01 | FJ7: 2023-01-01 | FK7: 2023-01-01 | FL7: 2023-01-01 | FM7: 2023-01-01 | FN7: 2023-01-01 | FO7: 2023-01-01 | FP7: 2023-01-01 | FQ7: 2023-01-01 | FR7: 2023-01-01 | FS7: 2023-01-01 | FT7: 2023-01-01 | FU7: 2023-01-01 | FV7: 2023-01-01 | FW7: 2023-01-01 | FX7: 2023-01-01 | FY7: 2023-01-01 | FZ7: 2023-01-01 | GA7: 2023-01-01 | GB7: 2023-01-01 | GC7: 2023-01-01 | GD7: 2023-01-01 | GE7: 2023-01-01 | GF7: 2023-01-01 | GG7: 2023-01-01 | GH7: 2023-01-01 | GI7: 2023-01-01 | GJ7: 2023-01-01 | GK7: 2023-01-01 | GL7: 2023-01-01 | GM7: 2023-01-01 | GN7: 2023-01-01 | GO7: 2023-01-01 | GP7: 2023-01-01 | GQ7: 2023-01-01 | GR7: 2023-01-01 | GS7: 2023-01-01 | GT7: 2023-01-01 | GU7: 2023-01-01 | GV7: 2023-01-01 | GW7: 2023-01-01 | GX7: 2023-01-01 | GY7: 2023-01-01 | GZ7: 2023-01-01 | HA7: 2023-01-01 | HB7: 2023-01-01 | HC7: 2023-01-01 | HD7: 2023-01-01 | HE7: 2023-01-01 | HF7: 2023-01-01 | HG7: 2023-01-01 | HH7: 2023-01-01 | HI7: 2023-01-01 | HJ7: 2023-01-01 | HK7: 2023-01-01 | HL7: 2023-01-01 | HM7: 2023-01-01 | HN7: 2023-01-01 | HO7: 2023-01-01 | HP7: 2023-01-01 | HQ7: 2023-01-01 | HR7: 2023-01-01 | HS7: 2023-01-01 | HT7: 2023-01-01 | HU7: 2023-01-01 | HV7: 2023-01-01 | HW7: 2023-01-01 | HX7: 2023-01-01 | HY7: 2023-01-01 | HZ7: 2023-01-01 | IA7: 2023-01-01 | IB7: 2023-01-01 | IC7: 2023-01-01 | ID7: 2023-01-01 | IE7: 2023-01-01 | IF7: 2023-01-01 | IG7: 2023-01-01 | IH7: 2023-01-01 | II7: 2023-01-01 | IJ7: 2023-01-01 | IK7: 2023-01-01 | IL7: 2023-01-01 | IM7: 2023-01-01 | IN7: 2023-01-01 | IO7: 2023-01-01 | IP7: 2023-01-01 | IQ7: 2023-01-01 | IR7: 2023-01-01 | IS7: 2023-01-01 | IT7: 2023-01-01 | IU7: 2023-01-01 | IV7: 2023-01-01 | IW7: 2023-01-01 | IX7: 2023-01-01 | IY7: 2023-01-01 | IZ7: 2023-01-01 | JA7: 2023-01-01 | JB7: 2023-01-01 | JC7: 2023-01-01 | JD7: 2023-01-01 | JE7: 2023-01-01 | JF7: 2023-01-01 | JG7: 2023-01-01 | JH7: 2023-01-01 | JI7: 2023-01-01 | JJ7: 2023-01-01 | JK7: 2023-01-01 | JL7: 2023-01-01 | JM7: 2023-01-01 | JN7: 2023-01-01 | JO7: 2023-01-01 | JP7: 2023-01-01 | JQ7: 2023-01-01 | JR7: 2023-01-01 | JS7: 2023-01-01
A8: =ROW() -> 8 | B8: Recovery Period (Years) | D8: =+'RAK-12 (Revised RAK-4, 8)'!E15 -> 20
A9: =ROW() -> 9 | B9: Recovery Ends | D9: =EOMONTH(D7,D8*12-1)+1 -> 2044-01-01 | E9: =D9 -> 2044-01-01 | F9: =E9 -> 2044-01-01 | G9: 2044-01-01 | H9: 2044-01-01 | I9: 2044-01-01 | J9: 2044-01-01 | K9: 2044-01-01 | L9: 2044-01-01 | M9: 2044-01-01 | N9: 2044-01-01 | O9: 2044-01-01 | P9: 2044-01-01 | Q9: 2044-01-01 | R9: 2044-01-01 | S9: 2044-01-01 | T9: 2044-01-01 | U9: 2044-01-01 | V9: 2044-01-01 | W9: 2044-01-01 | X9: 2044-01-01 | Y9: 2044-01-01 | Z9: 2044-01-01 | AA9: 2044-01-01 | AB9: 2044-01-01 | AC9: 2044-01-01 | AD9: 2044-01-01 | AE9: 2044-01-01 | AF9: 2044-01-01 | AG9: 2044-01-01 | AH9: 2044-01-01 | AI9: 2044-01-01 | AJ9: 2044-01-01 | AK9: 2044-01-01 | AL9: 2044-01-01 | AM9: 2044-01-01 | AN9: 2044-01-01 | AO9: 2044-01-01 | AP9: 2044-01-01 | AQ9: 2044-01-01 | AR9: 2044-01-01 | AS9: 2044-01-01 | AT9: 2044-01-01 | AU9: 2044-01-01 | AV9: 2044-01-01 | AW9: 2044-01-01 | AX9: 2044-01-01 | AY9: 2044-01-01 | AZ9: 2044-01-01 | BA9: 2044-01-01 | BB9: 2044-01-01 | BC9: 2044-01-01 | BD9: 2044-01-01 | BE9: 2044-01-01 | BF9: 2044-01-01 | BG9: 2044-01-01 | BH9: 2044-01-01 | BI9: 2044-01-01 | BJ9: 2044-01-01 | BK9: 2044-01-01 | BL9: 2044-01-01 | BM9: 2044-01-01 | BN9: 2044-01-01 | BO9: 2044-01-01 | BP9: 2044-01-01 | BQ9: 2044-01-01 | BR9: =BQ9 -> 2044-01-01 | BS9: 2044-01-01 | BT9: 2044-01-01 | BU9: 2044-01-01 | BV9: 2044-01-01 | BW9: 2044-01-01 | BX9: 2044-01-01 | BY9: 2044-01-01 | BZ9: 2044-01-01 | CA9: 2044-01-01 | CB9: 2044-01-01 | CC9: 2044-01-01 | CD9: 2044-01-01 | CE9: 2044-01-01 | CF9: 2044-01-01 | CG9: 2044-01-01 | CH9: 2044-01-01 | CI9: 2044-01-01 | CJ9: 2044-01-01 | CK9: 2044-01-01 | CL9: 2044-01-01 | CM9: 2044-01-01 | CN9: 2044-01-01 | CO9: 2044-01-01 | CP9: 2044-01-01 | CQ9: 2044-01-01 | CR9: 2044-01-01 | CS9: 2044-01-01 | CT9: 2044-01-01 | CU9: 2044-01-01 | CV9: 2044-01-01 | CW9: 2044-01-01 | CX9: 2044-01-01 | CY9: 2044-01-01 | CZ9: 2044-01-01 | DA9: 2044-01-01 | DB9: 2044-01-01 | DC9: 2044-01-01 | DD9: 2044-01-01 | DE9: 2044-01-01 | DF9: 2044-01-01 | DG9: 2044-01-01 | DH9: 2044-01-01 | DI9: 2044-01-01 | DJ9: 2044-01-01 | DK9: 2044-01-01 | DL9: 2044-01-01 | DM9: 2044-01-01 | DN9: 2044-01-01 | DO9: 2044-01-01 | DP9: 2044-01-01 | DQ9: 2044-01-01 | DR9: 2044-01-01 | DS9: 2044-01-01 | DT9: 2044-01-01 | DU9: 2044-01-01 | DV9: 2044-01-01 | DW9: 2044-01-01 | DX9: 2044-01-01 | DY9: 2044-01-01 | DZ9: 2044-01-01 | EA9: 2044-01-01 | EB9: 2044-01-01 | EC9: 2044-01-01 | ED9: =EC9 -> 2044-01-01 | EE9: 2044-01-01 | EF9: 2044-01-01 | EG9: 2044-01-01 | EH9: 2044-01-01 | EI9: 2044-01-01 | EJ9: 2044-01-01 | EK9: 2044-01-01 | EL9: 2044-01-01 | EM9: 2044-01-01 | EN9: 2044-01-01 | EO9: 2044-01-01 | EP9: 2044-01-01 | EQ9: 2044-01-01 | ER9: 2044-01-01 | ES9: 2044-01-01 | ET9: 2044-01-01 | EU9: 2044-01-01 | EV9: 2044-01-01 | EW9: 2044-01-01 | EX9: 2044-01-01 | EY9: 2044-01-01 | EZ9: 2044-01-01 | FA9: 2044-01-01 | FB9: 2044-01-01 | FC9: 2044-01-01 | FD9: 2044-01-01 | FE9: 2044-01-01 | FF9: 2044-01-01 | FG9: 2044-01-01 | FH9: 2044-01-01 | FI9: 2044-01-01 | FJ9: 2044-01-01 | FK9: 2044-01-01 | FL9: 2044-01-01 | FM9: 2044-01-01 | FN9: 2044-01-01 | FO9: 2044-01-01 | FP9: 2044-01-01 | FQ9: 2044-01-01 | FR9: 2044-01-01 | FS9: 2044-01-01 | FT9: 2044-01-01 | FU9: 2044-01-01 | FV9: 2044-01-01 | FW9: 2044-01-01 | FX9: 2044-01-01 | FY9: 2044-01-01 | FZ9: 2044-01-01 | GA9: 2044-01-01 | GB9: 2044-01-01 | GC9: 2044-01-01 | GD9: 2044-01-01 | GE9: 2044-01-01 | GF9: 2044-01-01 | GG9: 2044-01-01 | GH9: 2044-01-01 | GI9: 2044-01-01 | GJ9: 2044-01-01 | GK9: 2044-01-01 | GL9: 2044-01-01 | GM9: 2044-01-01 | GN9: 2044-01-01 | GO9: 2044-01-01 | GP9: =GO9 -> 2044-01-01 | GQ9: 2044-01-01 | GR9: 2044-01-01 | GS9: 2044-01-01 | GT9: 2044-01-01 | GU9: 2044-01-01 | GV9: 2044-01-01 | GW9: 2044-01-01 | GX9: 2044-01-01 | GY9: 2044-01-01 | GZ9: =GY9 -> 2044-01-01 | HA9: 2044-01-01 | HB9: 2044-01-01 | HC9: 2044-01-01 | HD9: 2044-01-01 | HE9: 2044-01-01 | HF9: 2044-01-01 | HG9: 2044-01-01 | HH9: 2044-01-01 | HI9: 2044-01-01 | HJ9: 2044-01-01 | HK9: 2044-01-01 | HL9: 2044-01-01 | HM9: 2044-01-01 | HN9: 2044-01-01 | HO9: 2044-01-01 | HP9: 2044-01-01 | HQ9: 2044-01-01 | HR9: 2044-01-01 | HS9: 2044-01-01 | HT9: 2044-01-01 | HU9: 2044-01-01 | HV9: 2044-01-01 | HW9: 2044-01-01 | HX9: 2044-01-01 | HY9: 2044-01-01 | HZ9: 2044-01-01 | IA9: 2044-01-01 | IB9: 2044-01-01 | IC9: 2044-01-01 | ID9: 2044-01-01 | IE9: 2044-01-01 | IF9: =IE9 -> 2044-01-01 | IG9: 2044-01-01 | IH9: 2044-01-01 | II9: 2044-01-01 | IJ9: 2044-01-01 | IK9: 2044-01-01 | IL9: 2044-01-01 | IM9: 2044-01-01 | IN9: 2044-01-01 | IO9: 2044-01-01 | IP9: 2044-01-01 | IQ9: 2044-01-01 | IR9: 2044-01-01 | IS9: 2044-01-01 | IT9: 2044-01-01 | IU9: 2044-01-01 | IV9: 2044-01-01 | IW9: 2044-01-01 | IX9: 2044-01-01 | IY9: 2044-01-01 | IZ9: 2044-01-01 | JA9: 2044-01-01 | JB9: 2044-01-01 | JC9: 2044-01-01 | JD9: 2044-01-01 | JE9: 2044-01-01 | JF9: 2044-01-01 | JG9: 2044-01-01 | JH9: =JG9 -> 2044-01-01 | JI9: =JH9 -> 2044-01-01 | JJ9: =JI9 -> 2044-01-01 | JK9: =JJ9 -> 2044-01-01 | JL9: =JK9 -> 2044-01-01 | JM9: =JL9 -> 2044-01-01 | JN9: =JM9 -> 2044-01-01 | JO9: =JN9 -> 2044-01-01 | JP9: =JO9 -> 2044-01-01 | JQ9: =JP9 -> 2044-01-01 | JR9: =JQ9 -> 2044-01-01 | JS9: =JR9 -> 2044-01-01
A10: =ROW() -> 10
A11: =ROW() -> 11 | B11: Debt Ratio | D11: 0.4825 | E11: =+$D$11 -> 0.4825 | F11: =+$D$11 -> 0.4825 | G11: 0.4825 | H11: 0.4825 | I11: 0.4825 | J11: 0.4825 | K11: 0.4825 | L11: 0.4825 | M11: 0.4825 | N11: 0.4825 | O11: 0.4825 | P11: 0.4825 | Q11: 0.4825 | R11: 0.4825 | S11: 0.4825 | T11: 0.4825 | U11: 0.4825 | V11: 0.4825 | W11: 0.4825 | X11: 0.4825 | Y11: 0.4825 | Z11: 0.4825 | AA11: 0.4825 | AB11: 0.4825 | AC11: 0.4825 | AD11: 0.4825 | AE11: 0.4825 | AF11: 0.4825 | AG11: 0.4825 | AH11: 0.4825 | AI11: 0.4825 | AJ11: 0.4825 | AK11: 0.4825 | AL11: 0.4825 | AM11: 0.4825 | AN11: 0.4825 | AO11: 0.4825 | AP11: 0.4825 | AQ11: 0.4825 | AR11: 0.4825 | AS11: 0.4825 | AT11: 0.4825 | AU11: 0.4825 | AV11: 0.4825 | AW11: 0.4825 | AX11: 0.4825 | AY11: 0.4825 | AZ11: 0.4825 | BA11: 0.4825 | BB11: 0.4825 | BC11: 0.4825 | BD11: 0.4825 | BE11: 0.4825 | BF11: 0.4825 | BG11: 0.4825 | BH11: 0.4825 | BI11: 0.4825 | BJ11: 0.4825 | BK11: 0.4825 | BL11: 0.4825 | BM11: 0.4825 | BN11: 0.4825 | BO11: 0.4825 | BP11: 0.4825 | BQ11: 0.4825 | BR11: =+$D$11 -> 0.4825 | BS11: 0.4825 | BT11: 0.4825 | BU11: 0.4825 | BV11: 0.4825 | BW11: 0.4825 | BX11: 0.4825 | BY11: 0.4825 | BZ11: 0.4825 | CA11: 0.4825 | CB11: 0.4825 | CC11: 0.4825 | CD11: 0.4825 | CE11: 0.4825 | CF11: 0.4825 | CG11: 0.4825 | CH11: 0.4825 | CI11: 0.4825 | CJ11: 0.4825 | CK11: 0.4825 | CL11: 0.4825 | CM11: 0.4825 | CN11: 0.4825 | CO11: 0.4825 | CP11: 0.4825 | CQ11: 0.4825 | CR11: 0.4825 | CS11: 0.4825 | CT11: 0.4825 | CU11: 0.4825 | CV11: 0.4825 | CW11: 0.4825 | CX11: 0.4825 | CY11: 0.4825 | CZ11: 0.4825 | DA11: 0.4825 | DB11: 0.4825 | DC11: 0.4825 | DD11: 0.4825 | DE11: 0.4825 | DF11: 0.4825 | DG11: 0.4825 | DH11: 0.4825 | DI11: 0.4825 | DJ11: 0.4825 | DK11: 0.4825 | DL11: 0.4825 | DM11: 0.4825 | DN11: 0.4825 | DO11: 0.4825 | DP11: 0.4825 | DQ11: 0.4825 | DR11: 0.4825 | DS11: 0.4825 | DT11: 0.4825 | DU11: 0.4825 | DV11: 0.4825 | DW11: 0.4825 | DX11: 0.4825 | DY11: 0.4825 | DZ11: 0.4825 | EA11: 0.4825 | EB11: 0.4825 | EC11: 0.4825 | ED11: =+$D$11 -> 0.4825 | EE11: 0.4825 | EF11: 0.4825 | EG11: 0.4825 | EH11: 0.4825 | EI11: 0.4825 | EJ11: 0.4825 | EK11: 0.4825 | EL11: 0.4825 | EM11: 0.4825 | EN11: 0.4825 | EO11: 0.4825 | EP11: 0.4825 | EQ11: 0.4825 | ER11: 0.4825 | ES11: 0.4825 | ET11: 0.4825 | EU11: 0.4825 | EV11: 0.4825 | EW11: 0.4825 | EX11: 0.4825 | EY11: 0.4825 | EZ11: 0.4825 | FA11: 0.4825 | FB11: 0.4825 | FC11: 0.4825 | FD11: 0.4825 | FE11: 0.4825 | FF11: 0.4825 | FG11: 0.4825 | FH11: 0.4825 | FI11: 0.4825 | FJ11: 0.4825 | FK11: 0.4825 | FL11: 0.4825 | FM11: 0.4825 | FN11: 0.4825 | FO11: 0.4825 | FP11: 0.4825 | FQ11: 0.4825 | FR11: 0.4825 | FS11: 0.4825 | FT11: 0.4825 | FU11: 0.4825 | FV11: 0.4825 | FW11: 0.4825 | FX11: 0.4825 | FY11: 0.4825 | FZ11: 0.4825 | GA11: 0.4825 | GB11: 0.4825 | GC11: 0.4825 | GD11: 0.4825 | GE11: 0.4825 | GF11: 0.4825 | GG11: 0.4825 | GH11: 0.4825 | GI11: 0.4825 | GJ11: 0.4825 | GK11: 0.4825 | GL11: 0.4825 | GM11: 0.4825 | GN11: 0.4825 | GO11: 0.4825 | GP11: =+$D$11 -> 0.4825 | GQ11: 0.4825 | GR11: 0.4825 | GS11: 0.4825 | GT11: 0.4825 | GU11: 0.4825 | GV11: 0.4825 | GW11: 0.4825 | GX11: 0.4825 | GY11: 0.4825 | GZ11: 0.4825 | HA11: 0.4825 | HB11: 0.4825 | HC11: 0.4825 | HD11: 0.4825 | HE11: 0.4825 | HF11: 0.4825 | HG11: 0.4825 | HH11: 0.4825 | HI11: 0.4825 | HJ11: 0.4825 | HK11: 0.4825 | HL11: 0.4825 | HM11: 0.4825 | HN11: 0.4825 | HO11: 0.4825 | HP11: 0.4825 | HQ11: 0.4825 | HR11: 0.4825 | HS11: 0.4825 | HT11: 0.4825 | HU11: 0.4825 | HV11: 0.4825 | HW11: 0.4825 | HX11: 0.4825 | HY11: 0.4825 | HZ11: 0.4825 | IA11: 0.4825 | IB11: 0.4825 | IC11: 0.4825 | ID11: 0.4825 | IE11: 0.4825 | IF11: 0.4825 | IG11: 0.4825 | IH11: 0.4825 | II11: 0.4825 | IJ11: 0.4825 | IK11: 0.4825 | IL11: 0.4825 | IM11: 0.4825 | IN11: 0.4825 | IO11: 0.4825 | IP11: 0.4825 | IQ11: 0.4825 | IR11: 0.4825 | IS11: 0.4825 | IT11: 0.4825 | IU11: 0.4825 | IV11: 0.4825 | IW11: 0.4825 | IX11: 0.4825 | IY11: 0.4825 | IZ11: 0.4825 | JA11: 0.4825 | JB11: =+$D$11 -> 0.4825 | JC11: 0.4825 | JD11: 0.4825 | JE11: 0.4825 | JF11: 0.4825 | JG11: 0.4825 | JH11: 0.4825 | JI11: 0.4825 | JJ11: 0.4825 | JK11: 0.4825 | JL11: 0.4825 | JM11: 0.4825 | JN11: 0.4825 | JO11: 0.4825 | JP11: 0.4825 | JQ11: 0.4825 | JR11: 0.4825 | JS11: 0.4825
A12: =ROW() -> 12 | B12: Debt Rate | D12: 0.0506 | E12: =+$D$12 -> 0.0506 | F12: =+$D$12 -> 0.0506 | G12: 0.0506 | H12: 0.0506 | I12: 0.0506 | J12: 0.0506 | K12: 0.0506 | L12: 0.0506 | M12: 0.0506 | N12: 0.0506 | O12: 0.0506 | P12: 0.0506 | Q12: 0.0506 | R12: 0.0506 | S12: 0.0506 | T12: 0.0506 | U12: 0.0506 | V12: 0.0506 | W12: 0.0506 | X12: 0.0506 | Y12: 0.0506 | Z12: 0.0506 | AA12: 0.0506 | AB12: 0.0506 | AC12: 0.0506 | AD12: 0.0506 | AE12: 0.0506 | AF12: 0.0506 | AG12: 0.0506 | AH12: 0.0506 | AI12: 0.0506 | AJ12: 0.0506 | AK12: 0.0506 | AL12: 0.0506 | AM12: 0.0506 | AN12: 0.0506 | AO12: 0.0506 | AP12: 0.0506 | AQ12: 0.0506 | AR12: 0.0506 | AS12: 0.0506 | AT12: 0.0506 | AU12: 0.0506 | AV12: 0.0506 | AW12: 0.0506 | AX12: 0.0506 | AY12: 0.0506 | AZ12: 0.0506 | BA12: 0.0506 | BB12: 0.0506 | BC12: 0.0506 | BD12: 0.0506 | BE12: 0.0506 | BF12: 0.0506 | BG12: 0.0506 | BH12: 0.0506 | BI12: 0.0506 | BJ12: 0.0506 | BK12: 0.0506 | BL12: 0.0506 | BM12: 0.0506 | BN12: 0.0506 | BO12: 0.0506 | BP12: 0.0506 | BQ12: 0.0506 | BR12: =+$D$12 -> 0.0506 | BS12: 0.0506 | BT12: 0.0506 | BU12: 0.0506 | BV12: 0.0506 | BW12: 0.0506 | BX12: 0.0506 | BY12: 0.0506 | BZ12: 0.0506 | CA12: 0.0506 | CB12: 0.0506 | CC12: 0.0506 | CD12: 0.0506 | CE12: 0.0506 | CF12: 0.0506 | CG12: 0.0506 | CH12: 0.0506 | CI12: 0.0506 | CJ12: 0.0506 | CK12: 0.0506 | CL12: 0.0506 | CM12: 0.0506 | CN12: 0.0506 | CO12: 0.0506 | CP12: 0.0506 | CQ12: 0.0506 | CR12: 0.0506 | CS12: 0.0506 | CT12: 0.0506 | CU12: 0.0506 | CV12: 0.0506 | CW12: 0.0506 | CX12: 0.0506 | CY12: 0.0506 | CZ12: 0.0506 | DA12: 0.0506 | DB12: 0.0506 | DC12: 0.0506 | DD12: 0.0506 | DE12: 0.0506 | DF12: 0.0506 | DG12: 0.0506 | DH12: 0.0506 | DI12: 0.0506 | DJ12: 0.0506 | DK12: 0.0506 | DL12: 0.0506 | DM12: 0.0506 | DN12: 0.0506 | DO12: 0.0506 | DP12: 0.0506 | DQ12: 0.0506 | DR12: 0.0506 | DS12: 0.0506 | DT12: 0.0506 | DU12: 0.0506 | DV12: 0.0506 | DW12: 0.0506 | DX12: 0.0506 | DY12: 0.0506 | DZ12: 0.0506 | EA12: 0.0506 | EB12: 0.0506 | EC12: 0.0506 | ED12: =+$D$12 -> 0.0506 | EE12: 0.0506 | EF12: 0.0506 | EG12: 0.0506 | EH12: 0.0506 | EI12: 0.0506 | EJ12: 0.0506 | EK12: 0.0506 | EL12: 0.0506 | EM12: 0.0506 | EN12: 0.0506 | EO12: 0.0506 | EP12: 0.0506 | EQ12: 0.0506 | ER12: 0.0506 | ES12: 0.0506 | ET12: 0.0506 | EU12: 0.0506 | EV12: 0.0506 | EW12: 0.0506 | EX12: 0.0506 | EY12: 0.0506 | EZ12: 0.0506 | FA12: 0.0506 | FB12: 0.0506 | FC12: 0.0506 | FD12: 0.0506 | FE12: 0.0506 | FF12: 0.0506 | FG12: 0.0506 | FH12: 0.0506 | FI12: 0.0506 | FJ12: 0.0506 | FK12: 0.0506 | FL12: 0.0506 | FM12: 0.0506 | FN12: 0.0506 | FO12: 0.0506 | FP12: 0.0506 | FQ12: 0.0506 | FR12: 0.0506 | FS12: 0.0506 | FT12: 0.0506 | FU12: 0.0506 | FV12: 0.0506 | FW12: 0.0506 | FX12: 0.0506 | FY12: 0.0506 | FZ12: 0.0506 | GA12: 0.0506 | GB12: 0.0506 | GC12: 0.0506 | GD12: 0.0506 | GE12: 0.0506 | GF12: 0.0506 | GG12: 0.0506 | GH12: 0.0506 | GI12: 0.0506 | GJ12: 0.0506 | GK12: 0.0506 | GL12: 0.0506 | GM12: 0.0506 | GN12: 0.0506 | GO12: 0.0506 | GP12: =+$D$12 -> 0.0506 | GQ12: 0.0506 | GR12: 0.0506 | GS12: 0.0506 | GT12: 0.0506 | GU12: 0.0506 | GV12: 0.0506 | GW12: 0.0506 | GX12: 0.0506 | GY12: 0.0506 | GZ12: 0.0506 | HA12: 0.0506 | HB12: 0.0506 | HC12: 0.0506 | HD12: 0.0506 | HE12: 0.0506 | HF12: 0.0506 | HG12: 0.0506 | HH12: 0.0506 | HI12: 0.0506 | HJ12: 0.0506 | HK12: 0.0506 | HL12: 0.0506 | HM12: 0.0506 | HN12: 0.0506 | HO12: 0.0506 | HP12: 0.0506 | HQ12: 0.0506 | HR12: 0.0506 | HS12: 0.0506 | HT12: 0.0506 | HU12: 0.0506 | HV12: 0.0506 | HW12: 0.0506 | HX12: 0.0506 | HY12: 0.0506 | HZ12: 0.0506 | IA12: 0.0506 | IB12: 0.0506 | IC12: 0.0506 | ID12: 0.0506 | IE12: 0.0506 | IF12: 0.0506 | IG12: 0.0506 | IH12: 0.0506 | II12: 0.0506 | IJ12: 0.0506 | IK12: 0.0506 | IL12: 0.0506 | IM12: 0.0506 | IN12: 0.0506 | IO12: 0.0506 | IP12: 0.0506 | IQ12: 0.0506 | IR12: 0.0506 | IS12: 0.0506 | IT12: 0.0506 | IU12: 0.0506 | IV12: 0.0506 | IW12: 0.0506 | IX12: 0.0506 | IY12: 0.0506 | IZ12: 0.0506 | JA12: 0.0506 | JB12: =+$D$12 -> 0.0506 | JC12: 0.0506 | JD12: 0.0506 | JE12: 0.0506 | JF12: 0.0506 | JG12: 0.0506 | JH12: 0.0506 | JI12: 0.0506 | JJ12: 0.0506 | JK12: 0.0506 | JL12: 0.0506 | JM12: 0.0506 | JN12: 0.0506 | JO12: 0.0506 | JP12: 0.0506 | JQ12: 0.0506 | JR12: 0.0506 | JS12: 0.0506
A13: =ROW() -> 13 | B13: Weighted Debt Rate | D13: =D11*D12 -> 0.0244145 | E13: =+$D$13 -> 0.0244145 | F13: =+$D$13 -> 0.0244145 | G13: 0.0244145 | H13: 0.0244145 | I13: 0.0244145 | J13: 0.0244145 | K13: 0.0244145 | L13: 0.0244145 | M13: 0.0244145 | N13: 0.0244145 | O13: 0.0244145 | P13: 0.0244145 | Q13: 0.0244145 | R13: 0.0244145 | S13: 0.0244145 | T13: 0.0244145 | U13: 0.0244145 | V13: 0.0244145 | W13: 0.0244145 | X13: 0.0244145 | Y13: 0.0244145 | Z13: 0.0244145 | AA13: 0.0244145 | AB13: 0.0244145 | AC13: 0.0244145 | AD13: 0.0244145 | AE13: 0.0244145 | AF13: 0.0244145 | AG13: 0.0244145 | AH13: 0.0244145 | AI13: 0.0244145 | AJ13: 0.0244145 | AK13: 0.0244145 | AL13: 0.0244145 | AM13: 0.0244145 | AN13: 0.0244145 | AO13: 0.0244145 | AP13: 0.0244145 | AQ13: 0.0244145 | AR13: 0.0244145 | AS13: 0.0244145 | AT13: 0.0244145 | AU13: 0.0244145 | AV13: 0.0244145 | AW13: 0.0244145 | AX13: 0.0244145 | AY13: 0.0244145 | AZ13: 0.0244145 | BA13: 0.0244145 | BB13: 0.0244145 | BC13: 0.0244145 | BD13: 0.0244145 | BE13: 0.0244145 | BF13: 0.0244145 | BG13: 0.0244145 | BH13: 0.0244145 | BI13: 0.0244145 | BJ13: 0.0244145 | BK13: 0.0244145 | BL13: 0.0244145 | BM13: 0.0244145 | BN13: 0.0244145 | BO13: 0.0244145 | BP13: 0.0244145 | BQ13: 0.0244145 | BR13: =+$D$13 -> 0.0244145 | BS13: 0.0244145 | BT13: 0.0244145 | BU13: 0.0244145 | BV13: 0.0244145 | BW13: 0.0244145 | BX13: 0.0244145 | BY13: 0.0244145 | BZ13: 0.0244145 | CA13: 0.0244145 | CB13: 0.0244145 | CC13: 0.0244145 | CD13: 0.0244145 | CE13: 0.0244145 | CF13: 0.0244145 | CG13: 0.0244145 | CH13: 0.0244145 | CI13: 0.0244145 | CJ13: 0.0244145 | CK13: 0.0244145 | CL13: 0.0244145 | CM13: 0.0244145 | CN13: 0.0244145 | CO13: 0.0244145 | CP13: 0.0244145 | CQ13: 0.0244145 | CR13: 0.0244145 | CS13: 0.0244145 | CT13: 0.0244145 | CU13: 0.0244145 | CV13: 0.0244145 | CW13: 0.0244145 | CX13: 0.0244145 | CY13: 0.0244145 | CZ13: 0.0244145 | DA13: 0.0244145 | DB13: 0.0244145 | DC13: 0.0244145 | DD13: 0.0244145 | DE13: 0.0244145 | DF13: 0.0244145 | DG13: 0.0244145 | DH13: 0.0244145 | DI13: 0.0244145 | DJ13: 0.0244145 | DK13: 0.0244145 | DL13: 0.0244145 | DM13: 0.0244145 | DN13: 0.0244145 | DO13: 0.0244145 | DP13: 0.0244145 | DQ13: 0.0244145 | DR13: 0.0244145 | DS13: 0.0244145 | DT13: 0.0244145 | DU13: 0.0244145 | DV13: 0.0244145 | DW13: 0.0244145 | DX13: 0.0244145 | DY13: 0.0244145 | DZ13: 0.0244145 | EA13: 0.0244145 | EB13: 0.0244145 | EC13: 0.0244145 | ED13: =+$D$13 -> 0.0244145 | EE13: 0.0244145 | EF13: 0.0244145 | EG13: 0.0244145 | EH13: 0.0244145 | EI13: 0.0244145 | EJ13: 0.0244145 | EK13: 0.0244145 | EL13: 0.0244145 | EM13: 0.0244145 | EN13: 0.0244145 | EO13: 0.0244145 | EP13: 0.0244145 | EQ13: 0.0244145 | ER13: 0.0244145 | ES13: 0.0244145 | ET13: 0.0244145 | EU13: 0.0244145 | EV13: 0.0244145 | EW13: 0.0244145 | EX13: 0.0244145 | EY13: 0.0244145 | EZ13: 0.0244145 | FA13: 0.0244145 | FB13: 0.0244145 | FC13: 0.0244145 | FD13: 0.0244145 | FE13: 0.0244145 | FF13: 0.0244145 | FG13: 0.0244145 | FH13: 0.0244145 | FI13: 0.0244145 | FJ13: 0.0244145 | FK13: 0.0244145 | FL13: 0.0244145 | FM13: 0.0244145 | FN13: 0.0244145 | FO13: 0.0244145 | FP13: 0.0244145 | FQ13: 0.0244145 | FR13: 0.0244145 | FS13: 0.0244145 | FT13: 0.0244145 | FU13: 0.0244145 | FV13: 0.0244145 | FW13: 0.0244145 | FX13: 0.0244145 | FY13: 0.0244145 | FZ13: 0.0244145 | GA13: 0.0244145 | GB13: 0.0244145 | GC13: 0.0244145 | GD13: 0.0244145 | GE13: 0.0244145 | GF13: 0.0244145 | GG13: 0.0244145 | GH13: 0.0244145 | GI13: 0.0244145 | GJ13: 0.0244145 | GK13: 0.0244145 | GL13: 0.0244145 | GM13: 0.0244145 | GN13: 0.0244145 | GO13: 0.0244145 | GP13: =+$D$13 -> 0.0244145 | GQ13: 0.0244145 | GR13: 0.0244145 | GS13: 0.0244145 | GT13: 0.0244145 | GU13: 0.0244145 | GV13: 0.0244145 | GW13: 0.0244145 | GX13: 0.0244145 | GY13: 0.0244145 | GZ13: 0.0244145 | HA13: 0.0244145 | HB13: 0.0244145 | HC13: 0.0244145 | HD13: 0.0244145 | HE13: 0.0244145 | HF13: 0.0244145 | HG13: 0.0244145 | HH13: 0.0244145 | HI13: 0.0244145 | HJ13: 0.0244145 | HK13: 0.0244145 | HL13: 0.0244145 | HM13: 0.0244145 | HN13: 0.0244145 | HO13: 0.0244145 | HP13: 0.0244145 | HQ13: 0.0244145 | HR13: 0.0244145 | HS13: 0.0244145 | HT13: 0.0244145 | HU13: 0.0244145 | HV13: 0.0244145 | HW13: 0.0244145 | HX13: 0.0244145 | HY13: 0.0244145 | HZ13: 0.0244145 | IA13: 0.0244145 | IB13: 0.0244145 | IC13: 0.0244145 | ID13: 0.0244145 | IE13: 0.0244145 | IF13: 0.0244145 | IG13: 0.0244145 | IH13: 0.0244145 | II13: 0.0244145 | IJ13: 0.0244145 | IK13: 0.0244145 | IL13: 0.0244145 | IM13: 0.0244145 | IN13: 0.0244145 | IO13: 0.0244145 | IP13: 0.0244145 | IQ13: 0.0244145 | IR13: 0.0244145 | IS13: 0.0244145 | IT13: 0.0244145 | IU13: 0.0244145 | IV13: 0.0244145 | IW13: 0.0244145 | IX13: 0.0244145 | IY13: 0.0244145 | IZ13: 0.0244145 | JA13: 0.0244145 | JB13: =+$D$13 -> 0.0244145 | JC13: 0.0244145 | JD13: 0.0244145 | JE13: 0.0244145 | JF13: 0.0244145 | JG13: 0.0244145 | JH13: 0.0244145 | JI13: 0.0244145 | JJ13: 0.0244145 | JK13: 0.0244145 | JL13: 0.0244145 | JM13: 0.0244145 | JN13: 0.0244145 | JO13: 0.0244145 | JP13: 0.0244145 | JQ13: 0.0244145 | JR13: 0.0244145 | JS13: 0.0244145
A14: =ROW() -> 14 | B14: ST-Debt Rate | D14: 0.0145 | E14: =$D$14 -> 0.0145 | F14: =$D$14 -> 0.0145 | G14: 0.0145 | H14: 0.0145 | I14: 0.0145 | J14: 0.0145 | K14: 0.0145 | L14: 0.0145 | M14: 0.0145 | N14: 0.0145 | O14: 0.0145 | P14: 0.0145 | Q14: 0.0145 | R14: 0.0145 | S14: 0.0145 | T14: 0.0145 | U14: 0.0145 | V14: 0.0145 | W14: 0.0145 | X14: 0.0145 | Y14: 0.0145 | Z14: 0.0145 | AA14: 0.0145 | AB14: 0.0145
A15: =ROW() -> 15
A16: =ROW() -> 16 | B16: Equity Ratio | D16: =1-D11 -> 0.5175 | E16: =+$D$16 -> 0.5175 | F16: =+$D$16 -> 0.5175 | G16: 0.5175 | H16: 0.5175 | I16: 0.5175 | J16: 0.5175 | K16: 0.5175 | L16: 0.5175 | M16: 0.5175 | N16: 0.5175 | O16: 0.5175 | P16: 0.5175 | Q16: 0.5175 | R16: 0.5175 | S16: 0.5175 | T16: 0.5175 | U16: 0.5175 | V16: 0.5175 | W16: 0.5175 | X16: 0.5175 | Y16: 0.5175 | Z16: 0.5175 | AA16: 0.5175 | AB16: 0.5175 | AC16: 0.5175 | AD16: 0.5175 | AE16: 0.5175 | AF16: 0.5175 | AG16: 0.5175 | AH16: 0.5175 | AI16: 0.5175 | AJ16: 0.5175 | AK16: 0.5175 | AL16: 0.5175 | AM16: 0.5175 | AN16: 0.5175 | AO16: 0.5175 | AP16: 0.5175 | AQ16: 0.5175 | AR16: 0.5175 | AS16: 0.5175 | AT16: 0.5175 | AU16: 0.5175 | AV16: 0.5175 | AW16: 0.5175 | AX16: 0.5175 | AY16: 0.5175 | AZ16: 0.5175 | BA16: 0.5175 | BB16: 0.5175 | BC16: 0.5175 | BD16: 0.5175 | BE16: 0.5175 | BF16: 0.5175 | BG16: 0.5175 | BH16: 0.5175 | BI16: 0.5175 | BJ16: 0.5175 | BK16: 0.5175 | BL16: 0.5175 | BM16: 0.5175 | BN16: 0.5175 | BO16: 0.5175 | BP16: 0.5175 | BQ16: 0.5175 | BR16: =+$D$16 -> 0.5175 | BS16: 0.5175 | BT16: 0.5175 | BU16: 0.5175 | BV16: 0.5175 | BW16: 0.5175 | BX16: 0.5175 | BY16: 0.5175 | BZ16: 0.5175 | CA16: 0.5175 | CB16: 0.5175 | CC16: 0.5175 | CD16: 0.5175 | CE16: 0.5175 | CF16: 0.5175 | CG16: 0.5175 | CH16: 0.5175 | CI16: 0.5175 | CJ16: 0.5175 | CK16: 0.5175 | CL16: 0.5175 | CM16: 0.5175 | CN16: 0.5175 | CO16: 0.5175 | CP16: 0.5175 | CQ16: 0.5175 | CR16: 0.5175 | CS16: 0.5175 | CT16: 0.5175 | CU16: 0.5175 | CV16: 0.5175 | CW16: 0.5175 | CX16: 0.5175 | CY16: 0.5175 | CZ16: 0.5175 | DA16: 0.5175 | DB16: 0.5175 | DC16: 0.5175 | DD16: 0.5175 | DE16: 0.5175 | DF16: 0.5175 | DG16: 0.5175 | DH16: 0.5175 | DI16: 0.5175 | DJ16: 0.5175 | DK16: 0.5175 | DL16: 0.5175 | DM16: 0.5175 | DN16: 0.5175 | DO16: 0.5175 | DP16: 0.5175 | DQ16: 0.5175 | DR16: 0.5175 | DS16: 0.5175 | DT16: 0.5175 | DU16: 0.5175 | DV16: 0.5175 | DW16: 0.5175 | DX16: 0.5175 | DY16: 0.5175 | DZ16: 0.5175 | EA16: 0.5175 | EB16: 0.5175 | EC16: 0.5175 | ED16: =+$D$16 -> 0.5175 | EE16: 0.5175 | EF16: 0.5175 | EG16: 0.5175 | EH16: 0.5175 | EI16: 0.5175 | EJ16: 0.5175 | EK16: 0.5175 | EL16: 0.5175 | EM16: 0.5175 | EN16: 0.5175 | EO16: 0.5175 | EP16: 0.5175 | EQ16: 0.5175 | ER16: 0.5175 | ES16: 0.5175 | ET16: 0.5175 | EU16: 0.5175 | EV16: 0.5175 | EW16: 0.5175 | EX16: 0.5175 | EY16: 0.5175 | EZ16: 0.5175 | FA16: 0.5175 | FB16: 0.5175 | FC16: 0.5175 | FD16: 0.5175 | FE16: 0.5175 | FF16: 0.5175 | FG16: 0.5175 | FH16: 0.5175 | FI16: 0.5175 | FJ16: 0.5175 | FK16: 0.5175 | FL16: 0.5175 | FM16: 0.5175 | FN16: 0.5175 | FO16: 0.5175 | FP16: 0.5175 | FQ16: 0.5175 | FR16: 0.5175 | FS16: 0.5175 | FT16: 0.5175 | FU16: 0.5175 | FV16: 0.5175 | FW16: 0.5175 | FX16: 0.5175 | FY16: 0.5175 | FZ16: 0.5175 | GA16: 0.5175 | GB16: 0.5175 | GC16: 0.5175 | GD16: 0.5175 | GE16: 0.5175 | GF16: 0.5175 | GG16: 0.5175 | GH16: 0.5175 | GI16: 0.5175 | GJ16: 0.5175 | GK16: 0.5175 | GL16: 0.5175 | GM16: 0.5175 | GN16: 0.5175 | GO16: 0.5175 | GP16: =+$D$16 -> 0.5175 | GQ16: 0.5175 | GR16: 0.5175 | GS16: 0.5175 | GT16: 0.5175 | GU16: 0.5175 | GV16: 0.5175 | GW16: 0.5175 | GX16: 0.5175 | GY16: 0.5175 | GZ16: 0.5175 | HA16: 0.5175 | HB16: 0.5175 | HC16: 0.5175 | HD16: 0.5175 | HE16: 0.5175 | HF16: 0.5175 | HG16: 0.5175 | HH16: 0.5175 | HI16: 0.5175 | HJ16: 0.5175 | HK16: 0.5175 | HL16: 0.5175 | HM16: 0.5175 | HN16: 0.5175 | HO16: 0.5175 | HP16: 0.5175 | HQ16: 0.5175 | HR16: 0.5175 | HS16: 0.5175 | HT16: 0.5175 | HU16: 0.5175 | HV16: 0.5175 | HW16: 0.5175 | HX16: 0.5175 | HY16: 0.5175 | HZ16: 0.5175 | IA16: 0.5175 | IB16: 0.5175 | IC16: 0.5175 | ID16: 0.5175 | IE16: 0.5175 | IF16: 0.5175 | IG16: 0.5175 | IH16: 0.5175 | II16: 0.5175 | IJ16: 0.5175 | IK16: 0.5175 | IL16: 0.5175 | IM16: 0.5175 | IN16: 0.5175 | IO16: 0.5175 | IP16: 0.5175 | IQ16: 0.5175 | IR16: 0.5175 | IS16: 0.5175 | IT16: 0.5175 | IU16: 0.5175 | IV16: 0.5175 | IW16: 0.5175 | IX16: 0.5175 | IY16: 0.5175 | IZ16: 0.5175 | JA16: 0.5175 | JB16: =+$D$16 -> 0.5175 | JC16: 0.5175 | JD16: 0.5175 | JE16: 0.5175 | JF16: 0.5175 | JG16: 0.5175 | JH16: 0.5175 | JI16: 0.5175 | JJ16: 0.5175 | JK16: 0.5175 | JL16: 0.5175 | JM16: 0.5175 | JN16: 0.5175 | JO16: 0.5175 | JP16: 0.5175 | JQ16: 0.5175 | JR16: 0.5175 | JS16: 0.5175
A17: =ROW() -> 17 | B17: Equity Rate | D17: 0.095 | E17: =+$D$17 -> 0.095 | F17: =+$D$17 -> 0.095 | G17: 0.095 | H17: 0.095 | I17: 0.095 | J17: 0.095 | K17: 0.095 | L17: 0.095 | M17: 0.095 | N17: 0.095 | O17: 0.095 | P17: 0.095 | Q17: 0.095 | R17: 0.095 | S17: 0.095 | T17: 0.095 | U17: 0.095 | V17: 0.095 | W17: 0.095 | X17: 0.095 | Y17: 0.095 | Z17: 0.095 | AA17: 0.095 | AB17: 0.095 | AC17: 0.095 | AD17: 0.095 | AE17: 0.095 | AF17: 0.095 | AG17: 0.095 | AH17: 0.095 | AI17: 0.095 | AJ17: 0.095 | AK17: 0.095 | AL17: 0.095 | AM17: 0.095 | AN17: 0.095 | AO17: 0.095 | AP17: 0.095 | AQ17: 0.095 | AR17: 0.095 | AS17: 0.095 | AT17: 0.095 | AU17: 0.095 | AV17: 0.095 | AW17: 0.095 | AX17: 0.095 | AY17: 0.095 | AZ17: 0.095 | BA17: 0.095 | BB17: 0.095 | BC17: 0.095 | BD17: 0.095 | BE17: 0.095 | BF17: 0.095 | BG17: 0.095 | BH17: 0.095 | BI17: 0.095 | BJ17: 0.095 | BK17: 0.095 | BL17: 0.095 | BM17: 0.095 | BN17: 0.095 | BO17: 0.095 | BP17: 0.095 | BQ17: 0.095 | BR17: =+$D$17 -> 0.095 | BS17: 0.095 | BT17: 0.095 | BU17: 0.095 | BV17: 0.095 | BW17: 0.095 | BX17: 0.095 | BY17: 0.095 | BZ17: 0.095 | CA17: 0.095 | CB17: 0.095 | CC17: 0.095 | CD17: 0.095 | CE17: 0.095 | CF17: 0.095 | CG17: 0.095 | CH17: 0.095 | CI17: 0.095 | CJ17: 0.095 | CK17: 0.095 | CL17: 0.095 | CM17: 0.095 | CN17: 0.095 | CO17: 0.095 | CP17: 0.095 | CQ17: 0.095 | CR17: 0.095 | CS17: 0.095 | CT17: 0.095 | CU17: 0.095 | CV17: 0.095 | CW17: 0.095 | CX17: 0.095 | CY17: 0.095 | CZ17: 0.095 | DA17: 0.095 | DB17: 0.095 | DC17: 0.095 | DD17: 0.095 | DE17: 0.095 | DF17: 0.095 | DG17: 0.095 | DH17: 0.095 | DI17: 0.095 | DJ17: 0.095 | DK17: 0.095 | DL17: 0.095 | DM17: 0.095 | DN17: 0.095 | DO17: 0.095 | DP17: 0.095 | DQ17: 0.095 | DR17: 0.095 | DS17: 0.095 | DT17: 0.095 | DU17: 0.095 | DV17: 0.095 | DW17: 0.095 | DX17: 0.095 | DY17: 0.095 | DZ17: 0.095 | EA17: 0.095 | EB17: 0.095 | EC17: 0.095 | ED17: =+$D$17 -> 0.095 | EE17: 0.095 | EF17: 0.095 | EG17: 0.095 | EH17: 0.095 | EI17: 0.095 | EJ17: 0.095 | EK17: 0.095 | EL17: 0.095 | EM17: 0.095 | EN17: 0.095 | EO17: 0.095 | EP17: 0.095 | EQ17: 0.095 | ER17: 0.095 | ES17: 0.095 | ET17: 0.095 | EU17: 0.095 | EV17: 0.095 | EW17: 0.095 | EX17: 0.095 | EY17: 0.095 | EZ17: 0.095 | FA17: 0.095 | FB17: 0.095 | FC17: 0.095 | FD17: 0.095 | FE17: 0.095 | FF17: 0.095 | FG17: 0.095 | FH17: 0.095 | FI17: 0.095 | FJ17: 0.095 | FK17: 0.095 | FL17: 0.095 | FM17: 0.095 | FN17: 0.095 | FO17: 0.095 | FP17: 0.095 | FQ17: 0.095 | FR17: 0.095 | FS17: 0.095 | FT17: 0.095 | FU17: 0.095 | FV17: 0.095 | FW17: 0.095 | FX17: 0.095 | FY17: 0.095 | FZ17: 0.095 | GA17: 0.095 | GB17: 0.095 | GC17: 0.095 | GD17: 0.095 | GE17: 0.095 | GF17: 0.095 | GG17: 0.095 | GH17: 0.095 | GI17: 0.095 | GJ17: 0.095 | GK17: 0.095 | GL17: 0.095 | GM17: 0.095 | GN17: 0.095 | GO17: 0.095 | GP17: =+$D$17 -> 0.095 | GQ17: 0.095 | GR17: 0.095 | GS17: 0.095 | GT17: 0.095 | GU17: 0.095 | GV17: 0.095 | GW17: 0.095 | GX17: 0.095 | GY17: 0.095 | GZ17: 0.095 | HA17: 0.095 | HB17: 0.095 | HC17: 0.095 | HD17: 0.095 | HE17: 0.095 | HF17: 0.095 | HG17: 0.095 | HH17: 0.095 | HI17: 0.095 | HJ17: 0.095 | HK17: 0.095 | HL17: 0.095 | HM17: 0.095 | HN17: 0.095 | HO17: 0.095 | HP17: 0.095 | HQ17: 0.095 | HR17: 0.095 | HS17: 0.095 | HT17: 0.095 | HU17: 0.095 | HV17: 0.095 | HW17: 0.095 | HX17: 0.095 | HY17: 0.095 | HZ17: 0.095 | IA17: 0.095 | IB17: 0.095 | IC17: 0.095 | ID17: 0.095 | IE17: 0.095 | IF17: 0.095 | IG17: 0.095 | IH17: 0.095 | II17: 0.095 | IJ17: 0.095 | IK17: 0.095 | IL17: 0.095 | IM17: 0.095 | IN17: 0.095 | IO17: 0.095 | IP17: 0.095 | IQ17: 0.095 | IR17: 0.095 | IS17: 0.095 | IT17: 0.095 | IU17: 0.095 | IV17: 0.095 | IW17: 0.095 | IX17: 0.095 | IY17: 0.095 | IZ17: 0.095 | JA17: 0.095 | JB17: =+$D$17 -> 0.095 | JC17: 0.095 | JD17: 0.095 | JE17: 0.095 | JF17: 0.095 | JG17: 0.095 | JH17: 0.095 | JI17: 0.095 | JJ17: 0.095 | JK17: 0.095 | JL17: 0.095 | JM17: 0.095 | JN17: 0.095 | JO17: 0.095 | JP17: 0.095 | JQ17: 0.095 | JR17: 0.095 | JS17: 0.095
A18: =ROW() -> 18 | B18: Tax Rate | D18: 0.2384 | E18: =+$D$18 -> 0.2384 | F18: =+$D$18 -> 0.2384 | G18: 0.2384 | H18: 0.2384 | I18: 0.2384 | J18: 0.2384 | K18: 0.2384 | L18: 0.2384 | M18: 0.2384 | N18: 0.2384 | O18: 0.2384 | P18: 0.2384 | Q18: 0.2384 | R18: 0.2384 | S18: 0.2384 | T18: 0.2384 | U18: 0.2384 | V18: 0.2384 | W18: 0.2384 | X18: 0.2384 | Y18: 0.2384 | Z18: 0.2384 | AA18: 0.2384 | AB18: 0.2384 | AC18: 0.2384 | AD18: 0.2384 | AE18: 0.2384 | AF18: 0.2384 | AG18: 0.2384 | AH18: 0.2384 | AI18: 0.2384 | AJ18: 0.2384 | AK18: 0.2384 | AL18: 0.2384 | AM18: 0.2384 | AN18: 0.2384 | AO18: 0.2384 | AP18: 0.2384 | AQ18: 0.2384 | AR18: 0.2384 | AS18: 0.2384 | AT18: 0.2384 | AU18: 0.2384 | AV18: 0.2384 | AW18: 0.2384 | AX18: 0.2384 | AY18: 0.2384 | AZ18: 0.2384 | BA18: 0.2384 | BB18: 0.2384 | BC18: 0.2384 | BD18: 0.2384 | BE18: 0.2384 | BF18: 0.2384 | BG18: 0.2384 | BH18: 0.2384 | BI18: 0.2384 | BJ18: 0.2384 | BK18: 0.2384 | BL18: 0.2384 | BM18: 0.2384 | BN18: 0.2384 | BO18: 0.2384 | BP18: 0.2384 | BQ18: 0.2384 | BR18: =+$D$18 -> 0.2384 | BS18: 0.2384 | BT18: 0.2384 | BU18: 0.2384 | BV18: 0.2384 | BW18: 0.2384 | BX18: 0.2384 | BY18: 0.2384 | BZ18: 0.2384 | CA18: 0.2384 | CB18: 0.2384 | CC18: 0.2384 | CD18: 0.2384 | CE18: 0.2384 | CF18: 0.2384 | CG18: 0.2384 | CH18: 0.2384 | CI18: 0.2384 | CJ18: 0.2384 | CK18: 0.2384 | CL18: 0.2384 | CM18: 0.2384 | CN18: 0.2384 | CO18: 0.2384 | CP18: 0.2384 | CQ18: 0.2384 | CR18: 0.2384 | CS18: 0.2384 | CT18: 0.2384 | CU18: 0.2384 | CV18: 0.2384 | CW18: 0.2384 | CX18: 0.2384 | CY18: 0.2384 | CZ18: 0.2384 | DA18: 0.2384 | DB18: 0.2384 | DC18: 0.2384 | DD18: 0.2384 | DE18: 0.2384 | DF18: 0.2384 | DG18: 0.2384 | DH18: 0.2384 | DI18: 0.2384 | DJ18: 0.2384 | DK18: 0.2384 | DL18: 0.2384 | DM18: 0.2384 | DN18: 0.2384 | DO18: 0.2384 | DP18: 0.2384 | DQ18: 0.2384 | DR18: 0.2384 | DS18: 0.2384 | DT18: 0.2384 | DU18: 0.2384 | DV18: 0.2384 | DW18: 0.2384 | DX18: 0.2384 | DY18: 0.2384 | DZ18: 0.2384 | EA18: 0.2384 | EB18: 0.2384 | EC18: 0.2384 | ED18: =+$D$18 -> 0.2384 | EE18: 0.2384 | EF18: 0.2384 | EG18: 0.2384 | EH18: 0.2384 | EI18: 0.2384 | EJ18: 0.2384 | EK18: 0.2384 | EL18: 0.2384 | EM18: 0.2384 | EN18: 0.2384 | EO18: 0.2384 | EP18: 0.2384 | EQ18: 0.2384 | ER18: 0.2384 | ES18: 0.2384 | ET18: 0.2384 | EU18: 0.2384 | EV18: 0.2384 | EW18: 0.2384 | EX18: 0.2384 | EY18: 0.2384 | EZ18: 0.2384 | FA18: 0.2384 | FB18: 0.2384 | FC18: 0.2384 | FD18: 0.2384 | FE18: 0.2384 | FF18: 0.2384 | FG18: 0.2384 | FH18: 0.2384 | FI18: 0.2384 | FJ18: 0.2384 | FK18: 0.2384 | FL18: 0.2384 | FM18: 0.2384 | FN18: 0.2384 | FO18: 0.2384 | FP18: 0.2384 | FQ18: 0.2384 | FR18: 0.2384 | FS18: 0.2384 | FT18: 0.2384 | FU18: 0.2384 | FV18: 0.2384 | FW18: 0.2384 | FX18: 0.2384 | FY18: 0.2384 | FZ18: 0.2384 | GA18: 0.2384 | GB18: 0.2384 | GC18: 0.2384 | GD18: 0.2384 | GE18: 0.2384 | GF18: 0.2384 | GG18: 0.2384 | GH18: 0.2384 | GI18: 0.2384 | GJ18: 0.2384 | GK18: 0.2384 | GL18: 0.2384 | GM18: 0.2384 | GN18: 0.2384 | GO18: 0.2384 | GP18: =+$D$18 -> 0.2384 | GQ18: 0.2384 | GR18: 0.2384 | GS18: 0.2384 | GT18: 0.2384 | GU18: 0.2384 | GV18: 0.2384 | GW18: 0.2384 | GX18: 0.2384 | GY18: 0.2384 | GZ18: 0.2384 | HA18: 0.2384 | HB18: 0.2384 | HC18: 0.2384 | HD18: 0.2384 | HE18: 0.2384 | HF18: 0.2384 | HG18: 0.2384 | HH18: 0.2384 | HI18: 0.2384 | HJ18: 0.2384 | HK18: 0.2384 | HL18: 0.2384 | HM18: 0.2384 | HN18: 0.2384 | HO18: 0.2384 | HP18: 0.2384 | HQ18: 0.2384 | HR18: 0.2384 | HS18: 0.2384 | HT18: 0.2384 | HU18: 0.2384 | HV18: 0.2384 | HW18: 0.2384 | HX18: 0.2384 | HY18: 0.2384 | HZ18: 0.2384 | IA18: 0.2384 | IB18: 0.2384 | IC18: 0.2384 | ID18: 0.2384 | IE18: 0.2384 | IF18: 0.2384 | IG18: 0.2384 | IH18: 0.2384 | II18: 0.2384 | IJ18: 0.2384 | IK18: 0.2384 | IL18: 0.2384 | IM18: 0.2384 | IN18: 0.2384 | IO18: 0.2384 | IP18: 0.2384 | IQ18: 0.2384 | IR18: 0.2384 | IS18: 0.2384 | IT18: 0.2384 | IU18: 0.2384 | IV18: 0.2384 | IW18: 0.2384 | IX18: 0.2384 | IY18: 0.2384 | IZ18: 0.2384 | JA18: 0.2384 | JB18: =+$D$18 -> 0.2384 | JC18: 0.2384 | JD18: 0.2384 | JE18: 0.2384 | JF18: 0.2384 | JG18: 0.2384 | JH18: 0.2384 | JI18: 0.2384 | JJ18: 0.2384 | JK18: 0.2384 | JL18: 0.2384 | JM18: 0.2384 | JN18: 0.2384 | JO18: 0.2384 | JP18: 0.2384 | JQ18: 0.2384 | JR18: 0.2384 | JS18: 0.2384
A19: =ROW() -> 19 | B19: Weighted Pre-Tax Equity Rate | D19: =(D16*D17)/(1-D18) -> 0.06455160189 | E19: =+$D$19 -> 0.06455160189 | F19: =+$D$19 -> 0.06455160189 | G19: 0.06455160189 | H19: 0.06455160189 | I19: 0.06455160189 | J19: 0.06455160189 | K19: 0.06455160189 | L19: 0.06455160189 | M19: 0.06455160189 | N19: 0.06455160189 | O19: 0.06455160189 | P19: 0.06455160189 | Q19: 0.06455160189 | R19: 0.06455160189 | S19: 0.06455160189 | T19: 0.06455160189 | U19: 0.06455160189 | V19: 0.06455160189 | W19: 0.06455160189 | X19: 0.06455160189 | Y19: 0.06455160189 | Z19: 0.06455160189 | AA19: 0.06455160189 | AB19: 0.06455160189 | AC19: 0.06455160189 | AD19: 0.06455160189 | AE19: 0.06455160189 | AF19: 0.06455160189 | AG19: 0.06455160189 | AH19: 0.06455160189 | AI19: 0.06455160189 | AJ19: 0.06455160189 | AK19: 0.06455160189 | AL19: 0.06455160189 | AM19: 0.06455160189 | AN19: 0.06455160189 | AO19: 0.06455160189 | AP19: 0.06455160189 | AQ19: 0.06455160189 | AR19: 0.06455160189 | AS19: 0.06455160189 | AT19: 0.06455160189 | AU19: 0.06455160189 | AV19: 0.06455160189 | AW19: 0.06455160189 | AX19: 0.06455160189 | AY19: 0.06455160189 | AZ19: 0.06455160189 | BA19: 0.06455160189 | BB19: 0.06455160189 | BC19: 0.06455160189 | BD19: 0.06455160189 | BE19: 0.06455160189 | BF19: 0.06455160189 | BG19: 0.06455160189 | BH19: 0.06455160189 | BI19: 0.06455160189 | BJ19: 0.06455160189 | BK19: 0.06455160189 | BL19: 0.06455160189 | BM19: 0.06455160189 | BN19: 0.06455160189 | BO19: 0.06455160189 | BP19: 0.06455160189 | BQ19: 0.06455160189 | BR19: =+$D$19 -> 0.06455160189 | BS19: 0.06455160189 | BT19: 0.06455160189 | BU19: 0.06455160189 | BV19: 0.06455160189 | BW19: 0.06455160189 | BX19: 0.06455160189 | BY19: 0.06455160189 | BZ19: 0.06455160189 | CA19: 0.06455160189 | CB19: 0.06455160189 | CC19: 0.06455160189 | CD19: 0.06455160189 | CE19: 0.06455160189 | CF19: 0.06455160189 | CG19: 0.06455160189 | CH19: 0.06455160189 | CI19: 0.06455160189 | CJ19: 0.06455160189 | CK19: 0.06455160189 | CL19: 0.06455160189 | CM19: 0.06455160189 | CN19: 0.06455160189 | CO19: 0.06455160189 | CP19: 0.06455160189 | CQ19: 0.06455160189 | CR19: 0.06455160189 | CS19: 0.06455160189 | CT19: 0.06455160189 | CU19: 0.06455160189 | CV19: 0.06455160189 | CW19: 0.06455160189 | CX19: 0.06455160189 | CY19: 0.06455160189 | CZ19: 0.06455160189 | DA19: 0.06455160189 | DB19: 0.06455160189 | DC19: 0.06455160189 | DD19: 0.06455160189 | DE19: 0.06455160189 | DF19: 0.06455160189 | DG19: 0.06455160189 | DH19: 0.06455160189 | DI19: 0.06455160189 | DJ19: 0.06455160189 | DK19: 0.06455160189 | DL19: 0.06455160189 | DM19: 0.06455160189 | DN19: 0.06455160189 | DO19: 0.06455160189 | DP19: 0.06455160189 | DQ19: 0.06455160189 | DR19: 0.06455160189 | DS19: 0.06455160189 | DT19: 0.06455160189 | DU19: 0.06455160189 | DV19: 0.06455160189 | DW19: 0.06455160189 | DX19: 0.06455160189 | DY19: 0.06455160189 | DZ19: 0.06455160189 | EA19: 0.06455160189 | EB19: 0.06455160189 | EC19: 0.06455160189 | ED19: =+$D$19 -> 0.06455160189 | EE19: 0.06455160189 | EF19: 0.06455160189 | EG19: 0.06455160189 | EH19: 0.06455160189 | EI19: 0.06455160189 | EJ19: 0.06455160189 | EK19: 0.06455160189 | EL19: 0.06455160189 | EM19: 0.06455160189 | EN19: 0.06455160189 | EO19: 0.06455160189 | EP19: 0.06455160189 | EQ19: 0.06455160189 | ER19: 0.06455160189 | ES19: 0.06455160189 | ET19: 0.06455160189 | EU19: 0.06455160189 | EV19: 0.06455160189 | EW19: 0.06455160189 | EX19: 0.06455160189 | EY19: 0.06455160189 | EZ19: 0.06455160189 | FA19: 0.06455160189 | FB19: 0.06455160189 | FC19: 0.06455160189 | FD19: 0.06455160189 | FE19: 0.06455160189 | FF19: 0.06455160189 | FG19: 0.06455160189 | FH19: 0.06455160189 | FI19: 0.06455160189 | FJ19: 0.06455160189 | FK19: 0.06455160189 | FL19: 0.06455160189 | FM19: 0.06455160189 | FN19: 0.06455160189 | FO19: 0.06455160189 | FP19: 0.06455160189 | FQ19: 0.06455160189 | FR19: 0.06455160189 | FS19: 0.06455160189 | FT19: 0.06455160189 | FU19: 0.06455160189 | FV19: 0.06455160189 | FW19: 0.06455160189 | FX19: 0.06455160189 | FY19: 0.06455160189 | FZ19: 0.06455160189 | GA19: 0.06455160189 | GB19: 0.06455160189 | GC19: 0.06455160189 | GD19: 0.06455160189 | GE19: 0.06455160189 | GF19: 0.06455160189 | GG19: 0.06455160189 | GH19: 0.06455160189 | GI19: 0.06455160189 | GJ19: 0.06455160189 | GK19: 0.06455160189 | GL19: 0.06455160189 | GM19: 0.06455160189 | GN19: 0.06455160189 | GO19: 0.06455160189 | GP19: =+$D$19 -> 0.06455160189 | GQ19: 0.06455160189 | GR19: 0.06455160189 | GS19: 0.06455160189 | GT19: 0.06455160189 | GU19: 0.06455160189 | GV19: 0.06455160189 | GW19: 0.06455160189 | GX19: 0.06455160189 | GY19: 0.06455160189 | GZ19: 0.06455160189 | HA19: 0.06455160189 | HB19: 0.06455160189 | HC19: 0.06455160189 | HD19: 0.06455160189 | HE19: 0.06455160189 | HF19: 0.06455160189 | HG19: 0.06455160189 | HH19: 0.06455160189 | HI19: 0.06455160189 | HJ19: 0.06455160189 | HK19: 0.06455160189 | HL19: 0.06455160189 | HM19: 0.06455160189 | HN19: 0.06455160189 | HO19: 0.06455160189 | HP19: 0.06455160189 | HQ19: 0.06455160189 | HR19: 0.06455160189 | HS19: 0.06455160189 | HT19: 0.06455160189 | HU19: 0.06455160189 | HV19: 0.06455160189 | HW19: 0.06455160189 | HX19: 0.06455160189 | HY19: 0.06455160189 | HZ19: 0.06455160189 | IA19: 0.06455160189 | IB19: 0.06455160189 | IC19: 0.06455160189 | ID19: 0.06455160189 | IE19: 0.06455160189 | IF19: 0.06455160189 | IG19: 0.06455160189 | IH19: 0.06455160189 | II19: 0.06455160189 | IJ19: 0.06455160189 | IK19: 0.06455160189 | IL19: 0.06455160189 | IM19: 0.06455160189 | IN19: 0.06455160189 | IO19: 0.06455160189 | IP19: 0.06455160189 | IQ19: 0.06455160189 | IR19: 0.06455160189 | IS19: 0.06455160189 | IT19: 0.06455160189 | IU19: 0.06455160189 | IV19: 0.06455160189 | IW19: 0.06455160189 | IX19: 0.06455160189 | IY19: 0.06455160189 | IZ19: 0.06455160189 | JA19: 0.06455160189 | JB19: =+$D$19 -> 0.06455160189 | JC19: 0.06455160189 | JD19: 0.06455160189 | JE19: 0.06455160189 | JF19: 0.06455160189 | JG19: 0.06455160189 | JH19: 0.06455160189 | JI19: 0.06455160189 | JJ19: 0.06455160189 | JK19: 0.06455160189 | JL19: 0.06455160189 | JM19: 0.06455160189 | JN19: 0.06455160189 | JO19: 0.06455160189 | JP19: 0.06455160189 | JQ19: 0.06455160189 | JR19: 0.06455160189 | JS19: 0.06455160189
A20: =ROW() -> 20 | B20: Total ROR | D20: =+D19+D13 -> 0.08896610189 | E20: =+E19+E13 -> 0.08896610189 | F20: 0.08896610189 | G20: 0.08896610189 | H20: 0.08896610189 | I20: 0.08896610189 | J20: 0.08896610189 | K20: 0.08896610189 | L20: 0.08896610189 | M20: 0.08896610189 | N20: 0.08896610189 | O20: 0.08896610189 | P20: 0.08896610189 | Q20: 0.08896610189 | R20: 0.08896610189 | S20: 0.08896610189 | T20: 0.08896610189 | U20: 0.08896610189 | V20: 0.08896610189 | W20: 0.08896610189 | X20: 0.08896610189 | Y20: 0.08896610189 | Z20: 0.08896610189 | AA20: 0.08896610189 | AB20: 0.08896610189 | AC20: 0.08896610189 | AD20: 0.08896610189 | AE20: 0.08896610189 | AF20: 0.08896610189 | AG20: 0.08896610189 | AH20: 0.08896610189 | AI20: 0.08896610189 | AJ20: 0.08896610189 | AK20: 0.08896610189 | AL20: 0.08896610189 | AM20: 0.08896610189 | AN20: 0.08896610189 | AO20: 0.08896610189 | AP20: 0.08896610189 | AQ20: 0.08896610189 | AR20: 0.08896610189 | AS20: 0.08896610189 | AT20: 0.08896610189 | AU20: 0.08896610189 | AV20: 0.08896610189 | AW20: 0.08896610189 | AX20: 0.08896610189 | AY20: 0.08896610189 | AZ20: 0.08896610189 | BA20: 0.08896610189 | BB20: 0.08896610189 | BC20: 0.08896610189 | BD20: 0.08896610189 | BE20: 0.08896610189 | BF20: 0.08896610189 | BG20: 0.08896610189 | BH20: 0.08896610189 | BI20: 0.08896610189 | BJ20: 0.08896610189 | BK20: 0.08896610189 | BL20: 0.08896610189 | BM20: 0.08896610189 | BN20: 0.08896610189 | BO20: 0.08896610189 | BP20: 0.08896610189 | BQ20: =+BQ19+BQ13 -> 0.08896610189 | BR20: 0.08896610189 | BS20: 0.08896610189 | BT20: 0.08896610189 | BU20: 0.08896610189 | BV20: 0.08896610189 | BW20: 0.08896610189 | BX20: 0.08896610189 | BY20: 0.08896610189 | BZ20: 0.08896610189 | CA20: 0.08896610189 | CB20: 0.08896610189 | CC20: 0.08896610189 | CD20: 0.08896610189 | CE20: 0.08896610189 | CF20: 0.08896610189 | CG20: 0.08896610189 | CH20: 0.08896610189 | CI20: 0.08896610189 | CJ20: 0.08896610189 | CK20: 0.08896610189 | CL20: 0.08896610189 | CM20: 0.08896610189 | CN20: 0.08896610189 | CO20: 0.08896610189 | CP20: 0.08896610189 | CQ20: 0.08896610189 | CR20: 0.08896610189 | CS20: 0.08896610189 | CT20: 0.08896610189 | CU20: 0.08896610189 | CV20: 0.08896610189 | CW20: 0.08896610189 | CX20: 0.08896610189 | CY20: 0.08896610189 | CZ20: 0.08896610189 | DA20: 0.08896610189 | DB20: 0.08896610189 | DC20: 0.08896610189 | DD20: 0.08896610189 | DE20: 0.08896610189 | DF20: 0.08896610189 | DG20: 0.08896610189 | DH20: 0.08896610189 | DI20: 0.08896610189 | DJ20: 0.08896610189 | DK20: 0.08896610189 | DL20: 0.08896610189 | DM20: 0.08896610189 | DN20: 0.08896610189 | DO20: 0.08896610189 | DP20: 0.08896610189 | DQ20: 0.08896610189 | DR20: 0.08896610189 | DS20: 0.08896610189 | DT20: 0.08896610189 | DU20: 0.08896610189 | DV20: 0.08896610189 | DW20: 0.08896610189 | DX20: 0.08896610189 | DY20: 0.08896610189 | DZ20: 0.08896610189 | EA20: 0.08896610189 | EB20: 0.08896610189 | EC20: =+EC19+EC13 -> 0.08896610189 | ED20: 0.08896610189 | EE20: 0.08896610189 | EF20: 0.08896610189 | EG20: 0.08896610189 | EH20: 0.08896610189 | EI20: 0.08896610189 | EJ20: 0.08896610189 | EK20: 0.08896610189 | EL20: 0.08896610189 | EM20: 0.08896610189 | EN20: 0.08896610189 | EO20: 0.08896610189 | EP20: 0.08896610189 | EQ20: 0.08896610189 | ER20: 0.08896610189 | ES20: 0.08896610189 | ET20: 0.08896610189 | EU20: 0.08896610189 | EV20: 0.08896610189 | EW20: 0.08896610189 | EX20: 0.08896610189 | EY20: 0.08896610189 | EZ20: 0.08896610189 | FA20: 0.08896610189 | FB20: 0.08896610189 | FC20: 0.08896610189 | FD20: 0.08896610189 | FE20: 0.08896610189 | FF20: 0.08896610189 | FG20: 0.08896610189 | FH20: 0.08896610189 | FI20: 0.08896610189 | FJ20: 0.08896610189 | FK20: 0.08896610189 | FL20: 0.08896610189 | FM20: 0.08896610189 | FN20: 0.08896610189 | FO20: 0.08896610189 | FP20: 0.08896610189 | FQ20: 0.08896610189 | FR20: 0.08896610189 | FS20: 0.08896610189 | FT20: 0.08896610189 | FU20: 0.08896610189 | FV20: 0.08896610189 | FW20: 0.08896610189 | FX20: 0.08896610189 | FY20: 0.08896610189 | FZ20: 0.08896610189 | GA20: 0.08896610189 | GB20: 0.08896610189 | GC20: 0.08896610189 | GD20: 0.08896610189 | GE20: 0.08896610189 | GF20: 0.08896610189 | GG20: 0.08896610189 | GH20: 0.08896610189 | GI20: 0.08896610189 | GJ20: 0.08896610189 | GK20: 0.08896610189 | GL20: 0.08896610189 | GM20: 0.08896610189 | GN20: 0.08896610189 | GO20: =+GO19+GO13 -> 0.08896610189 | GP20: 0.08896610189 | GQ20: 0.08896610189 | GR20: 0.08896610189 | GS20: 0.08896610189 | GT20: 0.08896610189 | GU20: 0.08896610189 | GV20: 0.08896610189 | GW20: 0.08896610189 | GX20: 0.08896610189 | GY20: 0.08896610189 | GZ20: 0.08896610189 | HA20: 0.08896610189 | HB20: 0.08896610189 | HC20: 0.08896610189 | HD20: 0.08896610189 | HE20: 0.08896610189 | HF20: 0.08896610189 | HG20: 0.08896610189 | HH20: 0.08896610189 | HI20: 0.08896610189 | HJ20: 0.08896610189 | HK20: 0.08896610189 | HL20: 0.08896610189 | HM20: 0.08896610189 | HN20: 0.08896610189 | HO20: 0.08896610189 | HP20: 0.08896610189 | HQ20: 0.08896610189 | HR20: 0.08896610189 | HS20: 0.08896610189 | HT20: 0.08896610189 | HU20: 0.08896610189 | HV20: 0.08896610189 | HW20: 0.08896610189 | HX20: 0.08896610189 | HY20: 0.08896610189 | HZ20: 0.08896610189 | IA20: 0.08896610189 | IB20: 0.08896610189 | IC20: 0.08896610189 | ID20: 0.08896610189 | IE20: 0.08896610189 | IF20: 0.08896610189 | IG20: 0.08896610189 | IH20: 0.08896610189 | II20: 0.08896610189 | IJ20: 0.08896610189 | IK20: 0.08896610189 | IL20: 0.08896610189 | IM20: 0.08896610189 | IN20: 0.08896610189 | IO20: 0.08896610189 | IP20: 0.08896610189 | IQ20: 0.08896610189 | IR20: 0.08896610189 | IS20: 0.08896610189 | IT20: 0.08896610189 | IU20: 0.08896610189 | IV20: 0.08896610189 | IW20: 0.08896610189 | IX20: 0.08896610189 | IY20: 0.08896610189 | IZ20: 0.08896610189 | JA20: =+JA19+JA13 -> 0.08896610189 | JB20: 0.08896610189 | JC20: 0.08896610189 | JD20: 0.08896610189 | JE20: 0.08896610189 | JF20: 0.08896610189 | JG20: 0.08896610189 | JH20: =+JH19+JH13 -> 0.08896610189 | JI20: 0.08896610189 | JJ20: 0.08896610189 | JK20: 0.08896610189 | JL20: 0.08896610189 | JM20: 0.08896610189 | JN20: 0.08896610189 | JO20: 0.08896610189 | JP20: 0.08896610189 | JQ20: 0.08896610189 | JR20: 0.08896610189 | JS20: 0.08896610189
A21: =ROW() -> 21 | B21: Asset (Liability): Basis
A22: =ROW() -> 22 | B22: Beginning balance | F22: =E28 -> 281.3773104 | G22: 281.717308 | H22: 282.0577164 | I22: 282.3985361 | J22: 278.376199 | K22: 278.7125703 | L22: =+K28 -> 201.3011226 | M22: 202.7935373 | N22: 204.2970165 | O22: 205.8116423 | P22: 210.2097559 | Q22: 211.7682178 | R22: 213.5158012 | S22: 215.0987736 | T22: 216.6934819 | U22: 218.3000131 | V22: 219.9184548 | W22: 221.5488955 | X22: 223.191424 | Y22: 224.8461299 | Z22: 226.5131035 | AA22: 228.1924358 | AB22: 229.8842185 | AC22: 231.5885437 | AD22: 233.3055045 | AE22: 235.0351946 | AF22: 236.7777084 | AG22: 238.5331409 | AH22: 240.3015878 | AI22: 242.0831458 | AJ22: 243.877912 | AK22: 245.6859842 | AL22: 247.5074612 | AM22: 249.3424424 | AN22: 251.1910278 | AO22: 252.6535082 | AP22: 251.6522516 | AQ22: 250.650995 | AR22: 249.6497384 | AS22: 248.6484818 | AT22: 247.6472251 | AU22: 246.6459685 | AV22: 245.6447119 | AW22: 244.6434553 | AX22: 243.6421987 | AY22: 242.6409421 | AZ22: 241.6396854 | BA22: 240.6384288 | BB22: 239.6371722 | BC22: 238.6359156 | BD22: 237.634659 | BE22: 236.6334024 | BF22: 235.6321457 | BG22: 234.6308891 | BH22: 233.6296325 | BI22: 232.6283759 | BJ22: 231.6271193 | BK22: 230.6258627 | BL22: 229.6246061 | BM22: 228.6233494 | BN22: 227.6220928 | BO22: 226.6208362 | BP22: 225.6195796 | BQ22: 224.618323 | BR22: =BQ28 -> 223.6170664 | BS22: 222.6158097 | BT22: 221.6145531 | BU22: 220.6132965 | BV22: 219.6120399 | BW22: 218.6107833 | BX22: 217.6095267 | BY22: 216.60827 | BZ22: 215.6070134 | CA22: 214.6057568 | CB22: 213.6045002 | CC22: 212.6032436 | CD22: 211.601987 | CE22: 210.6007303 | CF22: 209.5994737 | CG22: 208.5982171 | CH22: 207.5969605 | CI22: 206.5957039 | CJ22: 205.5944473 | CK22: 204.4923536 | CL22: 203.3902599 | CM22: 202.2881662 | CN22: 201.1860725 | CO22: 200.0839789 | CP22: 198.9818852 | CQ22: 197.8797915 | CR22: 196.7776978 | CS22: 195.6756041 | CT22: 194.5735104 | CU22: 193.4714168 | CV22: 192.3693231 | CW22: 191.2672294 | CX22: 190.1651357 | CY22: 189.063042 | CZ22: 187.9609484 | DA22: 186.8588547 | DB22: 185.756761 | DC22: 184.6546673 | DD22: 183.5525736 | DE22: 182.4504799 | DF22: 181.3483863 | DG22: 180.2462926 | DH22: 179.1441989 | DI22: 178.0421052 | DJ22: 176.9400115 | DK22: 175.8379179 | DL22: 174.7358242 | DM22: 173.6337305 | DN22: 172.5316368 | DO22: 171.4295431 | DP22: 170.3274494 | DQ22: 169.2253558 | DR22: 168.1232621 | DS22: 167.0211684 | DT22: 165.9190747 | DU22: 164.816981 | DV22: 163.7148873 | DW22: 162.6127937 | DX22: 161.5107 | DY22: 160.4086063 | DZ22: 159.3065126 | EA22: 158.2044189 | EB22: 157.1023253 | EC22: 156.0002316 | ED22: =EC28 -> 154.8981379 | EE22: 153.7960442 | EF22: 152.6939505 | EG22: 151.5876553 | EH22: 150.4813601 | EI22: 149.3750648 | EJ22: 148.2687696 | EK22: 147.1624744 | EL22: 146.0561792 | EM22: 144.9498839 | EN22: 143.8435887 | EO22: 142.7372935 | EP22: 141.6309983 | EQ22: 140.524703 | ER22: 139.4184078 | ES22: 138.3121126 | ET22: 137.2058174 | EU22: 136.0995221 | EV22: 134.9932269 | EW22: 133.8869317 | EX22: 132.7806364 | EY22: 131.6743412 | EZ22: 130.568046 | FA22: 129.4617508 | FB22: 128.3554555 | FC22: 127.2491603 | FD22: 126.1428651 | FE22: 125.0365699 | FF22: 123.9302746 | FG22: 122.8239794 | FH22: 121.7176842 | FI22: 120.611389 | FJ22: 119.5050937 | FK22: 118.3987985 | FL22: 117.2925033 | FM22: 116.1862081 | FN22: 115.0799128 | FO22: 113.9736176 | FP22: 112.8673224 | FQ22: 111.7610271 | FR22: 110.6547319 | FS22: 109.5484367 | FT22: 108.4421415 | FU22: 107.3358462 | FV22: 106.229551 | FW22: 105.1232558 | FX22: 104.0169606 | FY22: 102.9106653 | FZ22: 101.8043701 | GA22: 100.6980749 | GB22: 99.59177965 | GC22: 98.48522183 | GD22: 97.37866401 | GE22: 96.27210618 | GF22: 95.16554836 | GG22: 94.05899054 | GH22: 92.95243272 | GI22: 91.84587489 | GJ22: 90.73931707 | GK22: 89.63275925 | GL22: 88.52620142 | GM22: 87.4196436 | GN22: 86.31308578 | GO22: 85.20652795 | GP22: =GO28 -> 84.09997013 | GQ22: 82.99341231 | GR22: 81.88685449 | GS22: 80.78029666 | GT22: 79.67373884 | GU22: 78.56718102 | GV22: 77.46062319 | GW22: 76.35406537 | GX22: 75.24750755 | GY22: 74.14094972 | GZ22: =GY28 -> 73.0343919 | HA22: 71.92783408 | HB22: 70.82127625 | HC22: 69.71471843 | HD22: 68.60816061 | HE22: 67.50160279 | HF22: 66.39504496 | HG22: 65.28848714 | HH22: 64.18192932 | HI22: 63.07537149 | HJ22: 61.96881367 | HK22: 60.86225585 | HL22: 59.75569802 | HM22: 58.6491402 | HN22: 57.54258238 | HO22: 56.43602455 | HP22: 55.32946673 | HQ22: 54.22290891 | HR22: 53.11635109 | HS22: 52.00979326 | HT22: 50.90323544 | HU22: 49.79667762 | HV22: 48.69011979 | HW22: 47.58356197 | HX22: 46.47700415 | HY22: 45.50873323 | HZ22: 44.54046231 | IA22: 43.57219139 | IB22: 42.60392047 | IC22: 41.63564955 | ID22: 40.66737863 | IE22: 39.69910771 | IF22: =IE28 -> 38.73083679 | IG22: 37.76256587 | IH22: 36.79429495 | II22: 35.82602403 | IJ22: 34.85775311 | IK22: 33.88948219 | IL22: 32.92121127 | IM22: 31.95294035 | IN22: 30.98466943 | IO22: 30.01639851 | IP22: 29.04812759 | IQ22: 28.07985667 | IR22: 27.11158575 | IS22: 26.14331483 | IT22: 25.17504391 | IU22: 24.20677299 | IV22: 23.23850207 | IW22: 22.27023115 | IX22: 21.30196023 | IY22: 20.33368931 | IZ22: 19.36541839 | JA22: 18.39714747 | JB22: 17.42887656 | JC22: 16.46060564 | JD22: 15.49233472 | JE22: 14.5240638 | JF22: 13.55579288 | JG22: 12.58752196 | JH22: =JG28 -> 11.61925104 | JI22: =JH28 -> 10.65098012 | JJ22: =JI28 -> 9.682709197 | JK22: =JJ28 -> 8.714438278 | JL22: =JK28 -> 7.746167358 | JM22: =JL28 -> 6.777896438 | JN22: =JM28 -> 5.809625518 | JO22: =JN28 -> 4.841354599 | JP22: =JO28 -> 3.873083679 | JQ22: =JP28 -> 2.904812759 | JR22: =JQ28 -> 1.936541839 | JS22: =JR28 -> 0.9682709197
A23: =ROW() -> 23 | B23: Carrying cost - interest | F23: =F22*F14/12 -> 0.3399975834 | G23: =G22*G14/12 -> 0.3404084138 | H23: =H22*H14/12 -> 0.3408197406 | I23: =I22*I14/12 -> 0.3412315645 | J23: 0.3363712405 | K23: 0.3367776891 | L23: =L22*L13/12 -> 0.4095555216 | M23: 0.4125919014 | N23: 0.4156507925 | O23: 0.4187323618 | P23: 0.4276805071 | Q23: =Q22*Q13/12 -> 0.4308512628 | R23: 0.4344067941 | S23: 0.4376274173 | T23: 0.4408719178 | U23: 0.4441404724 | V23: 0.4474332597 | W23: 0.4507504591 | X23: 0.4540922517 | Y23: 0.4574588198 | Z23: 0.4608503471 | AA23: 0.4642670187 | AB23: =AB22*AB13/12 -> 0.467709021 | AC23: 0.4711765417 | AD23: 0.47466977 | AE23: 0.4781888966 | AF23: 0.4817341134 | AG23: 0.485305614 | AH23: 0.488903593 | AI23: 0.4925282469 | AJ23: 0.4961797734 | AK23: 0.4998583718 | AL23: 0.5035642427 | AM23: 0.5072975883 | AN23: 0 | AO23: 0 | AP23: 0 | AQ23: 0 | AR23: 0 | AS23: 0 | AT23: 0 | AU23: 0 | AV23: 0 | AW23: 0 | AX23: 0 | AY23: 0 | AZ23: 0 | BA23: 0 | BB23: 0 | BC23: 0 | BD23: 0 | BE23: 0 | BF23: 0 | BG23: 0 | BH23: 0 | BI23: 0 | BJ23: 0 | BK23: 0 | BL23: 0 | BM23: 0 | BN23: 0 | BO23: 0 | BP23: 0 | BQ23: 0 | BR23: 0 | BS23: 0 | BT23: 0 | BU23: 0 | BV23: 0 | BW23: 0 | BX23: 0 | BY23: 0 | BZ23: 0 | CA23: 0 | CB23: 0 | CC23: 0 | CD23: 0 | CE23: 0 | CF23: 0 | CG23: 0 | CH23: 0 | CI23: 0 | CJ23: 0 | CK23: 0 | CL23: 0 | CM23: 0 | CN23: 0 | CO23: 0 | CP23: 0 | CQ23: 0 | CR23: 0 | CS23: 0 | CT23: 0 | CU23: 0 | CV23: 0 | CW23: 0 | CX23: 0 | CY23: 0 | CZ23: 0 | DA23: 0 | DB23: 0 | DC23: 0 | DD23: 0 | DE23: 0 | DF23: 0 | DG23: 0 | DH23: 0 | DI23: 0 | DJ23: 0 | DK23: 0 | DL23: 0 | DM23: 0 | DN23: 0 | DO23: 0 | DP23: 0 | DQ23: 0 | DR23: 0 | DS23: 0 | DT23: 0 | DU23: 0 | DV23: 0 | DW23: 0 | DX23: 0 | DY23: 0 | DZ23: 0 | EA23: 0 | EB23: 0 | EC23: 0 | ED23: 0 | EE23: 0 | EF23: 0 | EG23: 0 | EH23: 0 | EI23: 0 | EJ23: 0 | EK23: 0 | EL23: 0 | EM23: 0 | EN23: 0 | EO23: 0 | EP23: 0 | EQ23: 0 | ER23: 0 | ES23: 0 | ET23: 0 | EU23: 0 | EV23: 0 | EW23: 0 | EX23: 0 | EY23: 0 | EZ23: 0 | FA23: 0 | FB23: 0 | FC23: 0 | FD23: 0 | FE23: 0 | FF23: 0 | FG23: 0 | FH23: 0 | FI23: 0 | FJ23: 0 | FK23: 0 | FL23: 0 | FM23: 0 | FN23: 0 | FO23: 0 | FP23: 0 | FQ23: 0 | FR23: 0 | FS23: 0 | FT23: 0 | FU23: 0 | FV23: 0 | FW23: 0 | FX23: 0 | FY23: 0 | FZ23: 0 | GA23: 0 | GB23: 0 | GC23: 0 | GD23: 0 | GE23: 0 | GF23: 0 | GG23: 0 | GH23: 0 | GI23: 0 | GJ23: 0 | GK23: 0 | GL23: 0 | GM23: 0 | GN23: 0 | GO23: 0 | GP23: 0 | GQ23: 0 | GR23: 0 | GS23: 0 | GT23: 0 | GU23: 0 | GV23: 0 | GW23: 0 | GX23: 0 | GY23: 0 | GZ23: 0 | HA23: 0 | HB23: 0 | HC23: 0 | HD23: 0 | HE23: 0 | HF23: 0 | HG23: 0 | HH23: 0 | HI23: 0 | HJ23: 0 | HK23: 0 | HL23: 0 | HM23: 0 | HN23: 0 | HO23: 0 | HP23: 0 | HQ23: 0 | HR23: 0 | HS23: 0 | HT23: 0 | HU23: 0 | HV23: 0 | HW23: 0 | HX23: 0 | HY23: 0 | HZ23: 0 | IA23: 0 | IB23: 0 | IC23: 0 | ID23: 0 | IE23: 0 | IF23: 0 | IG23: 0 | IH23: 0 | II23: 0 | IJ23: 0 | IK23: 0 | IL23: 0 | IM23: 0 | IN23: 0 | IO23: 0 | IP23: 0 | IQ23: 0 | IR23: 0 | IS23: 0 | IT23: 0 | IU23: 0 | IV23: 0 | IW23: 0 | IX23: 0 | IY23: 0 | IZ23: 0 | JA23: 0 | JB23: 0 | JC23: 0 | JD23: 0 | JE23: 0 | JF23: 0 | JG23: 0 | JH23: 0 | JI23: 0 | JJ23: 0 | JK23: 0 | JL23: 0 | JM23: 0 | JN23: 0 | JO23: 0 | JP23: 0 | JQ23: 0 | JR23: 0 | JS23: 0
A24: =ROW() -> 24 | B24: Carrying cost - equity | L24: =+L22*L19/12 -> 1.082859161 | M24: =+M22*M19/12 -> 1.090887307 | N24: 1.098974973 | O24: 1.1071226 | P24: 1.130781373 | Q24: 1.139164807 | R24: 1.148565583 | S24: 1.157080867 | T24: 1.165659281 | U24: 1.174301295 | V24: 1.183007379 | W24: 1.191778008 | X24: 1.200613662 | Y24: 1.209514822 | Z24: 1.218481973 | AA24: 1.227515606 | AB24: =+AB22*AB19/12 -> 1.236616213 | AC24: 1.24578429 | AD24: 1.255020337 | AE24: 1.264324859 | AF24: 1.273698364 | AG24: 1.283141362 | AH24: 1.292654369 | AI24: 1.302237904 | AJ24: 1.31189249 | AK24: 1.321618654 | AL24: 1.331416925 | AM24: 1.34128784 | AN24: 0 | AO24: 0 | AP24: 0 | AQ24: 0 | AR24: 0 | AS24: 0 | AT24: 0 | AU24: 0 | AV24: 0 | AW24: 0 | AX24: 0 | AY24: 0 | AZ24: 0 | BA24: 0 | BB24: 0 | BC24: 0 | BD24: 0 | BE24: 0 | BF24: 0 | BG24: 0 | BH24: 0 | BI24: 0 | BJ24: 0 | BK24: 0 | BL24: 0 | BM24: 0 | BN24: 0 | BO24: 0 | BP24: 0 | BQ24: 0 | BR24: 0 | BS24: 0 | BT24: 0 | BU24: 0 | BV24: 0 | BW24: 0 | BX24: 0 | BY24: 0 | BZ24: 0 | CA24: 0 | CB24: 0 | CC24: 0 | CD24: 0 | CE24: 0 | CF24: 0 | CG24: 0 | CH24: 0 | CI24: 0 | CJ24: 0 | CK24: 0 | CL24: 0 | CM24: 0 | CN24: 0 | CO24: 0 | CP24: 0 | CQ24: 0 | CR24: 0 | CS24: 0 | CT24: 0 | CU24: 0 | CV24: 0 | CW24: 0 | CX24: 0 | CY24: 0 | CZ24: 0 | DA24: 0 | DB24: 0 | DC24: 0 | DD24: 0 | DE24: 0 | DF24: 0 | DG24: 0 | DH24: 0 | DI24: 0 | DJ24: 0 | DK24: 0 | DL24: 0 | DM24: 0 | DN24: 0 | DO24: 0 | DP24: 0 | DQ24: 0 | DR24: 0 | DS24: 0 | DT24: 0 | DU24: 0 | DV24: 0 | DW24: 0 | DX24: 0 | DY24: 0 | DZ24: 0 | EA24: 0 | EB24: 0 | EC24: 0 | ED24: 0 | EE24: 0 | EF24: 0 | EG24: 0 | EH24: 0 | EI24: 0 | EJ24: 0 | EK24: 0 | EL24: 0 | EM24: 0 | EN24: 0 | EO24: 0 | EP24: 0 | EQ24: 0 | ER24: 0 | ES24: 0 | ET24: 0 | EU24: 0 | EV24: 0 | EW24: 0 | EX24: 0 | EY24: 0 | EZ24: 0 | FA24: 0 | FB24: 0 | FC24: 0 | FD24: 0 | FE24: 0 | FF24: 0 | FG24: 0 | FH24: 0 | FI24: 0 | FJ24: 0 | FK24: 0 | FL24: 0 | FM24: 0 | FN24: 0 | FO24: 0 | FP24: 0 | FQ24: 0 | FR24: 0 | FS24: 0 | FT24: 0 | FU24: 0 | FV24: 0 | FW24: 0 | FX24: 0 | FY24: 0 | FZ24: 0 | GA24: 0 | GB24: 0 | GC24: 0 | GD24: 0 | GE24: 0 | GF24: 0 | GG24: 0 | GH24: 0 | GI24: 0 | GJ24: 0 | GK24: 0 | GL24: 0 | GM24: 0 | GN24: 0 | GO24: 0 | GP24: 0 | GQ24: 0 | GR24: 0 | GS24: 0 | GT24: 0 | GU24: 0 | GV24: 0 | GW24: 0 | GX24: 0 | GY24: 0 | GZ24: 0 | HA24: 0 | HB24: 0 | HC24: 0 | HD24: 0 | HE24: 0 | HF24: 0 | HG24: 0 | HH24: 0 | HI24: 0 | HJ24: 0 | HK24: 0 | HL24: 0 | HM24: 0 | HN24: 0 | HO24: 0 | HP24: 0 | HQ24: 0 | HR24: 0 | HS24: 0 | HT24: 0 | HU24: 0 | HV24: 0 | HW24: 0 | HX24: 0 | HY24: 0 | HZ24: 0 | IA24: 0 | IB24: 0 | IC24: 0 | ID24: 0 | IE24: 0 | IF24: 0 | IG24: 0 | IH24: 0 | II24: 0 | IJ24: 0 | IK24: 0 | IL24: 0 | IM24: 0 | IN24: 0 | IO24: 0 | IP24: 0 | IQ24: 0 | IR24: 0 | IS24: 0 | IT24: 0 | IU24: 0 | IV24: 0 | IW24: 0 | IX24: 0 | IY24: 0 | IZ24: 0 | JA24: 0 | JB24: 0 | JC24: 0 | JD24: 0 | JE24: 0 | JF24: 0 | JG24: 0 | JH24: 0 | JI24: 0 | JJ24: 0 | JK24: 0 | JL24: 0 | JM24: 0 | JN24: 0 | JO24: 0 | JP24: 0 | JQ24: 0 | JR24: 0 | JS24: 0
A25: =ROW() -> 25 | B25: Normal Deferral | E25: 281.3773104 | I25: -4.363568639 | K25: 0.672538804 | O25: 2.872258634 | Q25: 0.1775673701
A26: =ROW() -> 26 | B26: Commission Advisor Fees | AN26: 2.463737
A27: =ROW() -> 27 | B27: Amortization | K27: =-'FAC Dec20-May21 CONF UPD Dec 21'!C32/1000000 -> -78.42076413 | AN27: =-+($AG$28)/(20)/12 -> -1.001256616 | AO27: =-+($AG$28)/(20)/12 -> -1.001256616 | AP27: -1.001256616 | AQ27: -1.001256616 | AR27: -1.001256616 | AS27: -1.001256616 | AT27: -1.001256616 | AU27: -1.001256616 | AV27: -1.001256616 | AW27: -1.001256616 | AX27: -1.001256616 | AY27: -1.001256616 | AZ27: -1.001256616 | BA27: -1.001256616 | BB27: -1.001256616 | BC27: -1.001256616 | BD27: -1.001256616 | BE27: -1.001256616 | BF27: -1.001256616 | BG27: -1.001256616 | BH27: -1.001256616 | BI27: -1.001256616 | BJ27: -1.001256616 | BK27: -1.001256616 | BL27: -1.001256616 | BM27: -1.001256616 | BN27: -1.001256616 | BO27: -1.001256616 | BP27: -1.001256616 | BQ27: -1.001256616 | BR27: -1.001256616 | BS27: -1.001256616 | BT27: -1.001256616 | BU27: -1.001256616 | BV27: -1.001256616 | BW27: -1.001256616 | BX27: -1.001256616 | BY27: -1.001256616 | BZ27: -1.001256616 | CA27: -1.001256616 | CB27: -1.001256616 | CC27: -1.001256616 | CD27: -1.001256616 | CE27: -1.001256616 | CF27: -1.001256616 | CG27: -1.001256616 | CH27: -1.001256616 | CI27: -1.001256616 | CJ27: =-$CC$28/16/12 -> -1.102093682 | CK27: =-$CC$28/16/12 -> -1.102093682 | CL27: -1.102093682 | CM27: -1.102093682 | CN27: -1.102093682 | CO27: -1.102093682 | CP27: -1.102093682 | CQ27: -1.102093682 | CR27: -1.102093682 | CS27: -1.102093682 | CT27: -1.102093682 | CU27: -1.102093682 | CV27: -1.102093682 | CW27: -1.102093682 | CX27: -1.102093682 | CY27: -1.102093682 | CZ27: -1.102093682 | DA27: -1.102093682 | DB27: -1.102093682 | DC27: -1.102093682 | DD27: -1.102093682 | DE27: -1.102093682 | DF27: -1.102093682 | DG27: -1.102093682 | DH27: -1.102093682 | DI27: -1.102093682 | DJ27: -1.102093682 | DK27: -1.102093682 | DL27: -1.102093682 | DM27: -1.102093682 | DN27: -1.102093682 | DO27: -1.102093682 | DP27: -1.102093682 | DQ27: -1.102093682 | DR27: -1.102093682 | DS27: -1.102093682 | DT27: -1.102093682 | DU27: -1.102093682 | DV27: -1.102093682 | DW27: -1.102093682 | DX27: -1.102093682 | DY27: -1.102093682 | DZ27: -1.102093682 | EA27: -1.102093682 | EB27: -1.102093682 | EC27: -1.102093682 | ED27: -1.102093682 | EE27: -1.102093682 | EF27: =-$DY$28/12/12 -> -1.106295227 | EG27: =-$DY$28/12/12 -> -1.106295227 | EH27: -1.106295227 | EI27: -1.106295227 | EJ27: -1.106295227 | EK27: -1.106295227 | EL27: -1.106295227 | EM27: -1.106295227 | EN27: -1.106295227 | EO27: -1.106295227 | EP27: -1.106295227 | EQ27: -1.106295227 | ER27: -1.106295227 | ES27: -1.106295227 | ET27: -1.106295227 | EU27: -1.106295227 | EV27: -1.106295227 | EW27: -1.106295227 | EX27: -1.106295227 | EY27: -1.106295227 | EZ27: -1.106295227 | FA27: -1.106295227 | FB27: -1.106295227 | FC27: -1.106295227 | FD27: -1.106295227 | FE27: -1.106295227 | FF27: -1.106295227 | FG27: -1.106295227 | FH27: -1.106295227 | FI27: -1.106295227 | FJ27: -1.106295227 | FK27: -1.106295227 | FL27: -1.106295227 | FM27: -1.106295227 | FN27: -1.106295227 | FO27: -1.106295227 | FP27: -1.106295227 | FQ27: -1.106295227 | FR27: -1.106295227 | FS27: -1.106295227 | FT27: -1.106295227 | FU27: -1.106295227 | FV27: -1.106295227 | FW27: -1.106295227 | FX27: -1.106295227 | FY27: -1.106295227 | FZ27: -1.106295227 | GA27: -1.106295227 | GB27: =-$FU$28/8/12 -> -1.106557823 | GC27: =-$FU$28/8/12 -> -1.106557823 | GD27: -1.106557823 | GE27: -1.106557823 | GF27: -1.106557823 | GG27: -1.106557823 | GH27: -1.106557823 | GI27: -1.106557823 | GJ27: -1.106557823 | GK27: -1.106557823 | GL27: -1.106557823 | GM27: -1.106557823 | GN27: -1.106557823 | GO27: -1.106557823 | GP27: -1.106557823 | GQ27: -1.106557823 | GR27: -1.106557823 | GS27: -1.106557823 | GT27: -1.106557823 | GU27: -1.106557823 | GV27: -1.106557823 | GW27: -1.106557823 | GX27: -1.106557823 | GY27: -1.106557823 | GZ27: -1.106557823 | HA27: -1.106557823 | HB27: -1.106557823 | HC27: -1.106557823 | HD27: -1.106557823 | HE27: -1.106557823 | HF27: -1.106557823 | HG27: -1.106557823 | HH27: -1.106557823 | HI27: -1.106557823 | HJ27: -1.106557823 | HK27: -1.106557823 | HL27: -1.106557823 | HM27: -1.106557823 | HN27: -1.106557823 | HO27: -1.106557823 | HP27: -1.106557823 | HQ27: -1.106557823 | HR27: -1.106557823 | HS27: -1.106557823 | HT27: -1.106557823 | HU27: -1.106557823 | HV27: -1.106557823 | HW27: -1.106557823 | HX27: =-$HW$28/(4)/12 -> -0.9682709197 | HY27: =-$HW$28/(4)/12 -> -0.9682709197 | HZ27: -0.9682709197 | IA27: -0.9682709197 | IB27: -0.9682709197 | IC27: -0.9682709197 | ID27: -0.9682709197 | IE27: -0.9682709197 | IF27: -0.9682709197 | IG27: -0.9682709197 | IH27: -0.9682709197 | II27: -0.9682709197 | IJ27: -0.9682709197 | IK27: -0.9682709197 | IL27: -0.9682709197 | IM27: -0.9682709197 | IN27: -0.9682709197 | IO27: -0.9682709197 | IP27: -0.9682709197 | IQ27: -0.9682709197 | IR27: -0.9682709197 | IS27: -0.9682709197 | IT27: -0.9682709197 | IU27: -0.9682709197 | IV27: -0.9682709197 | IW27: -0.9682709197 | IX27: -0.9682709197 | IY27: -0.9682709197 | IZ27: -0.9682709197 | JA27: -0.9682709197 | JB27: -0.9682709197 | JC27: -0.9682709197 | JD27: -0.9682709197 | JE27: -0.9682709197 | JF27: -0.9682709197 | JG27: -0.9682709197 | JH27: -0.9682709197 | JI27: -0.9682709197 | JJ27: -0.9682709197 | JK27: -0.9682709197 | JL27: -0.9682709197 | JM27: -0.9682709197 | JN27: -0.9682709197 | JO27: -0.9682709197 | JP27: -0.9682709197 | JQ27: -0.9682709197 | JR27: -0.9682709197 | JS27: -0.9682709197 | JT27: =SUM(E27:JS27) -> -332.075529
A28: =ROW() -> 28 | B28: Ending Balance | E28: =SUM(E22:E27) -> 281.3773104 | F28: 281.717308 | G28: 282.0577164 | H28: 282.3985361 | I28: 278.376199 | J28: 278.7125703 | K28: 201.3011226 | L28: 202.7935373 | M28: 204.2970165 | N28: 205.8116423 | O28: 210.2097559 | P28: 211.7682178 | Q28: 213.5158012 | R28: 215.0987736 | S28: 216.6934819 | T28: 218.3000131 | U28: 219.9184548 | V28: 221.5488955 | W28: 223.191424 | X28: 224.8461299 | Y28: 226.5131035 | Z28: 228.1924358 | AA28: 229.8842185 | AB28: 231.5885437 | AC28: 233.3055045 | AD28: 235.0351946 | AE28: 236.7777084 | AF28: 238.5331409 | AG28: 240.3015878 | AH28: 242.0831458 | AI28: 243.877912 | AJ28: 245.6859842 | AK28: 247.5074612 | AL28: 249.3424424 | AM28: 251.1910278 | AN28: 252.6535082 | AO28: =SUM(AO22:AO27) -> 251.6522516 | AP28: 250.650995 | AQ28: 249.6497384 | AR28: 248.6484818 | AS28: 247.6472251 | AT28: 246.6459685 | AU28: 245.6447119 | AV28: 244.6434553 | AW28: 243.6421987 | AX28: 242.6409421 | AY28: 241.6396854 | AZ28: 240.6384288 | BA28: 239.6371722 | BB28: 238.6359156 | BC28: 237.634659 | BD28: 236.6334024 | BE28: 235.6321457 | BF28: 234.6308891 | BG28: 233.6296325 | BH28: 232.6283759 | BI28: 231.6271193 | BJ28: 230.6258627 | BK28: 229.6246061 | BL28: 228.6233494 | BM28: 227.6220928 | BN28: 226.6208362 | BO28: 225.6195796 | BP28: 224.618323 | BQ28: 223.6170664 | BR28: 222.6158097 | BS28: 221.6145531 | BT28: 220.6132965 | BU28: 219.6120399 | BV28: 218.6107833 | BW28: 217.6095267 | BX28: 216.60827 | BY28: 215.6070134 | BZ28: 214.6057568 | CA28: 213.6045002 | CB28: 212.6032436 | CC28: 211.601987 | CD28: 210.6007303 | CE28: 209.5994737 | CF28: 208.5982171 | CG28: 207.5969605 | CH28: 206.5957039 | CI28: 205.5944473 | CJ28: =SUM(CJ22:CJ27) -> 204.4923536 | CK28: =SUM(CK22:CK27) -> 203.3902599 | CL28: 202.2881662 | CM28: 201.1860725 | CN28: 200.0839789 | CO28: 198.9818852 | CP28: 197.8797915 | CQ28: 196.7776978 | CR28: 195.6756041 | CS28: 194.5735104 | CT28: 193.4714168 | CU28: 192.3693231 | CV28: 191.2672294 | CW28: 190.1651357 | CX28: 189.063042 | CY28: 187.9609484 | CZ28: 186.8588547 | DA28: 185.756761 | DB28: 184.6546673 | DC28: 183.5525736 | DD28: 182.4504799 | DE28: 181.3483863 | DF28: 180.2462926 | DG28: 179.1441989 | DH28: 178.0421052 | DI28: 176.9400115 | DJ28: 175.8379179 | DK28: 174.7358242 | DL28: 173.6337305 | DM28: 172.5316368 | DN28: 171.4295431 | DO28: 170.3274494 | DP28: 169.2253558 | DQ28: 168.1232621 | DR28: 167.0211684 | DS28: 165.9190747 | DT28: 164.816981 | DU28: 163.7148873 | DV28: 162.6127937 | DW28: 161.5107 | DX28: 160.4086063 | DY28: 159.3065126 | DZ28: 158.2044189 | EA28: 157.1023253 | EB28: 156.0002316 | EC28: 154.8981379 | ED28: 153.7960442 | EE28: 152.6939505 | EF28: 151.5876553 | EG28: =SUM(EG22:EG27) -> 150.4813601 | EH28: 149.3750648 | EI28: 148.2687696 | EJ28: 147.1624744 | EK28: 146.0561792 | EL28: 144.9498839 | EM28: 143.8435887 | EN28: 142.7372935 | EO28: 141.6309983 | EP28: 140.524703 | EQ28: 139.4184078 | ER28: 138.3121126 | ES28: 137.2058174 | ET28: 136.0995221 | EU28: 134.9932269 | EV28: 133.8869317 | EW28: 132.7806364 | EX28: 131.6743412 | EY28: 130.568046 | EZ28: 129.4617508 | FA28: 128.3554555 | FB28: 127.2491603 | FC28: 126.1428651 | FD28: 125.0365699 | FE28: 123.9302746 | FF28: 122.8239794 | FG28: 121.7176842 | FH28: 120.611389 | FI28: 119.5050937 | FJ28: 118.3987985 | FK28: 117.2925033 | FL28: 116.1862081 | FM28: 115.0799128 | FN28: 113.9736176 | FO28: 112.8673224 | FP28: 111.7610271 | FQ28: 110.6547319 | FR28: 109.5484367 | FS28: 108.4421415 | FT28: 107.3358462 | FU28: 106.229551 | FV28: 105.1232558 | FW28: 104.0169606 | FX28: 102.9106653 | FY28: 101.8043701 | FZ28: 100.6980749 | GA28: 99.59177965 | GB28: =SUM(GB22:GB27) -> 98.48522183 | GC28: =SUM(GC22:GC27) -> 97.37866401 | GD28: 96.27210618 | GE28: 95.16554836 | GF28: 94.05899054 | GG28: 92.95243272 | GH28: 91.84587489 | GI28: 90.73931707 | GJ28: 89.63275925 | GK28: 88.52620142 | GL28: 87.4196436 | GM28: 86.31308578 | GN28: 85.20652795 | GO28: 84.09997013 | GP28: 82.99341231 | GQ28: 81.88685449 | GR28: 80.78029666 | GS28: 79.67373884 | GT28: 78.56718102 | GU28: 77.46062319 | GV28: 76.35406537 | GW28: 75.24750755 | GX28: 74.14094972 | GY28: 73.0343919 | GZ28: 71.92783408 | HA28: 70.82127625 | HB28: 69.71471843 | HC28: 68.60816061 | HD28: 67.50160279 | HE28: 66.39504496 | HF28: 65.28848714 | HG28: 64.18192932 | HH28: 63.07537149 | HI28: 61.96881367 | HJ28: 60.86225585 | HK28: 59.75569802 | HL28: 58.6491402 | HM28: 57.54258238 | HN28: 56.43602455 | HO28: 55.32946673 | HP28: 54.22290891 | HQ28: 53.11635109 | HR28: 52.00979326 | HS28: 50.90323544 | HT28: 49.79667762 | HU28: 48.69011979 | HV28: 47.58356197 | HW28: 46.47700415 | HX28: =SUM(HX22:HX27) -> 45.50873323 | HY28: =SUM(HY22:HY27) -> 44.54046231 | HZ28: 43.57219139 | IA28: 42.60392047 | IB28: 41.63564955 | IC28: 40.66737863 | ID28: 39.69910771 | IE28: 38.73083679 | IF28: 37.76256587 | IG28: 36.79429495 | IH28: 35.82602403 | II28: 34.85775311 | IJ28: 33.88948219 | IK28: 32.92121127 | IL28: 31.95294035 | IM28: 30.98466943 | IN28: 30.01639851 | IO28: 29.04812759 | IP28: 28.07985667 | IQ28: 27.11158575 | IR28: 26.14331483 | IS28: 25.17504391 | IT28: 24.20677299 | IU28: 23.23850207 | IV28: 22.27023115 | IW28: 21.30196023 | IX28: 20.33368931 | IY28: 19.36541839 | IZ28: 18.39714747 | JA28: 17.42887656 | JB28: 16.46060564 | JC28: 15.49233472 | JD28: 14.5240638 | JE28: 13.55579288 | JF28: 12.58752196 | JG28: 11.61925104 | JH28: 10.65098012 | JI28: 9.682709197 | JJ28: 8.714438278 | JK28: 7.746167358 | JL28: 6.777896438 | JM28: 5.809625518 | JN28: 4.841354599 | JO28: 3.873083679 | JP28: 2.904812759 | JQ28: 1.936541839 | JR28: 0.9682709197 | JS28: -2.731148641e-14
A29: =ROW() -> 29
A30: =ROW() -> 30 | B30: Return on Rate Base | AN30: =+$AG$28*$AG$20/12 -> 1.781557962 | AO30: =+$AG$28*$AG$20/12 -> 1.781557962 | AP30: 1.781557962 | AQ30: 1.781557962 | AR30: 1.781557962 | AS30: 1.781557962 | AT30: 1.781557962 | AU30: 1.781557962 | AV30: 1.781557962 | AW30: 1.781557962 | AX30: 1.781557962 | AY30: 1.781557962 | AZ30: 1.781557962 | BA30: 1.781557962 | BB30: 1.781557962 | BC30: 1.781557962 | BD30: 1.781557962 | BE30: 1.781557962 | BF30: 1.781557962 | BG30: 1.781557962 | BH30: 1.781557962 | BI30: 1.781557962 | BJ30: 1.781557962 | BK30: 1.781557962 | BL30: 1.781557962 | BM30: 1.781557962 | BN30: 1.781557962 | BO30: 1.781557962 | BP30: 1.781557962 | BQ30: 1.781557962 | BR30: 1.781557962 | BS30: 1.781557962 | BT30: 1.781557962 | BU30: 1.781557962 | BV30: 1.781557962 | BW30: 1.781557962 | BX30: 1.781557962 | BY30: 1.781557962 | BZ30: 1.781557962 | CA30: 1.781557962 | CB30: 1.781557962 | CC30: 1.781557962 | CD30: 1.781557962 | CE30: 1.781557962 | CF30: 1.781557962 | CG30: 1.781557962 | CH30: 1.781557962 | CI30: 1.781557962 | CJ30: =+$CC$28*$CC$20/12 -> 1.568783661 | CK30: =+$CC$28*$CC$20/12 -> 1.568783661 | CL30: 1.568783661 | CM30: 1.568783661 | CN30: 1.568783661 | CO30: 1.568783661 | CP30: 1.568783661 | CQ30: 1.568783661 | CR30: 1.568783661 | CS30: 1.568783661 | CT30: 1.568783661 | CU30: 1.568783661 | CV30: 1.568783661 | CW30: 1.568783661 | CX30: 1.568783661 | CY30: 1.568783661 | CZ30: 1.568783661 | DA30: 1.568783661 | DB30: 1.568783661 | DC30: 1.568783661 | DD30: 1.568783661 | DE30: 1.568783661 | DF30: 1.568783661 | DG30: 1.568783661 | DH30: 1.568783661 | DI30: 1.568783661 | DJ30: 1.568783661 | DK30: 1.568783661 | DL30: 1.568783661 | DM30: 1.568783661 | DN30: 1.568783661 | DO30: 1.568783661 | DP30: 1.568783661 | DQ30: 1.568783661 | DR30: 1.568783661 | DS30: 1.568783661 | DT30: 1.568783661 | DU30: 1.568783661 | DV30: 1.568783661 | DW30: 1.568783661 | DX30: 1.568783661 | DY30: 1.568783661 | DZ30: 1.568783661 | EA30: 1.568783661 | EB30: 1.568783661 | EC30: 1.568783661 | ED30: 1.568783661 | EE30: 1.568783661 | EF30: =+$DY$28*$DY$20/12 -> 1.181073286 | EG30: =+$DY$28*$DY$20/12 -> 1.181073286 | EH30: 1.181073286 | EI30: 1.181073286 | EJ30: 1.181073286 | EK30: 1.181073286 | EL30: 1.181073286 | EM30: 1.181073286 | EN30: 1.181073286 | EO30: 1.181073286 | EP30: 1.181073286 | EQ30: 1.181073286 | ER30: 1.181073286 | ES30: 1.181073286 | ET30: 1.181073286 | EU30: 1.181073286 | EV30: 1.181073286 | EW30: 1.181073286 | EX30: 1.181073286 | EY30: 1.181073286 | EZ30: 1.181073286 | FA30: 1.181073286 | FB30: 1.181073286 | FC30: 1.181073286 | FD30: 1.181073286 | FE30: 1.181073286 | FF30: 1.181073286 | FG30: 1.181073286 | FH30: 1.181073286 | FI30: 1.181073286 | FJ30: 1.181073286 | FK30: 1.181073286 | FL30: 1.181073286 | FM30: 1.181073286 | FN30: 1.181073286 | FO30: 1.181073286 | FP30: 1.181073286 | FQ30: 1.181073286 | FR30: 1.181073286 | FS30: 1.181073286 | FT30: 1.181073286 | FU30: 1.181073286 | FV30: 1.181073286 | FW30: 1.181073286 | FX30: 1.181073286 | FY30: 1.181073286 | FZ30: 1.181073286 | GA30: 1.181073286 | GB30: =+$FU$28*$FU$20/12 -> 0.7875690883 | GC30: =+$FU$28*$FU$20/12 -> 0.7875690883 | GD30: 0.7875690883 | GE30: 0.7875690883 | GF30: 0.7875690883 | GG30: 0.7875690883 | GH30: 0.7875690883 | GI30: 0.7875690883 | GJ30: 0.7875690883 | GK30: 0.7875690883 | GL30: 0.7875690883 | GM30: 0.7875690883 | GN30: 0.7875690883 | GO30: 0.7875690883 | GP30: 0.7875690883 | GQ30: 0.7875690883 | GR30: 0.7875690883 | GS30: 0.7875690883 | GT30: 0.7875690883 | GU30: 0.7875690883 | GV30: 0.7875690883 | GW30: 0.7875690883 | GX30: 0.7875690883 | GY30: 0.7875690883 | GZ30: 0.7875690883 | HA30: 0.7875690883 | HB30: 0.7875690883 | HC30: 0.7875690883 | HD30: 0.7875690883 | HE30: 0.7875690883 | HF30: 0.7875690883 | HG30: 0.7875690883 | HH30: 0.7875690883 | HI30: 0.7875690883 | HJ30: 0.7875690883 | HK30: 0.7875690883 | HL30: 0.7875690883 | HM30: 0.7875690883 | HN30: 0.7875690883 | HO30: 0.7875690883 | HP30: 0.7875690883 | HQ30: 0.7875690883 | HR30: 0.7875690883 | HS30: 0.7875690883 | HT30: 0.7875690883 | HU30: 0.7875690883 | HV30: 0.7875690883 | HW30: 0.7875690883 | HX30: =+$HQ$28*$HQ$20/12 -> 0.3937962252 | HY30: =+$HQ$28*$HQ$20/12 -> 0.3937962252 | HZ30: 0.3937962252 | IA30: 0.3937962252 | IB30: 0.3937962252 | IC30: 0.3937962252 | ID30: 0.3937962252 | IE30: 0.3937962252 | IF30: 0.3937962252 | IG30: 0.3937962252 | IH30: 0.3937962252 | II30: 0.3937962252 | IJ30: 0.3937962252 | IK30: 0.3937962252 | IL30: 0.3937962252 | IM30: 0.3937962252 | IN30: 0.3937962252 | IO30: 0.3937962252 | IP30: 0.3937962252 | IQ30: 0.3937962252 | IR30: 0.3937962252 | IS30: 0.3937962252 | IT30: 0.3937962252 | IU30: 0.3937962252 | IV30: 0.3937962252 | IW30: 0.3937962252 | IX30: 0.3937962252 | IY30: 0.3937962252 | IZ30: 0.3937962252 | JA30: 0.3937962252 | JB30: 0.3937962252 | JC30: 0.3937962252 | JD30: 0.3937962252 | JE30: 0.3937962252 | JF30: 0.3937962252 | JG30: 0.3937962252 | JH30: 0.3937962252 | JI30: 0.3937962252 | JJ30: 0.3937962252 | JK30: 0.3937962252 | JL30: 0.3937962252 | JM30: 0.3937962252 | JN30: 0.3937962252 | JO30: 0.3937962252 | JP30: 0.3937962252 | JQ30: 0.3937962252 | JR30: 0.3937962252 | JS30: 0.3937962252 | JT30: =SUM(E30:JS30) -> 274.2134507
B31: FAC Recovery | L31: =+$K$27/12 -> -6.535063678 | M31: =+$K$27/12 -> -6.535063678 | N31: -6.535063678 | O31: -6.535063678 | P31: -6.535063678 | Q31: -6.535063678 | R31: -6.535063678 | S31: -6.535063678 | T31: -6.535063678 | U31: -6.535063678 | V31: -6.535063678 | W31: -6.535063678 | X31: =SUM(L31:W31) -> -78.42076413
AN32: =+AN30-AN27 -> 2.782814578 | AO32: =+AO30-AO27 -> 2.782814578 | AP32: 2.782814578 | AQ32: 2.782814578 | AR32: 2.782814578 | AS32: 2.782814578 | AT32: 2.782814578 | AU32: 2.782814578 | AV32: 2.782814578 | AW32: 2.782814578 | AX32: 2.782814578 | AY32: 2.782814578 | AZ32: 2.782814578 | BA32: 2.782814578 | BB32: 2.782814578 | BC32: 2.782814578 | BD32: 2.782814578 | BE32: 2.782814578 | BF32: 2.782814578 | BG32: 2.782814578 | BH32: 2.782814578 | BI32: 2.782814578 | BJ32: 2.782814578 | BK32: 2.782814578 | BL32: 2.782814578 | BM32: 2.782814578 | BN32: 2.782814578 | BO32: 2.782814578 | BP32: 2.782814578 | BQ32: 2.782814578 | BR32: 2.782814578 | BS32: 2.782814578 | BT32: 2.782814578 | BU32: 2.782814578 | BV32: 2.782814578 | BW32: 2.782814578 | BX32: 2.782814578 | BY32: 2.782814578 | BZ32: 2.782814578 | CA32: 2.782814578 | CB32: 2.782814578 | CC32: 2.782814578 | CD32: 2.782814578 | CE32: 2.782814578 | CF32: 2.782814578 | CG32: 2.782814578 | CH32: 2.782814578 | CI32: 2.782814578 | CJ32: 2.670877343 | CK32: =+CK30-CK27 -> 2.670877343 | CL32: 2.670877343 | CM32: 2.670877343 | CN32: 2.670877343 | CO32: 2.670877343 | CP32: 2.670877343 | CQ32: 2.670877343 | CR32: 2.670877343 | CS32: 2.670877343 | CT32: 2.670877343 | CU32: 2.670877343 | CV32: 2.670877343 | CW32: 2.670877343 | CX32: 2.670877343 | CY32: 2.670877343 | CZ32: 2.670877343 | DA32: 2.670877343 | DB32: 2.670877343 | DC32: 2.670877343 | DD32: 2.670877343 | DE32: 2.670877343 | DF32: 2.670877343 | DG32: 2.670877343 | DH32: 2.670877343 | DI32: 2.670877343 | DJ32: 2.670877343 | DK32: 2.670877343 | DL32: 2.670877343 | DM32: 2.670877343 | DN32: 2.670877343 | DO32: 2.670877343 | DP32: 2.670877343 | DQ32: 2.670877343 | DR32: 2.670877343 | DS32: 2.670877343 | DT32: 2.670877343 | DU32: 2.670877343 | DV32: 2.670877343 | DW32: 2.670877343 | DX32: 2.670877343 | DY32: 2.670877343 | DZ32: 2.670877343 | EA32: 2.670877343 | EB32: 2.670877343 | EC32: 2.670877343 | ED32: 2.670877343 | EE32: 2.670877343 | EF32: 2.287368513 | EG32: =+EG30-EG27 -> 2.287368513 | EH32: 2.287368513 | EI32: 2.287368513 | EJ32: 2.287368513 | EK32: 2.287368513 | EL32: 2.287368513 | EM32: 2.287368513 | EN32: 2.287368513 | EO32: 2.287368513 | EP32: 2.287368513 | EQ32: 2.287368513 | ER32: 2.287368513 | ES32: 2.287368513 | ET32: 2.287368513 | EU32: 2.287368513 | EV32: 2.287368513 | EW32: 2.287368513 | EX32: 2.287368513 | EY32: 2.287368513 | EZ32: 2.287368513 | FA32: 2.287368513 | FB32: 2.287368513 | FC32: 2.287368513 | FD32: 2.287368513 | FE32: 2.287368513 | FF32: 2.287368513 | FG32: 2.287368513 | FH32: 2.287368513 | FI32: 2.287368513 | FJ32: 2.287368513 | FK32: 2.287368513 | FL32: 2.287368513 | FM32: 2.287368513 | FN32: 2.287368513 | FO32: 2.287368513 | FP32: 2.287368513 | FQ32: 2.287368513 | FR32: 2.287368513 | FS32: 2.287368513 | FT32: 2.287368513 | FU32: 2.287368513 | FV32: 2.287368513 | FW32: 2.287368513 | FX32: 2.287368513 | FY32: 2.287368513 | FZ32: 2.287368513 | GA32: 2.287368513 | GB32: =+GB30-GB27 -> 1.894126911 | GC32: =+GC30-GC27 -> 1.894126911 | GD32: 1.894126911 | GE32: 1.894126911 | GF32: 1.894126911 | GG32: 1.894126911 | GH32: 1.894126911 | GI32: 1.894126911 | GJ32: 1.894126911 | GK32: 1.894126911 | GL32: 1.894126911 | GM32: 1.894126911 | GN32: 1.894126911 | GO32: 1.894126911 | GP32: 1.894126911 | GQ32: 1.894126911 | GR32: 1.894126911 | GS32: 1.894126911 | GT32: 1.894126911 | GU32: 1.894126911 | GV32: 1.894126911 | GW32: 1.894126911 | GX32: 1.894126911 | GY32: 1.894126911 | GZ32: 1.894126911 | HA32: 1.894126911 | HB32: 1.894126911 | HC32: 1.894126911 | HD32: 1.894126911 | HE32: 1.894126911 | HF32: 1.894126911 | HG32: 1.894126911 | HH32: 1.894126911 | HI32: 1.894126911 | HJ32: 1.894126911 | HK32: 1.894126911 | HL32: 1.894126911 | HM32: 1.894126911 | HN32: 1.894126911 | HO32: 1.894126911 | HP32: 1.894126911 | HQ32: 1.894126911 | HR32: 1.894126911 | HS32: 1.894126911 | HT32: 1.894126911 | HU32: 1.894126911 | HV32: 1.894126911 | HW32: 1.894126911 | HX32: =+HX30-HX27 -> 1.362067145 | HY32: =+HY30-HY27 -> 1.362067145 | HZ32: 1.362067145 | IA32: 1.362067145 | IB32: 1.362067145 | IC32: 1.362067145 | ID32: 1.362067145 | IE32: 1.362067145 | IF32: 1.362067145 | IG32: 1.362067145 | IH32: 1.362067145 | II32: 1.362067145 | IJ32: 1.362067145 | IK32: 1.362067145 | IL32: 1.362067145 | IM32: 1.362067145 | IN32: 1.362067145 | IO32: 1.362067145 | IP32: 1.362067145 | IQ32: 1.362067145 | IR32: 1.362067145 | IS32: 1.362067145 | IT32: 1.362067145 | IU32: 1.362067145 | IV32: 1.362067145 | IW32: 1.362067145 | IX32: 1.362067145 | IY32: 1.362067145 | IZ32: 1.362067145 | JA32: 1.362067145 | JB32: 1.362067145 | JC32: 1.362067145 | JD32: 1.362067145 | JE32: 1.362067145 | JF32: 1.362067145 | JG32: 1.362067145 | JH32: 1.362067145 | JI32: 1.362067145 | JJ32: 1.362067145 | JK32: 1.362067145 | JL32: 1.362067145 | JM32: 1.362067145 | JN32: 1.362067145 | JO32: 1.362067145 | JP32: 1.362067145 | JQ32: 1.362067145 | JR32: 1.362067145 | JS32: 1.362067145 | JT32: =+JT30-JT27 -> 606.2889797
B33: Net Present Value - Amort | D33: =-NPV(D12/12,AN32:JS32) -> -352.7440861
B34: Net Present Value - FAC | D34: =NPV(D12/12,L31:W31) -> -76.31301689
D35: =+D34+D33 -> -429.057103
B37: FAC Short term borrowing rate
B38: Would fall in next accumulation Period

Sheet MO West AAO Amort Approach-15
B2: Analysis of February 2021 Winter Weather Event
B3: Evergy Missouri West
B4: In millions | D4: 2021-01-01 | E4: 2021-02-01 | F4: 2021-03-01 | G4: 2021-04-01 | H4: 2021-05-01 | I4: 2021-06-01 | J4: 2021-07-01 | K4: 2021-08-01 | L4: 2021-09-01 | M4: 2021-10-01 | N4: 2021-11-01 | O4: 2021-12-01 | P4: 2022-01-01 | Q4: 2022-02-01 | R4: 2022-03-01 | S4: 2022-04-01 | T4: 2022-05-01 | U4: 2022-06-01 | V4: 2022-07-01 | W4: 2022-08-01 | X4: 2022-09-01 | Y4: 2022-10-01 | Z4: 2022-11-01 | AA4: 2022-12-01 | AB4: 2023-01-01 | AC4: 2023-02-01 | AD4: 2023-03-01 | AE4: 2023-04-01 | AF4: 2023-05-01 | AG4: 2023-06-01 | AH4: 2023-07-01 | AI4: 2023-08-01 | AJ4: 2023-09-01 | AK4: 2023-10-01 | AL4: 2023-11-01 | AM4: 2023-12-01 | AN4: 2024-01-01 | AO4: 2024-02-01 | AP4: 2024-03-01 | AQ4: 2024-04-01 | AR4: 2024-05-01 | AS4: 2024-06-01 | AT4: 2024-07-01 | AU4: 2024-08-01 | AV4: 2024-09-01 | AW4: 2024-10-01 | AX4: 2024-11-01 | AY4: 2024-12-02 | AZ4: 2025-01-01 | BA4: 2025-02-01 | BB4: 2025-03-01 | BC4: 2025-04-01 | BD4: 2025-05-01 | BE4: 2025-06-01 | BF4: 2025-07-01 | BG4: 2025-08-01 | BH4: 2025-09-01 | BI4: 2025-10-01 | BJ4: 2025-11-01 | BK4: 2025-12-01 | BL4: 2026-01-01 | BM4: 2026-02-01 | BN4: 2026-03-01 | BO4: 2026-04-01 | BP4: 2026-05-01 | BQ4: 2026-06-01 | BR4: 2026-07-01 | BS4: 2026-08-01 | BT4: 2026-09-01 | BU4: 2026-10-01 | BV4: 2026-11-01 | BW4: 2026-12-01 | BX4: 2027-01-01 | BY4: 2027-02-01 | BZ4: 2027-03-01 | CA4: 2027-04-01 | CB4: 2027-05-01 | CC4: 2027-06-01 | CD4: 2027-07-01 | CE4: 2027-08-01 | CF4: 2027-09-01 | CG4: 2027-10-01 | CH4: 2027-11-01 | CI4: 2027-12-01 | CJ4: 2028-01-01 | CK4: 2028-02-01 | CL4: 2028-03-01 | CM4: 2028-04-01 | CN4: 2028-05-11 | CO4: 2028-06-01 | CP4: 2028-07-01 | CQ4: 2028-08-01 | CR4: 2028-09-01 | CS4: 2028-10-01 | CT4: 2028-11-01 | CU4: 2028-12-01 | CV4: 2029-01-01 | CW4: 2029-02-01 | CX4: 2029-03-01 | CY4: 2029-04-01 | CZ4: 2029-05-01 | DA4: 2029-06-01 | DB4: 2029-07-01 | DC4: 2029-08-01 | DD4: 2029-09-01 | DE4: 2029-10-01 | DF4: 2029-11-01 | DG4: 2029-12-01 | DH4: 2030-01-01 | DI4: 2030-02-01 | DJ4: 2030-03-01 | DK4: 2030-04-01 | DL4: 2030-05-01 | DM4: 2030-06-01 | DN4: 2030-07-01 | DO4: 2030-08-01 | DP4: 2030-09-01 | DQ4: 2030-10-01 | DR4: 2030-11-01 | DS4: 2030-12-01 | DT4: 2031-01-01 | DU4: 2031-02-01 | DV4: 2031-03-01 | DW4: 2031-04-01 | DX4: 2031-05-01 | DY4: 2031-06-01 | DZ4: 2031-07-01 | EA4: 2031-08-01 | EB4: 2031-09-01 | EC4: 2031-10-01 | ED4: 2031-11-01 | EE4: 2031-12-01 | EF4: 2032-01-01 | EG4: 2032-02-01 | EH4: 2032-03-01 | EI4: 2032-04-01 | EJ4: 2032-05-01 | EK4: 2032-06-01 | EL4: 2032-07-01 | EM4: 2032-08-01 | EN4: 2032-09-01 | EO4: 2032-10-01 | EP4: 2032-11-01 | EQ4: 2032-12-01 | ER4: 2033-01-01 | ES4: 2033-02-01 | ET4: 2033-03-01 | EU4: 2033-04-01 | EV4: 2033-05-01 | EW4: 2033-06-01 | EX4: 2033-07-01 | EY4: 2033-08-01 | EZ4: 2033-09-01 | FA4: 2033-10-01 | FB4: 2033-11-01 | FC4: 2033-12-01 | FD4: 2034-01-01 | FE4: 2034-02-01 | FF4: 2034-03-01 | FG4: 2034-04-01 | FH4: 2034-05-01 | FI4: 2034-06-01 | FJ4: 2034-07-01 | FK4: 2034-08-01 | FL4: 2034-09-01 | FM4: 2034-10-01 | FN4: 2034-11-01 | FO4: 2034-12-01 | FP4: 2035-01-01 | FQ4: 2035-02-01 | FR4: 2035-03-01 | FS4: 2035-04-01 | FT4: 2035-05-01 | FU4: 2035-06-01 | FV4: 2035-07-01 | FW4: 2035-08-01 | FX4: 2035-09-01 | FY4: 2035-10-01 | FZ4: 2035-11-01 | GA4: 2035-12-01 | GB4: 2036-01-01 | GC4: 2036-02-01 | GD4: 2036-03-01 | GE4: 2036-04-01 | GF4: 2036-05-01 | GG4: 2036-06-01 | GH4: 2036-07-01 | GI4: 2036-08-01 | GJ4: 2036-09-01 | GK4: 2036-10-01 | GL4: 2036-11-01 | GM4: 2036-12-01 | GN4: 2037-01-01 | GO4: 2037-02-01 | GP4: 2037-03-01 | GQ4: 2037-04-01 | GR4: 2037-05-01 | GS4: 2037-06-01 | GT4: 2037-07-01 | GU4: 2037-08-01 | GV4: 2037-09-01 | GW4: 2037-10-01 | GX4: 2037-11-01 | GY4: 2037-12-01 | GZ4: 2038-01-01 | HA4: 2038-02-01 | HB4: 2038-03-01 | HC4: 2038-04-01 | HD4: 2038-05-01 | HE4: 2038-06-01 | HF4: 2038-07-01 | HG4: 2038-08-01 | HH4: 2038-09-01 | HI4: 2038-10-01 | HJ4: 2038-11-01 | HK4: 2038-12-01 | HL4: Total
A5: =ROW() -> 5 | B5: Scenario 3 - Outlook
A7: =ROW() -> 7 | B7: Recovery Begins | D7: 2024-01-01 | E7: 2023-01-01 | F7: 2023-01-01 | G7: 2023-01-01 | H7: 2023-01-01 | I7: 2023-01-01 | J7: 2023-01-01 | K7: 2023-01-01 | L7: 2023-01-01 | M7: 2023-01-01 | N7: 2023-01-01 | O7: 2023-01-01 | P7: 2023-01-01 | Q7: 2023-01-01 | R7: 2023-01-01 | S7: 2023-01-01 | T7: 2023-01-01 | U7: 2023-01-01 | V7: 2023-01-01 | W7: 2023-01-01 | X7: 2023-01-01 | Y7: 2023-01-01 | Z7: 2023-01-01 | AA7: 2023-01-01 | AB7: 2023-01-01 | AC7: 2023-01-01 | AD7: 2023-01-01 | AE7: 2023-01-01 | AF7: 2023-01-01 | AG7: 2023-01-01 | AH7: 2023-01-01 | AI7: 2023-01-01 | AJ7: 2023-01-01 | AK7: 2023-01-01 | AL7: 2023-01-01 | AM7: 2023-01-01 | AN7: 2023-01-01 | AO7: 2023-01-01 | AP7: 2023-01-01 | AQ7: 2023-01-01 | AR7: 2023-01-01 | AS7: 2023-01-01 | AT7: 2023-01-01 | AU7: 2023-01-01 | AV7: 2023-01-01 | AW7: 2023-01-01 | AX7: 2023-01-01 | AY7: 2023-01-01 | AZ7: 2023-01-01 | BA7: 2023-01-01 | BB7: 2023-01-01 | BC7: 2023-01-01 | BD7: 2023-01-01 | BE7: 2023-01-01 | BF7: 2023-01-01 | BG7: 2023-01-01 | BH7: 2023-01-01 | BI7: 2023-01-01 | BJ7: 2023-01-01 | BK7: 2023-01-01 | BL7: 2023-01-01 | BM7: 2023-01-01 | BN7: 2023-01-01 | BO7: 2023-01-01 | BP7: 2023-01-01 | BQ7: 2023-01-01 | BR7: 2023-01-01 | BS7: 2023-01-01 | BT7: 2023-01-01 | BU7: 2023-01-01 | BV7: 2023-01-01 | BW7: 2023-01-01 | BX7: 2023-01-01 | BY7: 2023-01-01 | BZ7: 2023-01-01 | CA7: 2023-01-01 | CB7: 2023-01-01 | CC7: 2023-01-01 | CD7: 2023-01-01 | CE7: 2023-01-01 | CF7: 2023-01-01 | CG7: 2023-01-01 | CH7: 2023-01-01 | CI7: 2023-01-01 | CJ7: 2023-01-01 | CK7: 2023-01-01 | CL7: 2023-01-01 | CM7: 2023-01-01 | CN7: 2023-01-01 | CO7: 2023-01-01 | CP7: 2023-01-01 | CQ7: 2023-01-01 | CR7: 2023-01-01 | CS7: 2023-01-01 | CT7: 2023-01-01 | CU7: 2023-01-01 | CV7: 2023-01-01 | CW7: 2023-01-01 | CX7: 2023-01-01 | CY7: 2023-01-01 | CZ7: 2023-01-01 | DA7: 2023-01-01 | DB7: 2023-01-01 | DC7: 2023-01-01 | DD7: 2023-01-01 | DE7: 2023-01-01 | DF7: 2023-01-01 | DG7: 2023-01-01 | DH7: 2023-01-01 | DI7: 2023-01-01 | DJ7: 2023-01-01 | DK7: 2023-01-01 | DL7: 2023-01-01 | DM7: 2023-01-01 | DN7: 2023-01-01 | DO7: 2023-01-01 | DP7: 2023-01-01 | DQ7: 2023-01-01 | DR7: 2023-01-01 | DS7: 2023-01-01 | DT7: 2023-01-01 | DU7: 2023-01-01 | DV7: 2023-01-01 | DW7: 2023-01-01 | DX7: 2023-01-01 | DY7: 2023-01-01 | DZ7: 2023-01-01 | EA7: 2023-01-01 | EB7: 2023-01-01 | EC7: 2023-01-01 | ED7: 2023-01-01 | EE7: 2023-01-01 | EF7: 2023-01-01 | EG7: 2023-01-01 | EH7: 2023-01-01 | EI7: 2023-01-01 | EJ7: 2023-01-01 | EK7: 2023-01-01 | EL7: 2023-01-01 | EM7: 2023-01-01 | EN7: 2023-01-01 | EO7: 2023-01-01 | EP7: 2023-01-01 | EQ7: 2023-01-01 | ER7: 2023-01-01 | ES7: 2023-01-01 | ET7: 2023-01-01 | EU7: 2023-01-01 | EV7: 2023-01-01 | EW7: 2023-01-01 | EX7: 2023-01-01 | EY7: 2023-01-01 | EZ7: 2023-01-01 | FA7: 2023-01-01 | FB7: 2023-01-01 | FC7: 2023-01-01 | FD7: 2023-01-01 | FE7: 2023-01-01 | FF7: 2023-01-01 | FG7: 2023-01-01 | FH7: 2023-01-01 | FI7: 2023-01-01 | FJ7: 2023-01-01 | FK7: 2023-01-01 | FL7: 2023-01-01 | FM7: 2023-01-01 | FN7: 2023-01-01 | FO7: 2023-01-01 | FP7: 2023-01-01 | FQ7: 2023-01-01 | FR7: 2023-01-01 | FS7: 2023-01-01 | FT7: 2023-01-01 | FU7: 2023-01-01 | FV7: 2023-01-01 | FW7: 2023-01-01 | FX7: 2023-01-01 | FY7: 2023-01-01 | FZ7: 2023-01-01 | GA7: 2023-01-01 | GB7: 2023-01-01 | GC7: 2023-01-01 | GD7: 2023-01-01 | GE7: 2023-01-01 | GF7: 2023-01-01 | GG7: 2023-01-01 | GH7: 2023-01-01 | GI7: 2023-01-01 | GJ7: 2023-01-01 | GK7: 2023-01-01 | GL7: 2023-01-01 | GM7: 2023-01-01 | GN7: 2023-01-01 | GO7: 2023-01-01 | GP7: 2023-01-01 | GQ7: 2023-01-01 | GR7: 2023-01-01 | GS7: 2023-01-01 | GT7: 2023-01-01 | GU7: 2023-01-01 | GV7: 2023-01-01 | GW7: 2023-01-01 | GX7: 2023-01-01 | GY7: 2023-01-01 | GZ7: 2023-01-01 | HA7: 2023-01-01 | HB7: 2023-01-01 | HC7: 2023-01-01 | HD7: 2023-01-01 | HE7: 2023-01-01 | HF7: 2023-01-01 | HG7: 2023-01-01 | HH7: 2023-01-01 | HI7: 2023-01-01 | HJ7: 2023-01-01 | HK7: 2023-01-01
A8: =ROW() -> 8 | B8: Recovery Period (Years) | D8: =+'RAK-12 (Revised RAK-4, 8)'!G15 -> 15
A9: =ROW() -> 9 | B9: Recovery Ends | D9: =EOMONTH(D7,D8*12-1)+1 -> 2039-01-01 | E9: =D9 -> 2039-01-01 | F9: =E9 -> 2039-01-01 | G9: 2039-01-01 | H9: 2039-01-01 | I9: 2039-01-01 | J9: 2039-01-01 | K9: 2039-01-01 | L9: 2039-01-01 | M9: 2039-01-01 | N9: 2039-01-01 | O9: 2039-01-01 | P9: 2039-01-01 | Q9: 2039-01-01 | R9: 2039-01-01 | S9: 2039-01-01 | T9: 2039-01-01 | U9: 2039-01-01 | V9: 2039-01-01 | W9: 2039-01-01 | X9: 2039-01-01 | Y9: 2039-01-01 | Z9: 2039-01-01 | AA9: 2039-01-01 | AB9: 2039-01-01 | AC9: 2039-01-01 | AD9: 2039-01-01 | AE9: 2039-01-01 | AF9: 2039-01-01 | AG9: 2039-01-01 | AH9: 2039-01-01 | AI9: 2039-01-01 | AJ9: 2039-01-01 | AK9: 2039-01-01 | AL9: 2039-01-01 | AM9: 2039-01-01 | AN9: 2039-01-01 | AO9: 2039-01-01 | AP9: 2039-01-01 | AQ9: 2039-01-01 | AR9: 2039-01-01 | AS9: 2039-01-01 | AT9: 2039-01-01 | AU9: 2039-01-01 | AV9: 2039-01-01 | AW9: 2039-01-01 | AX9: 2039-01-01 | AY9: 2039-01-01 | AZ9: 2039-01-01 | BA9: 2039-01-01 | BB9: 2039-01-01 | BC9: 2039-01-01 | BD9: 2039-01-01 | BE9: 2039-01-01 | BF9: 2039-01-01 | BG9: 2039-01-01 | BH9: 2039-01-01 | BI9: 2039-01-01 | BJ9: 2039-01-01 | BK9: 2039-01-01 | BL9: 2039-01-01 | BM9: 2039-01-01 | BN9: 2039-01-01 | BO9: 2039-01-01 | BP9: 2039-01-01 | BQ9: 2039-01-01 | BR9: =BQ9 -> 2039-01-01 | BS9: 2039-01-01 | BT9: 2039-01-01 | BU9: 2039-01-01 | BV9: 2039-01-01 | BW9: 2039-01-01 | BX9: 2039-01-01 | BY9: 2039-01-01 | BZ9: 2039-01-01 | CA9: 2039-01-01 | CB9: 2039-01-01 | CC9: 2039-01-01 | CD9: 2039-01-01 | CE9: 2039-01-01 | CF9: 2039-01-01 | CG9: 2039-01-01 | CH9: 2039-01-01 | CI9: 2039-01-01 | CJ9: =CI9 -> 2039-01-01 | CK9: 2039-01-01 | CL9: 2039-01-01 | CM9: 2039-01-01 | CN9: 2039-01-01 | CO9: 2039-01-01 | CP9: 2039-01-01 | CQ9: 2039-01-01 | CR9: 2039-01-01 | CS9: 2039-01-01 | CT9: 2039-01-01 | CU9: 2039-01-01 | CV9: 2039-01-01 | CW9: 2039-01-01 | CX9: 2039-01-01 | CY9: 2039-01-01 | CZ9: 2039-01-01 | DA9: 2039-01-01 | DB9: 2039-01-01 | DC9: 2039-01-01 | DD9: 2039-01-01 | DE9: 2039-01-01 | DF9: 2039-01-01 | DG9: 2039-01-01 | DH9: 2039-01-01 | DI9: 2039-01-01 | DJ9: 2039-01-01 | DK9: 2039-01-01 | DL9: 2039-01-01 | DM9: 2039-01-01 | DN9: 2039-01-01 | DO9: 2039-01-01 | DP9: =DO9 -> 2039-01-01 | DQ9: 2039-01-01 | DR9: 2039-01-01 | DS9: 2039-01-01 | DT9: 2039-01-01 | DU9: 2039-01-01 | DV9: 2039-01-01 | DW9: 2039-01-01 | DX9: 2039-01-01 | DY9: 2039-01-01 | DZ9: 2039-01-01 | EA9: 2039-01-01 | EB9: 2039-01-01 | EC9: 2039-01-01 | ED9: 2039-01-01 | EE9: 2039-01-01 | EF9: 2039-01-01 | EG9: 2039-01-01 | EH9: 2039-01-01 | EI9: 2039-01-01 | EJ9: 2039-01-01 | EK9: 2039-01-01 | EL9: 2039-01-01 | EM9: 2039-01-01 | EN9: 2039-01-01 | EO9: 2039-01-01 | EP9: 2039-01-01 | EQ9: 2039-01-01 | ER9: 2039-01-01 | ES9: 2039-01-01 | ET9: 2039-01-01 | EU9: 2039-01-01 | EV9: =EU9 -> 2039-01-01 | EW9: 2039-01-01 | EX9: 2039-01-01 | EY9: 2039-01-01 | EZ9: 2039-01-01 | FA9: 2039-01-01 | FB9: 2039-01-01 | FC9: 2039-01-01 | FD9: 2039-01-01 | FE9: 2039-01-01 | FF9: 2039-01-01 | FG9: 2039-01-01 | FH9: 2039-01-01 | FI9: 2039-01-01 | FJ9: 2039-01-01 | FK9: 2039-01-01 | FL9: 2039-01-01 | FM9: 2039-01-01 | FN9: 2039-01-01 | FO9: 2039-01-01 | FP9: 2039-01-01 | FQ9: 2039-01-01 | FR9: 2039-01-01 | FS9: 2039-01-01 | FT9: 2039-01-01 | FU9: 2039-01-01 | FV9: 2039-01-01 | FW9: 2039-01-01 | FX9: 2039-01-01 | FY9: 2039-01-01 | FZ9: 2039-01-01 | GA9: 2039-01-01 | GB9: =GA9 -> 2039-01-01 | GC9: 2039-01-01 | GD9: 2039-01-01 | GE9: 2039-01-01 | GF9: 2039-01-01 | GG9: 2039-01-01 | GH9: 2039-01-01 | GI9: 2039-01-01 | GJ9: 2039-01-01 | GK9: 2039-01-01 | GL9: 2039-01-01 | GM9: 2039-01-01 | GN9: 2039-01-01 | GO9: 2039-01-01 | GP9: 2039-01-01 | GQ9: 2039-01-01 | GR9: 2039-01-01 | GS9: 2039-01-01 | GT9: 2039-01-01 | GU9: 2039-01-01 | GV9: 2039-01-01 | GW9: 2039-01-01 | GX9: 2039-01-01 | GY9: 2039-01-01 | GZ9: =GY9 -> 2039-01-01 | HA9: =GZ9 -> 2039-01-01 | HB9: =HA9 -> 2039-01-01 | HC9: =HB9 -> 2039-01-01 | HD9: =HC9 -> 2039-01-01 | HE9: =HD9 -> 2039-01-01 | HF9: =HE9 -> 2039-01-01 | HG9: =HF9 -> 2039-01-01 | HH9: =HG9 -> 2039-01-01 | HI9: =HH9 -> 2039-01-01 | HJ9: =HI9 -> 2039-01-01 | HK9: =HJ9 -> 2039-01-01
A10: =ROW() -> 10
A11: =ROW() -> 11 | B11: Debt Ratio | D11: 0.4825 | E11: =+$D$11 -> 0.4825 | F11: =+$D$11 -> 0.4825 | G11: 0.4825 | H11: 0.4825 | I11: 0.4825 | J11: 0.4825 | K11: 0.4825 | L11: 0.4825 | M11: 0.4825 | N11: 0.4825 | O11: 0.4825 | P11: 0.4825 | Q11: 0.4825 | R11: 0.4825 | S11: 0.4825 | T11: 0.4825 | U11: 0.4825 | V11: 0.4825 | W11: 0.4825 | X11: 0.4825 | Y11: 0.4825 | Z11: 0.4825 | AA11: 0.4825 | AB11: 0.4825 | AC11: 0.4825 | AD11: 0.4825 | AE11: 0.4825 | AF11: 0.4825 | AG11: 0.4825 | AH11: 0.4825 | AI11: 0.4825 | AJ11: 0.4825 | AK11: 0.4825 | AL11: 0.4825 | AM11: 0.4825 | AN11: 0.4825 | AO11: 0.4825 | AP11: 0.4825 | AQ11: 0.4825 | AR11: 0.4825 | AS11: 0.4825 | AT11: 0.4825 | AU11: 0.4825 | AV11: 0.4825 | AW11: 0.4825 | AX11: 0.4825 | AY11: 0.4825 | AZ11: 0.4825 | BA11: 0.4825 | BB11: 0.4825 | BC11: 0.4825 | BD11: 0.4825 | BE11: 0.4825 | BF11: 0.4825 | BG11: 0.4825 | BH11: 0.4825 | BI11: 0.4825 | BJ11: 0.4825 | BK11: 0.4825 | BL11: 0.4825 | BM11: 0.4825 | BN11: 0.4825 | BO11: 0.4825 | BP11: 0.4825 | BQ11: 0.4825 | BR11: =+$D$11 -> 0.4825 | BS11: 0.4825 | BT11: 0.4825 | BU11: 0.4825 | BV11: 0.4825 | BW11: 0.4825 | BX11: 0.4825 | BY11: 0.4825 | BZ11: 0.4825 | CA11: 0.4825 | CB11: 0.4825 | CC11: 0.4825 | CD11: 0.4825 | CE11: 0.4825 | CF11: 0.4825 | CG11: 0.4825 | CH11: 0.4825 | CI11: 0.4825 | CJ11: 0.4825 | CK11: 0.4825 | CL11: 0.4825 | CM11: 0.4825 | CN11: 0.4825 | CO11: 0.4825 | CP11: 0.4825 | CQ11: 0.4825 | CR11: 0.4825 | CS11: 0.4825 | CT11: 0.4825 | CU11: 0.4825 | CV11: 0.4825 | CW11: 0.4825 | CX11: 0.4825 | CY11: 0.4825 | CZ11: 0.4825 | DA11: 0.4825 | DB11: 0.4825 | DC11: 0.4825 | DD11: 0.4825 | DE11: 0.4825 | DF11: 0.4825 | DG11: 0.4825 | DH11: 0.4825 | DI11: 0.4825 | DJ11: 0.4825 | DK11: 0.4825 | DL11: 0.4825 | DM11: 0.4825 | DN11: 0.4825 | DO11: 0.4825 | DP11: 0.4825 | DQ11: 0.4825 | DR11: 0.4825 | DS11: 0.4825 | DT11: 0.4825 | DU11: 0.4825 | DV11: 0.4825 | DW11: 0.4825 | DX11: 0.4825 | DY11: 0.4825 | DZ11: 0.4825 | EA11: 0.4825 | EB11: 0.4825 | EC11: 0.4825 | ED11: =+$D$11 -> 0.4825 | EE11: 0.4825 | EF11: 0.4825 | EG11: 0.4825 | EH11: 0.4825 | EI11: 0.4825 | EJ11: 0.4825 | EK11: 0.4825 | EL11: 0.4825 | EM11: 0.4825 | EN11: 0.4825 | EO11: 0.4825 | EP11: 0.4825 | EQ11: 0.4825 | ER11: 0.4825 | ES11: 0.4825 | ET11: 0.4825 | EU11: 0.4825 | EV11: 0.4825 | EW11: 0.4825 | EX11: 0.4825 | EY11: 0.4825 | EZ11: 0.4825 | FA11: 0.4825 | FB11: 0.4825 | FC11: 0.4825 | FD11: 0.4825 | FE11: 0.4825 | FF11: 0.4825 | FG11: 0.4825 | FH11: 0.4825 | FI11: 0.4825 | FJ11: 0.4825 | FK11: 0.4825 | FL11: 0.4825 | FM11: 0.4825 | FN11: 0.4825 | FO11: 0.4825 | FP11: 0.4825 | FQ11: 0.4825 | FR11: 0.4825 | FS11: 0.4825 | FT11: 0.4825 | FU11: 0.4825 | FV11: 0.4825 | FW11: 0.4825 | FX11: 0.4825 | FY11: 0.4825 | FZ11: 0.4825 | GA11: 0.4825 | GB11: 0.4825 | GC11: 0.4825 | GD11: 0.4825 | GE11: 0.4825 | GF11: 0.4825 | GG11: 0.4825 | GH11: 0.4825 | GI11: 0.4825 | GJ11: 0.4825 | GK11: 0.4825 | GL11: 0.4825 | GM11: 0.4825 | GN11: 0.4825 | GO11: 0.4825 | GP11: =+$D$11 -> 0.4825 | GQ11: 0.4825 | GR11: 0.4825 | GS11: 0.4825 | GT11: 0.4825 | GU11: 0.4825 | GV11: 0.4825 | GW11: 0.4825 | GX11: 0.4825 | GY11: 0.4825 | GZ11: 0.4825 | HA11: 0.4825 | HB11: 0.4825 | HC11: 0.4825 | HD11: 0.4825 | HE11: 0.4825 | HF11: 0.4825 | HG11: 0.4825 | HH11: 0.4825 | HI11: 0.4825 | HJ11: 0.4825 | HK11: 0.4825
A12: =ROW() -> 12 | B12: Debt Rate | D12: 0.0506 | E12: =+$D$12 -> 0.0506 | F12: =+$D$12 -> 0.0506 | G12: 0.0506 | H12: 0.0506 | I12: 0.0506 | J12: 0.0506 | K12: 0.0506 | L12: 0.0506 | M12: 0.0506 | N12: 0.0506 | O12: 0.0506 | P12: 0.0506 | Q12: 0.0506 | R12: 0.0506 | S12: 0.0506 | T12: 0.0506 | U12: 0.0506 | V12: 0.0506 | W12: 0.0506 | X12: 0.0506 | Y12: 0.0506 | Z12: 0.0506 | AA12: 0.0506 | AB12: 0.0506 | AC12: 0.0506 | AD12: 0.0506 | AE12: 0.0506 | AF12: 0.0506 | AG12: 0.0506 | AH12: 0.0506 | AI12: 0.0506 | AJ12: 0.0506 | AK12: 0.0506 | AL12: 0.0506 | AM12: 0.0506 | AN12: 0.0506 | AO12: 0.0506 | AP12: 0.0506 | AQ12: 0.0506 | AR12: 0.0506 | AS12: 0.0506 | AT12: 0.0506 | AU12: 0.0506 | AV12: 0.0506 | AW12: 0.0506 | AX12: 0.0506 | AY12: 0.0506 | AZ12: 0.0506 | BA12: 0.0506 | BB12: 0.0506 | BC12: 0.0506 | BD12: 0.0506 | BE12: 0.0506 | BF12: 0.0506 | BG12: 0.0506 | BH12: 0.0506 | BI12: 0.0506 | BJ12: 0.0506 | BK12: 0.0506 | BL12: 0.0506 | BM12: 0.0506 | BN12: 0.0506 | BO12: 0.0506 | BP12: 0.0506 | BQ12: 0.0506 | BR12: =+$D$12 -> 0.0506 | BS12: 0.0506 | BT12: 0.0506 | BU12: 0.0506 | BV12: 0.0506 | BW12: 0.0506 | BX12: 0.0506 | BY12: 0.0506 | BZ12: 0.0506 | CA12: 0.0506 | CB12: 0.0506 | CC12: 0.0506 | CD12: 0.0506 | CE12: 0.0506 | CF12: 0.0506 | CG12: 0.0506 | CH12: 0.0506 | CI12: 0.0506 | CJ12: 0.0506 | CK12: 0.0506 | CL12: 0.0506 | CM12: 0.0506 | CN12: 0.0506 | CO12: 0.0506 | CP12: 0.0506 | CQ12: 0.0506 | CR12: 0.0506 | CS12: 0.0506 | CT12: 0.0506 | CU12: 0.0506 | CV12: 0.0506 | CW12: 0.0506 | CX12: 0.0506 | CY12: 0.0506 | CZ12: 0.0506 | DA12: 0.0506 | DB12: 0.0506 | DC12: 0.0506 | DD12: 0.0506 | DE12: 0.0506 | DF12: 0.0506 | DG12: 0.0506 | DH12: 0.0506 | DI12: 0.0506 | DJ12: 0.0506 | DK12: 0.0506 | DL12: 0.0506 | DM12: 0.0506 | DN12: 0.0506 | DO12: 0.0506 | DP12: 0.0506 | DQ12: 0.0506 | DR12: 0.0506 | DS12: 0.0506 | DT12: 0.0506 | DU12: 0.0506 | DV12: 0.0506 | DW12: 0.0506 | DX12: 0.0506 | DY12: 0.0506 | DZ12: 0.0506 | EA12: 0.0506 | EB12: 0.0506 | EC12: 0.0506 | ED12: =+$D$12 -> 0.0506 | EE12: 0.0506 | EF12: 0.0506 | EG12: 0.0506 | EH12: 0.0506 | EI12: 0.0506 | EJ12: 0.0506 | EK12: 0.0506 | EL12: 0.0506 | EM12: 0.0506 | EN12: 0.0506 | EO12: 0.0506 | EP12: 0.0506 | EQ12: 0.0506 | ER12: 0.0506 | ES12: 0.0506 | ET12: 0.0506 | EU12: 0.0506 | EV12: 0.0506 | EW12: 0.0506 | EX12: 0.0506 | EY12: 0.0506 | EZ12: 0.0506 | FA12: 0.0506 | FB12: 0.0506 | FC12: 0.0506 | FD12: 0.0506 | FE12: 0.0506 | FF12: 0.0506 | FG12: 0.0506 | FH12: 0.0506 | FI12: 0.0506 | FJ12: 0.0506 | FK12: 0.0506 | FL12: 0.0506 | FM12: 0.0506 | FN12: 0.0506 | FO12: 0.0506 | FP12: 0.0506 | FQ12: 0.0506 | FR12: 0.0506 | FS12: 0.0506 | FT12: 0.0506 | FU12: 0.0506 | FV12: 0.0506 | FW12: 0.0506 | FX12: 0.0506 | FY12: 0.0506 | FZ12: 0.0506 | GA12: 0.0506 | GB12: 0.0506 | GC12: 0.0506 | GD12: 0.0506 | GE12: 0.0506 | GF12: 0.0506 | GG12: 0.0506 | GH12: 0.0506 | GI12: 0.0506 | GJ12: 0.0506 | GK12: 0.0506 | GL12: 0.0506 | GM12: 0.0506 | GN12: 0.0506 | GO12: 0.0506 | GP12: =+$D$12 -> 0.0506 | GQ12: 0.0506 | GR12: 0.0506 | GS12: 0.0506 | GT12: 0.0506 | GU12: 0.0506 | GV12: 0.0506 | GW12: 0.0506 | GX12: 0.0506 | GY12: 0.0506 | GZ12: 0.0506 | HA12: 0.0506 | HB12: 0.0506 | HC12: 0.0506 | HD12: 0.0506 | HE12: 0.0506 | HF12: 0.0506 | HG12: 0.0506 | HH12: 0.0506 | HI12: 0.0506 | HJ12: 0.0506 | HK12: 0.0506
A13: =ROW() -> 13 | B13: Weighted Debt Rate | D13: =D11*D12 -> 0.0244145 | E13: =+$D$13 -> 0.0244145 | F13: =+$D$13 -> 0.0244145 | G13: 0.0244145 | H13: 0.0244145 | I13: 0.0244145 | J13: 0.0244145 | K13: 0.0244145 | L13: 0.0244145 | M13: 0.0244145 | N13: 0.0244145 | O13: 0.0244145 | P13: 0.0244145 | Q13: 0.0244145 | R13: 0.0244145 | S13: 0.0244145 | T13: 0.0244145 | U13: 0.0244145 | V13: 0.0244145 | W13: 0.0244145 | X13: 0.0244145 | Y13: 0.0244145 | Z13: 0.0244145 | AA13: 0.0244145 | AB13: 0.0244145 | AC13: 0.0244145 | AD13: 0.0244145 | AE13: 0.0244145 | AF13: 0.0244145 | AG13: 0.0244145 | AH13: 0.0244145 | AI13: 0.0244145 | AJ13: 0.0244145 | AK13: 0.0244145 | AL13: 0.0244145 | AM13: 0.0244145 | AN13: 0.0244145 | AO13: 0.0244145 | AP13: 0.0244145 | AQ13: 0.0244145 | AR13: 0.0244145 | AS13: 0.0244145 | AT13: 0.0244145 | AU13: 0.0244145 | AV13: 0.0244145 | AW13: 0.0244145 | AX13: 0.0244145 | AY13: 0.0244145 | AZ13: 0.0244145 | BA13: 0.0244145 | BB13: 0.0244145 | BC13: 0.0244145 | BD13: 0.0244145 | BE13: 0.0244145 | BF13: 0.0244145 | BG13: 0.0244145 | BH13: 0.0244145 | BI13: 0.0244145 | BJ13: 0.0244145 | BK13: 0.0244145 | BL13: 0.0244145 | BM13: 0.0244145 | BN13: 0.0244145 | BO13: 0.0244145 | BP13: 0.0244145 | BQ13: 0.0244145 | BR13: =+$D$13 -> 0.0244145 | BS13: 0.0244145 | BT13: 0.0244145 | BU13: 0.0244145 | BV13: 0.0244145 | BW13: 0.0244145 | BX13: 0.0244145 | BY13: 0.0244145 | BZ13: 0.0244145 | CA13: 0.0244145 | CB13: 0.0244145 | CC13: 0.0244145 | CD13: 0.0244145 | CE13: 0.0244145 | CF13: 0.0244145 | CG13: 0.0244145 | CH13: 0.0244145 | CI13: 0.0244145 | CJ13: 0.0244145 | CK13: 0.0244145 | CL13: 0.0244145 | CM13: 0.0244145 | CN13: 0.0244145 | CO13: 0.0244145 | CP13: 0.0244145 | CQ13: 0.0244145 | CR13: 0.0244145 | CS13: 0.0244145 | CT13: 0.0244145 | CU13: 0.0244145 | CV13: 0.0244145 | CW13: 0.0244145 | CX13: 0.0244145 | CY13: 0.0244145 | CZ13: 0.0244145 | DA13: 0.0244145 | DB13: 0.0244145 | DC13: 0.0244145 | DD13: 0.0244145 | DE13: 0.0244145 | DF13: 0.0244145 | DG13: 0.0244145 | DH13: 0.0244145 | DI13: 0.0244145 | DJ13: 0.0244145 | DK13: 0.0244145 | DL13: 0.0244145 | DM13: 0.0244145 | DN13: 0.0244145 | DO13: 0.0244145 | DP13: 0.0244145 | DQ13: 0.0244145 | DR13: 0.0244145 | DS13: 0.0244145 | DT13: 0.0244145 | DU13: 0.0244145 | DV13: 0.0244145 | DW13: 0.0244145 | DX13: 0.0244145 | DY13: 0.0244145 | DZ13: 0.0244145 | EA13: 0.0244145 | EB13: 0.0244145 | EC13: 0.0244145 | ED13: =+$D$13 -> 0.0244145 | EE13: 0.0244145 | EF13: 0.0244145 | EG13: 0.0244145 | EH13: 0.0244145 | EI13: 0.0244145 | EJ13: 0.0244145 | EK13: 0.0244145 | EL13: 0.0244145 | EM13: 0.0244145 | EN13: 0.0244145 | EO13: 0.0244145 | EP13: 0.0244145 | EQ13: 0.0244145 | ER13: 0.0244145 | ES13: 0.0244145 | ET13: 0.0244145 | EU13: 0.0244145 | EV13: 0.0244145 | EW13: 0.0244145 | EX13: 0.0244145 | EY13: 0.0244145 | EZ13: 0.0244145 | FA13: 0.0244145 | FB13: 0.0244145 | FC13: 0.0244145 | FD13: 0.0244145 | FE13: 0.0244145 | FF13: 0.0244145 | FG13: 0.0244145 | FH13: 0.0244145 | FI13: 0.0244145 | FJ13: 0.0244145 | FK13: 0.0244145 | FL13: 0.0244145 | FM13: 0.0244145 | FN13: 0.0244145 | FO13: 0.0244145 | FP13: 0.0244145 | FQ13: 0.0244145 | FR13: 0.0244145 | FS13: 0.0244145 | FT13: 0.0244145 | FU13: 0.0244145 | FV13: 0.0244145 | FW13: 0.0244145 | FX13: 0.0244145 | FY13: 0.0244145 | FZ13: 0.0244145 | GA13: 0.0244145 | GB13: 0.0244145 | GC13: 0.0244145 | GD13: 0.0244145 | GE13: 0.0244145 | GF13: 0.0244145 | GG13: 0.0244145 | GH13: 0.0244145 | GI13: 0.0244145 | GJ13: 0.0244145 | GK13: 0.0244145 | GL13: 0.0244145 | GM13: 0.0244145 | GN13: 0.0244145 | GO13: 0.0244145 | GP13: =+$D$13 -> 0.0244145 | GQ13: 0.0244145 | GR13: 0.0244145 | GS13: 0.0244145 | GT13: 0.0244145 | GU13: 0.0244145 | GV13: 0.0244145 | GW13: 0.0244145 | GX13: 0.0244145 | GY13: 0.0244145 | GZ13: 0.0244145 | HA13: 0.0244145 | HB13: 0.0244145 | HC13: 0.0244145 | HD13: 0.0244145 | HE13: 0.0244145 | HF13: 0.0244145 | HG13: 0.0244145 | HH13: 0.0244145 | HI13: 0.0244145 | HJ13: 0.0244145 | HK13: 0.0244145
A14: =ROW() -> 14
A15: =ROW() -> 15 | B15: Equity Ratio | D15: =1-D11 -> 0.5175 | E15: =+$D$15 -> 0.5175 | F15: =+$D$15 -> 0.5175 | G15: 0.5175 | H15: 0.5175 | I15: 0.5175 | J15: 0.5175 | K15: 0.5175 | L15: 0.5175 | M15: 0.5175 | N15: 0.5175 | O15: 0.5175 | P15: 0.5175 | Q15: 0.5175 | R15: 0.5175 | S15: 0.5175 | T15: 0.5175 | U15: 0.5175 | V15: 0.5175 | W15: 0.5175 | X15: 0.5175 | Y15: 0.5175 | Z15: 0.5175 | AA15: 0.5175 | AB15: 0.5175 | AC15: 0.5175 | AD15: 0.5175 | AE15: 0.5175 | AF15: 0.5175 | AG15: 0.5175 | AH15: 0.5175 | AI15: 0.5175 | AJ15: 0.5175 | AK15: 0.5175 | AL15: 0.5175 | AM15: 0.5175 | AN15: 0.5175 | AO15: 0.5175 | AP15: 0.5175 | AQ15: 0.5175 | AR15: 0.5175 | AS15: 0.5175 | AT15: 0.5175 | AU15: 0.5175 | AV15: 0.5175 | AW15: 0.5175 | AX15: 0.5175 | AY15: 0.5175 | AZ15: 0.5175 | BA15: 0.5175 | BB15: 0.5175 | BC15: 0.5175 | BD15: 0.5175 | BE15: 0.5175 | BF15: 0.5175 | BG15: 0.5175 | BH15: 0.5175 | BI15: 0.5175 | BJ15: 0.5175 | BK15: 0.5175 | BL15: 0.5175 | BM15: 0.5175 | BN15: 0.5175 | BO15: 0.5175 | BP15: 0.5175 | BQ15: 0.5175 | BR15: =+$D$15 -> 0.5175 | BS15: 0.5175 | BT15: 0.5175 | BU15: 0.5175 | BV15: 0.5175 | BW15: 0.5175 | BX15: 0.5175 | BY15: 0.5175 | BZ15: 0.5175 | CA15: 0.5175 | CB15: 0.5175 | CC15: 0.5175 | CD15: 0.5175 | CE15: 0.5175 | CF15: 0.5175 | CG15: 0.5175 | CH15: 0.5175 | CI15: 0.5175 | CJ15: 0.5175 | CK15: 0.5175 | CL15: 0.5175 | CM15: 0.5175 | CN15: 0.5175 | CO15: 0.5175 | CP15: 0.5175 | CQ15: 0.5175 | CR15: 0.5175 | CS15: 0.5175 | CT15: 0.5175 | CU15: 0.5175 | CV15: 0.5175 | CW15: 0.5175 | CX15: 0.5175 | CY15: 0.5175 | CZ15: 0.5175 | DA15: 0.5175 | DB15: 0.5175 | DC15: 0.5175 | DD15: 0.5175 | DE15: 0.5175 | DF15: 0.5175 | DG15: 0.5175 | DH15: 0.5175 | DI15: 0.5175 | DJ15: 0.5175 | DK15: 0.5175 | DL15: 0.5175 | DM15: 0.5175 | DN15: 0.5175 | DO15: 0.5175 | DP15: 0.5175 | DQ15: 0.5175 | DR15: 0.5175 | DS15: 0.5175 | DT15: 0.5175 | DU15: 0.5175 | DV15: 0.5175 | DW15: 0.5175 | DX15: 0.5175 | DY15: 0.5175 | DZ15: 0.5175 | EA15: 0.5175 | EB15: 0.5175 | EC15: 0.5175 | ED15: =+$D$15 -> 0.5175 | EE15: 0.5175 | EF15: 0.5175 | EG15: 0.5175 | EH15: 0.5175 | EI15: 0.5175 | EJ15: 0.5175 | EK15: 0.5175 | EL15: 0.5175 | EM15: 0.5175 | EN15: 0.5175 | EO15: 0.5175 | EP15: 0.5175 | EQ15: 0.5175 | ER15: 0.5175 | ES15: 0.5175 | ET15: 0.5175 | EU15: 0.5175 | EV15: 0.5175 | EW15: 0.5175 | EX15: 0.5175 | EY15: 0.5175 | EZ15: 0.5175 | FA15: 0.5175 | FB15: 0.5175 | FC15: 0.5175 | FD15: 0.5175 | FE15: 0.5175 | FF15: 0.5175 | FG15: 0.5175 | FH15: 0.5175 | FI15: 0.5175 | FJ15: 0.5175 | FK15: 0.5175 | FL15: 0.5175 | FM15: 0.5175 | FN15: 0.5175 | FO15: 0.5175 | FP15: 0.5175 | FQ15: 0.5175 | FR15: 0.5175 | FS15: 0.5175 | FT15: 0.5175 | FU15: 0.5175 | FV15: 0.5175 | FW15: 0.5175 | FX15: 0.5175 | FY15: 0.5175 | FZ15: 0.5175 | GA15: 0.5175 | GB15: 0.5175 | GC15: 0.5175 | GD15: 0.5175 | GE15: 0.5175 | GF15: 0.5175 | GG15: 0.5175 | GH15: 0.5175 | GI15: 0.5175 | GJ15: 0.5175 | GK15: 0.5175 | GL15: 0.5175 | GM15: 0.5175 | GN15: 0.5175 | GO15: 0.5175 | GP15: =+$D$15 -> 0.5175 | GQ15: 0.5175 | GR15: 0.5175 | GS15: 0.5175 | GT15: 0.5175 | GU15: 0.5175 | GV15: 0.5175 | GW15: 0.5175 | GX15: 0.5175 | GY15: 0.5175 | GZ15: 0.5175 | HA15: 0.5175 | HB15: 0.5175 | HC15: 0.5175 | HD15: 0.5175 | HE15: 0.5175 | HF15: 0.5175 | HG15: 0.5175 | HH15: 0.5175 | HI15: 0.5175 | HJ15: 0.5175 | HK15: 0.5175
A16: =ROW() -> 16 | B16: Equity Rate | D16: 0.095 | E16: =+$D$16 -> 0.095 | F16: =+$D$16 -> 0.095 | G16: 0.095 | H16: 0.095 | I16: 0.095 | J16: 0.095 | K16: 0.095 | L16: 0.095 | M16: 0.095 | N16: 0.095 | O16: 0.095 | P16: 0.095 | Q16: 0.095 | R16: 0.095 | S16: 0.095 | T16: 0.095 | U16: 0.095 | V16: 0.095 | W16: 0.095 | X16: 0.095 | Y16: 0.095 | Z16: 0.095 | AA16: 0.095 | AB16: 0.095 | AC16: 0.095 | AD16: 0.095 | AE16: 0.095 | AF16: 0.095 | AG16: 0.095 | AH16: 0.095 | AI16: 0.095 | AJ16: 0.095 | AK16: 0.095 | AL16: 0.095 | AM16: 0.095 | AN16: 0.095 | AO16: 0.095 | AP16: 0.095 | AQ16: 0.095 | AR16: 0.095 | AS16: 0.095 | AT16: 0.095 | AU16: 0.095 | AV16: 0.095 | AW16: 0.095 | AX16: 0.095 | AY16: 0.095 | AZ16: 0.095 | BA16: 0.095 | BB16: 0.095 | BC16: 0.095 | BD16: 0.095 | BE16: 0.095 | BF16: 0.095 | BG16: 0.095 | BH16: 0.095 | BI16: 0.095 | BJ16: 0.095 | BK16: 0.095 | BL16: 0.095 | BM16: 0.095 | BN16: 0.095 | BO16: 0.095 | BP16: 0.095 | BQ16: 0.095 | BR16: =+$D$16 -> 0.095 | BS16: 0.095 | BT16: 0.095 | BU16: 0.095 | BV16: 0.095 | BW16: 0.095 | BX16: 0.095 | BY16: 0.095 | BZ16: 0.095 | CA16: 0.095 | CB16: 0.095 | CC16: 0.095 | CD16: 0.095 | CE16: 0.095 | CF16: 0.095 | CG16: 0.095 | CH16: 0.095 | CI16: 0.095 | CJ16: 0.095 | CK16: 0.095 | CL16: 0.095 | CM16: 0.095 | CN16: 0.095 | CO16: 0.095 | CP16: 0.095 | CQ16: 0.095 | CR16: 0.095 | CS16: 0.095 | CT16: 0.095 | CU16: 0.095 | CV16: 0.095 | CW16: 0.095 | CX16: 0.095 | CY16: 0.095 | CZ16: 0.095 | DA16: 0.095 | DB16: 0.095 | DC16: 0.095 | DD16: 0.095 | DE16: 0.095 | DF16: 0.095 | DG16: 0.095 | DH16: 0.095 | DI16: 0.095 | DJ16: 0.095 | DK16: 0.095 | DL16: 0.095 | DM16: 0.095 | DN16: 0.095 | DO16: 0.095 | DP16: 0.095 | DQ16: 0.095 | DR16: 0.095 | DS16: 0.095 | DT16: 0.095 | DU16: 0.095 | DV16: 0.095 | DW16: 0.095 | DX16: 0.095 | DY16: 0.095 | DZ16: 0.095 | EA16: 0.095 | EB16: 0.095 | EC16: 0.095 | ED16: =+$D$16 -> 0.095 | EE16: 0.095 | EF16: 0.095 | EG16: 0.095 | EH16: 0.095 | EI16: 0.095 | EJ16: 0.095 | EK16: 0.095 | EL16: 0.095 | EM16: 0.095 | EN16: 0.095 | EO16: 0.095 | EP16: 0.095 | EQ16: 0.095 | ER16: 0.095 | ES16: 0.095 | ET16: 0.095 | EU16: 0.095 | EV16: 0.095 | EW16: 0.095 | EX16: 0.095 | EY16: 0.095 | EZ16: 0.095 | FA16: 0.095 | FB16: 0.095 | FC16: 0.095 | FD16: 0.095 | FE16: 0.095 | FF16: 0.095 | FG16: 0.095 | FH16: 0.095 | FI16: 0.095 | FJ16: 0.095 | FK16: 0.095 | FL16: 0.095 | FM16: 0.095 | FN16: 0.095 | FO16: 0.095 | FP16: 0.095 | FQ16: 0.095 | FR16: 0.095 | FS16: 0.095 | FT16: 0.095 | FU16: 0.095 | FV16: 0.095 | FW16: 0.095 | FX16: 0.095 | FY16: 0.095 | FZ16: 0.095 | GA16: 0.095 | GB16: 0.095 | GC16: 0.095 | GD16: 0.095 | GE16: 0.095 | GF16: 0.095 | GG16: 0.095 | GH16: 0.095 | GI16: 0.095 | GJ16: 0.095 | GK16: 0.095 | GL16: 0.095 | GM16: 0.095 | GN16: 0.095 | GO16: 0.095 | GP16: =+$D$16 -> 0.095 | GQ16: 0.095 | GR16: 0.095 | GS16: 0.095 | GT16: 0.095 | GU16: 0.095 | GV16: 0.095 | GW16: 0.095 | GX16: 0.095 | GY16: 0.095 | GZ16: 0.095 | HA16: 0.095 | HB16: 0.095 | HC16: 0.095 | HD16: 0.095 | HE16: 0.095 | HF16: 0.095 | HG16: 0.095 | HH16: 0.095 | HI16: 0.095 | HJ16: 0.095 | HK16: 0.095
A17: =ROW() -> 17 | B17: Tax Rate | D17: 0.2384 | E17: =+$D$17 -> 0.2384 | F17: =+$D$17 -> 0.2384 | G17: 0.2384 | H17: 0.2384 | I17: 0.2384 | J17: 0.2384 | K17: 0.2384 | L17: 0.2384 | M17: 0.2384 | N17: 0.2384 | O17: 0.2384 | P17: 0.2384 | Q17: 0.2384 | R17: 0.2384 | S17: 0.2384 | T17: 0.2384 | U17: 0.2384 | V17: 0.2384 | W17: 0.2384 | X17: 0.2384 | Y17: 0.2384 | Z17: 0.2384 | AA17: 0.2384 | AB17: 0.2384 | AC17: 0.2384 | AD17: 0.2384 | AE17: 0.2384 | AF17: 0.2384 | AG17: 0.2384 | AH17: 0.2384 | AI17: 0.2384 | AJ17: 0.2384 | AK17: 0.2384 | AL17: 0.2384 | AM17: 0.2384 | AN17: 0.2384 | AO17: 0.2384 | AP17: 0.2384 | AQ17: 0.2384 | AR17: 0.2384 | AS17: 0.2384 | AT17: 0.2384 | AU17: 0.2384 | AV17: 0.2384 | AW17: 0.2384 | AX17: 0.2384 | AY17: 0.2384 | AZ17: 0.2384 | BA17: 0.2384 | BB17: 0.2384 | BC17: 0.2384 | BD17: 0.2384 | BE17: 0.2384 | BF17: 0.2384 | BG17: 0.2384 | BH17: 0.2384 | BI17: 0.2384 | BJ17: 0.2384 | BK17: 0.2384 | BL17: 0.2384 | BM17: 0.2384 | BN17: 0.2384 | BO17: 0.2384 | BP17: 0.2384 | BQ17: 0.2384 | BR17: =+$D$17 -> 0.2384 | BS17: 0.2384 | BT17: 0.2384 | BU17: 0.2384 | BV17: 0.2384 | BW17: 0.2384 | BX17: 0.2384 | BY17: 0.2384 | BZ17: 0.2384 | CA17: 0.2384 | CB17: 0.2384 | CC17: 0.2384 | CD17: 0.2384 | CE17: 0.2384 | CF17: 0.2384 | CG17: 0.2384 | CH17: 0.2384 | CI17: 0.2384 | CJ17: 0.2384 | CK17: 0.2384 | CL17: 0.2384 | CM17: 0.2384 | CN17: 0.2384 | CO17: 0.2384 | CP17: 0.2384 | CQ17: 0.2384 | CR17: 0.2384 | CS17: 0.2384 | CT17: 0.2384 | CU17: 0.2384 | CV17: 0.2384 | CW17: 0.2384 | CX17: 0.2384 | CY17: 0.2384 | CZ17: 0.2384 | DA17: 0.2384 | DB17: 0.2384 | DC17: 0.2384 | DD17: 0.2384 | DE17: 0.2384 | DF17: 0.2384 | DG17: 0.2384 | DH17: 0.2384 | DI17: 0.2384 | DJ17: 0.2384 | DK17: 0.2384 | DL17: 0.2384 | DM17: 0.2384 | DN17: 0.2384 | DO17: 0.2384 | DP17: 0.2384 | DQ17: 0.2384 | DR17: 0.2384 | DS17: 0.2384 | DT17: 0.2384 | DU17: 0.2384 | DV17: 0.2384 | DW17: 0.2384 | DX17: 0.2384 | DY17: 0.2384 | DZ17: 0.2384 | EA17: 0.2384 | EB17: 0.2384 | EC17: 0.2384 | ED17: =+$D$17 -> 0.2384 | EE17: 0.2384 | EF17: 0.2384 | EG17: 0.2384 | EH17: 0.2384 | EI17: 0.2384 | EJ17: 0.2384 | EK17: 0.2384 | EL17: 0.2384 | EM17: 0.2384 | EN17: 0.2384 | EO17: 0.2384 | EP17: 0.2384 | EQ17: 0.2384 | ER17: 0.2384 | ES17: 0.2384 | ET17: 0.2384 | EU17: 0.2384 | EV17: 0.2384 | EW17: 0.2384 | EX17: 0.2384 | EY17: 0.2384 | EZ17: 0.2384 | FA17: 0.2384 | FB17: 0.2384 | FC17: 0.2384 | FD17: 0.2384 | FE17: 0.2384 | FF17: 0.2384 | FG17: 0.2384 | FH17: 0.2384 | FI17: 0.2384 | FJ17: 0.2384 | FK17: 0.2384 | FL17: 0.2384 | FM17: 0.2384 | FN17: 0.2384 | FO17: 0.2384 | FP17: 0.2384 | FQ17: 0.2384 | FR17: 0.2384 | FS17: 0.2384 | FT17: 0.2384 | FU17: 0.2384 | FV17: 0.2384 | FW17: 0.2384 | FX17: 0.2384 | FY17: 0.2384 | FZ17: 0.2384 | GA17: 0.2384 | GB17: 0.2384 | GC17: 0.2384 | GD17: 0.2384 | GE17: 0.2384 | GF17: 0.2384 | GG17: 0.2384 | GH17: 0.2384 | GI17: 0.2384 | GJ17: 0.2384 | GK17: 0.2384 | GL17: 0.2384 | GM17: 0.2384 | GN17: 0.2384 | GO17: 0.2384 | GP17: =+$D$17 -> 0.2384 | GQ17: 0.2384 | GR17: 0.2384 | GS17: 0.2384 | GT17: 0.2384 | GU17: 0.2384 | GV17: 0.2384 | GW17: 0.2384 | GX17: 0.2384 | GY17: 0.2384 | GZ17: 0.2384 | HA17: 0.2384 | HB17: 0.2384 | HC17: 0.2384 | HD17: 0.2384 | HE17: 0.2384 | HF17: 0.2384 | HG17: 0.2384 | HH17: 0.2384 | HI17: 0.2384 | HJ17: 0.2384 | HK17: 0.2384
A18: =ROW() -> 18 | B18: Weighted Pre-Tax Equity Rate | D18: =(D15*D16)/(1-D17) -> 0.06455160189 | E18: =+$D$18 -> 0.06455160189 | F18: =+$D$18 -> 0.06455160189 | G18: 0.06455160189 | H18: 0.06455160189 | I18: 0.06455160189 | J18: 0.06455160189 | K18: 0.06455160189 | L18: 0.06455160189 | M18: 0.06455160189 | N18: 0.06455160189 | O18: 0.06455160189 | P18: 0.06455160189 | Q18: 0.06455160189 | R18: 0.06455160189 | S18: 0.06455160189 | T18: 0.06455160189 | U18: 0.06455160189 | V18: 0.06455160189 | W18: 0.06455160189 | X18: 0.06455160189 | Y18: 0.06455160189 | Z18: 0.06455160189 | AA18: 0.06455160189 | AB18: 0.06455160189 | AC18: 0.06455160189 | AD18: 0.06455160189 | AE18: 0.06455160189 | AF18: 0.06455160189 | AG18: 0.06455160189 | AH18: 0.06455160189 | AI18: 0.06455160189 | AJ18: 0.06455160189 | AK18: 0.06455160189 | AL18: 0.06455160189 | AM18: 0.06455160189 | AN18: 0.06455160189 | AO18: 0.06455160189 | AP18: 0.06455160189 | AQ18: 0.06455160189 | AR18: 0.06455160189 | AS18: 0.06455160189 | AT18: 0.06455160189 | AU18: 0.06455160189 | AV18: 0.06455160189 | AW18: 0.06455160189 | AX18: 0.06455160189 | AY18: 0.06455160189 | AZ18: 0.06455160189 | BA18: 0.06455160189 | BB18: 0.06455160189 | BC18: 0.06455160189 | BD18: 0.06455160189 | BE18: 0.06455160189 | BF18: 0.06455160189 | BG18: 0.06455160189 | BH18: 0.06455160189 | BI18: 0.06455160189 | BJ18: 0.06455160189 | BK18: 0.06455160189 | BL18: 0.06455160189 | BM18: 0.06455160189 | BN18: 0.06455160189 | BO18: 0.06455160189 | BP18: 0.06455160189 | BQ18: 0.06455160189 | BR18: =+$D$18 -> 0.06455160189 | BS18: 0.06455160189 | BT18: 0.06455160189 | BU18: 0.06455160189 | BV18: 0.06455160189 | BW18: 0.06455160189 | BX18: 0.06455160189 | BY18: 0.06455160189 | BZ18: 0.06455160189 | CA18: 0.06455160189 | CB18: 0.06455160189 | CC18: 0.06455160189 | CD18: 0.06455160189 | CE18: 0.06455160189 | CF18: 0.06455160189 | CG18: 0.06455160189 | CH18: 0.06455160189 | CI18: 0.06455160189 | CJ18: 0.06455160189 | CK18: 0.06455160189 | CL18: 0.06455160189 | CM18: 0.06455160189 | CN18: 0.06455160189 | CO18: 0.06455160189 | CP18: 0.06455160189 | CQ18: 0.06455160189 | CR18: 0.06455160189 | CS18: 0.06455160189 | CT18: 0.06455160189 | CU18: 0.06455160189 | CV18: 0.06455160189 | CW18: 0.06455160189 | CX18: 0.06455160189 | CY18: 0.06455160189 | CZ18: 0.06455160189 | DA18: 0.06455160189 | DB18: 0.06455160189 | DC18: 0.06455160189 | DD18: 0.06455160189 | DE18: 0.06455160189 | DF18: 0.06455160189 | DG18: 0.06455160189 | DH18: 0.06455160189 | DI18: 0.06455160189 | DJ18: 0.06455160189 | DK18: 0.06455160189 | DL18: 0.06455160189 | DM18: 0.06455160189 | DN18: 0.06455160189 | DO18: 0.06455160189 | DP18: 0.06455160189 | DQ18: 0.06455160189 | DR18: 0.06455160189 | DS18: 0.06455160189 | DT18: 0.06455160189 | DU18: 0.06455160189 | DV18: 0.06455160189 | DW18: 0.06455160189 | DX18: 0.06455160189 | DY18: 0.06455160189 | DZ18: 0.06455160189 | EA18: 0.06455160189 | EB18: 0.06455160189 | EC18: 0.06455160189 | ED18: =+$D$18 -> 0.06455160189 | EE18: 0.06455160189 | EF18: 0.06455160189 | EG18: 0.06455160189 | EH18: 0.06455160189 | EI18: 0.06455160189 | EJ18: 0.06455160189 | EK18: 0.06455160189 | EL18: 0.06455160189 | EM18: 0.06455160189 | EN18: 0.06455160189 | EO18: 0.06455160189 | EP18: 0.06455160189 | EQ18: 0.06455160189 | ER18: 0.06455160189 | ES18: 0.06455160189 | ET18: 0.06455160189 | EU18: 0.06455160189 | EV18: 0.06455160189 | EW18: 0.06455160189 | EX18: 0.06455160189 | EY18: 0.06455160189 | EZ18: 0.06455160189 | FA18: 0.06455160189 | FB18: 0.06455160189 | FC18: 0.06455160189 | FD18: 0.06455160189 | FE18: 0.06455160189 | FF18: 0.06455160189 | FG18: 0.06455160189 | FH18: 0.06455160189 | FI18: 0.06455160189 | FJ18: 0.06455160189 | FK18: 0.06455160189 | FL18: 0.06455160189 | FM18: 0.06455160189 | FN18: 0.06455160189 | FO18: 0.06455160189 | FP18: 0.06455160189 | FQ18: 0.06455160189 | FR18: 0.06455160189 | FS18: 0.06455160189 | FT18: 0.06455160189 | FU18: 0.06455160189 | FV18: 0.06455160189 | FW18: 0.06455160189 | FX18: 0.06455160189 | FY18: 0.06455160189 | FZ18: 0.06455160189 | GA18: 0.06455160189 | GB18: 0.06455160189 | GC18: 0.06455160189 | GD18: 0.06455160189 | GE18: 0.06455160189 | GF18: 0.06455160189 | GG18: 0.06455160189 | GH18: 0.06455160189 | GI18: 0.06455160189 | GJ18: 0.06455160189 | GK18: 0.06455160189 | GL18: 0.06455160189 | GM18: 0.06455160189 | GN18: 0.06455160189 | GO18: 0.06455160189 | GP18: =+$D$18 -> 0.06455160189 | GQ18: 0.06455160189 | GR18: 0.06455160189 | GS18: 0.06455160189 | GT18: 0.06455160189 | GU18: 0.06455160189 | GV18: 0.06455160189 | GW18: 0.06455160189 | GX18: 0.06455160189 | GY18: 0.06455160189 | GZ18: 0.06455160189 | HA18: 0.06455160189 | HB18: 0.06455160189 | HC18: 0.06455160189 | HD18: 0.06455160189 | HE18: 0.06455160189 | HF18: 0.06455160189 | HG18: 0.06455160189 | HH18: 0.06455160189 | HI18: 0.06455160189 | HJ18: 0.06455160189 | HK18: 0.06455160189
A19: =ROW() -> 19 | B19: Total ROR | D19: =+D18+D13 -> 0.08896610189 | E19: =+E18+E13 -> 0.08896610189 | F19: 0.08896610189 | G19: 0.08896610189 | H19: 0.08896610189 | I19: 0.08896610189 | J19: 0.08896610189 | K19: 0.08896610189 | L19: 0.08896610189 | M19: 0.08896610189 | N19: 0.08896610189 | O19: 0.08896610189 | P19: 0.08896610189 | Q19: 0.08896610189 | R19: 0.08896610189 | S19: 0.08896610189 | T19: 0.08896610189 | U19: 0.08896610189 | V19: 0.08896610189 | W19: 0.08896610189 | X19: 0.08896610189 | Y19: 0.08896610189 | Z19: 0.08896610189 | AA19: 0.08896610189 | AB19: 0.08896610189 | AC19: 0.08896610189 | AD19: 0.08896610189 | AE19: 0.08896610189 | AF19: 0.08896610189 | AG19: 0.08896610189 | AH19: 0.08896610189 | AI19: 0.08896610189 | AJ19: 0.08896610189 | AK19: 0.08896610189 | AL19: 0.08896610189 | AM19: 0.08896610189 | AN19: 0.08896610189 | AO19: 0.08896610189 | AP19: 0.08896610189 | AQ19: 0.08896610189 | AR19: 0.08896610189 | AS19: 0.08896610189 | AT19: 0.08896610189 | AU19: 0.08896610189 | AV19: 0.08896610189 | AW19: 0.08896610189 | AX19: 0.08896610189 | AY19: 0.08896610189 | AZ19: 0.08896610189 | BA19: 0.08896610189 | BB19: 0.08896610189 | BC19: 0.08896610189 | BD19: 0.08896610189 | BE19: 0.08896610189 | BF19: 0.08896610189 | BG19: 0.08896610189 | BH19: 0.08896610189 | BI19: 0.08896610189 | BJ19: 0.08896610189 | BK19: 0.08896610189 | BL19: 0.08896610189 | BM19: 0.08896610189 | BN19: 0.08896610189 | BO19: 0.08896610189 | BP19: 0.08896610189 | BQ19: =+BQ18+BQ13 -> 0.08896610189 | BR19: 0.08896610189 | BS19: 0.08896610189 | BT19: 0.08896610189 | BU19: 0.08896610189 | BV19: 0.08896610189 | BW19: 0.08896610189 | BX19: 0.08896610189 | BY19: 0.08896610189 | BZ19: 0.08896610189 | CA19: 0.08896610189 | CB19: 0.08896610189 | CC19: 0.08896610189 | CD19: 0.08896610189 | CE19: 0.08896610189 | CF19: 0.08896610189 | CG19: 0.08896610189 | CH19: 0.08896610189 | CI19: 0.08896610189 | CJ19: 0.08896610189 | CK19: 0.08896610189 | CL19: 0.08896610189 | CM19: 0.08896610189 | CN19: 0.08896610189 | CO19: 0.08896610189 | CP19: 0.08896610189 | CQ19: 0.08896610189 | CR19: 0.08896610189 | CS19: 0.08896610189 | CT19: 0.08896610189 | CU19: 0.08896610189 | CV19: 0.08896610189 | CW19: 0.08896610189 | CX19: 0.08896610189 | CY19: 0.08896610189 | CZ19: 0.08896610189 | DA19: 0.08896610189 | DB19: 0.08896610189 | DC19: 0.08896610189 | DD19: 0.08896610189 | DE19: 0.08896610189 | DF19: 0.08896610189 | DG19: 0.08896610189 | DH19: 0.08896610189 | DI19: 0.08896610189 | DJ19: 0.08896610189 | DK19: 0.08896610189 | DL19: 0.08896610189 | DM19: 0.08896610189 | DN19: 0.08896610189 | DO19: 0.08896610189 | DP19: 0.08896610189 | DQ19: 0.08896610189 | DR19: 0.08896610189 | DS19: 0.08896610189 | DT19: 0.08896610189 | DU19: 0.08896610189 | DV19: 0.08896610189 | DW19: 0.08896610189 | DX19: 0.08896610189 | DY19: 0.08896610189 | DZ19: 0.08896610189 | EA19: 0.08896610189 | EB19: 0.08896610189 | EC19: =+EC18+EC13 -> 0.08896610189 | ED19: 0.08896610189 | EE19: 0.08896610189 | EF19: 0.08896610189 | EG19: 0.08896610189 | EH19: 0.08896610189 | EI19: 0.08896610189 | EJ19: 0.08896610189 | EK19: 0.08896610189 | EL19: 0.08896610189 | EM19: 0.08896610189 | EN19: 0.08896610189 | EO19: 0.08896610189 | EP19: 0.08896610189 | EQ19: 0.08896610189 | ER19: 0.08896610189 | ES19: 0.08896610189 | ET19: 0.08896610189 | EU19: 0.08896610189 | EV19: 0.08896610189 | EW19: 0.08896610189 | EX19: 0.08896610189 | EY19: 0.08896610189 | EZ19: 0.08896610189 | FA19: 0.08896610189 | FB19: 0.08896610189 | FC19: 0.08896610189 | FD19: 0.08896610189 | FE19: 0.08896610189 | FF19: 0.08896610189 | FG19: 0.08896610189 | FH19: 0.08896610189 | FI19: 0.08896610189 | FJ19: 0.08896610189 | FK19: 0.08896610189 | FL19: 0.08896610189 | FM19: 0.08896610189 | FN19: 0.08896610189 | FO19: 0.08896610189 | FP19: 0.08896610189 | FQ19: 0.08896610189 | FR19: 0.08896610189 | FS19: 0.08896610189 | FT19: 0.08896610189 | FU19: 0.08896610189 | FV19: 0.08896610189 | FW19: 0.08896610189 | FX19: 0.08896610189 | FY19: 0.08896610189 | FZ19: 0.08896610189 | GA19: 0.08896610189 | GB19: 0.08896610189 | GC19: 0.08896610189 | GD19: 0.08896610189 | GE19: 0.08896610189 | GF19: 0.08896610189 | GG19: 0.08896610189 | GH19: 0.08896610189 | GI19: 0.08896610189 | GJ19: 0.08896610189 | GK19: 0.08896610189 | GL19: 0.08896610189 | GM19: 0.08896610189 | GN19: 0.08896610189 | GO19: =+GO18+GO13 -> 0.08896610189 | GP19: 0.08896610189 | GQ19: 0.08896610189 | GR19: 0.08896610189 | GS19: 0.08896610189 | GT19: 0.08896610189 | GU19: 0.08896610189 | GV19: 0.08896610189 | GW19: 0.08896610189 | GX19: 0.08896610189 | GY19: 0.08896610189 | GZ19: =+GZ18+GZ13 -> 0.08896610189 | HA19: 0.08896610189 | HB19: 0.08896610189 | HC19: 0.08896610189 | HD19: 0.08896610189 | HE19: 0.08896610189 | HF19: 0.08896610189 | HG19: 0.08896610189 | HH19: 0.08896610189 | HI19: 0.08896610189 | HJ19: 0.08896610189 | HK19: 0.08896610189
A20: =ROW() -> 20 | B20: Asset (Liability): Basis
A21: =ROW() -> 21 | B21: Beginning balance | E21: =D27 -> 0 | F21: 296.1866425 | G21: 298.3825234 | H21: 300.5946843 | I21: 302.8232457 | J21: 300.4750992 | K21: 302.7027741 | L21: 305.6549001 | M21: 307.9209772 | N21: 310.2038546 | O21: 312.5036569 | P21: 317.8439398 | Q21: 320.2003845 | R21: 322.7612125 | S21: 325.1541131 | T21: 327.5647542 | U21: 329.9932675 | V21: 332.4397854 | W21: 334.9044414 | X21: 337.3873699 | Y21: 339.8887065 | Z21: 342.4085876 | AA21: 344.9471507 | AB21: 347.5045343 | AC21: 350.080878 | AD21: 352.6763223 | AE21: 355.2910087 | AF21: 357.9250801 | AG21: 360.57868 | AH21: 363.2519533 | AI21: 365.9450458 | AJ21: 368.6581045 | AK21: 371.3912774 | AL21: 374.1447136 | AM21: 376.9185633 | AN21: 379.7129779 | AO21: 380.1586485 | AP21: 378.1405821 | AQ21: 376.1225157 | AR21: 374.1044493 | AS21: 372.0863829 | AT21: 370.0683164 | AU21: 368.05025 | AV21: 366.0321836 | AW21: 364.0141172 | AX21: 361.9960508 | AY21: 359.9779844 | AZ21: 357.959918 | BA21: 355.9418516 | BB21: 353.9237852 | BC21: 351.9057188 | BD21: 349.8876524 | BE21: 347.869586 | BF21: 345.8515196 | BG21: 343.8334532 | BH21: 341.8153867 | BI21: 339.7973203 | BJ21: 337.7792539 | BK21: 335.7611875 | BL21: 333.7431211 | BM21: 331.7250547 | BN21: 329.7069883 | BO21: 327.6889219 | BP21: 325.6708555 | BQ21: =BP27 -> 323.6527891 | BR21: 321.6347227 | BS21: 319.6166563 | BT21: 317.5985899 | BU21: 315.5805235 | BV21: 313.562457 | BW21: 311.5443906 | BX21: 309.5263242 | BY21: 307.5082578 | BZ21: 305.4901914 | CA21: 303.472125 | CB21: 301.4540586 | CC21: 299.4359922 | CD21: 297.4179258 | CE21: 295.3998594 | CF21: 293.381793 | CG21: 291.3637266 | CH21: 289.3456602 | CI21: 287.3275938 | CJ21: 285.3095273 | CK21: 283.0563612 | CL21: 280.8031951 | CM21: 278.550029 | CN21: 276.2968629 | CO21: 274.0436968 | CP21: 271.7905307 | CQ21: 269.5373646 | CR21: 267.2841985 | CS21: 265.0310324 | CT21: 262.7778663 | CU21: 260.5247002 | CV21: 258.2715341 | CW21: 256.018368 | CX21: 253.7652019 | CY21: 251.5120358 | CZ21: 249.2588697 | DA21: 247.0057036 | DB21: 244.7525375 | DC21: 242.4993714 | DD21: 240.2462053 | DE21: 237.9930392 | DF21: 235.739873 | DG21: 233.4867069 | DH21: 231.2335408 | DI21: 228.9803747 | DJ21: 226.7272086 | DK21: 224.4740425 | DL21: 222.2208764 | DM21: 219.9677103 | DN21: 217.7145442 | DO21: 215.4613781 | DP21: 213.208212 | DQ21: 210.9550459 | DR21: 208.7018798 | DS21: 206.4487137 | DT21: 204.1955476 | DU21: 201.9423815 | DV21: 199.6892154 | DW21: 197.4360493 | DX21: 195.1828832 | DY21: 192.9297171 | DZ21: 190.676551 | EA21: 188.4233849 | EB21: 186.1702188 | EC21: =EB27 -> 183.9170526 | ED21: 181.6638865 | EE21: 179.4107204 | EF21: 177.1575543 | EG21: 174.8875954 | EH21: 172.6176365 | EI21: 170.3476775 | EJ21: 168.0777186 | EK21: 165.8077596 | EL21: 163.5378007 | EM21: 161.2678418 | EN21: 158.9978828 | EO21: 156.7279239 | EP21: 154.4579649 | EQ21: 152.188006 | ER21: 149.9180471 | ES21: 147.6480881 | ET21: 145.3781292 | EU21: 143.1081702 | EV21: 140.8382113 | EW21: 138.5682524 | EX21: 136.2982934 | EY21: 134.0283345 | EZ21: 131.7583755 | FA21: 129.4884166 | FB21: 127.2184577 | FC21: 124.9484987 | FD21: 122.6785398 | FE21: 120.4085808 | FF21: 118.1386219 | FG21: 115.868663 | FH21: 113.598704 | FI21: 111.3287451 | FJ21: 109.0587861 | FK21: 106.7888272 | FL21: 104.5188683 | FM21: 102.2489093 | FN21: 99.97895037 | FO21: 97.70899143 | FP21: 95.43903249 | FQ21: 93.16907355 | FR21: 90.89911461 | FS21: 88.62915567 | FT21: 86.35919673 | FU21: 84.08923779 | FV21: 81.81927885 | FW21: 79.54931991 | FX21: 77.27936097 | FY21: 75.00940203 | FZ21: 72.73944309 | GA21: 70.46948415 | GB21: 68.19952521 | GC21: 66.30509396 | GD21: 64.4106627 | GE21: 62.51623145 | GF21: 60.62180019 | GG21: 58.72736893 | GH21: 56.83293768 | GI21: 54.93850642 | GJ21: 53.04407517 | GK21: 51.14964391 | GL21: 49.25521265 | GM21: 47.3607814 | GN21: 45.46635014 | GO21: =GN27 -> 43.57191889 | GP21: 41.67748763 | GQ21: 39.78305637 | GR21: 37.88862512 | GS21: 35.99419386 | GT21: 34.09976261 | GU21: 32.20533135 | GV21: 30.31090009 | GW21: 28.41646884 | GX21: 26.52203758 | GY21: 24.62760633 | GZ21: =GY27 -> 22.73317507 | HA21: =GZ27 -> 20.83874382 | HB21: =HA27 -> 18.94431256 | HC21: =HB27 -> 17.0498813 | HD21: =HC27 -> 15.15545005 | HE21: =HD27 -> 13.26101879 | HF21: =HE27 -> 11.36658754 | HG21: =HF27 -> 9.47215628 | HH21: =HG27 -> 7.577725024 | HI21: =HH27 -> 5.683293768 | HJ21: =HI27 -> 3.788862512 | HK21: =HJ27 -> 1.894431256
A22: =ROW() -> 22 | B22: Carrying cost - interest | E22: =E21*E13/12 -> 0 | F22: 0.6026040653 | G22: 0.6070716765 | H22: 0.6115724099 | I22: 0.616106511 | J22: 0.6113291091 | K22: 0.6158614064 | L22: 0.6218676299 | M22: 0.6264780582 | N22: 0.6311226674 | O22: 0.635801711 | P22: 0.6466667389 | Q22: =Q21*Q13/12 -> 0.6514610239 | R22: 0.6566711352 | S22: 0.6615395911 | T22: 0.666444141 | U22: 0.6713850524 | V22: 0.676362595 | W22: 0.6813770403 | X22: 0.6864286619 | Y22: 0.6915177354 | Z22: 0.6966445385 | AA22: 0.701809351 | AB22: =AB21*AB13/12 -> 0.7070124545 | AC22: 0.712254133 | AD22: 0.7175346725 | AE22: 0.722854361 | AF22: 0.7282134889 | AG22: 0.7336123485 | AH22: 0.7390512345 | AI22: 0.7445304434 | AJ22: 0.7500502744 | AK22: 0.7556110284 | AL22: 0.7612130091 | AM22: 0.7668565219
A23: =ROW() -> 23 | B23: Carrying cost - equity | E23: =E21*E18/12 -> 0 | F23: 1.593276853 | G23: 1.605089155 | H23: 1.616989032 | I23: 1.628977133 | J23: 1.616345748 | K23: 1.62832908 | L23: 1.644209452 | M23: 1.656399361 | N23: 1.668679644 | O23: 1.681050971 | P23: 1.709777955 | Q23: 1.722453979 | R23: 1.736229441 | S23: 1.749101572 | T23: 1.762069134 | U23: 1.775132836 | V23: 1.78829339 | W23: 1.801551514 | X23: 1.814907932 | Y23: 1.828363373 | Z23: 1.841918569 | AA23: 1.855574262 | AB23: =AB21*AB18/12 -> 1.869331196 | AC23: 1.883190122 | AD23: 1.897151796 | AE23: 1.911216979 | AF23: 1.92538644 | AG23: 1.93966095 | AH23: 1.95404129 | AI23: 1.968528243 | AJ23: 1.9831226 | AK23: 1.997825157 | AL23: 2.012636717 | AM23: 2.027558087
A24: =ROW() -> 24 | B24: Normal Deferral | E24: 296.1866425 | I24: -4.593230146 | K24: 0.7079355832 | O24: 3.023430141 | Q24: 0.1869130212
A25: =ROW() -> 25 | B25: Commission Advisor Fees | AN25: 2.463737
A26: =ROW() -> 26 | B26: Amortization | E26: 0 | F26: 0 | G26: 0 | H26: 0 | I26: 0 | J26: 0 | K26: 0 | L26: 0 | M26: 0 | N26: 0 | O26: 0 | P26: 0 | Q26: 0 | R26: 0 | S26: 0 | T26: 0 | U26: 0 | V26: 0 | W26: 0 | X26: 0 | Y26: 0 | Z26: 0 | AA26: 0 | AN26: =-$AG$27/15/12 -> -2.018066407 | AO26: =-$AG$27/15/12 -> -2.018066407 | AP26: -2.018066407 | AQ26: -2.018066407 | AR26: -2.018066407 | AS26: -2.018066407 | AT26: -2.018066407 | AU26: -2.018066407 | AV26: -2.018066407 | AW26: -2.018066407 | AX26: -2.018066407 | AY26: -2.018066407 | AZ26: -2.018066407 | BA26: -2.018066407 | BB26: -2.018066407 | BC26: -2.018066407 | BD26: -2.018066407 | BE26: -2.018066407 | BF26: -2.018066407 | BG26: -2.018066407 | BH26: -2.018066407 | BI26: -2.018066407 | BJ26: -2.018066407 | BK26: -2.018066407 | BL26: -2.018066407 | BM26: -2.018066407 | BN26: -2.018066407 | BO26: -2.018066407 | BP26: -2.018066407 | BQ26: -2.018066407 | BR26: -2.018066407 | BS26: -2.018066407 | BT26: -2.018066407 | BU26: -2.018066407 | BV26: -2.018066407 | BW26: -2.018066407 | BX26: -2.018066407 | BY26: -2.018066407 | BZ26: -2.018066407 | CA26: -2.018066407 | CB26: -2.018066407 | CC26: -2.018066407 | CD26: -2.018066407 | CE26: -2.018066407 | CF26: -2.018066407 | CG26: -2.018066407 | CH26: -2.018066407 | CI26: -2.018066407 | CJ26: =-$CC$27/11/12 -> -2.253166104 | CK26: =-$CC$27/11/12 -> -2.253166104 | CL26: -2.253166104 | CM26: -2.253166104 | CN26: -2.253166104 | CO26: -2.253166104 | CP26: -2.253166104 | CQ26: -2.253166104 | CR26: -2.253166104 | CS26: -2.253166104 | CT26: -2.253166104 | CU26: -2.253166104 | CV26: -2.253166104 | CW26: -2.253166104 | CX26: -2.253166104 | CY26: -2.253166104 | CZ26: -2.253166104 | DA26: -2.253166104 | DB26: -2.253166104 | DC26: -2.253166104 | DD26: -2.253166104 | DE26: -2.253166104 | DF26: -2.253166104 | DG26: -2.253166104 | DH26: -2.253166104 | DI26: -2.253166104 | DJ26: -2.253166104 | DK26: -2.253166104 | DL26: -2.253166104 | DM26: -2.253166104 | DN26: -2.253166104 | DO26: -2.253166104 | DP26: -2.253166104 | DQ26: -2.253166104 | DR26: -2.253166104 | DS26: -2.253166104 | DT26: -2.253166104 | DU26: -2.253166104 | DV26: -2.253166104 | DW26: -2.253166104 | DX26: -2.253166104 | DY26: -2.253166104 | DZ26: -2.253166104 | EA26: -2.253166104 | EB26: -2.253166104 | EC26: -2.253166104 | ED26: -2.253166104 | EE26: -2.253166104 | EF26: =-$DY$27/7/12 -> -2.26995894 | EG26: =-$DY$27/7/12 -> -2.26995894 | EH26: -2.26995894 | EI26: -2.26995894 | EJ26: -2.26995894 | EK26: -2.26995894 | EL26: -2.26995894 | EM26: -2.26995894 | EN26: -2.26995894 | EO26: -2.26995894 | EP26: -2.26995894 | EQ26: -2.26995894 | ER26: -2.26995894 | ES26: -2.26995894 | ET26: -2.26995894 | EU26: -2.26995894 | EV26: -2.26995894 | EW26: -2.26995894 | EX26: -2.26995894 | EY26: -2.26995894 | EZ26: -2.26995894 | FA26: -2.26995894 | FB26: -2.26995894 | FC26: -2.26995894 | FD26: -2.26995894 | FE26: -2.26995894 | FF26: -2.26995894 | FG26: -2.26995894 | FH26: -2.26995894 | FI26: -2.26995894 | FJ26: -2.26995894 | FK26: -2.26995894 | FL26: -2.26995894 | FM26: -2.26995894 | FN26: -2.26995894 | FO26: -2.26995894 | FP26: -2.26995894 | FQ26: -2.26995894 | FR26: -2.26995894 | FS26: -2.26995894 | FT26: -2.26995894 | FU26: -2.26995894 | FV26: -2.26995894 | FW26: -2.26995894 | FX26: -2.26995894 | FY26: -2.26995894 | FZ26: -2.26995894 | GA26: -2.26995894 | GB26: =-(+$FI$27+SUM($FJ$26:$GA$26))/3/12 -> -1.894431256 | GC26: =-(+$FI$27+SUM($FJ$26:$GA$26))/3/12 -> -1.894431256 | GD26: -1.894431256 | GE26: -1.894431256 | GF26: -1.894431256 | GG26: -1.894431256 | GH26: -1.894431256 | GI26: -1.894431256 | GJ26: -1.894431256 | GK26: -1.894431256 | GL26: -1.894431256 | GM26: -1.894431256 | GN26: -1.894431256 | GO26: -1.894431256 | GP26: -1.894431256 | GQ26: -1.894431256 | GR26: -1.894431256 | GS26: -1.894431256 | GT26: -1.894431256 | GU26: -1.894431256 | GV26: -1.894431256 | GW26: -1.894431256 | GX26: -1.894431256 | GY26: -1.894431256 | GZ26: -1.894431256 | HA26: -1.894431256 | HB26: -1.894431256 | HC26: -1.894431256 | HD26: -1.894431256 | HE26: -1.894431256 | HF26: -1.894431256 | HG26: -1.894431256 | HH26: -1.894431256 | HI26: -1.894431256 | HJ26: -1.894431256 | HK26: -1.894431256 | HL26: =SUM(E26:HK26) -> -382.1767149
A27: =ROW() -> 27 | B27: Ending Balance | E27: =SUM(E21:E26) -> 296.1866425 | F27: 298.3825234 | G27: 300.5946843 | H27: 302.8232457 | I27: 300.4750992 | J27: 302.7027741 | K27: 305.6549001 | L27: 307.9209772 | M27: 310.2038546 | N27: 312.5036569 | O27: 317.8439398 | P27: 320.2003845 | Q27: 322.7612125 | R27: 325.1541131 | S27: 327.5647542 | T27: 329.9932675 | U27: 332.4397854 | V27: 334.9044414 | W27: 337.3873699 | X27: 339.8887065 | Y27: 342.4085876 | Z27: 344.9471507 | AA27: 347.5045343 | AB27: 350.080878 | AC27: 352.6763223 | AD27: 355.2910087 | AE27: 357.9250801 | AF27: 360.57868 | AG27: 363.2519533 | AH27: 365.9450458 | AI27: 368.6581045 | AJ27: 371.3912774 | AK27: 374.1447136 | AL27: 376.9185633 | AM27: 379.7129779 | AN27: 380.1586485 | AO27: =SUM(AO21:AO26) -> 378.1405821 | AP27: 376.1225157 | AQ27: 374.1044493 | AR27: 372.0863829 | AS27: 370.0683164 | AT27: 368.05025 | AU27: 366.0321836 | AV27: 364.0141172 | AW27: 361.9960508 | AX27: 359.9779844 | AY27: 357.959918 | AZ27: 355.9418516 | BA27: 353.9237852 | BB27: 351.9057188 | BC27: 349.8876524 | BD27: 347.869586 | BE27: 345.8515196 | BF27: 343.8334532 | BG27: 341.8153867 | BH27: 339.7973203 | BI27: 337.7792539 | BJ27: 335.7611875 | BK27: 333.7431211 | BL27: 331.7250547 | BM27: 329.7069883 | BN27: 327.6889219 | BO27: 325.6708555 | BP27: 323.6527891 | BQ27: 321.6347227 | BR27: 319.6166563 | BS27: 317.5985899 | BT27: 315.5805235 | BU27: 313.562457 | BV27: 311.5443906 | BW27: 309.5263242 | BX27: 307.5082578 | BY27: 305.4901914 | BZ27: 303.472125 | CA27: 301.4540586 | CB27: 299.4359922 | CC27: =SUM(CC21:CC26) -> 297.4179258 | CD27: 295.3998594 | CE27: 293.381793 | CF27: 291.3637266 | CG27: 289.3456602 | CH27: 287.3275938 | CI27: 285.3095273 | CJ27: =SUM(CJ21:CJ26) -> 283.0563612 | CK27: =SUM(CK21:CK26) -> 280.8031951 | CL27: 278.550029 | CM27: 276.2968629 | CN27: 274.0436968 | CO27: 271.7905307 | CP27: 269.5373646 | CQ27: 267.2841985 | CR27: 265.0310324 | CS27: 262.7778663 | CT27: 260.5247002 | CU27: 258.2715341 | CV27: 256.018368 | CW27: 253.7652019 | CX27: 251.5120358 | CY27: 249.2588697 | CZ27: 247.0057036 | DA27: 244.7525375 | DB27: 242.4993714 | DC27: 240.2462053 | DD27: 237.9930392 | DE27: 235.739873 | DF27: 233.4867069 | DG27: 231.2335408 | DH27: 228.9803747 | DI27: 226.7272086 | DJ27: 224.4740425 | DK27: 222.2208764 | DL27: 219.9677103 | DM27: 217.7145442 | DN27: 215.4613781 | DO27: 213.208212 | DP27: 210.9550459 | DQ27: 208.7018798 | DR27: 206.4487137 | DS27: 204.1955476 | DT27: 201.9423815 | DU27: 199.6892154 | DV27: 197.4360493 | DW27: 195.1828832 | DX27: 192.9297171 | DY27: =SUM(DY21:DY26) -> 190.676551 | DZ27: 188.4233849 | EA27: 186.1702188 | EB27: 183.9170526 | EC27: 181.6638865 | ED27: 179.4107204 | EE27: 177.1575543 | EF27: =SUM(EF21:EF26) -> 174.8875954 | EG27: =SUM(EG21:EG26) -> 172.6176365 | EH27: 170.3476775 | EI27: 168.0777186 | EJ27: 165.8077596 | EK27: 163.5378007 | EL27: 161.2678418 | EM27: 158.9978828 | EN27: 156.7279239 | EO27: 154.4579649 | EP27: 152.188006 | EQ27: 149.9180471 | ER27: 147.6480881 | ES27: 145.3781292 | ET27: 143.1081702 | EU27: 140.8382113 | EV27: 138.5682524 | EW27: 136.2982934 | EX27: 134.0283345 | EY27: 131.7583755 | EZ27: 129.4884166 | FA27: 127.2184577 | FB27: 124.9484987 | FC27: 122.6785398 | FD27: 120.4085808 | FE27: 118.1386219 | FF27: 115.868663 | FG27: 113.598704 | FH27: 111.3287451 | FI27: 109.0587861 | FJ27: 106.7888272 | FK27: 104.5188683 | FL27: 102.2489093 | FM27: 99.97895037 | FN27: 97.70899143 | FO27: 95.43903249 | FP27: 93.16907355 | FQ27: 90.89911461 | FR27: 88.62915567 | FS27: 86.35919673 | FT27: 84.08923779 | FU27: =SUM(FU21:FU26) -> 81.81927885 | FV27: 79.54931991 | FW27: 77.27936097 | FX27: 75.00940203 | FY27: 72.73944309 | FZ27: 70.46948415 | GA27: 68.19952521 | GB27: =SUM(GB21:GB26) -> 66.30509396 | GC27: =SUM(GC21:GC26) -> 64.4106627 | GD27: 62.51623145 | GE27: 60.62180019 | GF27: 58.72736893 | GG27: 56.83293768 | GH27: 54.93850642 | GI27: 53.04407517 | GJ27: 51.14964391 | GK27: 49.25521265 | GL27: 47.3607814 | GM27: 45.46635014 | GN27: 43.57191889 | GO27: 41.67748763 | GP27: 39.78305637 | GQ27: 37.88862512 | GR27: 35.99419386 | GS27: 34.09976261 | GT27: 32.20533135 | GU27: 30.31090009 | GV27: 28.41646884 | GW27: 26.52203758 | GX27: 24.62760633 | GY27: 22.73317507 | GZ27: 20.83874382 | HA27: 18.94431256 | HB27: 17.0498813 | HC27: 15.15545005 | HD27: 13.26101879 | HE27: 11.36658754 | HF27: 9.47215628 | HG27: 7.577725024 | HH27: 5.683293768 | HI27: 3.788862512 | HJ27: 1.894431256 | HK27: 5.773159728e-15
A28: =ROW() -> 28
A29: =ROW() -> 29 | B29: Return on Rate Base | AN29: =+$AG$27*$AG$19/12 -> 2.693092524 | AO29: =+$AG$27*$AG$19/12 -> 2.693092524 | AP29: 2.693092524 | AQ29: 2.693092524 | AR29: 2.693092524 | AS29: 2.693092524 | AT29: 2.693092524 | AU29: 2.693092524 | AV29: 2.693092524 | AW29: 2.693092524 | AX29: 2.693092524 | AY29: 2.693092524 | AZ29: 2.693092524 | BA29: 2.693092524 | BB29: 2.693092524 | BC29: 2.693092524 | BD29: 2.693092524 | BE29: 2.693092524 | BF29: 2.693092524 | BG29: 2.693092524 | BH29: 2.693092524 | BI29: 2.693092524 | BJ29: 2.693092524 | BK29: 2.693092524 | BL29: 2.693092524 | BM29: 2.693092524 | BN29: 2.693092524 | BO29: 2.693092524 | BP29: 2.693092524 | BQ29: 2.693092524 | BR29: 2.693092524 | BS29: 2.693092524 | BT29: 2.693092524 | BU29: 2.693092524 | BV29: 2.693092524 | BW29: 2.693092524 | BX29: 2.693092524 | BY29: 2.693092524 | BZ29: 2.693092524 | CA29: 2.693092524 | CB29: 2.693092524 | CC29: 2.693092524 | CD29: 2.693092524 | CE29: 2.693092524 | CF29: 2.693092524 | CG29: 2.693092524 | CH29: 2.693092524 | CI29: 2.693092524 | CJ29: =+$CC$27*$CC$19/12 -> 2.205009458 | CK29: =+$CC$27*$CC$19/12 -> 2.205009458 | CL29: 2.205009458 | CM29: 2.205009458 | CN29: 2.205009458 | CO29: 2.205009458 | CP29: 2.205009458 | CQ29: 2.205009458 | CR29: 2.205009458 | CS29: 2.205009458 | CT29: 2.205009458 | CU29: 2.205009458 | CV29: 2.205009458 | CW29: 2.205009458 | CX29: 2.205009458 | CY29: 2.205009458 | CZ29: 2.205009458 | DA29: 2.205009458 | DB29: 2.205009458 | DC29: 2.205009458 | DD29: 2.205009458 | DE29: 2.205009458 | DF29: 2.205009458 | DG29: 2.205009458 | DH29: 2.205009458 | DI29: 2.205009458 | DJ29: 2.205009458 | DK29: 2.205009458 | DL29: 2.205009458 | DM29: 2.205009458 | DN29: 2.205009458 | DO29: 2.205009458 | DP29: 2.205009458 | DQ29: 2.205009458 | DR29: 2.205009458 | DS29: 2.205009458 | DT29: 2.205009458 | DU29: 2.205009458 | DV29: 2.205009458 | DW29: 2.205009458 | DX29: 2.205009458 | DY29: 2.205009458 | DZ29: 2.205009458 | EA29: 2.205009458 | EB29: 2.205009458 | EC29: 2.205009458 | ED29: 2.205009458 | EE29: 2.205009458 | EF29: =+$DY$27*$DY$19/12 -> 1.413645788 | EG29: =+$DY$27*$DY$19/12 -> 1.413645788 | EH29: 1.413645788 | EI29: 1.413645788 | EJ29: 1.413645788 | EK29: 1.413645788 | EL29: 1.413645788 | EM29: 1.413645788 | EN29: 1.413645788 | EO29: 1.413645788 | EP29: 1.413645788 | EQ29: 1.413645788 | ER29: 1.413645788 | ES29: 1.413645788 | ET29: 1.413645788 | EU29: 1.413645788 | EV29: 1.413645788 | EW29: 1.413645788 | EX29: 1.413645788 | EY29: 1.413645788 | EZ29: 1.413645788 | FA29: 1.413645788 | FB29: 1.413645788 | FC29: 1.413645788 | FD29: 1.413645788 | FE29: 1.413645788 | FF29: 1.413645788 | FG29: 1.413645788 | FH29: 1.413645788 | FI29: 1.413645788 | FJ29: 1.413645788 | FK29: 1.413645788 | FL29: 1.413645788 | FM29: 1.413645788 | FN29: 1.413645788 | FO29: 1.413645788 | FP29: 1.413645788 | FQ29: 1.413645788 | FR29: 1.413645788 | FS29: 1.413645788 | FT29: 1.413645788 | FU29: 1.413645788 | FV29: 1.413645788 | FW29: 1.413645788 | FX29: 1.413645788 | FY29: 1.413645788 | FZ29: 1.413645788 | GA29: 1.413645788 | GB29: =+$FU$27*$FU$19/12 -> 0.6065951916 | GC29: =+$FU$27*$FU$19/12 -> 0.6065951916 | GD29: 0.6065951916 | GE29: 0.6065951916 | GF29: 0.6065951916 | GG29: 0.6065951916 | GH29: 0.6065951916 | GI29: 0.6065951916 | GJ29: 0.6065951916 | GK29: 0.6065951916 | GL29: 0.6065951916 | GM29: 0.6065951916 | GN29: 0.6065951916 | GO29: 0.6065951916 | GP29: 0.6065951916 | GQ29: 0.6065951916 | GR29: 0.6065951916 | GS29: 0.6065951916 | GT29: 0.6065951916 | GU29: 0.6065951916 | GV29: 0.6065951916 | GW29: 0.6065951916 | GX29: 0.6065951916 | GY29: 0.6065951916 | GZ29: 0.6065951916 | HA29: 0.6065951916 | HB29: 0.6065951916 | HC29: 0.6065951916 | HD29: 0.6065951916 | HE29: 0.6065951916 | HF29: 0.6065951916 | HG29: 0.6065951916 | HH29: 0.6065951916 | HI29: 0.6065951916 | HJ29: 0.6065951916 | HK29: 0.6065951916 | HL29: =SUM(E29:HK29) -> 324.8013199
B31: NPV | D31: =-+NPV(D12/12,AN31:HK31) -> 514.4851288 | AN31: =+AN26-AN29 -> -4.711158931 | AO31: =+AO26-AO29 -> -4.711158931 | AP31: -4.711158931 | AQ31: -4.711158931 | AR31: -4.711158931 | AS31: -4.711158931 | AT31: -4.711158931 | AU31: -4.711158931 | AV31: -4.711158931 | AW31: -4.711158931 | AX31: -4.711158931 | AY31: -4.711158931 | AZ31: -4.711158931 | BA31: -4.711158931 | BB31: -4.711158931 | BC31: -4.711158931 | BD31: -4.711158931 | BE31: -4.711158931 | BF31: -4.711158931 | BG31: -4.711158931 | BH31: -4.711158931 | BI31: -4.711158931 | BJ31: -4.711158931 | BK31: -4.711158931 | BL31: -4.711158931 | BM31: -4.711158931 | BN31: -4.711158931 | BO31: -4.711158931 | BP31: -4.711158931 | BQ31: -4.711158931 | BR31: -4.711158931 | BS31: -4.711158931 | BT31: -4.711158931 | BU31: -4.711158931 | BV31: -4.711158931 | BW31: -4.711158931 | BX31: -4.711158931 | BY31: -4.711158931 | BZ31: -4.711158931 | CA31: -4.711158931 | CB31: -4.711158931 | CC31: -4.711158931 | CD31: -4.711158931 | CE31: -4.711158931 | CF31: -4.711158931 | CG31: -4.711158931 | CH31: -4.711158931 | CI31: -4.711158931 | CJ31: -4.458175562 | CK31: =+CK26-CK29 -> -4.458175562 | CL31: -4.458175562 | CM31: -4.458175562 | CN31: -4.458175562 | CO31: -4.458175562 | CP31: -4.458175562 | CQ31: -4.458175562 | CR31: -4.458175562 | CS31: -4.458175562 | CT31: -4.458175562 | CU31: -4.458175562 | CV31: -4.458175562 | CW31: -4.458175562 | CX31: -4.458175562 | CY31: -4.458175562 | CZ31: -4.458175562 | DA31: -4.458175562 | DB31: -4.458175562 | DC31: -4.458175562 | DD31: -4.458175562 | DE31: -4.458175562 | DF31: -4.458175562 | DG31: -4.458175562 | DH31: -4.458175562 | DI31: -4.458175562 | DJ31: -4.458175562 | DK31: -4.458175562 | DL31: -4.458175562 | DM31: -4.458175562 | DN31: -4.458175562 | DO31: -4.458175562 | DP31: -4.458175562 | DQ31: -4.458175562 | DR31: -4.458175562 | DS31: -4.458175562 | DT31: -4.458175562 | DU31: -4.458175562 | DV31: -4.458175562 | DW31: -4.458175562 | DX31: -4.458175562 | DY31: -4.458175562 | DZ31: -4.458175562 | EA31: -4.458175562 | EB31: -4.458175562 | EC31: -4.458175562 | ED31: -4.458175562 | EE31: -4.458175562 | EF31: =+EF26-EF29 -> -3.683604728 | EG31: =+EG26-EG29 -> -3.683604728 | EH31: -3.683604728 | EI31: -3.683604728 | EJ31: -3.683604728 | EK31: -3.683604728 | EL31: -3.683604728 | EM31: -3.683604728 | EN31: -3.683604728 | EO31: -3.683604728 | EP31: -3.683604728 | EQ31: -3.683604728 | ER31: -3.683604728 | ES31: -3.683604728 | ET31: -3.683604728 | EU31: -3.683604728 | EV31: -3.683604728 | EW31: -3.683604728 | EX31: -3.683604728 | EY31: -3.683604728 | EZ31: -3.683604728 | FA31: -3.683604728 | FB31: -3.683604728 | FC31: -3.683604728 | FD31: -3.683604728 | FE31: -3.683604728 | FF31: -3.683604728 | FG31: -3.683604728 | FH31: -3.683604728 | FI31: -3.683604728 | FJ31: -3.683604728 | FK31: -3.683604728 | FL31: -3.683604728 | FM31: -3.683604728 | FN31: -3.683604728 | FO31: -3.683604728 | FP31: -3.683604728 | FQ31: -3.683604728 | FR31: -3.683604728 | FS31: -3.683604728 | FT31: -3.683604728 | FU31: -3.683604728 | FV31: -3.683604728 | FW31: -3.683604728 | FX31: -3.683604728 | FY31: -3.683604728 | FZ31: -3.683604728 | GA31: -3.683604728 | GB31: =+GB26-GB29 -> -2.501026448 | GC31: =+GC26-GC29 -> -2.501026448 | GD31: -2.501026448 | GE31: -2.501026448 | GF31: -2.501026448 | GG31: -2.501026448 | GH31: -2.501026448 | GI31: -2.501026448 | GJ31: -2.501026448 | GK31: -2.501026448 | GL31: -2.501026448 | GM31: -2.501026448 | GN31: -2.501026448 | GO31: -2.501026448 | GP31: -2.501026448 | GQ31: -2.501026448 | GR31: -2.501026448 | GS31: -2.501026448 | GT31: -2.501026448 | GU31: -2.501026448 | GV31: -2.501026448 | GW31: -2.501026448 | GX31: -2.501026448 | GY31: -2.501026448 | GZ31: -2.501026448 | HA31: -2.501026448 | HB31: -2.501026448 | HC31: -2.501026448 | HD31: -2.501026448 | HE31: -2.501026448 | HF31: -2.501026448 | HG31: -2.501026448 | HH31: -2.501026448 | HI31: -2.501026448 | HJ31: -2.501026448 | HK31: -2.501026448 | HL31: =+HL29-HL26 -> 706.9780347
B33: Jurisdictional Allocator ER-2018-0146 | D33: 0.9962

Sheet Other Supporting Schedules -->

Sheet FAC Dec20-May21 CONF UPD Dec 21
H1: CONFIDENTIAL
A2: Section 8 Periodic Changes to Fuel Adjustment Rates
A4: Summary | C4: ER-2018-0146
C5: eff Dec 6, 2018
C6: Sheet No. 127.13 - 127.23 | O6: =+O4-O5+O4-O3 -> 0
C7: Total | D7: Large Power | E7: Non-LP | F7: notes
A8: 6-months accumulation period ending: | C8: 2021-05-31 | I8: 2020-12-01 | J8: 2021-01-01 | K8: Actual Feb | L8: 2021-03-01 | M8: 2021-04-01 | N8: 2021-05-01 | P8: Total
K9: Uri at 12-2021 | L9: without Uri
A10: (FC) - 501 Fuel | C10: =P10 -> 27796283.59 | H10: (FC) - 501 Fuel | I10: 3709195 | J10: 3277056 | K10: 11821321 | L10: =2843028+465945.31+22911.69 -> 3331885 | M10: 2403293 | N10: 3253533.59 | P10: =SUM(I10:N10) -> 27796283.59
A11: (FC) - 504 Steam Transfer-Fuel | C11: -3752223.57 | H11: (FC) - 504 Steam Transfer-Fuel | I11: -654832 | J11: -697155 | L11: =-938205-116733.4 -> -1054938.4 | M11: -676061 | N11: -669237.17 | P11: =SUM(I11:N11) -> -3752223.57
A12: (E) - 509 Allowances | C12: -315642 | H12: (E) - 509 Allowances | I12: -315642 | J12: - | L12: - | M12: - | N12: 0 | P12: -315642
A13: (FC) - 547 Fuel | C13: 1232513.31 | H13: (FC) - 547 Fuel | I13: 168031 | J13: 272927 | L13: =-72116+1362.02 -> -70753.98 | M13: 740945 | N13: 121364.29 | P13: 1232513.31
A14: (PP) - 555 Purchased Power | C14: 385513751.2 | H14: (PP) - 555 Purchased Power | I14: 14270062 | J14: 16851430 | K14: 314593321 | L14: 14746048.14 | M14: 14918937 | N14: 10133953.08 | P14: 385513751.2
A15: (TC) - 565 Transmission Cost | C15: 5704567.25 | H15: (TC) - 565 Transmission Cost | I15: 934120 | J15: 875309 | K15: 980877 | L15: 971763.29 | M15: 968753 | N15: 973744.96 | P15: 5704567.25
A16: (OSSR) - 447 Off-System Sales Revenue | C16: -17673672.99 | H16: (OSSR) - 447 Off-System Sales Revenue | I16: -1260523 | J16: -608091 | K16: -12357009 | L16: -1177594.89 | M16: -2542391 | N16: 271935.9 | P16: -17673672.99
A17: Actual Net Energy Cost (ANEC) | C17: =SUM(C10:C16) -> 398505576.8 | H17: Actual Net Energy Cost (ANEC) | I17: =SUM(I10:I16) -> 16850411 | J17: 19971476 | K17: 315038510 | L17: 16746409.16 | M17: 15813476 | N17: 14085294.65 | P17: =SUM(P10:P16) -> 398505576.8
A19: Net Base Energy cost (B) | C19: =+C21*C20 -> 94667941.19 | H19: Net Base Energy cost (B) | I19: =I21*I20 -> 16931275.11 | J19: =J21*J20 -> 17568649.44 | K19: 18513606.51 | L19: 14485980.54 | M19: 13441783.82 | N19: =N21*N20 -> 13726645.77 | P19: =SUM(I19:N19) -> 94667941.19
A20: Base Factor (BF) | C20: =+N20 -> 0.0224 | H20: Base Factor (BF) | I20: 0.0224 | J20: 0.0224 | K20: 0.0224 | L20: 0.0224 | M20: 0.0224 | N20: 0.0224
A21: Accumulation Period NSI (SAP) | C21: =+P21 -> 4226247375 | H21: Accumulation Period NSI (SAP) | I21: 755860496 | J21: 784314707 | K21: 826500290.7 | L21: 646695560 | M21: 600079635 | N21: 612796686 | P21: =SUM(I21:N21) -> 4226247375
A22: (ANEC-B) | C22: =+C17-C19 -> 303837635.6 | H22: (ANEC-B) | I22: =I17-I19 -> -80864.1104 | J22: 2402826.563 | K22: 296524903.5 | L22: 2260428.616 | M22: 2371692.176 | N22: 358648.8836 | P22: =P17-P19 -> 303837635.6 | Q22: Actual J
A23: Jurisdictional Factor (J) | C23: =ROUND(+C24/C22,8) -> 0.99633235 | H23: Jurisdictional Factor (J) | I23: 0.9969243157 | J23: 0.9952900565 | K23: 0.9963417841 | L23: 0.9945180707 | M23: 0.9978259703 | N23: 0.997204505 | Q23: =ROUND(+P24/P22,8) -> 0.99633235
A24: (ANEC-B)*J | C24: =ROUND(P24,0) -> 302723265 | H24: (ANEC-B)*J | I24: =+I22*I23 -> -80615.39792 | J24: 2391509.386 | K24: 295440151.4 | L24: 2248037.106 | M24: 2366536.047 | N24: 357646.2825 | P24: =SUM(I24:N24) -> 302723264.8
A25: Customer Responsibility | C25: 0.95
A26: 95% *((ANEC-B)*J) | C26: =+C24*C25 -> 287587101.8 | H26: 95% *((ANEC-B)*J) | I26: =+I24*0.95 -> -76584.62803 | J26: 2271933.917 | K26: 280668143.8 | L26: =+L24*0.95 -> 2135635.251 | M26: 2248209.244 | N26: =+N24*0.95 -> 339763.9683 | P26: =SUM(I26:N26) -> 287587101.5 | Q26: =+P26-P24 -> -15136163.24
A27: True-Up Amount (T) | C27: 570233 | F27: - True-up Section 9
A28: Interest (I) | C28: =I43 -> 964792.7638 | F28: - see Interest note | H28: from monthly tabs: | I28: -76584.6767 | J28: 2271934.563 | K28: 69675.31238 | L28: 2135635.551 | M28: 2248207.984 | N28: 339763.9567 | P28: =SUM(I28:N28) -> 6988632.691
A29: Prudence Adjustment Amount (P) | C29: -984898.2416 | F29: - Sibley ordered adjustment | H29: from balance & interest tab: | I29: -76584.6767 | J29: 2271934.563 | K29: 280668143.8 | L29: 2135635.551 | M29: 2248207.984 | N29: 339763.9567 | P29: =SUM(I29:N29) -> 287587101.2
A30: Fuel and Purchased Power Adjustment (FPA) | C30: =SUM(C26:C29) -> 288137229.3 | I30: =+I29-I26+I28-I26 -> -0.09734447571 | J30: =+J29-J26+J28-J26 -> 1.293339776 | K30: =+K29-K26+K28-K26 -> -280598468.5 | L30: =+L29-L26+L28-L26 -> 0.6004645489 | M30: -2.520304968 | N30: =+N29-N26+N28-N26 -> -0.02324557316
A31: PISA Deferral (Sec. 393.1400) | C31: -209716465.1
A32: FPA Subject to Recover in True-Up | B32: * | C32: =+C30+C31 -> 78420764.13 | D32: 10110730.36 | E32: =+C32-D32 -> 68310033.77 | F32: - See PISA calc workpaper
A33: Estimated Recovery Period Retail NSI (SRP) | C33: =+D33+E33 -> 8845063903 | D33: 2195098621 | E33: 6649965282 | F33: September 2021-August 2022
A34: Current Period Fuel Adjustment Rate (FAR) | C34: =ROUND(+C32/C33,5) -> 0.00887 | D34: =ROUND(+D32/D33,5) -> 0.00461 | E34: 0.01027
A36: VAFSec | C36: 1.0426 | D36: 1.0426 | E36: 1.0426
A37: Current Period FARSec = FAR x VAFSec | C37: =ROUND(+C36*$C$34,5) -> 0.00925 | D37: =ROUND(+D36*$D$34,5) -> 0.00481 | E37: =ROUND(+E36*$E$34,5) -> 0.01071 | F37: =F52 -> - 28th accumulation period
A38: Prior Period FARSec | C38: 0.00117 | D38: 0.00117 | E38: 0.00117 | F38: =F53 -> - 27th accumulation period
A39: Current Annual FARSec | C39: =+C37+C38 -> 0.01042 | D39: =+D37+D38 -> 0.00598 | E39: =+E37+E38 -> 0.01188 | F39: =F54 -> - for billing Sept 2021 - Feb 2021 | H39: Interest Note:
H40: Accumulation Period interest | I40: 1018342.719
A41: VAFPrim | C41: 1.0268 | D41: 1.0268 | E41: 1.0268 | H41: Correction interest from True-up | I41: 0
A42: Current Period FARPrim = FAR x VAFPrim | C42: =ROUND(+C41*$C$34,5) -> 0.00911 | D42: =ROUND(+D41*$D$34,5) -> 0.00473 | E42: =ROUND(+E41*$E$34,5) -> 0.01055 | F42: =F52 -> - 28th accumulation period | H42: Prudence Adjustment Amount interest | I42: -53549.95482
A43: Prior Period FARPrim | C43: 0.00115 | D43: 0.00115 | E43: 0.00115 | F43: =F53 -> - 27th accumulation period | I43: =SUM(I40:I42) -> 964792.7638
A44: Current Annual FARPRIM | C44: =+C42+C43 -> 0.01026 | D44: =+D42+D43 -> 0.00588 | E44: =+E42+E43 -> 0.0117 | F44: =F54 -> - for billing Sept 2021 - Feb 2021
A46: VAFSub | C46: 1.0133 | D46: 1.0133 | E46: 1.0133
A47: Current Period FARSub = FAR x VAFSub | C47: =ROUND(+C46*$C$34,5) -> 0.00899 | D47: =ROUND(+D46*$D$34,5) -> 0.00467 | E47: =ROUND(+E46*$E$34,5) -> 0.01041 | F47: =F52 -> - 28th accumulation period
A48: Prior Period FARSub | C48: 0.00113 | D48: 0.00113 | E48: 0.00113 | F48: =F53 -> - 27th accumulation period
A49: Current Annual FARSub | C49: =+C47+C48 -> 0.01012 | D49: =+D47+D48 -> 0.0058 | E49: =+E47+E48 -> 0.01154 | F49: =F54 -> - for billing Sept 2021 - Feb 2021
A51: VAFTrans | C51: 1.01 | D51: 1.01 | E51: 1.01
A52: Current Period FARTrans = FAR x VAFTrans | C52: =ROUND(+C51*$C$34,5) -> 0.00896 | D52: =ROUND(+D51*$D$34,5) -> 0.00466 | E52: =ROUND(+E51*$E$34,5) -> 0.01037 | F52: - 28th accumulation period
A53: Prior Period FARTrans | C53: 0.00113 | D53: 0.00113 | E53: 0.00113 | F53: - 27th accumulation period
A54: Current Annual FARTrans | C54: =+C52+C53 -> 0.01009 | D54: =+D52+D53 -> 0.00579 | E54: =+E52+E53 -> 0.0115 | F54: - for billing Sept 2021 - Feb 2021
A56: *In accordance with Section 393.1655.6, the Current Period Fuel Adjustment Rate (FAR) is calculated by limiting the Fuel and Purchased Power Adjustment (FPA) to 2% per annum for the Large Power rate class beginning December 6, 2018. Non-LP includes all other rate classes.
B59: ck | C59: =C32/C33 -> 0.00886604834 | D59: =D32/D33 -> 0.00460604834 | E59: 0.01027223916

Sheet RAK-9 (Revised RAK-1, 5)
A1: Updated Fuel Clause Analysis for Winter Weather Event | D1: CONFIDENTIAL
A3: February 2021 calculated at February 28, 2022
A4: Average amounts are 2018, 2019 and 2020 Actual data submitted in fuel clause filings to MPSC
A6: MO West FAC
B7: Avg Feb | C7: Variance from Avg Feb | D7: Actual Feb
A9: Fuel | B9: 6714998 | C9: =+D9-B9 -> 8192651 | D9: 14907649
A10: Fuel disallowed | B10: -3237471 | C10: =+D10-B10 -> 151143 | D10: -3086328
A11: Fuel | B11: =+B9+B10 -> 3477527 | C11: =+C9+C10 -> 8343794 | D11: =+D9+D10 -> 11821321
A13: Purchases | B13: 14927845 | C13: =+D13-B13 -> 304708771.7 | D13: =319636618-1.34 -> 319636616.7
A14: Nucor disallowed | B14: 0 | C14: -6178223 | D14: -6178223
A15: Renewable tariff | B15: 0 | C15: 2019709 | D15: 2019709
A16: PP disallowed | B16: -126052 | C16: -571662 | D16: -697714
A17: Purchased Power | B17: =+B13+B14+B15+B16 -> 14801793 | C17: =+C13+C14+C15+C16 -> 299978595.7 | D17: =+D13+D14+D15+D16 -> 314780388.7
A19: Transmission | B19: 3161704 | C19: =+D19-B19 -> 240216 | D19: 3401920
A20: Nucor disallowed | B20: 0 | C20: -44688 | D20: -44688
A21: Crossroads disallowed | B21: -995893 | C21: -325588 | D21: -1321481
A22: SPP disallowed | B22: -1167704 | C22: 112830 | D22: -1054874
A23: Transmission | B23: =+B19+B20+B21+B22 -> 998107 | C23: =+C19+C20+C21+C22 -> -17230 | D23: =+D19+D20+D21+D22 -> 980877
A25: Sales | B25: -885133 | C25: =+D25-B25 -> -11703577 | D25: -12588710
A26: Wholesale | B26: =193149+1774 -> 194923 | C26: 37335 | D26: 232258
A27: Sales | B27: =+B25+B26 -> -690210 | C27: =+C25+C26 -> -11666242 | D27: =+D25+D26 -> -12356452
A29: Total | B29: =+B11+B17+B23+B27 -> 18587217 | C29: =+C11+C17+C23+C27 -> 296638917.7 | D29: =+D11+D17+D23+D27 -> 315226134.7
A31: NFOM | C31: 0
A33: Total | C33: =C29+C31 -> 296638917.7
A35: Retail Allocation - Energy - Avg | C35: =+'RAK-10 (Revised RAK-2, 6)'!U20 -> 0.995956785
A37: Total - After Retail Allocation | C37: =C33*C35 -> 295439542.8
A39: 95% Recovery | C39: 0.95
A41: Winter Storm URI Costs @ 95% (excl NFOM) | C41: =+C37*C39 -> 280667565.6

Sheet RAK-10 (Revised RAK-2, 6)
Q1: CONFIDENTIAL
A2: Direct Testimony of Ronald A. Klote
A3: Evergy Missouri West
A4: Before the Missouri Public Service Commission
A5: Case. No. EF-2022-0155
A8: Updated Cold Weather Event Reconciliation
A9: Thru February 2022
G10: June 2021 | K10: August 2021 | O10: December 2021 | S10: February 2022
G11: 2nd Qtr | I11: 2nd Qtr Q | K11: 3rd Qtr | M11: 3rd Qtr Q | O11: 4th Qtr | Q11: 4th Qtr Q | S11: 1st Qtr | U11: 1st Qtr Q
E12: AAO Filing | G12: Adj. | I12: Updated Deferral | K12: Adj. | M12: Updated Deferral | O12: Adj. | Q12: Updated Deferral | S12: Adj. | U12: Updated Deferral
A14: MO West
B16: Winter Storm URI Excess Fuel Costs | E16: 297316443.8 | G16: =I16-E16 -> -4610751.3 | I16: 292705692.5 | K16: =M16-I16 -> 710636.17 | M16: 293416328.7 | O16: =Q16-M16 -> 3034963 | Q16: 296451291.7 | S16: 187626 | U16: =Q16+S16 -> 296638917.7
B17: NFOM | E17: 0 | G17: 0 | I17: 0 | K17: 0 | M17: 0 | O17: 0 | Q17: 0 | S17: 0 | U17: 0
B18: Total Deferral | E18: =E16+E17 -> 297316443.8 | G18: -4610751.3 | I18: =I16+I17 -> 292705692.5 | K18: =M18-I18 -> 710636.17 | M18: =M16+M17 -> 293416328.7 | O18: 3034963 | Q18: =Q16+Q17 -> 296451291.7 | S18: =S16+S17 -> 187626 | U18: =U16+U17 -> 296638917.7
C20: Retail Allocation - Energy | E20: 0.99595363 | G20: 0.99755558 | K20: 0.99755558 | O20: 0.9981828 | S20: 0.9981828 | U20: =+U22/U18 -> 0.995956785 | V20: Avg Allocator
E22: =E18*E20 -> 296113391.5 | G22: =G18*G20 -> -4599480.687 | I22: =+E22+G22 -> 291513910.8 | K22: =K18*K20 -> 708899.0767 | M22: =+I22+K22 -> 292222809.8 | O22: =O18*O20 -> 3029447.865 | Q22: =+M22+O22 -> 295252257.7 | S22: =S18*S20 -> 187285.046 | U22: =+Q22+S22 -> 295439542.8
B24: 95% Recovery | E24: 0.95 | G24: 0.95 | I24: 0.95 | K24: 0.95 | M24: 0.95 | O24: 0.95 | Q24: 0.95 | S24: 0.95 | U24: 0.95
B26: Winter Storm URI Costs @ 95% (excl NFOM) | E26: =+E22*E24 -> 281307721.9 | G26: =+G22*G24 -> -4369506.653 | I26: =+I22*I24 -> 276938215.2 | K26: =+K22*K24 -> 673454.1229 | M26: =+M22*M24 -> 277611669.3 | O26: =+O22*O24 -> 2877975.472 | Q26: =+Q22*Q24 -> 280489644.8 | S26: =+S22*S24 -> 177920.7937 | U26: =+U22*U24 -> 280667565.6

Sheet Carrying costs- Staff
A1: Evergy Missouri West
A2: Case No. EF-2022-0155
A3: Prepared by: Kim Bolin
E6: 2021-02-01 | F6: 2021-03-01 | G6: 2021-04-01 | H6: 2021-05-01 | I6: 2021-06-01 | J6: 2021-07-01 | K6: 2021-08-01 | L6: 2021-09-01 | M6: 2021-10-01 | N6: 2021-11-01 | O6: 2021-12-01 | P6: 2022-01-01 | Q6: 2022-02-01 | R6: 2022-03-01 | S6: 2022-04-01 | T6: 2022-05-01 | U6: 2022-06-01 | V6: 2022-07-01 | W6: 2022-08-01 | X6: 2022-09-01 | Y6: 2022-10-01 | Z6: 2022-11-01 | AA6: 2022-12-01 | AB6: 2023-01-01 | AD6: 2023-02-01 | AE6: 2023-03-01 | AF6: 2023-04-01 | AG6: 2023-05-01 | AH6: 2023-06-01 | AI6: 2023-07-01 | AJ6: 2023-08-01 | AK6: 2023-09-01 | AL6: 2023-10-01 | AM6: 2023-11-01 | AN6: 2023-12-01 | AO6: 2024-01-01 | AP6: 2024-02-01
A9: Winter Storm Uri Excess Fuel Costs | E9: 296113391.5 | F9: =E9 -> 296113391.5 | G9: =F9 -> 296113391.5 | H9: 296113391.5 | I9: 291513910.8 | J9: =I9 -> 291513910.8 | K9: 292222809.8 | L9: =K9 -> 292222809.8 | M9: =L9 -> 292222809.8 | N9: 292222809.8 | O9: =N9+(3034963*99.81828%) -> 295252257.7 | P9: =O9 -> 295252257.7 | Q9: =P9+(187626*99.81828%) -> 295439542.8 | R9: =Q9 -> 295439542.8 | S9: =R9 -> 295439542.8 | T9: =S9 -> 295439542.8 | U9: 295439542.8 | V9: 295439542.8 | W9: 295439542.8 | X9: 295439542.8 | Y9: 295439542.8 | Z9: 295439542.8 | AA9: 295439542.8 | AB9: 295439542.8 | AD9: =AB9 -> 295439542.8 | AE9: 295439542.8 | AF9: =AE9 -> 295439542.8 | AG9: =AF9 -> 295439542.8 | AH9: =AG9 -> 295439542.8 | AI9: =AH9 -> 295439542.8 | AJ9: =AI9 -> 295439542.8 | AK9: =AJ9 -> 295439542.8 | AL9: =AK9 -> 295439542.8 | AM9: =AL9 -> 295439542.8 | AN9: =AM9 -> 295439542.8 | AO9: =AN9 -> 295439542.8 | AP9: =AO9 -> 295439542.8
A10: 5% of Fuel and Purchased Power | E10: =E9*5% -> 14805669.57 | F10: =F9*5% -> 14805669.57 | G10: 14805669.57 | H10: 14805669.57 | I10: 14575695.54 | J10: 14575695.54 | K10: 14611140.49 | L10: 14611140.49 | M10: 14611140.49 | N10: 14611140.49 | O10: 14762612.89 | P10: 14762612.89 | Q10: 14771977.14 | R10: 14771977.14 | S10: 14771977.14 | T10: 14771977.14 | U10: 14771977.14 | V10: 14771977.14 | W10: 14771977.14 | X10: 14771977.14 | Y10: 14771977.14 | Z10: 14771977.14 | AA10: 14771977.14 | AB10: 14771977.14 | AD10: =AD9*5% -> 14771977.14 | AE10: 14771977.14 | AF10: =AF9*5% -> 14771977.14 | AG10: 14771977.14 | AH10: 14771977.14 | AI10: 14771977.14 | AJ10: 14771977.14 | AK10: 14771977.14 | AL10: 14771977.14 | AM10: 14771977.14 | AN10: 14771977.14 | AO10: 14771977.14 | AP10: 14771977.14
A11: Excess Sales Revenues | E11: 0 | F11: =E11 -> 0 | G11: =F11 -> 0 | H11: 0 | I11: 0 | J11: 0 | K11: 0 | L11: 0 | M11: 0 | N11: 0 | O11: 0 | P11: 0 | Q11: 0 | R11: 0 | S11: 0 | T11: 0 | U11: 0 | V11: 0 | W11: 0 | X11: 0 | Y11: 0 | Z11: 0 | AA11: 0 | AB11: 0 | AD11: 0 | AE11: 0 | AF11: =AE11 -> 0 | AG11: =AF11 -> 0 | AH11: =AG11 -> 0 | AI11: =AH11 -> 0 | AJ11: =AI11 -> 0 | AK11: =AJ11 -> 0 | AL11: =AK11 -> 0 | AM11: =AL11 -> 0 | AN11: =AM11 -> 0 | AO11: =AN11 -> 0 | AP11: =AO11 -> 0
A12: NUCOR Adjustment | E12: 0 | F12: =E12 -> 0 | G12: 0 | H12: 0 | I12: 0 | J12: 0 | K12: 0 | L12: 0 | M12: 0 | N12: 0 | O12: 0 | P12: 0 | Q12: 0 | R12: 0 | S12: 0 | T12: 0 | U12: 0 | V12: 0 | W12: 0 | X12: 0 | Y12: 0 | Z12: 0 | AA12: 0 | AB12: 0 | AD12: 0 | AE12: 0 | AF12: 0 | AG12: 0 | AH12: 0 | AI12: 0 | AJ12: 0 | AK12: 0 | AL12: 0 | AM12: 0 | AN12: 0 | AO12: 0 | AP12: 0
A14: Storm Uri Monthly Amount | E14: =E9-E10-E11-E12 -> 281307721.9 | F14: =F9-F10-F11-F12 -> 281307721.9 | G14: 281307721.9 | H14: 281307721.9 | I14: 276938215.2 | J14: 276938215.2 | K14: 277611669.3 | L14: 277611669.3 | M14: 277611669.3 | N14: 277611669.3 | O14: 280489644.8 | P14: 280489644.8 | Q14: 280667565.6 | R14: 280667565.6 | S14: 280667565.6 | T14: 280667565.6 | U14: 280667565.6 | V14: 280667565.6 | W14: 280667565.6 | X14: 280667565.6 | Y14: 280667565.6 | Z14: 280667565.6 | AA14: 280667565.6 | AB14: 280667565.6 | AD14: =AD9-AD10-AD11-AD12 -> 280667565.6 | AE14: 280667565.6 | AF14: =AF9-AF10-AF11-AF12 -> 280667565.6 | AG14: 280667565.6 | AH14: 280667565.6 | AI14: 280667565.6 | AJ14: 280667565.6 | AK14: 280667565.6 | AL14: 280667565.6 | AM14: 280667565.6 | AN14: 280667565.6 | AO14: 280667565.6 | AP14: 280667565.6
A16: Long-term debt rate | D16: 0.0506
A17: Monthly long-term debt rate | D17: =D16/12 -> 0.004216666667
A19: Monthly Carrying Costs | F19: =F14*$D$17 -> 1186180.894 | G19: 1186180.894 | H19: 1186180.894 | I19: 1167756.141 | J19: 1167756.141 | K19: 1170595.872 | L19: 1170595.872 | M19: 1170595.872 | N19: 1170595.872 | O19: 1182731.336 | P19: 1182731.336 | Q19: 1183481.568 | R19: 1183481.568 | S19: 1183481.568 | T19: 1183481.568 | U19: 1183481.568 | V19: 1183481.568 | W19: 1183481.568 | X19: 1183481.568 | Y19: 1183481.568 | Z19: 1183481.568 | AA19: 1183481.568 | AB19: 1183481.568 | AC19: =SUM(E19:AB19) -> 27143679.94 | AD19: 1183481.568 | AE19: 1183481.568 | AF19: 1183481.568 | AG19: 1183481.568 | AH19: 1183481.568 | AI19: 1183481.568 | AJ19: 1183481.568 | AK19: 1183481.568 | AL19: 1183481.568 | AM19: 1183481.568 | AN19: 1183481.568 | AO19: 1183481.568 | AP19: =AP14*$D$17/2 -> 591740.7842 | AQ19: =SUM(AC19:AP19) -> 41937199.55
AQ20: est
